{"text_format":"1","workbook":"xlsx","n_sheets":23,"sheets":["はじめに","TOP","シート1","シート2-①","シート2-②","シート2-③","シート2-④","シート2-⑤","シート2-⑥","シート2-⑦","シート2-⑧","シート2-⑨","シート3-①","シート3-②","シート3-③","シート3-④","シート3-⑤","シート3-⑥","シート3-⑦","シート3-⑧","シート3-⑨","集計用シート（主任研修）","リスト"],"not_rendered":{"charts":0,"images":2,"macros":1,"external_links":1,"defined_names":22,"comments":10,"pivot_tables":0},"unopened":[],"bounds":{"document_bytes":16777216,"sheet_cells":100000,"rows_first":2000,"rows_last":500,"rows_between":2000,"halvings":0,"cell_chars":16384,"cell_head_chars":4096},"cells_cut":0,"cells_raw":0,"read":"whole","date_system":"1900"}

{"sheet":"はじめに","index":0,"n_rows":108,"n_cols":17,"rows_kept":108,"cut":false,"hidden":false,"merged":[[35,1,35,3],[87,5,87,18],[93,1,93,3],[37,1,37,3],[0,0,0,20],[1,0,1,20],[22,1,22,3],[24,1,24,3],[33,1,33,3],[45,4,47,20],[46,1,46,3],[85,1,85,3],[87,1,87,3],[85,5,85,18],[93,13,93,15],[93,16,93,17],[105,2,105,4],[92,1,92,5],[92,7,92,11],[92,13,92,17],[94,1,94,3],[94,4,94,5],[95,1,95,3],[95,4,95,5],[94,10,94,11],[94,13,94,15],[95,10,95,11],[93,7,93,9],[93,10,93,11],[93,4,93,5],[95,13,95,15],[95,16,95,17],[105,5,105,9],[105,10,107,11],[105,12,107,17],[94,16,94,17],[94,7,94,9],[95,7,95,9]]}
[]
["研修記録シート（主任研修）　入力フォーマットの説明"]
[]
["この研修記録シートは｢受講前」、「受講直後」、「受講3ヶ月後」に研修の評価をするものです。"]
["受講にあたり、下記の手順で記録と提出をお願いします。"]
[]
["（1）シートの種類"]
[]
[null,"このシートは3種類で構成されています。"]
[]
[]
[]
[]
[]
[]
[]
[]
[]
["　①研修記録シート1（目標）"]
[]
["　　　「受講者」と「管理者」が受講に当たっての目標と評価（効果）を共有するためのシートです。"]
[]
[null,"受講前",null,null,"　受講前に、「受講者」と「管理者」が相談して「研修に期待すること」「目標」を記入して下さい。"]
[]
[null,"受講3ヶ月後",null,null,"　受講3ヶ月後に、「受講者」と「管理者」が目標に対する評価を記入してください。"]
[]
[]
[]
["　②研修記録シート2（評価）"]
[]
["　　　「受講者」が研修の「受講前」「受講直後」「受講3ヶ月後」に記入し、自己評価をするためのシートです。"]
["　　　科目毎にシートがあり、学ぶ内容に沿って自己評価を記入します。"]
[]
[null,"受講前",null,null,"　各項目について、受講前の段階の自身の自己評価を記入してください。"]
[]
[null,"受講直後",null,null,"　受講直後の自己評価を記入し、提出してください。"]
[]
[null,"受講3ヶ月後",null,null,"　受講3ヶ月後を目途に、実践で活用した際の自己評価を記入してください。"]
[]
[]
[]
["　③研修記録シート3（振り返り）"]
[]
["　　　「受講者」が課目の学習時に感じた事を書き留め、今後の学習方針や取り組みの検討時に見返すためのシートです。"]
["　　　科目毎にシートがあり、修了後も関連した内容を書き留め、記録しておきます。"]
[null,null,null,null,"　受講直後から継続して記入します。理解したこと、出来なかったこと、主観的・感情的な記述\n　（嬉しかったこと、腑に落ちたこと、講師の話し方など感情的な内容）も重要なので記載します。"]
[null,"受講直後"]
[]
[]
[]
[]
[]
[]
[]
["（2）入力方法"]
[]
["①","入力するには、画面下の「TOP」シートをクリックします。"]
[]
[]
[]
[]
[]
[]
[]
[]
["②","シートを選択して入力します。　※入力後は忘れずに保存して下さい。"]
[]
[]
[]
[]
[]
[]
[]
[]
[]
[]
[]
[]
["（3）提出方法"]
[]
["　①提出先"]
[]
["　　　研修実施機関の事務局までE-mailにてご提出ください。"]
["　　　本研修の実施機関は下記の通りです。"]
[]
[null,"実施機関",null,null,null,"社会福祉法人岐阜県福祉事業団　岐阜県介護研修センター"]
[]
[null,"送信先（E-mail)",null,null,null,"kensyu@gifu-fukushi.jp"]
[]
[]
["　②提出の時期"]
[]
[null,"シート1（目標）",null,null,null,null,null,"シート2（評価）",null,null,null,null,null,"シート3（振り返り）"]
[null,"　1．受講前",null,null,"○",null,null,"　1．受講前",null,null,"○",null,null,"　1．受講前",null,null,"-"]
[null,"　2．受講直後",null,null,"-",null,null,"　2．受講直後",null,null,"○",null,null,"　2．受講直後",null,null,"○"]
[null,"　3．受講3ヶ月後",null,null,"○",null,null,"　3．受講3ヶ月後",null,null,"○",null,null,"　3．受講3ヶ月後",null,null,"-"]
[]
[null,"○　・・・要提出",null,null,null,"－　・・・提出不要"]
[]
[]
["　③提出時の注意"]
[]
[null,"ご提出の際は、ファイル名を「受講決定番号」と「氏名」を組み合わせ、下記の通り変更して送信してください。"]
[null,"ファイル名：",null,null,"受講決定番号　+　氏名"]
[]
[null,"例）","受講決定番号",null,null,"　　9999",null,null,null,null,"ファイル名",null,"9999介護太郎"]
[]
[null,null,null,"氏名",null,"　　介護　太郎"]

{"sheet":"TOP","index":1,"n_rows":27,"n_cols":5,"rows_kept":27,"cut":false,"hidden":false,"merged":[[30,2,30,3],[6,2,6,3],[2,0,2,5],[14,1,14,2],[8,1,8,4],[9,1,9,4],[10,1,10,4],[11,1,11,4],[14,3,14,4]]}
[]
[]
["研修記録シート（主任研修）入力フォーマット"]
[]
[null,"★入力するには、下の表から入力するデータ名（シート番号）をクリックしてください。"]
[null,"★データの送信先は次のアドレスです。"]
[null,null,"kensyu@gifu-fukushi.jp"]
[]
[null,"シート名"]
[null,"1．研修記録シート1（目標）"]
[null,"2．研修記録シート2（評価）　　　　　 ※下の表からシート番号を選択してください。"]
[null,"3．研修記録シート3（振り返り）　　　  ※下の表からシート番号を選択してください。"]
[]
[]
[null,"課目名",null,"シート番号"]
[null,"①","主任介護支援専門員の役割と視点","シート2","シート3"]
[null,"②","ケアマネジメントの実践における倫理的な課題に対する支援","シート2","シート3"]
[null,"③","終末期ケア（EOL（エンドオブライフ）ケア）を含めた生活の継続を支える基本的なケアマネジメント及び疾患別ケアマネジメントの理解","シート2","シート3"]
[null,"④","人材育成及び業務管理","シート2","シート3"]
[null,"⑤","運営管理におけるリスクマネジメント","シート2","シート3"]
[null,"⑥","地域援助技術（コミュニティソーシャルワーク）","シート2","シート3"]
[null,"⑦","地域における生活の継続を支える医療との連携及び多職種協働の実現","シート2","シート3"]
[null,"⑧","対人援助者監督指導（スーパービジョン）","シート2","シート3"]
[null,"⑨","個別事例を通じた介護支援専門員に対する指導・支援の展開","シート2","シート3"]
[]
[]
[null,"■問い合わせ先"]

{"sheet":"シート1","index":2,"n_rows":63,"n_cols":27,"rows_kept":63,"cut":false,"hidden":false,"merged":[[51,6,51,7],[51,8,51,17],[2,1,2,17],[15,1,20,17],[40,1,45,17],[6,11,6,12],[8,11,8,12],[6,1,6,2],[6,3,6,4],[6,5,6,6],[24,3,24,4],[24,8,24,17],[49,3,49,4],[49,8,49,17],[6,7,6,9],[8,3,8,9],[6,13,6,17],[8,13,8,17],[28,1,33,17],[13,1,13,2],[13,3,13,4],[8,1,8,2],[26,8,26,17],[61,1,61,17],[62,1,62,17],[49,1,49,2],[24,6,24,7],[24,1,24,2],[49,6,49,7],[36,1,36,2],[53,1,58,17],[26,3,26,4],[26,6,26,7],[38,1,38,2],[38,3,38,4],[26,1,26,2],[60,1,60,17],[51,1,51,2],[51,3,51,4]]}
[null,"研修記録シート1（目標）"]
[]
[null,"この事前提出シートは、研修受講前に｢受講者」と「管理者」が受講に当たっての目標を共有するためのものです。\n研修に期待すること、目標、成果等を記入してください。\n赤枠内を入力してください。"]
[]
[null,"研修名：",null,null,"主任研修",null,null,null,null,null,null,null,null,null,null,null,null,null,null,null,null,null,null,null,null,null,"このボタンをクリックするとTOPページへ移動します。"]
[]
[null,"日程",null,"2024-11-09",null,"～",null,"2025-03-05",null,null,null,"氏名"]
[]
[null,"会場",null,"オンライン研修（Zoom）",null,null,null,null,null,null,null,"番号",null,9999]
[]
[null,"1．受講前"]
[null,"受講者記入欄",null,"：受講目標（研修後にどのような行動ができるようになりたいか）を記載してください。",null,null,null,null,null,null,null,null,null,null,null,null,null,null,null,null,null,"リスト（課程区分）","リスト（管理者記入欄）","リスト（実践評価：管理者記入欄","管理者記入欄（3ヶ月後）"]
[]
[null,"入力日"]
[]
[]
[null,null,null,null,null,null,null,null,null,null,null,null,null,null,null,null,null,null,null,null,null,"主任研修","○",4,"十分達成できている。","十分活用できている。"]
[null,null,null,null,null,null,null,null,null,null,null,null,null,null,null,null,null,null,null,null,null,null,null,3,"達成できていない。","活用できている。"]
[]
[null,null,null,null,null,null,null,null,null,null,null,null,null,null,null,null,null,null,null,null,null,null,null,2,"あまり達成できていない。","あまり活用できていない。"]
[null,null,null,null,null,null,null,null,null,null,null,null,null,null,null,null,null,null,null,null,null,null,null,1,"達成できていない。","活用できていない。"]
[]
[null,"管理者記入欄",null,"：受講者に研修で学んでほしいこと・期待することを記載してください。"]
[]
[null,"記入者氏名",null,null,null,null,"所属先及び役職"]
[]
[null,"入力日",null,null,null,null,"役職"]
[]
[]
[]
[]
[]
[]
[]
[]
[null,"2．受講後（3カ月後程度）"]
[null,"受講者記入欄",null,"：受講成果（目標の達成と実践への活用の状況）の自己評価を記載してください。"]
[]
[null,"入力日"]
[]
[]
[]
[]
[]
[]
[]
[]
[null,"管理者記入欄",null,null,"受講成果（受講者の目標の達成と実践への活用状況）を記載してください。"]
[]
[null,"記入者氏名",null,null,null,null,"所属先及び役職"]
[]
[null,"入力日",null,null,null,null,"役職"]
[]
[]
[]
[]
[]
[]
[]
[]
[null,"※受講目標は受講者と管理者で相談して決めてください。"]
[null,"※管理者記入欄は、受講者が管理者本人、又は実務に就いていない等の理由により、管理者が記入できない場合には、地域の主任介護支援専門員に相談して記入をお願いします。"]
[null,"※「受講後」の欄は、実務に就かない方は、未就労である旨を記載の上、就労後に御活用ください。"]

{"sheet":"シート2-①","index":3,"n_rows":150,"n_cols":41,"rows_kept":150,"cut":false,"hidden":false,"merged":[[30,1,30,28],[31,1,31,28],[27,2,27,14],[27,15,27,17],[27,18,27,20],[27,21,27,23],[27,24,27,28],[28,2,28,14],[28,15,28,17],[28,18,28,20],[28,21,28,23],[28,24,28,28],[23,2,23,14],[23,15,23,17],[23,18,23,20],[23,21,23,23],[23,24,23,28],[18,2,18,14],[17,15,17,17],[20,21,20,23],[21,24,21,28],[25,2,25,14],[24,2,24,14],[25,18,25,20],[25,15,25,17],[25,21,25,23],[24,21,24,23],[22,18,22,20],[22,21,22,23],[19,2,19,14],[20,2,20,14],[21,2,21,14],[22,2,22,14],[19,21,19,23],[21,18,21,20],[20,15,20,17],[25,24,25,28],[22,15,22,17],[20,24,20,28],[22,24,22,28],[20,18,20,20],[21,21,21,23],[17,1,17,14],[15,21,16,23],[15,33,16,33],[15,36,15,37],[15,38,15,39],[15,34,15,35],[17,38,17,39],[15,24,16,28],[15,1,16,14],[15,15,16,17],[15,18,16,20],[17,36,17,37],[17,18,17,20],[17,21,17,23],[17,24,17,28],[17,34,17,35],[2,1,2,28],[9,17,9,20],[10,4,10,8],[5,1,5,2],[6,1,6,2],[9,1,10,2],[9,4,9,8],[9,12,9,15],[9,9,10,10],[12,1,13,2],[12,4,12,20],[13,4,13,20],[10,17,10,20],[5,3,5,28],[12,24,13,28],[12,21,13,23],[9,21,10,23],[9,24,10,28],[6,3,6,28],[10,12,10,15],[26,24,26,28],[18,15,18,17],[26,2,26,14],[26,15,26,17],[26,18,26,20],[26,21,26,23],[24,24,24,28],[19,24,19,28],[18,21,18,23],[18,24,18,28],[18,18,18,20],[19,15,19,17],[24,15,24,17],[24,18,24,20],[21,15,21,17],[19,18,19,20]]}
[null,"研修記録シート2（評価）"]
[]
[null,"この振り返りシートは、科目の受講前後で各自の理解度を把握し、受講中の学習効果の向上と、受講後の学習のポイントを焦点化し、継続的な資質向上に役立てるものです。本科目を学習した時点で感じた事を書き留め、今後の学習方針や課題への取り組みを考える際に見返してみましょう。"]
[]
[]
[null,"研修名：",null,"主任研修",null,null,null,null,null,null,null,null,null,null,null,null,null,null,null,null,null,null,null,null,null,null,null,null,null,null,null,null,null,null,null,null,null,null,null,null,"このボタンをクリックするとTOPページへ移動します。"]
[null,"課目名：",null,"①主任介護支援専門員の役割と視点"]
[]
[]
[null,"受講日",null,1,"2024-11-09",null,null,null,null,"時間",null,1,"10:00:00",null,null,null,"～","12:00:00",null,null,null,"氏名",null,null,{"$f":"IF(ISBLANK(シート1!N7),\"\",シート1!N7)","v":""}]
[null,null,null,2,"2024-11-09",null,null,null,null,null,null,2,"13:00:00",null,null,null,"～","16:00:00"]
[]
[null,"会場",null,1,"オンライン研修（Zoom）",null,null,null,null,null,null,null,null,null,null,null,null,null,null,null,null,"番号",null,null,{"$f":"IF(ISBLANK(シート1!N9),\"\",シート1!N9)","v":9999}]
[null,null,null,2,"オンライン研修（Zoom）"]
[]
[null,"項　　目 ",null,null,null,null,null,null,null,null,null,null,null,null,null,"受講前 ",null,null,"受講\n直後",null,null,"実践\n評価\n(3ヶ月後）",null,null,"備　　考 ",null,null,null,null,null,null,"リスト（課程区分）","リスト（時間）",null,"受講前",null,"受講後 ",null,"実践評価"]
[null,null,null,null,null,null,null,null,null,null,null,null,null,null,null,null,null,null,null,null,null,null,null,null,null,null,null,null,null,null,null,null,"リストから選択",null,"理解度","習得度","理解度","習得度","理解度","習得度"]
[null,"記入日（入力日）",null,null,null,null,null,null,null,null,null,null,null,null,null,null,null,null,null,null,null,null,null,null,null,null,null,null,null,null,null,"リスト（課程区分）","リスト（時間）",null,"受講前",null,"受講後 ",null,"実践評価"]
[null,"① ","地域包括支援センター、居宅介護支援事業所等における主任介護支援専門員の役割の共通点と相違点を説明できる。",null,null,null,null,null,null,null,null,null,null,null,null,null,null,null,null,null,null,null,null,null,null,null,null,null,null,null,null,"Ⅰ","08:00:00",4,"4．理解している ","-","4．非常に理解が深まった ","4．習得できた ","4．非常に理解が深まった","4．習得度が上がった "]
[null,"② ","介護支援専門員に対する指導・支援の視点について説明できる。",null,null,null,null,null,null,null,null,null,null,null,null,null,null,null,null,null,null,null,null,null,null,null,null,null,null,null,null,"Ⅱ","08:05:00",3,"3．概ね理解している ","-","3．理解が深まった ","3．概ね習得できた ","3．理解が深まった","3．まあまあ習得度が上がった "]
[null,"③ ","地域包括ケアシステムの構築に向けての地域づくりの視点について説明できる。",null,null,null,null,null,null,null,null,null,null,null,null,null,null,null,null,null,null,null,null,null,null,null,null,null,null,null,null,null,"08:10:00",2,"2．あまり理解していない ","-","2．あまり理解が進まなかった ","2．あまり習得できていない ","2．あまり理解度は変わらない ","2．習得度は変わらない "]
[null,"④ ","セルフケア・セルフマネジメントに関する地域住民の意識づくりの視点を説明できる。",null,null,null,null,null,null,null,null,null,null,null,null,null,null,null,null,null,null,null,null,null,null,null,null,null,null,null,null,null,"08:15:00",1,"1．全く理解していない ","-","1．理解が進まなかった ","1．習得できていない ","1．理解度は変わらない。 ","1．理解度が深まり、習得度が後退した "]
[null,"⑤ ","介護保険制度や他制度について、最新の動向について説明できる。",null,null,null,null,null,null,null,null,null,null,null,null,null,null,null,null,null,null,null,null,null,null,null,null,null,null,null,null,null,"08:20:00"]
[null,"⑥ ","主任介護支援専門員としての役割を実践するにあたり、現状を振り返って自らの課題の設定を実施できる。",null,null,null,null,null,null,null,null,null,null,null,null,null,null,null,null,null,null,null,null,null,null,null,null,null,null,null,null,null,"08:25:00"]
[null,"⑦","「自らの実践」と「指導・支援」の視点の違いについて説明できる。",null,null,null,null,null,null,null,null,null,null,null,null,null,null,null,null,null,null,null,null,null,null,null,null,null,null,null,null,null,"08:30:00"]
[null,"⑧","ケアマネジメントプロセスに関する最新の知見を踏まえた、実践のあり方の見直し（アップデート）を行うことができる。",null,null,null,null,null,null,null,null,null,null,null,null,null,null,null,null,null,null,null,null,null,null,null,null,null,null,null,null,null,"08:35:00"]
[null,null,null,null,null,null,null,null,null,null,null,null,null,null,null,null,null,null,null,null,null,null,null,null,null,null,null,null,null,null,null,null,"08:40:00"]
[null,null,null,null,null,null,null,null,null,null,null,null,null,null,null,null,null,null,null,null,null,null,null,null,null,null,null,null,null,null,null,null,"08:45:00"]
[null,null,null,null,null,null,null,null,null,null,null,null,null,null,null,null,null,null,null,null,null,null,null,null,null,null,null,null,null,null,null,null,"08:50:00"]
[null,null,null,null,null,null,null,null,null,null,null,null,null,null,null,null,null,null,null,null,null,null,null,null,null,null,null,null,null,null,null,null,"08:55:00"]
[null,"　※研修は自己評価とし、4段階評価で、数字が大きいほど高評価、数字が小さいほど低評価として記入してください。",null,null,null,null,null,null,null,null,null,null,null,null,null,null,null,null,null,null,null,null,null,null,null,null,null,null,null,null,null,null,"09:00:00"]
[null,"　　【選択肢】　　　4.　できる　　　　　3.　概ねできる　　　　　2.　ほとんどできない　　　　1.　全くできない",null,null,null,null,null,null,null,null,null,null,null,null,null,null,null,null,null,null,null,null,null,null,null,null,null,null,null,null,null,null,"09:05:00"]
[null,null,null,null,null,null,null,null,null,null,null,null,null,null,null,null,null,null,null,null,null,null,null,null,null,null,null,null,null,null,null,null,"09:10:00"]
[null,null,null,null,null,null,null,null,null,null,null,null,null,null,null,null,null,null,null,null,null,null,null,null,null,null,null,null,null,null,null,null,"09:15:00"]
[null,null,null,null,null,null,null,null,null,null,null,null,null,null,null,null,null,null,null,null,null,null,null,null,null,null,null,null,null,null,null,null,"09:20:00"]
[null,null,null,null,null,null,null,null,null,null,null,null,null,null,null,null,null,null,null,null,null,null,null,null,null,null,null,null,null,null,null,null,"09:25:00"]
[null,null,null,null,null,null,null,null,null,null,null,null,null,null,null,null,null,null,null,null,null,null,null,null,null,null,null,null,null,null,null,null,"09:30:00"]
[null,null,null,null,null,null,null,null,null,null,null,null,null,null,null,null,null,null,null,null,null,null,null,null,null,null,null,null,null,null,null,null,"09:35:00"]
[null,null,null,null,null,null,null,null,null,null,null,null,null,null,null,null,null,null,null,null,null,null,null,null,null,null,null,null,null,null,null,null,"09:40:00"]
[null,null,null,null,null,null,null,null,null,null,null,null,null,null,null,null,null,null,null,null,null,null,null,null,null,null,null,null,null,null,null,null,"09:45:00"]
[null,null,null,null,null,null,null,null,null,null,null,null,null,null,null,null,null,null,null,null,null,null,null,null,null,null,null,null,null,null,null,null,"09:50:00"]
[null,null,null,null,null,null,null,null,null,null,null,null,null,null,null,null,null,null,null,null,null,null,null,null,null,null,null,null,null,null,null,null,"09:55:00"]
[null,null,null,null,null,null,null,null,null,null,null,null,null,null,null,null,null,null,null,null,null,null,null,null,null,null,null,null,null,null,null,null,"10:00:00"]
[null,null,null,null,null,null,null,null,null,null,null,null,null,null,null,null,null,null,null,null,null,null,null,null,null,null,null,null,null,null,null,null,"10:05:00"]
[null,null,null,null,null,null,null,null,null,null,null,null,null,null,null,null,null,null,null,null,null,null,null,null,null,null,null,null,null,null,null,null,"10:10:00"]
[null,null,null,null,null,null,null,null,null,null,null,null,null,null,null,null,null,null,null,null,null,null,null,null,null,null,null,null,null,null,null,null,"10:15:00"]
[null,null,null,null,null,null,null,null,null,null,null,null,null,null,null,null,null,null,null,null,null,null,null,null,null,null,null,null,null,null,null,null,"10:20:00"]
[null,null,null,null,null,null,null,null,null,null,null,null,null,null,null,null,null,null,null,null,null,null,null,null,null,null,null,null,null,null,null,null,"10:25:00"]
[null,null,null,null,null,null,null,null,null,null,null,null,null,null,null,null,null,null,null,null,null,null,null,null,null,null,null,null,null,null,null,null,"10:30:00"]
[null,null,null,null,null,null,null,null,null,null,null,null,null,null,null,null,null,null,null,null,null,null,null,null,null,null,null,null,null,null,null,null,"10:35:00"]
[null,null,null,null,null,null,null,null,null,null,null,null,null,null,null,null,null,null,null,null,null,null,null,null,null,null,null,null,null,null,null,null,"10:40:00"]
[null,null,null,null,null,null,null,null,null,null,null,null,null,null,null,null,null,null,null,null,null,null,null,null,null,null,null,null,null,null,null,null,"10:45:00"]
[null,null,null,null,null,null,null,null,null,null,null,null,null,null,null,null,null,null,null,null,null,null,null,null,null,null,null,null,null,null,null,null,"10:50:00"]
[null,null,null,null,null,null,null,null,null,null,null,null,null,null,null,null,null,null,null,null,null,null,null,null,null,null,null,null,null,null,null,null,"10:55:00"]
[null,null,null,null,null,null,null,null,null,null,null,null,null,null,null,null,null,null,null,null,null,null,null,null,null,null,null,null,null,null,null,null,"11:00:00"]
[null,null,null,null,null,null,null,null,null,null,null,null,null,null,null,null,null,null,null,null,null,null,null,null,null,null,null,null,null,null,null,null,"11:05:00"]
[null,null,null,null,null,null,null,null,null,null,null,null,null,null,null,null,null,null,null,null,null,null,null,null,null,null,null,null,null,null,null,null,"11:10:00"]
[null,null,null,null,null,null,null,null,null,null,null,null,null,null,null,null,null,null,null,null,null,null,null,null,null,null,null,null,null,null,null,null,"11:15:00"]
[null,null,null,null,null,null,null,null,null,null,null,null,null,null,null,null,null,null,null,null,null,null,null,null,null,null,null,null,null,null,null,null,"11:20:00"]
[null,null,null,null,null,null,null,null,null,null,null,null,null,null,null,null,null,null,null,null,null,null,null,null,null,null,null,null,null,null,null,null,"11:25:00"]
[null,null,null,null,null,null,null,null,null,null,null,null,null,null,null,null,null,null,null,null,null,null,null,null,null,null,null,null,null,null,null,null,"11:30:00"]
[null,null,null,null,null,null,null,null,null,null,null,null,null,null,null,null,null,null,null,null,null,null,null,null,null,null,null,null,null,null,null,null,"11:35:00"]
[null,null,null,null,null,null,null,null,null,null,null,null,null,null,null,null,null,null,null,null,null,null,null,null,null,null,null,null,null,null,null,null,"11:40:00"]
[null,null,null,null,null,null,null,null,null,null,null,null,null,null,null,null,null,null,null,null,null,null,null,null,null,null,null,null,null,null,null,null,"11:45:00"]
[null,null,null,null,null,null,null,null,null,null,null,null,null,null,null,null,null,null,null,null,null,null,null,null,null,null,null,null,null,null,null,null,"11:50:00"]
[null,null,null,null,null,null,null,null,null,null,null,null,null,null,null,null,null,null,null,null,null,null,null,null,null,null,null,null,null,null,null,null,"11:55:00"]
[null,null,null,null,null,null,null,null,null,null,null,null,null,null,null,null,null,null,null,null,null,null,null,null,null,null,null,null,null,null,null,null,"12:00:00"]
[null,null,null,null,null,null,null,null,null,null,null,null,null,null,null,null,null,null,null,null,null,null,null,null,null,null,null,null,null,null,null,null,"12:05:00"]
[null,null,null,null,null,null,null,null,null,null,null,null,null,null,null,null,null,null,null,null,null,null,null,null,null,null,null,null,null,null,null,null,"12:10:00"]
[null,null,null,null,null,null,null,null,null,null,null,null,null,null,null,null,null,null,null,null,null,null,null,null,null,null,null,null,null,null,null,null,"12:15:00"]
[null,null,null,null,null,null,null,null,null,null,null,null,null,null,null,null,null,null,null,null,null,null,null,null,null,null,null,null,null,null,null,null,"12:20:00"]
[null,null,null,null,null,null,null,null,null,null,null,null,null,null,null,null,null,null,null,null,null,null,null,null,null,null,null,null,null,null,null,null,"12:25:00"]
[null,null,null,null,null,null,null,null,null,null,null,null,null,null,null,null,null,null,null,null,null,null,null,null,null,null,null,null,null,null,null,null,"12:30:00"]
[null,null,null,null,null,null,null,null,null,null,null,null,null,null,null,null,null,null,null,null,null,null,null,null,null,null,null,null,null,null,null,null,"12:35:00"]
[null,null,null,null,null,null,null,null,null,null,null,null,null,null,null,null,null,null,null,null,null,null,null,null,null,null,null,null,null,null,null,null,"12:40:00"]
[null,null,null,null,null,null,null,null,null,null,null,null,null,null,null,null,null,null,null,null,null,null,null,null,null,null,null,null,null,null,null,null,"12:45:00"]
[null,null,null,null,null,null,null,null,null,null,null,null,null,null,null,null,null,null,null,null,null,null,null,null,null,null,null,null,null,null,null,null,"12:50:00"]
[null,null,null,null,null,null,null,null,null,null,null,null,null,null,null,null,null,null,null,null,null,null,null,null,null,null,null,null,null,null,null,null,"12:55:00"]
[null,null,null,null,null,null,null,null,null,null,null,null,null,null,null,null,null,null,null,null,null,null,null,null,null,null,null,null,null,null,null,null,"13:00:00"]
[null,null,null,null,null,null,null,null,null,null,null,null,null,null,null,null,null,null,null,null,null,null,null,null,null,null,null,null,null,null,null,null,"13:05:00"]
[null,null,null,null,null,null,null,null,null,null,null,null,null,null,null,null,null,null,null,null,null,null,null,null,null,null,null,null,null,null,null,null,"13:10:00"]
[null,null,null,null,null,null,null,null,null,null,null,null,null,null,null,null,null,null,null,null,null,null,null,null,null,null,null,null,null,null,null,null,"13:15:00"]
[null,null,null,null,null,null,null,null,null,null,null,null,null,null,null,null,null,null,null,null,null,null,null,null,null,null,null,null,null,null,null,null,"13:20:00"]
[null,null,null,null,null,null,null,null,null,null,null,null,null,null,null,null,null,null,null,null,null,null,null,null,null,null,null,null,null,null,null,null,"13:25:00"]
[null,null,null,null,null,null,null,null,null,null,null,null,null,null,null,null,null,null,null,null,null,null,null,null,null,null,null,null,null,null,null,null,"13:30:00"]
[null,null,null,null,null,null,null,null,null,null,null,null,null,null,null,null,null,null,null,null,null,null,null,null,null,null,null,null,null,null,null,null,"13:35:00"]
[null,null,null,null,null,null,null,null,null,null,null,null,null,null,null,null,null,null,null,null,null,null,null,null,null,null,null,null,null,null,null,null,"13:40:00"]
[null,null,null,null,null,null,null,null,null,null,null,null,null,null,null,null,null,null,null,null,null,null,null,null,null,null,null,null,null,null,null,null,"13:45:00"]
[null,null,null,null,null,null,null,null,null,null,null,null,null,null,null,null,null,null,null,null,null,null,null,null,null,null,null,null,null,null,null,null,"13:50:00"]
[null,null,null,null,null,null,null,null,null,null,null,null,null,null,null,null,null,null,null,null,null,null,null,null,null,null,null,null,null,null,null,null,"13:55:00"]
[null,null,null,null,null,null,null,null,null,null,null,null,null,null,null,null,null,null,null,null,null,null,null,null,null,null,null,null,null,null,null,null,"14:00:00"]
[null,null,null,null,null,null,null,null,null,null,null,null,null,null,null,null,null,null,null,null,null,null,null,null,null,null,null,null,null,null,null,null,"14:05:00"]
[null,null,null,null,null,null,null,null,null,null,null,null,null,null,null,null,null,null,null,null,null,null,null,null,null,null,null,null,null,null,null,null,"14:10:00"]
[null,null,null,null,null,null,null,null,null,null,null,null,null,null,null,null,null,null,null,null,null,null,null,null,null,null,null,null,null,null,null,null,"14:15:00"]
[null,null,null,null,null,null,null,null,null,null,null,null,null,null,null,null,null,null,null,null,null,null,null,null,null,null,null,null,null,null,null,null,"14:20:00"]
[null,null,null,null,null,null,null,null,null,null,null,null,null,null,null,null,null,null,null,null,null,null,null,null,null,null,null,null,null,null,null,null,"14:25:00"]
[null,null,null,null,null,null,null,null,null,null,null,null,null,null,null,null,null,null,null,null,null,null,null,null,null,null,null,null,null,null,null,null,"14:30:00"]
[null,null,null,null,null,null,null,null,null,null,null,null,null,null,null,null,null,null,null,null,null,null,null,null,null,null,null,null,null,null,null,null,"14:35:00"]
[null,null,null,null,null,null,null,null,null,null,null,null,null,null,null,null,null,null,null,null,null,null,null,null,null,null,null,null,null,null,null,null,"14:40:00"]
[null,null,null,null,null,null,null,null,null,null,null,null,null,null,null,null,null,null,null,null,null,null,null,null,null,null,null,null,null,null,null,null,"14:45:00"]
[null,null,null,null,null,null,null,null,null,null,null,null,null,null,null,null,null,null,null,null,null,null,null,null,null,null,null,null,null,null,null,null,"14:50:00"]
[null,null,null,null,null,null,null,null,null,null,null,null,null,null,null,null,null,null,null,null,null,null,null,null,null,null,null,null,null,null,null,null,"14:55:00"]
[null,null,null,null,null,null,null,null,null,null,null,null,null,null,null,null,null,null,null,null,null,null,null,null,null,null,null,null,null,null,null,null,"15:00:00"]
[null,null,null,null,null,null,null,null,null,null,null,null,null,null,null,null,null,null,null,null,null,null,null,null,null,null,null,null,null,null,null,null,"15:05:00"]
[null,null,null,null,null,null,null,null,null,null,null,null,null,null,null,null,null,null,null,null,null,null,null,null,null,null,null,null,null,null,null,null,"15:10:00"]
[null,null,null,null,null,null,null,null,null,null,null,null,null,null,null,null,null,null,null,null,null,null,null,null,null,null,null,null,null,null,null,null,"15:15:00"]
[null,null,null,null,null,null,null,null,null,null,null,null,null,null,null,null,null,null,null,null,null,null,null,null,null,null,null,null,null,null,null,null,"15:20:00"]
[null,null,null,null,null,null,null,null,null,null,null,null,null,null,null,null,null,null,null,null,null,null,null,null,null,null,null,null,null,null,null,null,"15:25:00"]
[null,null,null,null,null,null,null,null,null,null,null,null,null,null,null,null,null,null,null,null,null,null,null,null,null,null,null,null,null,null,null,null,"15:30:00"]
[null,null,null,null,null,null,null,null,null,null,null,null,null,null,null,null,null,null,null,null,null,null,null,null,null,null,null,null,null,null,null,null,"15:35:00"]
[null,null,null,null,null,null,null,null,null,null,null,null,null,null,null,null,null,null,null,null,null,null,null,null,null,null,null,null,null,null,null,null,"15:40:00"]
[null,null,null,null,null,null,null,null,null,null,null,null,null,null,null,null,null,null,null,null,null,null,null,null,null,null,null,null,null,null,null,null,"15:45:00"]
[null,null,null,null,null,null,null,null,null,null,null,null,null,null,null,null,null,null,null,null,null,null,null,null,null,null,null,null,null,null,null,null,"15:50:00"]
[null,null,null,null,null,null,null,null,null,null,null,null,null,null,null,null,null,null,null,null,null,null,null,null,null,null,null,null,null,null,null,null,"15:55:00"]
[null,null,null,null,null,null,null,null,null,null,null,null,null,null,null,null,null,null,null,null,null,null,null,null,null,null,null,null,null,null,null,null,"16:00:00"]
[null,null,null,null,null,null,null,null,null,null,null,null,null,null,null,null,null,null,null,null,null,null,null,null,null,null,null,null,null,null,null,null,"16:05:00"]
[null,null,null,null,null,null,null,null,null,null,null,null,null,null,null,null,null,null,null,null,null,null,null,null,null,null,null,null,null,null,null,null,"16:10:00"]
[null,null,null,null,null,null,null,null,null,null,null,null,null,null,null,null,null,null,null,null,null,null,null,null,null,null,null,null,null,null,null,null,"16:15:00"]
[null,null,null,null,null,null,null,null,null,null,null,null,null,null,null,null,null,null,null,null,null,null,null,null,null,null,null,null,null,null,null,null,"16:20:00"]
[null,null,null,null,null,null,null,null,null,null,null,null,null,null,null,null,null,null,null,null,null,null,null,null,null,null,null,null,null,null,null,null,"16:25:00"]
[null,null,null,null,null,null,null,null,null,null,null,null,null,null,null,null,null,null,null,null,null,null,null,null,null,null,null,null,null,null,null,null,"16:30:00"]
[null,null,null,null,null,null,null,null,null,null,null,null,null,null,null,null,null,null,null,null,null,null,null,null,null,null,null,null,null,null,null,null,"16:35:00"]
[null,null,null,null,null,null,null,null,null,null,null,null,null,null,null,null,null,null,null,null,null,null,null,null,null,null,null,null,null,null,null,null,"16:40:00"]
[null,null,null,null,null,null,null,null,null,null,null,null,null,null,null,null,null,null,null,null,null,null,null,null,null,null,null,null,null,null,null,null,"16:45:00"]
[null,null,null,null,null,null,null,null,null,null,null,null,null,null,null,null,null,null,null,null,null,null,null,null,null,null,null,null,null,null,null,null,"16:50:00"]
[null,null,null,null,null,null,null,null,null,null,null,null,null,null,null,null,null,null,null,null,null,null,null,null,null,null,null,null,null,null,null,null,"16:55:00"]
[null,null,null,null,null,null,null,null,null,null,null,null,null,null,null,null,null,null,null,null,null,null,null,null,null,null,null,null,null,null,null,null,"17:00:00"]
[null,null,null,null,null,null,null,null,null,null,null,null,null,null,null,null,null,null,null,null,null,null,null,null,null,null,null,null,null,null,null,null,"17:05:00"]
[null,null,null,null,null,null,null,null,null,null,null,null,null,null,null,null,null,null,null,null,null,null,null,null,null,null,null,null,null,null,null,null,"17:10:00"]
[null,null,null,null,null,null,null,null,null,null,null,null,null,null,null,null,null,null,null,null,null,null,null,null,null,null,null,null,null,null,null,null,"17:15:00"]
[null,null,null,null,null,null,null,null,null,null,null,null,null,null,null,null,null,null,null,null,null,null,null,null,null,null,null,null,null,null,null,null,"17:20:00"]
[null,null,null,null,null,null,null,null,null,null,null,null,null,null,null,null,null,null,null,null,null,null,null,null,null,null,null,null,null,null,null,null,"17:25:00"]
[null,null,null,null,null,null,null,null,null,null,null,null,null,null,null,null,null,null,null,null,null,null,null,null,null,null,null,null,null,null,null,null,"17:30:00"]
[null,null,null,null,null,null,null,null,null,null,null,null,null,null,null,null,null,null,null,null,null,null,null,null,null,null,null,null,null,null,null,null,"17:35:00"]
[null,null,null,null,null,null,null,null,null,null,null,null,null,null,null,null,null,null,null,null,null,null,null,null,null,null,null,null,null,null,null,null,"17:40:00"]
[null,null,null,null,null,null,null,null,null,null,null,null,null,null,null,null,null,null,null,null,null,null,null,null,null,null,null,null,null,null,null,null,"17:45:00"]
[null,null,null,null,null,null,null,null,null,null,null,null,null,null,null,null,null,null,null,null,null,null,null,null,null,null,null,null,null,null,null,null,"17:50:00"]
[null,null,null,null,null,null,null,null,null,null,null,null,null,null,null,null,null,null,null,null,null,null,null,null,null,null,null,null,null,null,null,null,"17:55:00"]
[null,null,null,null,null,null,null,null,null,null,null,null,null,null,null,null,null,null,null,null,null,null,null,null,null,null,null,null,null,null,null,null,"18:00:00"]
[null,null,null,null,null,null,null,null,null,null,null,null,null,null,null,null,null,null,null,null,null,null,null,null,null,null,null,null,null,null,null,null,"18:05:00"]
[null,null,null,null,null,null,null,null,null,null,null,null,null,null,null,null,null,null,null,null,null,null,null,null,null,null,null,null,null,null,null,null,"18:10:00"]
[null,null,null,null,null,null,null,null,null,null,null,null,null,null,null,null,null,null,null,null,null,null,null,null,null,null,null,null,null,null,null,null,"18:15:00"]
[null,null,null,null,null,null,null,null,null,null,null,null,null,null,null,null,null,null,null,null,null,null,null,null,null,null,null,null,null,null,null,null,"18:20:00"]
[null,null,null,null,null,null,null,null,null,null,null,null,null,null,null,null,null,null,null,null,null,null,null,null,null,null,null,null,null,null,null,null,"18:25:00"]
[null,null,null,null,null,null,null,null,null,null,null,null,null,null,null,null,null,null,null,null,null,null,null,null,null,null,null,null,null,null,null,null,"18:30:00"]
[null,null,null,null,null,null,null,null,null,null,null,null,null,null,null,null,null,null,null,null,null,null,null,null,null,null,null,null,null,null,null,null,"18:35:00"]
[null,null,null,null,null,null,null,null,null,null,null,null,null,null,null,null,null,null,null,null,null,null,null,null,null,null,null,null,null,null,null,null,"18:40:00"]
[null,null,null,null,null,null,null,null,null,null,null,null,null,null,null,null,null,null,null,null,null,null,null,null,null,null,null,null,null,null,null,null,"18:45:00"]
[null,null,null,null,null,null,null,null,null,null,null,null,null,null,null,null,null,null,null,null,null,null,null,null,null,null,null,null,null,null,null,null,"18:50:00"]
[null,null,null,null,null,null,null,null,null,null,null,null,null,null,null,null,null,null,null,null,null,null,null,null,null,null,null,null,null,null,null,null,"19:00:00"]

{"sheet":"シート2-②","index":4,"n_rows":150,"n_cols":41,"rows_kept":150,"cut":false,"hidden":false,"merged":[[31,1,31,28],[26,24,26,28],[17,1,17,14],[23,2,23,14],[22,15,22,17],[22,18,22,20],[28,2,28,14],[24,21,24,23],[25,2,25,14],[17,18,17,20],[17,15,17,17],[18,18,18,20],[18,21,18,23],[17,21,17,23],[30,1,30,28],[18,24,18,28],[21,2,21,14],[20,15,20,17],[23,18,23,20],[23,21,23,23],[23,15,23,17],[22,21,22,23],[22,2,22,14],[21,18,21,20],[21,21,21,23],[20,18,20,20],[20,2,20,14],[21,15,21,17],[27,18,27,20],[28,15,28,17],[24,15,24,17],[26,21,26,23],[27,2,27,14],[24,18,24,20],[28,18,28,20],[28,21,28,23],[27,21,27,23],[25,15,25,17],[27,15,27,17],[26,15,26,17],[26,18,26,20],[25,18,25,20],[28,24,28,28],[25,21,25,23],[25,24,25,28],[20,24,20,28],[23,24,23,28],[20,21,20,23],[24,24,24,28],[21,24,21,28],[22,24,22,28],[27,24,27,28],[15,38,15,39],[15,33,16,33],[15,24,16,28],[17,38,17,39],[15,34,15,35],[17,36,17,37],[17,24,17,28],[17,34,17,35],[15,36,15,37],[2,1,2,28],[5,1,5,2],[6,1,6,2],[9,1,10,2],[9,4,9,8],[9,17,9,20],[9,21,10,23],[5,3,5,28],[6,3,6,28],[10,4,10,8],[9,24,10,28],[9,9,10,10],[9,12,9,15],[10,12,10,15],[10,17,10,20],[15,21,16,23],[12,24,13,28],[12,21,13,23],[18,2,18,14],[19,2,19,14],[12,1,13,2],[15,1,16,14],[15,15,16,17],[12,4,12,20],[13,4,13,20],[18,15,18,17],[19,15,19,17],[19,18,19,20],[15,18,16,20],[19,21,19,23],[19,24,19,28]]}
[null,"研修記録シート2（評価）"]
[]
[null,"この振り返りシートは、科目の受講前後で各自の理解度を把握し、受講中の学習効果の向上と、受講後の学習のポイントを焦点化し、継続的な資質向上に役立てるものです。本科目を学習した時点で感じた事を書き留め、今後の学習方針や課題への取り組みを考える際に見返してみましょう。"]
[]
[]
[null,"研修名：",null,"主任研修",null,null,null,null,null,null,null,null,null,null,null,null,null,null,null,null,null,null,null,null,null,null,null,null,null,null,null,null,null,null,null,null,null,null,null,null,"このボタンをクリックするとTOPページへ移動します。"]
[null,"課目名：",null,"②ケアマネジメントの実践における倫理的な課題に対する支援"]
[]
[]
[null,"受講日",null,1,"2024-11-20",null,null,null,null,"時間",null,1,"09:30:00",null,null,null,"～","12:30:00",null,null,null,"氏名",null,null,{"$f":"IF(ISBLANK(シート1!N7),\"\",シート1!N7)","v":""}]
[null,null,null,2,null,null,null,null,null,null,null,2,null,null,null,null,"～"]
[]
[null,"会場",null,1,"オンライン研修（Zoom）",null,null,null,null,null,null,null,null,null,null,null,null,null,null,null,null,"番号",null,null,{"$f":"IF(ISBLANK(シート1!N9),\"\",シート1!N9)","v":9999}]
[null,null,null,2]
[]
[null,"項　　目 ",null,null,null,null,null,null,null,null,null,null,null,null,null,"受講前 ",null,null,"受講\n直後",null,null,"実践\n評価\n(3ヶ月後）",null,null,"備　　考 ",null,null,null,null,null,null,"リスト（課程区分）","リスト（時間）",null,"受講前",null,"受講後 ",null,"実践評価"]
[null,null,null,null,null,null,null,null,null,null,null,null,null,null,null,null,null,null,null,null,null,null,null,null,null,null,null,null,null,null,null,null,"リストから選択",null,"理解度","習得度","理解度","習得度","理解度","習得度"]
[null,"記入日（入力日）",null,null,null,null,null,null,null,null,null,null,null,null,null,null,null,null,null,null,null,null,null,null,null,null,null,null,null,null,null,"リスト（課程区分）","リスト（時間）",null,"受講前",null,"受講後 ",null,"実践評価"]
[null,"① ","自らの振り返りを通して、自己の倫理的課題について改善策を判断できる。",null,null,null,null,null,null,null,null,null,null,null,null,null,null,null,null,null,null,null,null,null,null,null,null,null,null,null,null,"Ⅰ","08:00:00",4,"4．理解している ","-","4．非常に理解が深まった ","4．習得できた ","4．非常に理解が深まった","4．習得度が上がった "]
[null,"② ","具体例を交えながら、主任介護支援専門員が備えるべき倫理について説明できる。",null,null,null,null,null,null,null,null,null,null,null,null,null,null,null,null,null,null,null,null,null,null,null,null,null,null,null,null,"Ⅱ","08:05:00",3,"3．概ね理解している ","-","3．理解が深まった ","3．概ね習得できた ","3．理解が深まった","3．まあまあ習得度が上がった "]
[null,"③ ","介護支援専門員に対して、ケアマネジメントを行う際の倫理的課題と対応方法について説明できる。",null,null,null,null,null,null,null,null,null,null,null,null,null,null,null,null,null,null,null,null,null,null,null,null,null,null,null,null,null,"08:10:00",2,"2．あまり理解していない ","-","2．あまり理解が進まなかった ","2．あまり習得できていない ","2．あまり理解度は変わらない ","2．習得度は変わらない "]
[null,"④ ","介護支援専門員が、自らの倫理的判断力を高められるような振り返りの支援を実施できる。",null,null,null,null,null,null,null,null,null,null,null,null,null,null,null,null,null,null,null,null,null,null,null,null,null,null,null,null,null,"08:15:00",1,"1．全く理解していない ","-","1．理解が進まなかった ","1．習得できていない ","1．理解度は変わらない。 ","1．理解度が深まり、習得度が後退した "]
[null,"⑤ ","研修会や事例検討会における倫理的な配慮について説明できる。",null,null,null,null,null,null,null,null,null,null,null,null,null,null,null,null,null,null,null,null,null,null,null,null,null,null,null,null,null,"08:20:00"]
[null,null,null,null,null,null,null,null,null,null,null,null,null,null,null,null,null,null,null,null,null,null,null,null,null,null,null,null,null,null,null,null,"08:25:00"]
[null,null,null,null,null,null,null,null,null,null,null,null,null,null,null,null,null,null,null,null,null,null,null,null,null,null,null,null,null,null,null,null,"08:30:00"]
[null,null,null,null,null,null,null,null,null,null,null,null,null,null,null,null,null,null,null,null,null,null,null,null,null,null,null,null,null,null,null,null,"08:35:00"]
[null,null,null,null,null,null,null,null,null,null,null,null,null,null,null,null,null,null,null,null,null,null,null,null,null,null,null,null,null,null,null,null,"08:40:00"]
[null,null,null,null,null,null,null,null,null,null,null,null,null,null,null,null,null,null,null,null,null,null,null,null,null,null,null,null,null,null,null,null,"08:45:00"]
[null,null,null,null,null,null,null,null,null,null,null,null,null,null,null,null,null,null,null,null,null,null,null,null,null,null,null,null,null,null,null,null,"08:50:00"]
[null,null,null,null,null,null,null,null,null,null,null,null,null,null,null,null,null,null,null,null,null,null,null,null,null,null,null,null,null,null,null,null,"08:55:00"]
[null,"　※研修は自己評価とし、4段階評価で、数字が大きいほど高評価、数字が小さいほど低評価として記入してください。",null,null,null,null,null,null,null,null,null,null,null,null,null,null,null,null,null,null,null,null,null,null,null,null,null,null,null,null,null,null,"09:00:00"]
[null,"　　【選択肢】　　　4.　できる　　　　　3.　概ねできる　　　　　2.　ほとんどできない　　　　1.　全くできない",null,null,null,null,null,null,null,null,null,null,null,null,null,null,null,null,null,null,null,null,null,null,null,null,null,null,null,null,null,null,"09:05:00"]
[null,null,null,null,null,null,null,null,null,null,null,null,null,null,null,null,null,null,null,null,null,null,null,null,null,null,null,null,null,null,null,null,"09:10:00"]
[null,null,null,null,null,null,null,null,null,null,null,null,null,null,null,null,null,null,null,null,null,null,null,null,null,null,null,null,null,null,null,null,"09:15:00"]
[null,null,null,null,null,null,null,null,null,null,null,null,null,null,null,null,null,null,null,null,null,null,null,null,null,null,null,null,null,null,null,null,"09:20:00"]
[null,null,null,null,null,null,null,null,null,null,null,null,null,null,null,null,null,null,null,null,null,null,null,null,null,null,null,null,null,null,null,null,"09:25:00"]
[null,null,null,null,null,null,null,null,null,null,null,null,null,null,null,null,null,null,null,null,null,null,null,null,null,null,null,null,null,null,null,null,"09:30:00"]
[null,null,null,null,null,null,null,null,null,null,null,null,null,null,null,null,null,null,null,null,null,null,null,null,null,null,null,null,null,null,null,null,"09:35:00"]
[null,null,null,null,null,null,null,null,null,null,null,null,null,null,null,null,null,null,null,null,null,null,null,null,null,null,null,null,null,null,null,null,"09:40:00"]
[null,null,null,null,null,null,null,null,null,null,null,null,null,null,null,null,null,null,null,null,null,null,null,null,null,null,null,null,null,null,null,null,"09:45:00"]
[null,null,null,null,null,null,null,null,null,null,null,null,null,null,null,null,null,null,null,null,null,null,null,null,null,null,null,null,null,null,null,null,"09:50:00"]
[null,null,null,null,null,null,null,null,null,null,null,null,null,null,null,null,null,null,null,null,null,null,null,null,null,null,null,null,null,null,null,null,"09:55:00"]
[null,null,null,null,null,null,null,null,null,null,null,null,null,null,null,null,null,null,null,null,null,null,null,null,null,null,null,null,null,null,null,null,"10:00:00"]
[null,null,null,null,null,null,null,null,null,null,null,null,null,null,null,null,null,null,null,null,null,null,null,null,null,null,null,null,null,null,null,null,"10:05:00"]
[null,null,null,null,null,null,null,null,null,null,null,null,null,null,null,null,null,null,null,null,null,null,null,null,null,null,null,null,null,null,null,null,"10:10:00"]
[null,null,null,null,null,null,null,null,null,null,null,null,null,null,null,null,null,null,null,null,null,null,null,null,null,null,null,null,null,null,null,null,"10:15:00"]
[null,null,null,null,null,null,null,null,null,null,null,null,null,null,null,null,null,null,null,null,null,null,null,null,null,null,null,null,null,null,null,null,"10:20:00"]
[null,null,null,null,null,null,null,null,null,null,null,null,null,null,null,null,null,null,null,null,null,null,null,null,null,null,null,null,null,null,null,null,"10:25:00"]
[null,null,null,null,null,null,null,null,null,null,null,null,null,null,null,null,null,null,null,null,null,null,null,null,null,null,null,null,null,null,null,null,"10:30:00"]
[null,null,null,null,null,null,null,null,null,null,null,null,null,null,null,null,null,null,null,null,null,null,null,null,null,null,null,null,null,null,null,null,"10:35:00"]
[null,null,null,null,null,null,null,null,null,null,null,null,null,null,null,null,null,null,null,null,null,null,null,null,null,null,null,null,null,null,null,null,"10:40:00"]
[null,null,null,null,null,null,null,null,null,null,null,null,null,null,null,null,null,null,null,null,null,null,null,null,null,null,null,null,null,null,null,null,"10:45:00"]
[null,null,null,null,null,null,null,null,null,null,null,null,null,null,null,null,null,null,null,null,null,null,null,null,null,null,null,null,null,null,null,null,"10:50:00"]
[null,null,null,null,null,null,null,null,null,null,null,null,null,null,null,null,null,null,null,null,null,null,null,null,null,null,null,null,null,null,null,null,"10:55:00"]
[null,null,null,null,null,null,null,null,null,null,null,null,null,null,null,null,null,null,null,null,null,null,null,null,null,null,null,null,null,null,null,null,"11:00:00"]
[null,null,null,null,null,null,null,null,null,null,null,null,null,null,null,null,null,null,null,null,null,null,null,null,null,null,null,null,null,null,null,null,"11:05:00"]
[null,null,null,null,null,null,null,null,null,null,null,null,null,null,null,null,null,null,null,null,null,null,null,null,null,null,null,null,null,null,null,null,"11:10:00"]
[null,null,null,null,null,null,null,null,null,null,null,null,null,null,null,null,null,null,null,null,null,null,null,null,null,null,null,null,null,null,null,null,"11:15:00"]
[null,null,null,null,null,null,null,null,null,null,null,null,null,null,null,null,null,null,null,null,null,null,null,null,null,null,null,null,null,null,null,null,"11:20:00"]
[null,null,null,null,null,null,null,null,null,null,null,null,null,null,null,null,null,null,null,null,null,null,null,null,null,null,null,null,null,null,null,null,"11:25:00"]
[null,null,null,null,null,null,null,null,null,null,null,null,null,null,null,null,null,null,null,null,null,null,null,null,null,null,null,null,null,null,null,null,"11:30:00"]
[null,null,null,null,null,null,null,null,null,null,null,null,null,null,null,null,null,null,null,null,null,null,null,null,null,null,null,null,null,null,null,null,"11:35:00"]
[null,null,null,null,null,null,null,null,null,null,null,null,null,null,null,null,null,null,null,null,null,null,null,null,null,null,null,null,null,null,null,null,"11:40:00"]
[null,null,null,null,null,null,null,null,null,null,null,null,null,null,null,null,null,null,null,null,null,null,null,null,null,null,null,null,null,null,null,null,"11:45:00"]
[null,null,null,null,null,null,null,null,null,null,null,null,null,null,null,null,null,null,null,null,null,null,null,null,null,null,null,null,null,null,null,null,"11:50:00"]
[null,null,null,null,null,null,null,null,null,null,null,null,null,null,null,null,null,null,null,null,null,null,null,null,null,null,null,null,null,null,null,null,"11:55:00"]
[null,null,null,null,null,null,null,null,null,null,null,null,null,null,null,null,null,null,null,null,null,null,null,null,null,null,null,null,null,null,null,null,"12:00:00"]
[null,null,null,null,null,null,null,null,null,null,null,null,null,null,null,null,null,null,null,null,null,null,null,null,null,null,null,null,null,null,null,null,"12:05:00"]
[null,null,null,null,null,null,null,null,null,null,null,null,null,null,null,null,null,null,null,null,null,null,null,null,null,null,null,null,null,null,null,null,"12:10:00"]
[null,null,null,null,null,null,null,null,null,null,null,null,null,null,null,null,null,null,null,null,null,null,null,null,null,null,null,null,null,null,null,null,"12:15:00"]
[null,null,null,null,null,null,null,null,null,null,null,null,null,null,null,null,null,null,null,null,null,null,null,null,null,null,null,null,null,null,null,null,"12:20:00"]
[null,null,null,null,null,null,null,null,null,null,null,null,null,null,null,null,null,null,null,null,null,null,null,null,null,null,null,null,null,null,null,null,"12:25:00"]
[null,null,null,null,null,null,null,null,null,null,null,null,null,null,null,null,null,null,null,null,null,null,null,null,null,null,null,null,null,null,null,null,"12:30:00"]
[null,null,null,null,null,null,null,null,null,null,null,null,null,null,null,null,null,null,null,null,null,null,null,null,null,null,null,null,null,null,null,null,"12:35:00"]
[null,null,null,null,null,null,null,null,null,null,null,null,null,null,null,null,null,null,null,null,null,null,null,null,null,null,null,null,null,null,null,null,"12:40:00"]
[null,null,null,null,null,null,null,null,null,null,null,null,null,null,null,null,null,null,null,null,null,null,null,null,null,null,null,null,null,null,null,null,"12:45:00"]
[null,null,null,null,null,null,null,null,null,null,null,null,null,null,null,null,null,null,null,null,null,null,null,null,null,null,null,null,null,null,null,null,"12:50:00"]
[null,null,null,null,null,null,null,null,null,null,null,null,null,null,null,null,null,null,null,null,null,null,null,null,null,null,null,null,null,null,null,null,"12:55:00"]
[null,null,null,null,null,null,null,null,null,null,null,null,null,null,null,null,null,null,null,null,null,null,null,null,null,null,null,null,null,null,null,null,"13:00:00"]
[null,null,null,null,null,null,null,null,null,null,null,null,null,null,null,null,null,null,null,null,null,null,null,null,null,null,null,null,null,null,null,null,"13:05:00"]
[null,null,null,null,null,null,null,null,null,null,null,null,null,null,null,null,null,null,null,null,null,null,null,null,null,null,null,null,null,null,null,null,"13:10:00"]
[null,null,null,null,null,null,null,null,null,null,null,null,null,null,null,null,null,null,null,null,null,null,null,null,null,null,null,null,null,null,null,null,"13:15:00"]
[null,null,null,null,null,null,null,null,null,null,null,null,null,null,null,null,null,null,null,null,null,null,null,null,null,null,null,null,null,null,null,null,"13:20:00"]
[null,null,null,null,null,null,null,null,null,null,null,null,null,null,null,null,null,null,null,null,null,null,null,null,null,null,null,null,null,null,null,null,"13:25:00"]
[null,null,null,null,null,null,null,null,null,null,null,null,null,null,null,null,null,null,null,null,null,null,null,null,null,null,null,null,null,null,null,null,"13:30:00"]
[null,null,null,null,null,null,null,null,null,null,null,null,null,null,null,null,null,null,null,null,null,null,null,null,null,null,null,null,null,null,null,null,"13:35:00"]
[null,null,null,null,null,null,null,null,null,null,null,null,null,null,null,null,null,null,null,null,null,null,null,null,null,null,null,null,null,null,null,null,"13:40:00"]
[null,null,null,null,null,null,null,null,null,null,null,null,null,null,null,null,null,null,null,null,null,null,null,null,null,null,null,null,null,null,null,null,"13:45:00"]
[null,null,null,null,null,null,null,null,null,null,null,null,null,null,null,null,null,null,null,null,null,null,null,null,null,null,null,null,null,null,null,null,"13:50:00"]
[null,null,null,null,null,null,null,null,null,null,null,null,null,null,null,null,null,null,null,null,null,null,null,null,null,null,null,null,null,null,null,null,"13:55:00"]
[null,null,null,null,null,null,null,null,null,null,null,null,null,null,null,null,null,null,null,null,null,null,null,null,null,null,null,null,null,null,null,null,"14:00:00"]
[null,null,null,null,null,null,null,null,null,null,null,null,null,null,null,null,null,null,null,null,null,null,null,null,null,null,null,null,null,null,null,null,"14:05:00"]
[null,null,null,null,null,null,null,null,null,null,null,null,null,null,null,null,null,null,null,null,null,null,null,null,null,null,null,null,null,null,null,null,"14:10:00"]
[null,null,null,null,null,null,null,null,null,null,null,null,null,null,null,null,null,null,null,null,null,null,null,null,null,null,null,null,null,null,null,null,"14:15:00"]
[null,null,null,null,null,null,null,null,null,null,null,null,null,null,null,null,null,null,null,null,null,null,null,null,null,null,null,null,null,null,null,null,"14:20:00"]
[null,null,null,null,null,null,null,null,null,null,null,null,null,null,null,null,null,null,null,null,null,null,null,null,null,null,null,null,null,null,null,null,"14:25:00"]
[null,null,null,null,null,null,null,null,null,null,null,null,null,null,null,null,null,null,null,null,null,null,null,null,null,null,null,null,null,null,null,null,"14:30:00"]
[null,null,null,null,null,null,null,null,null,null,null,null,null,null,null,null,null,null,null,null,null,null,null,null,null,null,null,null,null,null,null,null,"14:35:00"]
[null,null,null,null,null,null,null,null,null,null,null,null,null,null,null,null,null,null,null,null,null,null,null,null,null,null,null,null,null,null,null,null,"14:40:00"]
[null,null,null,null,null,null,null,null,null,null,null,null,null,null,null,null,null,null,null,null,null,null,null,null,null,null,null,null,null,null,null,null,"14:45:00"]
[null,null,null,null,null,null,null,null,null,null,null,null,null,null,null,null,null,null,null,null,null,null,null,null,null,null,null,null,null,null,null,null,"14:50:00"]
[null,null,null,null,null,null,null,null,null,null,null,null,null,null,null,null,null,null,null,null,null,null,null,null,null,null,null,null,null,null,null,null,"14:55:00"]
[null,null,null,null,null,null,null,null,null,null,null,null,null,null,null,null,null,null,null,null,null,null,null,null,null,null,null,null,null,null,null,null,"15:00:00"]
[null,null,null,null,null,null,null,null,null,null,null,null,null,null,null,null,null,null,null,null,null,null,null,null,null,null,null,null,null,null,null,null,"15:05:00"]
[null,null,null,null,null,null,null,null,null,null,null,null,null,null,null,null,null,null,null,null,null,null,null,null,null,null,null,null,null,null,null,null,"15:10:00"]
[null,null,null,null,null,null,null,null,null,null,null,null,null,null,null,null,null,null,null,null,null,null,null,null,null,null,null,null,null,null,null,null,"15:15:00"]
[null,null,null,null,null,null,null,null,null,null,null,null,null,null,null,null,null,null,null,null,null,null,null,null,null,null,null,null,null,null,null,null,"15:20:00"]
[null,null,null,null,null,null,null,null,null,null,null,null,null,null,null,null,null,null,null,null,null,null,null,null,null,null,null,null,null,null,null,null,"15:25:00"]
[null,null,null,null,null,null,null,null,null,null,null,null,null,null,null,null,null,null,null,null,null,null,null,null,null,null,null,null,null,null,null,null,"15:30:00"]
[null,null,null,null,null,null,null,null,null,null,null,null,null,null,null,null,null,null,null,null,null,null,null,null,null,null,null,null,null,null,null,null,"15:35:00"]
[null,null,null,null,null,null,null,null,null,null,null,null,null,null,null,null,null,null,null,null,null,null,null,null,null,null,null,null,null,null,null,null,"15:40:00"]
[null,null,null,null,null,null,null,null,null,null,null,null,null,null,null,null,null,null,null,null,null,null,null,null,null,null,null,null,null,null,null,null,"15:45:00"]
[null,null,null,null,null,null,null,null,null,null,null,null,null,null,null,null,null,null,null,null,null,null,null,null,null,null,null,null,null,null,null,null,"15:50:00"]
[null,null,null,null,null,null,null,null,null,null,null,null,null,null,null,null,null,null,null,null,null,null,null,null,null,null,null,null,null,null,null,null,"15:55:00"]
[null,null,null,null,null,null,null,null,null,null,null,null,null,null,null,null,null,null,null,null,null,null,null,null,null,null,null,null,null,null,null,null,"16:00:00"]
[null,null,null,null,null,null,null,null,null,null,null,null,null,null,null,null,null,null,null,null,null,null,null,null,null,null,null,null,null,null,null,null,"16:05:00"]
[null,null,null,null,null,null,null,null,null,null,null,null,null,null,null,null,null,null,null,null,null,null,null,null,null,null,null,null,null,null,null,null,"16:10:00"]
[null,null,null,null,null,null,null,null,null,null,null,null,null,null,null,null,null,null,null,null,null,null,null,null,null,null,null,null,null,null,null,null,"16:15:00"]
[null,null,null,null,null,null,null,null,null,null,null,null,null,null,null,null,null,null,null,null,null,null,null,null,null,null,null,null,null,null,null,null,"16:20:00"]
[null,null,null,null,null,null,null,null,null,null,null,null,null,null,null,null,null,null,null,null,null,null,null,null,null,null,null,null,null,null,null,null,"16:25:00"]
[null,null,null,null,null,null,null,null,null,null,null,null,null,null,null,null,null,null,null,null,null,null,null,null,null,null,null,null,null,null,null,null,"16:30:00"]
[null,null,null,null,null,null,null,null,null,null,null,null,null,null,null,null,null,null,null,null,null,null,null,null,null,null,null,null,null,null,null,null,"16:35:00"]
[null,null,null,null,null,null,null,null,null,null,null,null,null,null,null,null,null,null,null,null,null,null,null,null,null,null,null,null,null,null,null,null,"16:40:00"]
[null,null,null,null,null,null,null,null,null,null,null,null,null,null,null,null,null,null,null,null,null,null,null,null,null,null,null,null,null,null,null,null,"16:45:00"]
[null,null,null,null,null,null,null,null,null,null,null,null,null,null,null,null,null,null,null,null,null,null,null,null,null,null,null,null,null,null,null,null,"16:50:00"]
[null,null,null,null,null,null,null,null,null,null,null,null,null,null,null,null,null,null,null,null,null,null,null,null,null,null,null,null,null,null,null,null,"16:55:00"]
[null,null,null,null,null,null,null,null,null,null,null,null,null,null,null,null,null,null,null,null,null,null,null,null,null,null,null,null,null,null,null,null,"17:00:00"]
[null,null,null,null,null,null,null,null,null,null,null,null,null,null,null,null,null,null,null,null,null,null,null,null,null,null,null,null,null,null,null,null,"17:05:00"]
[null,null,null,null,null,null,null,null,null,null,null,null,null,null,null,null,null,null,null,null,null,null,null,null,null,null,null,null,null,null,null,null,"17:10:00"]
[null,null,null,null,null,null,null,null,null,null,null,null,null,null,null,null,null,null,null,null,null,null,null,null,null,null,null,null,null,null,null,null,"17:15:00"]
[null,null,null,null,null,null,null,null,null,null,null,null,null,null,null,null,null,null,null,null,null,null,null,null,null,null,null,null,null,null,null,null,"17:20:00"]
[null,null,null,null,null,null,null,null,null,null,null,null,null,null,null,null,null,null,null,null,null,null,null,null,null,null,null,null,null,null,null,null,"17:25:00"]
[null,null,null,null,null,null,null,null,null,null,null,null,null,null,null,null,null,null,null,null,null,null,null,null,null,null,null,null,null,null,null,null,"17:30:00"]
[null,null,null,null,null,null,null,null,null,null,null,null,null,null,null,null,null,null,null,null,null,null,null,null,null,null,null,null,null,null,null,null,"17:35:00"]
[null,null,null,null,null,null,null,null,null,null,null,null,null,null,null,null,null,null,null,null,null,null,null,null,null,null,null,null,null,null,null,null,"17:40:00"]
[null,null,null,null,null,null,null,null,null,null,null,null,null,null,null,null,null,null,null,null,null,null,null,null,null,null,null,null,null,null,null,null,"17:45:00"]
[null,null,null,null,null,null,null,null,null,null,null,null,null,null,null,null,null,null,null,null,null,null,null,null,null,null,null,null,null,null,null,null,"17:50:00"]
[null,null,null,null,null,null,null,null,null,null,null,null,null,null,null,null,null,null,null,null,null,null,null,null,null,null,null,null,null,null,null,null,"17:55:00"]
[null,null,null,null,null,null,null,null,null,null,null,null,null,null,null,null,null,null,null,null,null,null,null,null,null,null,null,null,null,null,null,null,"18:00:00"]
[null,null,null,null,null,null,null,null,null,null,null,null,null,null,null,null,null,null,null,null,null,null,null,null,null,null,null,null,null,null,null,null,"18:05:00"]
[null,null,null,null,null,null,null,null,null,null,null,null,null,null,null,null,null,null,null,null,null,null,null,null,null,null,null,null,null,null,null,null,"18:10:00"]
[null,null,null,null,null,null,null,null,null,null,null,null,null,null,null,null,null,null,null,null,null,null,null,null,null,null,null,null,null,null,null,null,"18:15:00"]
[null,null,null,null,null,null,null,null,null,null,null,null,null,null,null,null,null,null,null,null,null,null,null,null,null,null,null,null,null,null,null,null,"18:20:00"]
[null,null,null,null,null,null,null,null,null,null,null,null,null,null,null,null,null,null,null,null,null,null,null,null,null,null,null,null,null,null,null,null,"18:25:00"]
[null,null,null,null,null,null,null,null,null,null,null,null,null,null,null,null,null,null,null,null,null,null,null,null,null,null,null,null,null,null,null,null,"18:30:00"]
[null,null,null,null,null,null,null,null,null,null,null,null,null,null,null,null,null,null,null,null,null,null,null,null,null,null,null,null,null,null,null,null,"18:35:00"]
[null,null,null,null,null,null,null,null,null,null,null,null,null,null,null,null,null,null,null,null,null,null,null,null,null,null,null,null,null,null,null,null,"18:40:00"]
[null,null,null,null,null,null,null,null,null,null,null,null,null,null,null,null,null,null,null,null,null,null,null,null,null,null,null,null,null,null,null,null,"18:45:00"]
[null,null,null,null,null,null,null,null,null,null,null,null,null,null,null,null,null,null,null,null,null,null,null,null,null,null,null,null,null,null,null,null,"18:50:00"]
[null,null,null,null,null,null,null,null,null,null,null,null,null,null,null,null,null,null,null,null,null,null,null,null,null,null,null,null,null,null,null,null,"19:00:00"]

{"sheet":"シート2-③","index":5,"n_rows":150,"n_cols":41,"rows_kept":150,"cut":false,"hidden":false,"merged":[[22,2,22,14],[22,15,22,17],[22,18,22,20],[22,21,22,23],[22,24,22,28],[31,1,31,28],[25,2,25,14],[25,15,25,17],[25,18,25,20],[25,21,25,23],[25,24,25,28],[28,21,28,23],[28,24,28,28],[28,2,28,14],[26,2,26,14],[30,1,30,28],[27,2,27,14],[26,15,26,17],[26,18,26,20],[26,21,26,23],[27,24,27,28],[19,24,19,28],[20,24,20,28],[23,18,23,20],[23,21,23,23],[23,24,23,28],[21,24,21,28],[26,24,26,28],[24,2,24,14],[24,15,24,17],[24,18,24,20],[24,21,24,23],[24,24,24,28],[23,2,23,14],[27,15,27,17],[27,18,27,20],[27,21,27,23],[28,15,28,17],[28,18,28,20],[23,15,23,17],[21,2,21,14],[20,15,20,17],[20,18,20,20],[20,21,20,23],[21,15,21,17],[21,18,21,20],[21,21,21,23],[12,1,13,2],[12,4,12,20],[12,21,13,23],[19,2,19,14],[20,2,20,14],[19,15,19,17],[19,18,19,20],[19,21,19,23],[13,4,13,20],[18,2,18,14],[15,1,16,14],[15,15,16,17],[15,18,16,20],[15,21,16,23],[17,1,17,14],[17,15,17,17],[9,1,10,2],[9,4,9,8],[9,9,10,10],[9,21,10,23],[9,24,10,28],[2,1,2,28],[5,1,5,2],[5,3,5,28],[6,1,6,2],[6,3,6,28],[18,24,18,28],[17,24,17,28],[9,12,9,15],[9,17,9,20],[18,15,18,17],[18,18,18,20],[18,21,18,23],[17,21,17,23],[12,24,13,28],[17,18,17,20],[17,38,17,39],[17,34,17,35],[17,36,17,37],[10,4,10,8],[10,12,10,15],[10,17,10,20],[15,38,15,39],[15,33,16,33],[15,34,15,35],[15,36,15,37],[15,24,16,28]]}
[null,"研修記録シート2（評価）"]
[]
[null,"この振り返りシートは、科目の受講前後で各自の理解度を把握し、受講中の学習効果の向上と、受講後の学習のポイントを焦点化し、継続的な資質向上に役立てるものです。本科目を学習した時点で感じた事を書き留め、今後の学習方針や課題への取り組みを考える際に見返してみましょう。"]
[]
[]
[null,"研修名：",null,"主任研修",null,null,null,null,null,null,null,null,null,null,null,null,null,null,null,null,null,null,null,null,null,null,null,null,null,null,null,null,null,null,null,null,null,null,null,null,"このボタンをクリックするとTOPページへ移動します。"]
[null,"課目名：",null,"③終末期ケア（EOL（エンドオブライフ）ケア）を含めた生活の継続を支える基本的なケアマネジメント及び疾患別ケアマネジメントの理解"]
[]
[]
[null,"受講日",null,1,"2024-12-01",null,null,null,null,"時間",null,1,"09:30:00",null,null,null,"～","12:30:00",null,null,null,"氏名",null,null,{"$f":"IF(ISBLANK(シート1!N7),\"\",シート1!N7)","v":""}]
[null,null,null,2,null,null,null,null,null,null,null,2,null,null,null,null,"～"]
[]
[null,"会場",null,1,"オンライン研修（Zoom）",null,null,null,null,null,null,null,null,null,null,null,null,null,null,null,null,"番号",null,null,{"$f":"IF(ISBLANK(シート1!N9),\"\",シート1!N9)","v":9999}]
[null,null,null,2]
[]
[null,"項　　目 ",null,null,null,null,null,null,null,null,null,null,null,null,null,"受講前 ",null,null,"受講\n直後",null,null,"実践\n評価\n(3ヶ月後）",null,null,"備　　考 ",null,null,null,null,null,null,"リスト（課程区分）","リスト（時間）",null,"受講前",null,"受講後 ",null,"実践評価"]
[null,null,null,null,null,null,null,null,null,null,null,null,null,null,null,null,null,null,null,null,null,null,null,null,null,null,null,null,null,null,null,null,"リストから選択",null,"理解度","習得度","理解度","習得度","理解度","習得度"]
[null,"記入日（入力日）",null,null,null,null,null,null,null,null,null,null,null,null,null,null,null,null,null,null,null,null,null,null,null,null,null,null,null,null,null,"リスト（課程区分）","リスト（時間）",null,"受講前",null,"受講後 ",null,"実践評価"]
[null,"① ","高齢者の生理、心理、生活環境などの構造的な理解に基づいたケアマネジメントの実践について介護支援専門員に対する指導・支援を実施できる。",null,null,null,null,null,null,null,null,null,null,null,null,null,null,null,null,null,null,null,null,null,null,null,null,null,null,null,null,"Ⅰ","08:00:00",4,"4．理解している ","-","4．非常に理解が深まった ","4．習得できた ","4．非常に理解が深まった","4．習得度が上がった "]
[null,"② ","適切なケアマネジメント手法の考え方に基づき、アセスメントや居宅サービス計画等の作成についての指導・支援ができる。",null,null,null,null,null,null,null,null,null,null,null,null,null,null,null,null,null,null,null,null,null,null,null,null,null,null,null,null,"Ⅱ","08:05:00",3,"3．概ね理解している ","-","3．理解が深まった ","3．概ね習得できた ","3．理解が深まった","3．まあまあ習得度が上がった "]
[null,"③ ","適切なケアマネジメント手法の考え方に基づき、地域で特に必要とされる支援内容の傾向や社会資源の不足等について、地域ケア会議等への提言ができる。",null,null,null,null,null,null,null,null,null,null,null,null,null,null,null,null,null,null,null,null,null,null,null,null,null,null,null,null,null,"08:10:00",2,"2．あまり理解していない ","-","2．あまり理解が進まなかった ","2．あまり習得できていない ","2．あまり理解度は変わらない ","2．習得度は変わらない "]
[null,"④ ","終末期ケアにおける必要な全人的視点を基に指導・支援できる。",null,null,null,null,null,null,null,null,null,null,null,null,null,null,null,null,null,null,null,null,null,null,null,null,null,null,null,null,null,"08:15:00",1,"1．全く理解していない ","-","1．理解が進まなかった ","1．習得できていない ","1．理解度は変わらない。 ","1．理解度が深まり、習得度が後退した "]
[null,"⑤","居宅及び施設における終末期ケアの課題や必要な視点を指導・支援できる。"]
[null,"⑥","看護サービス等を活用する際の視点や多職種との連携方法・協働のポイントの指導ができる。",null,null,null,null,null,null,null,null,null,null,null,null,null,null,null,null,null,null,null,null,null,null,null,null,null,null,null,null,null,"08:20:00"]
[null,null,null,null,null,null,null,null,null,null,null,null,null,null,null,null,null,null,null,null,null,null,null,null,null,null,null,null,null,null,null,null,"08:25:00"]
[null,null,null,null,null,null,null,null,null,null,null,null,null,null,null,null,null,null,null,null,null,null,null,null,null,null,null,null,null,null,null,null,"08:35:00"]
[null,null,null,null,null,null,null,null,null,null,null,null,null,null,null,null,null,null,null,null,null,null,null,null,null,null,null,null,null,null,null,null,"08:40:00"]
[null,null,null,null,null,null,null,null,null,null,null,null,null,null,null,null,null,null,null,null,null,null,null,null,null,null,null,null,null,null,null,null,"08:45:00"]
[null,null,null,null,null,null,null,null,null,null,null,null,null,null,null,null,null,null,null,null,null,null,null,null,null,null,null,null,null,null,null,null,"08:50:00"]
[null,null,null,null,null,null,null,null,null,null,null,null,null,null,null,null,null,null,null,null,null,null,null,null,null,null,null,null,null,null,null,null,"08:55:00"]
[null,"　※研修は自己評価とし、4段階評価で、数字が大きいほど高評価、数字が小さいほど低評価として記入してください。",null,null,null,null,null,null,null,null,null,null,null,null,null,null,null,null,null,null,null,null,null,null,null,null,null,null,null,null,null,null,"09:00:00"]
[null,"　　【選択肢】　　　4.　できる　　　　　3.　概ねできる　　　　　2.　ほとんどできない　　　　1.　全くできない",null,null,null,null,null,null,null,null,null,null,null,null,null,null,null,null,null,null,null,null,null,null,null,null,null,null,null,null,null,null,"09:05:00"]
[null,null,null,null,null,null,null,null,null,null,null,null,null,null,null,null,null,null,null,null,null,null,null,null,null,null,null,null,null,null,null,null,"09:10:00"]
[null,null,null,null,null,null,null,null,null,null,null,null,null,null,null,null,null,null,null,null,null,null,null,null,null,null,null,null,null,null,null,null,"09:15:00"]
[null,null,null,null,null,null,null,null,null,null,null,null,null,null,null,null,null,null,null,null,null,null,null,null,null,null,null,null,null,null,null,null,"09:20:00"]
[null,null,null,null,null,null,null,null,null,null,null,null,null,null,null,null,null,null,null,null,null,null,null,null,null,null,null,null,null,null,null,null,"09:25:00"]
[null,null,null,null,null,null,null,null,null,null,null,null,null,null,null,null,null,null,null,null,null,null,null,null,null,null,null,null,null,null,null,null,"09:30:00"]
[null,null,null,null,null,null,null,null,null,null,null,null,null,null,null,null,null,null,null,null,null,null,null,null,null,null,null,null,null,null,null,null,"09:35:00"]
[null,null,null,null,null,null,null,null,null,null,null,null,null,null,null,null,null,null,null,null,null,null,null,null,null,null,null,null,null,null,null,null,"09:40:00"]
[null,null,null,null,null,null,null,null,null,null,null,null,null,null,null,null,null,null,null,null,null,null,null,null,null,null,null,null,null,null,null,null,"09:45:00"]
[null,null,null,null,null,null,null,null,null,null,null,null,null,null,null,null,null,null,null,null,null,null,null,null,null,null,null,null,null,null,null,null,"09:50:00"]
[null,null,null,null,null,null,null,null,null,null,null,null,null,null,null,null,null,null,null,null,null,null,null,null,null,null,null,null,null,null,null,null,"09:55:00"]
[null,null,null,null,null,null,null,null,null,null,null,null,null,null,null,null,null,null,null,null,null,null,null,null,null,null,null,null,null,null,null,null,"10:00:00"]
[null,null,null,null,null,null,null,null,null,null,null,null,null,null,null,null,null,null,null,null,null,null,null,null,null,null,null,null,null,null,null,null,"10:05:00"]
[null,null,null,null,null,null,null,null,null,null,null,null,null,null,null,null,null,null,null,null,null,null,null,null,null,null,null,null,null,null,null,null,"10:10:00"]
[null,null,null,null,null,null,null,null,null,null,null,null,null,null,null,null,null,null,null,null,null,null,null,null,null,null,null,null,null,null,null,null,"10:15:00"]
[null,null,null,null,null,null,null,null,null,null,null,null,null,null,null,null,null,null,null,null,null,null,null,null,null,null,null,null,null,null,null,null,"10:20:00"]
[null,null,null,null,null,null,null,null,null,null,null,null,null,null,null,null,null,null,null,null,null,null,null,null,null,null,null,null,null,null,null,null,"10:25:00"]
[null,null,null,null,null,null,null,null,null,null,null,null,null,null,null,null,null,null,null,null,null,null,null,null,null,null,null,null,null,null,null,null,"10:30:00"]
[null,null,null,null,null,null,null,null,null,null,null,null,null,null,null,null,null,null,null,null,null,null,null,null,null,null,null,null,null,null,null,null,"10:35:00"]
[null,null,null,null,null,null,null,null,null,null,null,null,null,null,null,null,null,null,null,null,null,null,null,null,null,null,null,null,null,null,null,null,"10:40:00"]
[null,null,null,null,null,null,null,null,null,null,null,null,null,null,null,null,null,null,null,null,null,null,null,null,null,null,null,null,null,null,null,null,"10:45:00"]
[null,null,null,null,null,null,null,null,null,null,null,null,null,null,null,null,null,null,null,null,null,null,null,null,null,null,null,null,null,null,null,null,"10:50:00"]
[null,null,null,null,null,null,null,null,null,null,null,null,null,null,null,null,null,null,null,null,null,null,null,null,null,null,null,null,null,null,null,null,"10:55:00"]
[null,null,null,null,null,null,null,null,null,null,null,null,null,null,null,null,null,null,null,null,null,null,null,null,null,null,null,null,null,null,null,null,"11:00:00"]
[null,null,null,null,null,null,null,null,null,null,null,null,null,null,null,null,null,null,null,null,null,null,null,null,null,null,null,null,null,null,null,null,"11:05:00"]
[null,null,null,null,null,null,null,null,null,null,null,null,null,null,null,null,null,null,null,null,null,null,null,null,null,null,null,null,null,null,null,null,"11:10:00"]
[null,null,null,null,null,null,null,null,null,null,null,null,null,null,null,null,null,null,null,null,null,null,null,null,null,null,null,null,null,null,null,null,"11:15:00"]
[null,null,null,null,null,null,null,null,null,null,null,null,null,null,null,null,null,null,null,null,null,null,null,null,null,null,null,null,null,null,null,null,"11:20:00"]
[null,null,null,null,null,null,null,null,null,null,null,null,null,null,null,null,null,null,null,null,null,null,null,null,null,null,null,null,null,null,null,null,"11:25:00"]
[null,null,null,null,null,null,null,null,null,null,null,null,null,null,null,null,null,null,null,null,null,null,null,null,null,null,null,null,null,null,null,null,"11:30:00"]
[null,null,null,null,null,null,null,null,null,null,null,null,null,null,null,null,null,null,null,null,null,null,null,null,null,null,null,null,null,null,null,null,"11:35:00"]
[null,null,null,null,null,null,null,null,null,null,null,null,null,null,null,null,null,null,null,null,null,null,null,null,null,null,null,null,null,null,null,null,"11:40:00"]
[null,null,null,null,null,null,null,null,null,null,null,null,null,null,null,null,null,null,null,null,null,null,null,null,null,null,null,null,null,null,null,null,"11:45:00"]
[null,null,null,null,null,null,null,null,null,null,null,null,null,null,null,null,null,null,null,null,null,null,null,null,null,null,null,null,null,null,null,null,"11:50:00"]
[null,null,null,null,null,null,null,null,null,null,null,null,null,null,null,null,null,null,null,null,null,null,null,null,null,null,null,null,null,null,null,null,"11:55:00"]
[null,null,null,null,null,null,null,null,null,null,null,null,null,null,null,null,null,null,null,null,null,null,null,null,null,null,null,null,null,null,null,null,"12:00:00"]
[null,null,null,null,null,null,null,null,null,null,null,null,null,null,null,null,null,null,null,null,null,null,null,null,null,null,null,null,null,null,null,null,"12:05:00"]
[null,null,null,null,null,null,null,null,null,null,null,null,null,null,null,null,null,null,null,null,null,null,null,null,null,null,null,null,null,null,null,null,"12:10:00"]
[null,null,null,null,null,null,null,null,null,null,null,null,null,null,null,null,null,null,null,null,null,null,null,null,null,null,null,null,null,null,null,null,"12:15:00"]
[null,null,null,null,null,null,null,null,null,null,null,null,null,null,null,null,null,null,null,null,null,null,null,null,null,null,null,null,null,null,null,null,"12:20:00"]
[null,null,null,null,null,null,null,null,null,null,null,null,null,null,null,null,null,null,null,null,null,null,null,null,null,null,null,null,null,null,null,null,"12:25:00"]
[null,null,null,null,null,null,null,null,null,null,null,null,null,null,null,null,null,null,null,null,null,null,null,null,null,null,null,null,null,null,null,null,"12:30:00"]
[null,null,null,null,null,null,null,null,null,null,null,null,null,null,null,null,null,null,null,null,null,null,null,null,null,null,null,null,null,null,null,null,"12:35:00"]
[null,null,null,null,null,null,null,null,null,null,null,null,null,null,null,null,null,null,null,null,null,null,null,null,null,null,null,null,null,null,null,null,"12:40:00"]
[null,null,null,null,null,null,null,null,null,null,null,null,null,null,null,null,null,null,null,null,null,null,null,null,null,null,null,null,null,null,null,null,"12:45:00"]
[null,null,null,null,null,null,null,null,null,null,null,null,null,null,null,null,null,null,null,null,null,null,null,null,null,null,null,null,null,null,null,null,"12:50:00"]
[null,null,null,null,null,null,null,null,null,null,null,null,null,null,null,null,null,null,null,null,null,null,null,null,null,null,null,null,null,null,null,null,"12:55:00"]
[null,null,null,null,null,null,null,null,null,null,null,null,null,null,null,null,null,null,null,null,null,null,null,null,null,null,null,null,null,null,null,null,"13:00:00"]
[null,null,null,null,null,null,null,null,null,null,null,null,null,null,null,null,null,null,null,null,null,null,null,null,null,null,null,null,null,null,null,null,"13:05:00"]
[null,null,null,null,null,null,null,null,null,null,null,null,null,null,null,null,null,null,null,null,null,null,null,null,null,null,null,null,null,null,null,null,"13:10:00"]
[null,null,null,null,null,null,null,null,null,null,null,null,null,null,null,null,null,null,null,null,null,null,null,null,null,null,null,null,null,null,null,null,"13:15:00"]
[null,null,null,null,null,null,null,null,null,null,null,null,null,null,null,null,null,null,null,null,null,null,null,null,null,null,null,null,null,null,null,null,"13:20:00"]
[null,null,null,null,null,null,null,null,null,null,null,null,null,null,null,null,null,null,null,null,null,null,null,null,null,null,null,null,null,null,null,null,"13:25:00"]
[null,null,null,null,null,null,null,null,null,null,null,null,null,null,null,null,null,null,null,null,null,null,null,null,null,null,null,null,null,null,null,null,"13:30:00"]
[null,null,null,null,null,null,null,null,null,null,null,null,null,null,null,null,null,null,null,null,null,null,null,null,null,null,null,null,null,null,null,null,"13:35:00"]
[null,null,null,null,null,null,null,null,null,null,null,null,null,null,null,null,null,null,null,null,null,null,null,null,null,null,null,null,null,null,null,null,"13:40:00"]
[null,null,null,null,null,null,null,null,null,null,null,null,null,null,null,null,null,null,null,null,null,null,null,null,null,null,null,null,null,null,null,null,"13:45:00"]
[null,null,null,null,null,null,null,null,null,null,null,null,null,null,null,null,null,null,null,null,null,null,null,null,null,null,null,null,null,null,null,null,"13:50:00"]
[null,null,null,null,null,null,null,null,null,null,null,null,null,null,null,null,null,null,null,null,null,null,null,null,null,null,null,null,null,null,null,null,"13:55:00"]
[null,null,null,null,null,null,null,null,null,null,null,null,null,null,null,null,null,null,null,null,null,null,null,null,null,null,null,null,null,null,null,null,"14:00:00"]
[null,null,null,null,null,null,null,null,null,null,null,null,null,null,null,null,null,null,null,null,null,null,null,null,null,null,null,null,null,null,null,null,"14:05:00"]
[null,null,null,null,null,null,null,null,null,null,null,null,null,null,null,null,null,null,null,null,null,null,null,null,null,null,null,null,null,null,null,null,"14:10:00"]
[null,null,null,null,null,null,null,null,null,null,null,null,null,null,null,null,null,null,null,null,null,null,null,null,null,null,null,null,null,null,null,null,"14:15:00"]
[null,null,null,null,null,null,null,null,null,null,null,null,null,null,null,null,null,null,null,null,null,null,null,null,null,null,null,null,null,null,null,null,"14:20:00"]
[null,null,null,null,null,null,null,null,null,null,null,null,null,null,null,null,null,null,null,null,null,null,null,null,null,null,null,null,null,null,null,null,"14:25:00"]
[null,null,null,null,null,null,null,null,null,null,null,null,null,null,null,null,null,null,null,null,null,null,null,null,null,null,null,null,null,null,null,null,"14:30:00"]
[null,null,null,null,null,null,null,null,null,null,null,null,null,null,null,null,null,null,null,null,null,null,null,null,null,null,null,null,null,null,null,null,"14:35:00"]
[null,null,null,null,null,null,null,null,null,null,null,null,null,null,null,null,null,null,null,null,null,null,null,null,null,null,null,null,null,null,null,null,"14:40:00"]
[null,null,null,null,null,null,null,null,null,null,null,null,null,null,null,null,null,null,null,null,null,null,null,null,null,null,null,null,null,null,null,null,"14:45:00"]
[null,null,null,null,null,null,null,null,null,null,null,null,null,null,null,null,null,null,null,null,null,null,null,null,null,null,null,null,null,null,null,null,"14:50:00"]
[null,null,null,null,null,null,null,null,null,null,null,null,null,null,null,null,null,null,null,null,null,null,null,null,null,null,null,null,null,null,null,null,"14:55:00"]
[null,null,null,null,null,null,null,null,null,null,null,null,null,null,null,null,null,null,null,null,null,null,null,null,null,null,null,null,null,null,null,null,"15:00:00"]
[null,null,null,null,null,null,null,null,null,null,null,null,null,null,null,null,null,null,null,null,null,null,null,null,null,null,null,null,null,null,null,null,"15:05:00"]
[null,null,null,null,null,null,null,null,null,null,null,null,null,null,null,null,null,null,null,null,null,null,null,null,null,null,null,null,null,null,null,null,"15:10:00"]
[null,null,null,null,null,null,null,null,null,null,null,null,null,null,null,null,null,null,null,null,null,null,null,null,null,null,null,null,null,null,null,null,"15:15:00"]
[null,null,null,null,null,null,null,null,null,null,null,null,null,null,null,null,null,null,null,null,null,null,null,null,null,null,null,null,null,null,null,null,"15:20:00"]
[null,null,null,null,null,null,null,null,null,null,null,null,null,null,null,null,null,null,null,null,null,null,null,null,null,null,null,null,null,null,null,null,"15:25:00"]
[null,null,null,null,null,null,null,null,null,null,null,null,null,null,null,null,null,null,null,null,null,null,null,null,null,null,null,null,null,null,null,null,"15:30:00"]
[null,null,null,null,null,null,null,null,null,null,null,null,null,null,null,null,null,null,null,null,null,null,null,null,null,null,null,null,null,null,null,null,"15:35:00"]
[null,null,null,null,null,null,null,null,null,null,null,null,null,null,null,null,null,null,null,null,null,null,null,null,null,null,null,null,null,null,null,null,"15:40:00"]
[null,null,null,null,null,null,null,null,null,null,null,null,null,null,null,null,null,null,null,null,null,null,null,null,null,null,null,null,null,null,null,null,"15:45:00"]
[null,null,null,null,null,null,null,null,null,null,null,null,null,null,null,null,null,null,null,null,null,null,null,null,null,null,null,null,null,null,null,null,"15:50:00"]
[null,null,null,null,null,null,null,null,null,null,null,null,null,null,null,null,null,null,null,null,null,null,null,null,null,null,null,null,null,null,null,null,"15:55:00"]
[null,null,null,null,null,null,null,null,null,null,null,null,null,null,null,null,null,null,null,null,null,null,null,null,null,null,null,null,null,null,null,null,"16:00:00"]
[null,null,null,null,null,null,null,null,null,null,null,null,null,null,null,null,null,null,null,null,null,null,null,null,null,null,null,null,null,null,null,null,"16:05:00"]
[null,null,null,null,null,null,null,null,null,null,null,null,null,null,null,null,null,null,null,null,null,null,null,null,null,null,null,null,null,null,null,null,"16:10:00"]
[null,null,null,null,null,null,null,null,null,null,null,null,null,null,null,null,null,null,null,null,null,null,null,null,null,null,null,null,null,null,null,null,"16:15:00"]
[null,null,null,null,null,null,null,null,null,null,null,null,null,null,null,null,null,null,null,null,null,null,null,null,null,null,null,null,null,null,null,null,"16:20:00"]
[null,null,null,null,null,null,null,null,null,null,null,null,null,null,null,null,null,null,null,null,null,null,null,null,null,null,null,null,null,null,null,null,"16:25:00"]
[null,null,null,null,null,null,null,null,null,null,null,null,null,null,null,null,null,null,null,null,null,null,null,null,null,null,null,null,null,null,null,null,"16:30:00"]
[null,null,null,null,null,null,null,null,null,null,null,null,null,null,null,null,null,null,null,null,null,null,null,null,null,null,null,null,null,null,null,null,"16:35:00"]
[null,null,null,null,null,null,null,null,null,null,null,null,null,null,null,null,null,null,null,null,null,null,null,null,null,null,null,null,null,null,null,null,"16:40:00"]
[null,null,null,null,null,null,null,null,null,null,null,null,null,null,null,null,null,null,null,null,null,null,null,null,null,null,null,null,null,null,null,null,"16:45:00"]
[null,null,null,null,null,null,null,null,null,null,null,null,null,null,null,null,null,null,null,null,null,null,null,null,null,null,null,null,null,null,null,null,"16:50:00"]
[null,null,null,null,null,null,null,null,null,null,null,null,null,null,null,null,null,null,null,null,null,null,null,null,null,null,null,null,null,null,null,null,"16:55:00"]
[null,null,null,null,null,null,null,null,null,null,null,null,null,null,null,null,null,null,null,null,null,null,null,null,null,null,null,null,null,null,null,null,"17:00:00"]
[null,null,null,null,null,null,null,null,null,null,null,null,null,null,null,null,null,null,null,null,null,null,null,null,null,null,null,null,null,null,null,null,"17:05:00"]
[null,null,null,null,null,null,null,null,null,null,null,null,null,null,null,null,null,null,null,null,null,null,null,null,null,null,null,null,null,null,null,null,"17:10:00"]
[null,null,null,null,null,null,null,null,null,null,null,null,null,null,null,null,null,null,null,null,null,null,null,null,null,null,null,null,null,null,null,null,"17:15:00"]
[null,null,null,null,null,null,null,null,null,null,null,null,null,null,null,null,null,null,null,null,null,null,null,null,null,null,null,null,null,null,null,null,"17:20:00"]
[null,null,null,null,null,null,null,null,null,null,null,null,null,null,null,null,null,null,null,null,null,null,null,null,null,null,null,null,null,null,null,null,"17:25:00"]
[null,null,null,null,null,null,null,null,null,null,null,null,null,null,null,null,null,null,null,null,null,null,null,null,null,null,null,null,null,null,null,null,"17:30:00"]
[null,null,null,null,null,null,null,null,null,null,null,null,null,null,null,null,null,null,null,null,null,null,null,null,null,null,null,null,null,null,null,null,"17:35:00"]
[null,null,null,null,null,null,null,null,null,null,null,null,null,null,null,null,null,null,null,null,null,null,null,null,null,null,null,null,null,null,null,null,"17:40:00"]
[null,null,null,null,null,null,null,null,null,null,null,null,null,null,null,null,null,null,null,null,null,null,null,null,null,null,null,null,null,null,null,null,"17:45:00"]
[null,null,null,null,null,null,null,null,null,null,null,null,null,null,null,null,null,null,null,null,null,null,null,null,null,null,null,null,null,null,null,null,"17:50:00"]
[null,null,null,null,null,null,null,null,null,null,null,null,null,null,null,null,null,null,null,null,null,null,null,null,null,null,null,null,null,null,null,null,"17:55:00"]
[null,null,null,null,null,null,null,null,null,null,null,null,null,null,null,null,null,null,null,null,null,null,null,null,null,null,null,null,null,null,null,null,"18:00:00"]
[null,null,null,null,null,null,null,null,null,null,null,null,null,null,null,null,null,null,null,null,null,null,null,null,null,null,null,null,null,null,null,null,"18:05:00"]
[null,null,null,null,null,null,null,null,null,null,null,null,null,null,null,null,null,null,null,null,null,null,null,null,null,null,null,null,null,null,null,null,"18:10:00"]
[null,null,null,null,null,null,null,null,null,null,null,null,null,null,null,null,null,null,null,null,null,null,null,null,null,null,null,null,null,null,null,null,"18:15:00"]
[null,null,null,null,null,null,null,null,null,null,null,null,null,null,null,null,null,null,null,null,null,null,null,null,null,null,null,null,null,null,null,null,"18:20:00"]
[null,null,null,null,null,null,null,null,null,null,null,null,null,null,null,null,null,null,null,null,null,null,null,null,null,null,null,null,null,null,null,null,"18:25:00"]
[null,null,null,null,null,null,null,null,null,null,null,null,null,null,null,null,null,null,null,null,null,null,null,null,null,null,null,null,null,null,null,null,"18:30:00"]
[null,null,null,null,null,null,null,null,null,null,null,null,null,null,null,null,null,null,null,null,null,null,null,null,null,null,null,null,null,null,null,null,"18:35:00"]
[null,null,null,null,null,null,null,null,null,null,null,null,null,null,null,null,null,null,null,null,null,null,null,null,null,null,null,null,null,null,null,null,"18:40:00"]
[null,null,null,null,null,null,null,null,null,null,null,null,null,null,null,null,null,null,null,null,null,null,null,null,null,null,null,null,null,null,null,null,"18:45:00"]
[null,null,null,null,null,null,null,null,null,null,null,null,null,null,null,null,null,null,null,null,null,null,null,null,null,null,null,null,null,null,null,null,"18:50:00"]
[null,null,null,null,null,null,null,null,null,null,null,null,null,null,null,null,null,null,null,null,null,null,null,null,null,null,null,null,null,null,null,null,"19:00:00"]

{"sheet":"シート2-④","index":6,"n_rows":150,"n_cols":41,"rows_kept":150,"cut":false,"hidden":false,"merged":[[31,1,31,28],[23,2,23,14],[26,2,26,14],[28,15,28,17],[28,18,28,20],[28,21,28,23],[26,15,26,17],[28,2,28,14],[27,15,27,17],[27,18,27,20],[27,21,27,23],[26,18,26,20],[27,2,27,14],[26,24,26,28],[23,18,23,20],[23,21,23,23],[21,24,21,28],[24,2,24,14],[27,24,27,28],[28,24,28,28],[30,1,30,28],[22,15,22,17],[22,18,22,20],[22,21,22,23],[21,2,21,14],[22,2,22,14],[21,15,21,17],[21,18,21,20],[21,21,21,23],[26,21,26,23],[23,15,23,17],[24,15,24,17],[19,15,19,17],[19,18,19,20],[19,21,19,23],[19,24,19,28],[20,24,20,28],[23,24,23,28],[22,24,22,28],[24,18,24,20],[24,21,24,23],[24,24,24,28],[13,4,13,20],[15,1,16,14],[15,15,16,17],[15,18,16,20],[15,21,16,23],[12,1,13,2],[12,4,12,20],[12,21,13,23],[2,1,2,28],[5,1,5,2],[5,3,5,28],[6,1,6,2],[6,3,6,28],[9,1,10,2],[9,4,9,8],[9,9,10,10],[9,12,9,15],[9,17,9,20],[10,4,10,8],[10,12,10,15],[10,17,10,20],[12,24,13,28],[25,24,25,28],[18,41,22,53],[9,21,10,23],[9,24,10,28],[15,38,15,39],[15,33,16,33],[15,34,15,35],[15,36,15,37],[17,38,17,39],[18,21,18,23],[17,36,17,37],[17,34,17,35],[17,24,17,28],[15,24,16,28],[18,24,18,28],[25,2,25,14],[25,15,25,17],[25,18,25,20],[25,21,25,23],[17,1,17,14],[17,15,17,17],[17,18,17,20],[17,21,17,23],[18,2,18,14],[18,15,18,17],[18,18,18,20],[20,15,20,17],[20,18,20,20],[20,21,20,23],[19,2,19,14],[20,2,20,14]]}
[null,"研修記録シート2（評価）"]
[]
[null,"この振り返りシートは、科目の受講前後で各自の理解度を把握し、受講中の学習効果の向上と、受講後の学習のポイントを焦点化し、継続的な資質向上に役立てるものです。本科目を学習した時点で感じた事を書き留め、今後の学習方針や課題への取り組みを考える際に見返してみましょう。"]
[]
[]
[null,"研修名：",null,"主任研修",null,null,null,null,null,null,null,null,null,null,null,null,null,null,null,null,null,null,null,null,null,null,null,null,null,null,null,null,null,null,null,null,null,null,null,null,"このボタンをクリックするとTOPページへ移動します。"]
[null,"課目名：",null,"④人材育成及び業務管理"]
[]
[]
[null,"受講日",null,1,"2024-11-20",null,null,null,null,"時間",null,1,"13:30:00",null,null,null,"～","16:30:00",null,null,null,"氏名",null,null,{"$f":"IF(ISBLANK(シート1!N7),\"\",シート1!N7)","v":""}]
[null,null,null,2,null,null,null,null,null,null,null,2,null,null,null,null,"～"]
[]
[null,"会場",null,1,"オンライン研修（Zoom）",null,null,null,null,null,null,null,null,null,null,null,null,null,null,null,null,"番号",null,null,{"$f":"IF(ISBLANK(シート1!N9),\"\",シート1!N9)","v":9999}]
[null,null,null,2]
[]
[null,"項　　目 ",null,null,null,null,null,null,null,null,null,null,null,null,null,"受講前 ",null,null,"受講\n直後",null,null,"実践\n評価\n(3ヶ月後）",null,null,"備　　考 ",null,null,null,null,null,null,"リスト（課程区分）","リスト（時間）",null,"受講前",null,"受講後 ",null,"実践評価"]
[null,null,null,null,null,null,null,null,null,null,null,null,null,null,null,null,null,null,null,null,null,null,null,null,null,null,null,null,null,null,null,null,"リストから選択",null,"理解度","習得度","理解度","習得度","理解度","習得度"]
[null,"記入日（入力日）",null,null,null,null,null,null,null,null,null,null,null,null,null,null,null,null,null,null,null,null,null,null,null,null,null,null,null,null,null,"リスト（課程区分）","リスト（時間）",null,"受講前",null,"受講後 ",null,"実践評価"]
[null,"① ","地域や事業所内における介護支援専門員の人材育成の課題と対応策について説明できる。",null,null,null,null,null,null,null,null,null,null,null,null,null,null,null,null,null,null,null,null,null,null,null,null,null,null,null,null,"Ⅰ","08:00:00",4,"4．理解している ","-","4．非常に理解が深まった ","4．習得できた ","4．非常に理解が深まった","4．習得度が上がった "]
[null,"② ","地域や事業所内における介護支援専門員の人材育成に関し、効果的な取り組みおよび方法（研修計画の作成、OJT、ＯＦＦ-JT、事例検討会等）により実施できる。",null,null,null,null,null,null,null,null,null,null,null,null,null,null,null,null,null,null,null,null,null,null,null,null,null,null,null,null,"Ⅱ","08:05:00",3,"3．概ね理解している ","-","3．理解が深まった ","3．概ね習得できた ","3．理解が深まった","3．まあまあ習得度が上がった "]
[null,"③ ","地域において人材育成を行うに当たって必要なネットワークの構築を実施できる。",null,null,null,null,null,null,null,null,null,null,null,null,null,null,null,null,null,null,null,null,null,null,null,null,null,null,null,null,null,"08:10:00",2,"2．あまり理解していない ","-","2．あまり理解が進まなかった ","2．あまり習得できていない ","2．あまり理解度は変わらない ","2．習得度は変わらない "]
[null,"④ ","事業所内における介護支援専門員に対する業務管理の意義・方法について説明できる。",null,null,null,null,null,null,null,null,null,null,null,null,null,null,null,null,null,null,null,null,null,null,null,null,null,null,null,null,null,"08:15:00",1,"1．全く理解していない ","-","1．理解が進まなかった ","1．習得できていない ","1．理解度は変わらない。 ","1．理解度が深まり、習得度が後退した "]
[null,"⑤ ","事業所内における介護支援専門員に対する業務管理上の課題を踏まえ、対応策について説明できる。",null,null,null,null,null,null,null,null,null,null,null,null,null,null,null,null,null,null,null,null,null,null,null,null,null,null,null,null,null,"08:20:00"]
[null,null,null,null,null,null,null,null,null,null,null,null,null,null,null,null,null,null,null,null,null,null,null,null,null,null,null,null,null,null,null,null,"08:25:00"]
[null,null,null,null,null,null,null,null,null,null,null,null,null,null,null,null,null,null,null,null,null,null,null,null,null,null,null,null,null,null,null,null,"08:30:00"]
[null,null,null,null,null,null,null,null,null,null,null,null,null,null,null,null,null,null,null,null,null,null,null,null,null,null,null,null,null,null,null,null,"08:35:00"]
[null,null,null,null,null,null,null,null,null,null,null,null,null,null,null,null,null,null,null,null,null,null,null,null,null,null,null,null,null,null,null,null,"08:40:00"]
[null,null,null,null,null,null,null,null,null,null,null,null,null,null,null,null,null,null,null,null,null,null,null,null,null,null,null,null,null,null,null,null,"08:45:00"]
[null,null,null,null,null,null,null,null,null,null,null,null,null,null,null,null,null,null,null,null,null,null,null,null,null,null,null,null,null,null,null,null,"08:50:00"]
[null,null,null,null,null,null,null,null,null,null,null,null,null,null,null,null,null,null,null,null,null,null,null,null,null,null,null,null,null,null,null,null,"08:55:00"]
[null,"　※研修は自己評価とし、4段階評価で、数字が大きいほど高評価、数字が小さいほど低評価として記入してください。",null,null,null,null,null,null,null,null,null,null,null,null,null,null,null,null,null,null,null,null,null,null,null,null,null,null,null,null,null,null,"09:00:00"]
[null,"　　【選択肢】　　　4.　できる　　　　　3.　概ねできる　　　　　2.　ほとんどできない　　　　1.　全くできない",null,null,null,null,null,null,null,null,null,null,null,null,null,null,null,null,null,null,null,null,null,null,null,null,null,null,null,null,null,null,"09:05:00"]
[null,null,null,null,null,null,null,null,null,null,null,null,null,null,null,null,null,null,null,null,null,null,null,null,null,null,null,null,null,null,null,null,"09:10:00"]
[null,null,null,null,null,null,null,null,null,null,null,null,null,null,null,null,null,null,null,null,null,null,null,null,null,null,null,null,null,null,null,null,"09:15:00"]
[null,null,null,null,null,null,null,null,null,null,null,null,null,null,null,null,null,null,null,null,null,null,null,null,null,null,null,null,null,null,null,null,"09:20:00"]
[null,null,null,null,null,null,null,null,null,null,null,null,null,null,null,null,null,null,null,null,null,null,null,null,null,null,null,null,null,null,null,null,"09:25:00"]
[null,null,null,null,null,null,null,null,null,null,null,null,null,null,null,null,null,null,null,null,null,null,null,null,null,null,null,null,null,null,null,null,"09:30:00"]
[null,null,null,null,null,null,null,null,null,null,null,null,null,null,null,null,null,null,null,null,null,null,null,null,null,null,null,null,null,null,null,null,"09:35:00"]
[null,null,null,null,null,null,null,null,null,null,null,null,null,null,null,null,null,null,null,null,null,null,null,null,null,null,null,null,null,null,null,null,"09:40:00"]
[null,null,null,null,null,null,null,null,null,null,null,null,null,null,null,null,null,null,null,null,null,null,null,null,null,null,null,null,null,null,null,null,"09:45:00"]
[null,null,null,null,null,null,null,null,null,null,null,null,null,null,null,null,null,null,null,null,null,null,null,null,null,null,null,null,null,null,null,null,"09:50:00"]
[null,null,null,null,null,null,null,null,null,null,null,null,null,null,null,null,null,null,null,null,null,null,null,null,null,null,null,null,null,null,null,null,"09:55:00"]
[null,null,null,null,null,null,null,null,null,null,null,null,null,null,null,null,null,null,null,null,null,null,null,null,null,null,null,null,null,null,null,null,"10:00:00"]
[null,null,null,null,null,null,null,null,null,null,null,null,null,null,null,null,null,null,null,null,null,null,null,null,null,null,null,null,null,null,null,null,"10:05:00"]
[null,null,null,null,null,null,null,null,null,null,null,null,null,null,null,null,null,null,null,null,null,null,null,null,null,null,null,null,null,null,null,null,"10:10:00"]
[null,null,null,null,null,null,null,null,null,null,null,null,null,null,null,null,null,null,null,null,null,null,null,null,null,null,null,null,null,null,null,null,"10:15:00"]
[null,null,null,null,null,null,null,null,null,null,null,null,null,null,null,null,null,null,null,null,null,null,null,null,null,null,null,null,null,null,null,null,"10:20:00"]
[null,null,null,null,null,null,null,null,null,null,null,null,null,null,null,null,null,null,null,null,null,null,null,null,null,null,null,null,null,null,null,null,"10:25:00"]
[null,null,null,null,null,null,null,null,null,null,null,null,null,null,null,null,null,null,null,null,null,null,null,null,null,null,null,null,null,null,null,null,"10:30:00"]
[null,null,null,null,null,null,null,null,null,null,null,null,null,null,null,null,null,null,null,null,null,null,null,null,null,null,null,null,null,null,null,null,"10:35:00"]
[null,null,null,null,null,null,null,null,null,null,null,null,null,null,null,null,null,null,null,null,null,null,null,null,null,null,null,null,null,null,null,null,"10:40:00"]
[null,null,null,null,null,null,null,null,null,null,null,null,null,null,null,null,null,null,null,null,null,null,null,null,null,null,null,null,null,null,null,null,"10:45:00"]
[null,null,null,null,null,null,null,null,null,null,null,null,null,null,null,null,null,null,null,null,null,null,null,null,null,null,null,null,null,null,null,null,"10:50:00"]
[null,null,null,null,null,null,null,null,null,null,null,null,null,null,null,null,null,null,null,null,null,null,null,null,null,null,null,null,null,null,null,null,"10:55:00"]
[null,null,null,null,null,null,null,null,null,null,null,null,null,null,null,null,null,null,null,null,null,null,null,null,null,null,null,null,null,null,null,null,"11:00:00"]
[null,null,null,null,null,null,null,null,null,null,null,null,null,null,null,null,null,null,null,null,null,null,null,null,null,null,null,null,null,null,null,null,"11:05:00"]
[null,null,null,null,null,null,null,null,null,null,null,null,null,null,null,null,null,null,null,null,null,null,null,null,null,null,null,null,null,null,null,null,"11:10:00"]
[null,null,null,null,null,null,null,null,null,null,null,null,null,null,null,null,null,null,null,null,null,null,null,null,null,null,null,null,null,null,null,null,"11:15:00"]
[null,null,null,null,null,null,null,null,null,null,null,null,null,null,null,null,null,null,null,null,null,null,null,null,null,null,null,null,null,null,null,null,"11:20:00"]
[null,null,null,null,null,null,null,null,null,null,null,null,null,null,null,null,null,null,null,null,null,null,null,null,null,null,null,null,null,null,null,null,"11:25:00"]
[null,null,null,null,null,null,null,null,null,null,null,null,null,null,null,null,null,null,null,null,null,null,null,null,null,null,null,null,null,null,null,null,"11:30:00"]
[null,null,null,null,null,null,null,null,null,null,null,null,null,null,null,null,null,null,null,null,null,null,null,null,null,null,null,null,null,null,null,null,"11:35:00"]
[null,null,null,null,null,null,null,null,null,null,null,null,null,null,null,null,null,null,null,null,null,null,null,null,null,null,null,null,null,null,null,null,"11:40:00"]
[null,null,null,null,null,null,null,null,null,null,null,null,null,null,null,null,null,null,null,null,null,null,null,null,null,null,null,null,null,null,null,null,"11:45:00"]
[null,null,null,null,null,null,null,null,null,null,null,null,null,null,null,null,null,null,null,null,null,null,null,null,null,null,null,null,null,null,null,null,"11:50:00"]
[null,null,null,null,null,null,null,null,null,null,null,null,null,null,null,null,null,null,null,null,null,null,null,null,null,null,null,null,null,null,null,null,"11:55:00"]
[null,null,null,null,null,null,null,null,null,null,null,null,null,null,null,null,null,null,null,null,null,null,null,null,null,null,null,null,null,null,null,null,"12:00:00"]
[null,null,null,null,null,null,null,null,null,null,null,null,null,null,null,null,null,null,null,null,null,null,null,null,null,null,null,null,null,null,null,null,"12:05:00"]
[null,null,null,null,null,null,null,null,null,null,null,null,null,null,null,null,null,null,null,null,null,null,null,null,null,null,null,null,null,null,null,null,"12:10:00"]
[null,null,null,null,null,null,null,null,null,null,null,null,null,null,null,null,null,null,null,null,null,null,null,null,null,null,null,null,null,null,null,null,"12:15:00"]
[null,null,null,null,null,null,null,null,null,null,null,null,null,null,null,null,null,null,null,null,null,null,null,null,null,null,null,null,null,null,null,null,"12:20:00"]
[null,null,null,null,null,null,null,null,null,null,null,null,null,null,null,null,null,null,null,null,null,null,null,null,null,null,null,null,null,null,null,null,"12:25:00"]
[null,null,null,null,null,null,null,null,null,null,null,null,null,null,null,null,null,null,null,null,null,null,null,null,null,null,null,null,null,null,null,null,"12:30:00"]
[null,null,null,null,null,null,null,null,null,null,null,null,null,null,null,null,null,null,null,null,null,null,null,null,null,null,null,null,null,null,null,null,"12:35:00"]
[null,null,null,null,null,null,null,null,null,null,null,null,null,null,null,null,null,null,null,null,null,null,null,null,null,null,null,null,null,null,null,null,"12:40:00"]
[null,null,null,null,null,null,null,null,null,null,null,null,null,null,null,null,null,null,null,null,null,null,null,null,null,null,null,null,null,null,null,null,"12:45:00"]
[null,null,null,null,null,null,null,null,null,null,null,null,null,null,null,null,null,null,null,null,null,null,null,null,null,null,null,null,null,null,null,null,"12:50:00"]
[null,null,null,null,null,null,null,null,null,null,null,null,null,null,null,null,null,null,null,null,null,null,null,null,null,null,null,null,null,null,null,null,"12:55:00"]
[null,null,null,null,null,null,null,null,null,null,null,null,null,null,null,null,null,null,null,null,null,null,null,null,null,null,null,null,null,null,null,null,"13:00:00"]
[null,null,null,null,null,null,null,null,null,null,null,null,null,null,null,null,null,null,null,null,null,null,null,null,null,null,null,null,null,null,null,null,"13:05:00"]
[null,null,null,null,null,null,null,null,null,null,null,null,null,null,null,null,null,null,null,null,null,null,null,null,null,null,null,null,null,null,null,null,"13:10:00"]
[null,null,null,null,null,null,null,null,null,null,null,null,null,null,null,null,null,null,null,null,null,null,null,null,null,null,null,null,null,null,null,null,"13:15:00"]
[null,null,null,null,null,null,null,null,null,null,null,null,null,null,null,null,null,null,null,null,null,null,null,null,null,null,null,null,null,null,null,null,"13:20:00"]
[null,null,null,null,null,null,null,null,null,null,null,null,null,null,null,null,null,null,null,null,null,null,null,null,null,null,null,null,null,null,null,null,"13:25:00"]
[null,null,null,null,null,null,null,null,null,null,null,null,null,null,null,null,null,null,null,null,null,null,null,null,null,null,null,null,null,null,null,null,"13:30:00"]
[null,null,null,null,null,null,null,null,null,null,null,null,null,null,null,null,null,null,null,null,null,null,null,null,null,null,null,null,null,null,null,null,"13:35:00"]
[null,null,null,null,null,null,null,null,null,null,null,null,null,null,null,null,null,null,null,null,null,null,null,null,null,null,null,null,null,null,null,null,"13:40:00"]
[null,null,null,null,null,null,null,null,null,null,null,null,null,null,null,null,null,null,null,null,null,null,null,null,null,null,null,null,null,null,null,null,"13:45:00"]
[null,null,null,null,null,null,null,null,null,null,null,null,null,null,null,null,null,null,null,null,null,null,null,null,null,null,null,null,null,null,null,null,"13:50:00"]
[null,null,null,null,null,null,null,null,null,null,null,null,null,null,null,null,null,null,null,null,null,null,null,null,null,null,null,null,null,null,null,null,"13:55:00"]
[null,null,null,null,null,null,null,null,null,null,null,null,null,null,null,null,null,null,null,null,null,null,null,null,null,null,null,null,null,null,null,null,"14:00:00"]
[null,null,null,null,null,null,null,null,null,null,null,null,null,null,null,null,null,null,null,null,null,null,null,null,null,null,null,null,null,null,null,null,"14:05:00"]
[null,null,null,null,null,null,null,null,null,null,null,null,null,null,null,null,null,null,null,null,null,null,null,null,null,null,null,null,null,null,null,null,"14:10:00"]
[null,null,null,null,null,null,null,null,null,null,null,null,null,null,null,null,null,null,null,null,null,null,null,null,null,null,null,null,null,null,null,null,"14:15:00"]
[null,null,null,null,null,null,null,null,null,null,null,null,null,null,null,null,null,null,null,null,null,null,null,null,null,null,null,null,null,null,null,null,"14:20:00"]
[null,null,null,null,null,null,null,null,null,null,null,null,null,null,null,null,null,null,null,null,null,null,null,null,null,null,null,null,null,null,null,null,"14:25:00"]
[null,null,null,null,null,null,null,null,null,null,null,null,null,null,null,null,null,null,null,null,null,null,null,null,null,null,null,null,null,null,null,null,"14:30:00"]
[null,null,null,null,null,null,null,null,null,null,null,null,null,null,null,null,null,null,null,null,null,null,null,null,null,null,null,null,null,null,null,null,"14:35:00"]
[null,null,null,null,null,null,null,null,null,null,null,null,null,null,null,null,null,null,null,null,null,null,null,null,null,null,null,null,null,null,null,null,"14:40:00"]
[null,null,null,null,null,null,null,null,null,null,null,null,null,null,null,null,null,null,null,null,null,null,null,null,null,null,null,null,null,null,null,null,"14:45:00"]
[null,null,null,null,null,null,null,null,null,null,null,null,null,null,null,null,null,null,null,null,null,null,null,null,null,null,null,null,null,null,null,null,"14:50:00"]
[null,null,null,null,null,null,null,null,null,null,null,null,null,null,null,null,null,null,null,null,null,null,null,null,null,null,null,null,null,null,null,null,"14:55:00"]
[null,null,null,null,null,null,null,null,null,null,null,null,null,null,null,null,null,null,null,null,null,null,null,null,null,null,null,null,null,null,null,null,"15:00:00"]
[null,null,null,null,null,null,null,null,null,null,null,null,null,null,null,null,null,null,null,null,null,null,null,null,null,null,null,null,null,null,null,null,"15:05:00"]
[null,null,null,null,null,null,null,null,null,null,null,null,null,null,null,null,null,null,null,null,null,null,null,null,null,null,null,null,null,null,null,null,"15:10:00"]
[null,null,null,null,null,null,null,null,null,null,null,null,null,null,null,null,null,null,null,null,null,null,null,null,null,null,null,null,null,null,null,null,"15:15:00"]
[null,null,null,null,null,null,null,null,null,null,null,null,null,null,null,null,null,null,null,null,null,null,null,null,null,null,null,null,null,null,null,null,"15:20:00"]
[null,null,null,null,null,null,null,null,null,null,null,null,null,null,null,null,null,null,null,null,null,null,null,null,null,null,null,null,null,null,null,null,"15:25:00"]
[null,null,null,null,null,null,null,null,null,null,null,null,null,null,null,null,null,null,null,null,null,null,null,null,null,null,null,null,null,null,null,null,"15:30:00"]
[null,null,null,null,null,null,null,null,null,null,null,null,null,null,null,null,null,null,null,null,null,null,null,null,null,null,null,null,null,null,null,null,"15:35:00"]
[null,null,null,null,null,null,null,null,null,null,null,null,null,null,null,null,null,null,null,null,null,null,null,null,null,null,null,null,null,null,null,null,"15:40:00"]
[null,null,null,null,null,null,null,null,null,null,null,null,null,null,null,null,null,null,null,null,null,null,null,null,null,null,null,null,null,null,null,null,"15:45:00"]
[null,null,null,null,null,null,null,null,null,null,null,null,null,null,null,null,null,null,null,null,null,null,null,null,null,null,null,null,null,null,null,null,"15:50:00"]
[null,null,null,null,null,null,null,null,null,null,null,null,null,null,null,null,null,null,null,null,null,null,null,null,null,null,null,null,null,null,null,null,"15:55:00"]
[null,null,null,null,null,null,null,null,null,null,null,null,null,null,null,null,null,null,null,null,null,null,null,null,null,null,null,null,null,null,null,null,"16:00:00"]
[null,null,null,null,null,null,null,null,null,null,null,null,null,null,null,null,null,null,null,null,null,null,null,null,null,null,null,null,null,null,null,null,"16:05:00"]
[null,null,null,null,null,null,null,null,null,null,null,null,null,null,null,null,null,null,null,null,null,null,null,null,null,null,null,null,null,null,null,null,"16:10:00"]
[null,null,null,null,null,null,null,null,null,null,null,null,null,null,null,null,null,null,null,null,null,null,null,null,null,null,null,null,null,null,null,null,"16:15:00"]
[null,null,null,null,null,null,null,null,null,null,null,null,null,null,null,null,null,null,null,null,null,null,null,null,null,null,null,null,null,null,null,null,"16:20:00"]
[null,null,null,null,null,null,null,null,null,null,null,null,null,null,null,null,null,null,null,null,null,null,null,null,null,null,null,null,null,null,null,null,"16:25:00"]
[null,null,null,null,null,null,null,null,null,null,null,null,null,null,null,null,null,null,null,null,null,null,null,null,null,null,null,null,null,null,null,null,"16:30:00"]
[null,null,null,null,null,null,null,null,null,null,null,null,null,null,null,null,null,null,null,null,null,null,null,null,null,null,null,null,null,null,null,null,"16:35:00"]
[null,null,null,null,null,null,null,null,null,null,null,null,null,null,null,null,null,null,null,null,null,null,null,null,null,null,null,null,null,null,null,null,"16:40:00"]
[null,null,null,null,null,null,null,null,null,null,null,null,null,null,null,null,null,null,null,null,null,null,null,null,null,null,null,null,null,null,null,null,"16:45:00"]
[null,null,null,null,null,null,null,null,null,null,null,null,null,null,null,null,null,null,null,null,null,null,null,null,null,null,null,null,null,null,null,null,"16:50:00"]
[null,null,null,null,null,null,null,null,null,null,null,null,null,null,null,null,null,null,null,null,null,null,null,null,null,null,null,null,null,null,null,null,"16:55:00"]
[null,null,null,null,null,null,null,null,null,null,null,null,null,null,null,null,null,null,null,null,null,null,null,null,null,null,null,null,null,null,null,null,"17:00:00"]
[null,null,null,null,null,null,null,null,null,null,null,null,null,null,null,null,null,null,null,null,null,null,null,null,null,null,null,null,null,null,null,null,"17:05:00"]
[null,null,null,null,null,null,null,null,null,null,null,null,null,null,null,null,null,null,null,null,null,null,null,null,null,null,null,null,null,null,null,null,"17:10:00"]
[null,null,null,null,null,null,null,null,null,null,null,null,null,null,null,null,null,null,null,null,null,null,null,null,null,null,null,null,null,null,null,null,"17:15:00"]
[null,null,null,null,null,null,null,null,null,null,null,null,null,null,null,null,null,null,null,null,null,null,null,null,null,null,null,null,null,null,null,null,"17:20:00"]
[null,null,null,null,null,null,null,null,null,null,null,null,null,null,null,null,null,null,null,null,null,null,null,null,null,null,null,null,null,null,null,null,"17:25:00"]
[null,null,null,null,null,null,null,null,null,null,null,null,null,null,null,null,null,null,null,null,null,null,null,null,null,null,null,null,null,null,null,null,"17:30:00"]
[null,null,null,null,null,null,null,null,null,null,null,null,null,null,null,null,null,null,null,null,null,null,null,null,null,null,null,null,null,null,null,null,"17:35:00"]
[null,null,null,null,null,null,null,null,null,null,null,null,null,null,null,null,null,null,null,null,null,null,null,null,null,null,null,null,null,null,null,null,"17:40:00"]
[null,null,null,null,null,null,null,null,null,null,null,null,null,null,null,null,null,null,null,null,null,null,null,null,null,null,null,null,null,null,null,null,"17:45:00"]
[null,null,null,null,null,null,null,null,null,null,null,null,null,null,null,null,null,null,null,null,null,null,null,null,null,null,null,null,null,null,null,null,"17:50:00"]
[null,null,null,null,null,null,null,null,null,null,null,null,null,null,null,null,null,null,null,null,null,null,null,null,null,null,null,null,null,null,null,null,"17:55:00"]
[null,null,null,null,null,null,null,null,null,null,null,null,null,null,null,null,null,null,null,null,null,null,null,null,null,null,null,null,null,null,null,null,"18:00:00"]
[null,null,null,null,null,null,null,null,null,null,null,null,null,null,null,null,null,null,null,null,null,null,null,null,null,null,null,null,null,null,null,null,"18:05:00"]
[null,null,null,null,null,null,null,null,null,null,null,null,null,null,null,null,null,null,null,null,null,null,null,null,null,null,null,null,null,null,null,null,"18:10:00"]
[null,null,null,null,null,null,null,null,null,null,null,null,null,null,null,null,null,null,null,null,null,null,null,null,null,null,null,null,null,null,null,null,"18:15:00"]
[null,null,null,null,null,null,null,null,null,null,null,null,null,null,null,null,null,null,null,null,null,null,null,null,null,null,null,null,null,null,null,null,"18:20:00"]
[null,null,null,null,null,null,null,null,null,null,null,null,null,null,null,null,null,null,null,null,null,null,null,null,null,null,null,null,null,null,null,null,"18:25:00"]
[null,null,null,null,null,null,null,null,null,null,null,null,null,null,null,null,null,null,null,null,null,null,null,null,null,null,null,null,null,null,null,null,"18:30:00"]
[null,null,null,null,null,null,null,null,null,null,null,null,null,null,null,null,null,null,null,null,null,null,null,null,null,null,null,null,null,null,null,null,"18:35:00"]
[null,null,null,null,null,null,null,null,null,null,null,null,null,null,null,null,null,null,null,null,null,null,null,null,null,null,null,null,null,null,null,null,"18:40:00"]
[null,null,null,null,null,null,null,null,null,null,null,null,null,null,null,null,null,null,null,null,null,null,null,null,null,null,null,null,null,null,null,null,"18:45:00"]
[null,null,null,null,null,null,null,null,null,null,null,null,null,null,null,null,null,null,null,null,null,null,null,null,null,null,null,null,null,null,null,null,"18:50:00"]
[null,null,null,null,null,null,null,null,null,null,null,null,null,null,null,null,null,null,null,null,null,null,null,null,null,null,null,null,null,null,null,null,"19:00:00"]

{"sheet":"シート2-⑤","index":7,"n_rows":150,"n_cols":41,"rows_kept":150,"cut":false,"hidden":false,"merged":[[30,1,30,28],[31,1,31,28],[28,24,28,28],[18,24,18,28],[19,24,19,28],[28,2,28,14],[28,15,28,17],[28,18,28,20],[28,21,28,23],[21,24,21,28],[22,24,22,28],[26,24,26,28],[26,15,26,17],[26,18,26,20],[22,2,22,14],[26,2,26,14],[20,24,20,28],[19,18,19,20],[20,18,20,20],[22,21,22,23],[22,15,22,17],[22,18,22,20],[24,15,24,17],[24,18,24,20],[24,21,24,23],[25,2,25,14],[17,15,17,17],[15,36,15,37],[15,38,15,39],[15,33,16,33],[15,24,16,28],[17,24,17,28],[17,34,17,35],[17,38,17,39],[15,34,15,35],[17,36,17,37],[12,24,13,28],[13,4,13,20],[12,1,13,2],[12,4,12,20],[20,21,20,23],[18,15,18,17],[19,2,19,14],[17,21,17,23],[18,18,18,20],[18,21,18,23],[19,15,19,17],[19,21,19,23],[20,15,20,17],[12,21,13,23],[17,1,17,14],[18,2,18,14],[9,1,10,2],[9,4,9,8],[9,9,10,10],[9,12,9,15],[9,17,9,20],[2,1,2,28],[5,1,5,2],[5,3,5,28],[6,1,6,2],[6,3,6,28],[15,1,16,14],[15,15,16,17],[15,18,16,20],[15,21,16,23],[21,18,21,20],[21,21,21,23],[20,2,20,14],[21,2,21,14],[17,18,17,20],[21,15,21,17],[9,21,10,23],[9,24,10,28],[10,4,10,8],[10,12,10,15],[10,17,10,20],[24,24,24,28],[27,24,27,28],[25,24,25,28],[23,2,23,14],[23,15,23,17],[23,18,23,20],[23,21,23,23],[25,15,25,17],[25,18,25,20],[23,24,23,28],[27,15,27,17],[27,18,27,20],[27,21,27,23],[26,21,26,23],[25,21,25,23],[24,2,24,14]]}
[null,"研修記録シート2（評価）"]
[]
[null,"この振り返りシートは、科目の受講前後で各自の理解度を把握し、受講中の学習効果の向上と、受講後の学習のポイントを焦点化し、継続的な資質向上に役立てるものです。本科目を学習した時点で感じた事を書き留め、今後の学習方針や課題への取り組みを考える際に見返してみましょう。"]
[]
[]
[null,"研修名：",null,"主任研修",null,null,null,null,null,null,null,null,null,null,null,null,null,null,null,null,null,null,null,null,null,null,null,null,null,null,null,null,null,null,null,null,null,null,null,null,"このボタンをクリックするとTOPページへ移動します。"]
[null,"課目名：",null,"⑤運営管理におけるリスクマネジメント"]
[]
[]
[null,"受講日",null,1,"2024-12-01",null,null,null,null,"時間",null,1,"13:30:00",null,null,null,"～","16:30:00",null,null,null,"氏名",null,null,{"$f":"IF(ISBLANK(シート1!N7),\"\",シート1!N7)","v":""}]
[null,null,null,2,null,null,null,null,null,null,null,2,null,null,null,null,"～"]
[]
[null,"会場",null,1,"オンライン研修（Zoom）",null,null,null,null,null,null,null,null,null,null,null,null,null,null,null,null,"番号",null,null,{"$f":"IF(ISBLANK(シート1!N9),\"\",シート1!N9)","v":9999}]
[null,null,null,2]
[]
[null,"項　　目 ",null,null,null,null,null,null,null,null,null,null,null,null,null,"受講前 ",null,null,"受講\n直後",null,null,"実践\n評価\n(3ヶ月後）",null,null,"備　　考 ",null,null,null,null,null,null,"リスト（課程区分）","リスト（時間）",null,"受講前",null,"受講後 ",null,"実践評価"]
[null,null,null,null,null,null,null,null,null,null,null,null,null,null,null,null,null,null,null,null,null,null,null,null,null,null,null,null,null,null,null,null,"リストから選択",null,"理解度","習得度","理解度","習得度","理解度","習得度"]
[null,"記入日（入力日）",null,null,null,null,null,null,null,null,null,null,null,null,null,null,null,null,null,null,null,null,null,null,null,null,null,null,null,null,null,"リスト（課程区分）","リスト（時間）",null,"受講前",null,"受講後 ",null,"実践評価"]
[null,"① ","ケアマネジメントを行う上で、事業所内で発生しうるリスクを予測し、運営管理の必要性を説明できる。",null,null,null,null,null,null,null,null,null,null,null,null,null,null,null,null,null,null,null,null,null,null,null,null,null,null,null,null,"Ⅰ","08:00:00",4,"4．理解している ","-","4．非常に理解が深まった ","4．習得できた ","4．非常に理解が深まった","4．習得度が上がった "]
[null,"② ","ヒヤリハットの事例に基づき、事業所内のリスクを軽減していく仕組みづくりの重要性について説明できる。",null,null,null,null,null,null,null,null,null,null,null,null,null,null,null,null,null,null,null,null,null,null,null,null,null,null,null,null,"Ⅱ","08:05:00",3,"3．概ね理解している ","-","3．理解が深まった ","3．概ね習得できた ","3．理解が深まった","3．まあまあ習得度が上がった "]
[null,"③ ","地域や事業所におけるリスク軽減のための仕組みや体制を構築する際のポイントを説明できる。",null,null,null,null,null,null,null,null,null,null,null,null,null,null,null,null,null,null,null,null,null,null,null,null,null,null,null,null,null,"08:10:00",2,"2．あまり理解していない ","-","2．あまり理解が進まなかった ","2．あまり習得できていない ","2．あまり理解度は変わらない ","2．習得度は変わらない "]
[null,"④ ","介護支援専門員に課せられている秘密保持義務の規定について説明できる。",null,null,null,null,null,null,null,null,null,null,null,null,null,null,null,null,null,null,null,null,null,null,null,null,null,null,null,null,null,"08:15:00",1,"1．全く理解していない ","-","1．理解が進まなかった ","1．習得できていない ","1．理解度は変わらない。 ","1．理解度が深まり、習得度が後退した "]
[null,"⑤ ","個人情報の取り扱いに関わる仕組みの重要性を説明でき、その体制の構築を実施できる。",null,null,null,null,null,null,null,null,null,null,null,null,null,null,null,null,null,null,null,null,null,null,null,null,null,null,null,null,null,"08:20:00"]
[null,"⑥ ","自然災害が発生した際の対応について、基本的な考え方や方法について説明できる。",null,null,null,null,null,null,null,null,null,null,null,null,null,null,null,null,null,null,null,null,null,null,null,null,null,null,null,null,null,"08:25:00"]
[null,"⑦","感染症が発生した際の対応について、基本的な考え方や方法について説明できる。",null,null,null,null,null,null,null,null,null,null,null,null,null,null,null,null,null,null,null,null,null,null,null,null,null,null,null,null,null,"08:30:00"]
[null,null,null,null,null,null,null,null,null,null,null,null,null,null,null,null,null,null,null,null,null,null,null,null,null,null,null,null,null,null,null,null,"08:35:00"]
[null,null,null,null,null,null,null,null,null,null,null,null,null,null,null,null,null,null,null,null,null,null,null,null,null,null,null,null,null,null,null,null,"08:40:00"]
[null,null,null,null,null,null,null,null,null,null,null,null,null,null,null,null,null,null,null,null,null,null,null,null,null,null,null,null,null,null,null,null,"08:45:00"]
[null,null,null,null,null,null,null,null,null,null,null,null,null,null,null,null,null,null,null,null,null,null,null,null,null,null,null,null,null,null,null,null,"08:50:00"]
[null,null,null,null,null,null,null,null,null,null,null,null,null,null,null,null,null,null,null,null,null,null,null,null,null,null,null,null,null,null,null,null,"08:55:00"]
[null,"　※研修は自己評価とし、4段階評価で、数字が大きいほど高評価、数字が小さいほど低評価として記入してください。",null,null,null,null,null,null,null,null,null,null,null,null,null,null,null,null,null,null,null,null,null,null,null,null,null,null,null,null,null,null,"09:00:00"]
[null,"　　【選択肢】　　　4.　できる　　　　　3.　概ねできる　　　　　2.　ほとんどできない　　　　1.　全くできない",null,null,null,null,null,null,null,null,null,null,null,null,null,null,null,null,null,null,null,null,null,null,null,null,null,null,null,null,null,null,"09:05:00"]
[null,null,null,null,null,null,null,null,null,null,null,null,null,null,null,null,null,null,null,null,null,null,null,null,null,null,null,null,null,null,null,null,"09:10:00"]
[null,null,null,null,null,null,null,null,null,null,null,null,null,null,null,null,null,null,null,null,null,null,null,null,null,null,null,null,null,null,null,null,"09:15:00"]
[null,null,null,null,null,null,null,null,null,null,null,null,null,null,null,null,null,null,null,null,null,null,null,null,null,null,null,null,null,null,null,null,"09:20:00"]
[null,null,null,null,null,null,null,null,null,null,null,null,null,null,null,null,null,null,null,null,null,null,null,null,null,null,null,null,null,null,null,null,"09:25:00"]
[null,null,null,null,null,null,null,null,null,null,null,null,null,null,null,null,null,null,null,null,null,null,null,null,null,null,null,null,null,null,null,null,"09:30:00"]
[null,null,null,null,null,null,null,null,null,null,null,null,null,null,null,null,null,null,null,null,null,null,null,null,null,null,null,null,null,null,null,null,"09:35:00"]
[null,null,null,null,null,null,null,null,null,null,null,null,null,null,null,null,null,null,null,null,null,null,null,null,null,null,null,null,null,null,null,null,"09:40:00"]
[null,null,null,null,null,null,null,null,null,null,null,null,null,null,null,null,null,null,null,null,null,null,null,null,null,null,null,null,null,null,null,null,"09:45:00"]
[null,null,null,null,null,null,null,null,null,null,null,null,null,null,null,null,null,null,null,null,null,null,null,null,null,null,null,null,null,null,null,null,"09:50:00"]
[null,null,null,null,null,null,null,null,null,null,null,null,null,null,null,null,null,null,null,null,null,null,null,null,null,null,null,null,null,null,null,null,"09:55:00"]
[null,null,null,null,null,null,null,null,null,null,null,null,null,null,null,null,null,null,null,null,null,null,null,null,null,null,null,null,null,null,null,null,"10:00:00"]
[null,null,null,null,null,null,null,null,null,null,null,null,null,null,null,null,null,null,null,null,null,null,null,null,null,null,null,null,null,null,null,null,"10:05:00"]
[null,null,null,null,null,null,null,null,null,null,null,null,null,null,null,null,null,null,null,null,null,null,null,null,null,null,null,null,null,null,null,null,"10:10:00"]
[null,null,null,null,null,null,null,null,null,null,null,null,null,null,null,null,null,null,null,null,null,null,null,null,null,null,null,null,null,null,null,null,"10:15:00"]
[null,null,null,null,null,null,null,null,null,null,null,null,null,null,null,null,null,null,null,null,null,null,null,null,null,null,null,null,null,null,null,null,"10:20:00"]
[null,null,null,null,null,null,null,null,null,null,null,null,null,null,null,null,null,null,null,null,null,null,null,null,null,null,null,null,null,null,null,null,"10:25:00"]
[null,null,null,null,null,null,null,null,null,null,null,null,null,null,null,null,null,null,null,null,null,null,null,null,null,null,null,null,null,null,null,null,"10:30:00"]
[null,null,null,null,null,null,null,null,null,null,null,null,null,null,null,null,null,null,null,null,null,null,null,null,null,null,null,null,null,null,null,null,"10:35:00"]
[null,null,null,null,null,null,null,null,null,null,null,null,null,null,null,null,null,null,null,null,null,null,null,null,null,null,null,null,null,null,null,null,"10:40:00"]
[null,null,null,null,null,null,null,null,null,null,null,null,null,null,null,null,null,null,null,null,null,null,null,null,null,null,null,null,null,null,null,null,"10:45:00"]
[null,null,null,null,null,null,null,null,null,null,null,null,null,null,null,null,null,null,null,null,null,null,null,null,null,null,null,null,null,null,null,null,"10:50:00"]
[null,null,null,null,null,null,null,null,null,null,null,null,null,null,null,null,null,null,null,null,null,null,null,null,null,null,null,null,null,null,null,null,"10:55:00"]
[null,null,null,null,null,null,null,null,null,null,null,null,null,null,null,null,null,null,null,null,null,null,null,null,null,null,null,null,null,null,null,null,"11:00:00"]
[null,null,null,null,null,null,null,null,null,null,null,null,null,null,null,null,null,null,null,null,null,null,null,null,null,null,null,null,null,null,null,null,"11:05:00"]
[null,null,null,null,null,null,null,null,null,null,null,null,null,null,null,null,null,null,null,null,null,null,null,null,null,null,null,null,null,null,null,null,"11:10:00"]
[null,null,null,null,null,null,null,null,null,null,null,null,null,null,null,null,null,null,null,null,null,null,null,null,null,null,null,null,null,null,null,null,"11:15:00"]
[null,null,null,null,null,null,null,null,null,null,null,null,null,null,null,null,null,null,null,null,null,null,null,null,null,null,null,null,null,null,null,null,"11:20:00"]
[null,null,null,null,null,null,null,null,null,null,null,null,null,null,null,null,null,null,null,null,null,null,null,null,null,null,null,null,null,null,null,null,"11:25:00"]
[null,null,null,null,null,null,null,null,null,null,null,null,null,null,null,null,null,null,null,null,null,null,null,null,null,null,null,null,null,null,null,null,"11:30:00"]
[null,null,null,null,null,null,null,null,null,null,null,null,null,null,null,null,null,null,null,null,null,null,null,null,null,null,null,null,null,null,null,null,"11:35:00"]
[null,null,null,null,null,null,null,null,null,null,null,null,null,null,null,null,null,null,null,null,null,null,null,null,null,null,null,null,null,null,null,null,"11:40:00"]
[null,null,null,null,null,null,null,null,null,null,null,null,null,null,null,null,null,null,null,null,null,null,null,null,null,null,null,null,null,null,null,null,"11:45:00"]
[null,null,null,null,null,null,null,null,null,null,null,null,null,null,null,null,null,null,null,null,null,null,null,null,null,null,null,null,null,null,null,null,"11:50:00"]
[null,null,null,null,null,null,null,null,null,null,null,null,null,null,null,null,null,null,null,null,null,null,null,null,null,null,null,null,null,null,null,null,"11:55:00"]
[null,null,null,null,null,null,null,null,null,null,null,null,null,null,null,null,null,null,null,null,null,null,null,null,null,null,null,null,null,null,null,null,"12:00:00"]
[null,null,null,null,null,null,null,null,null,null,null,null,null,null,null,null,null,null,null,null,null,null,null,null,null,null,null,null,null,null,null,null,"12:05:00"]
[null,null,null,null,null,null,null,null,null,null,null,null,null,null,null,null,null,null,null,null,null,null,null,null,null,null,null,null,null,null,null,null,"12:10:00"]
[null,null,null,null,null,null,null,null,null,null,null,null,null,null,null,null,null,null,null,null,null,null,null,null,null,null,null,null,null,null,null,null,"12:15:00"]
[null,null,null,null,null,null,null,null,null,null,null,null,null,null,null,null,null,null,null,null,null,null,null,null,null,null,null,null,null,null,null,null,"12:20:00"]
[null,null,null,null,null,null,null,null,null,null,null,null,null,null,null,null,null,null,null,null,null,null,null,null,null,null,null,null,null,null,null,null,"12:25:00"]
[null,null,null,null,null,null,null,null,null,null,null,null,null,null,null,null,null,null,null,null,null,null,null,null,null,null,null,null,null,null,null,null,"12:30:00"]
[null,null,null,null,null,null,null,null,null,null,null,null,null,null,null,null,null,null,null,null,null,null,null,null,null,null,null,null,null,null,null,null,"12:35:00"]
[null,null,null,null,null,null,null,null,null,null,null,null,null,null,null,null,null,null,null,null,null,null,null,null,null,null,null,null,null,null,null,null,"12:40:00"]
[null,null,null,null,null,null,null,null,null,null,null,null,null,null,null,null,null,null,null,null,null,null,null,null,null,null,null,null,null,null,null,null,"12:45:00"]
[null,null,null,null,null,null,null,null,null,null,null,null,null,null,null,null,null,null,null,null,null,null,null,null,null,null,null,null,null,null,null,null,"12:50:00"]
[null,null,null,null,null,null,null,null,null,null,null,null,null,null,null,null,null,null,null,null,null,null,null,null,null,null,null,null,null,null,null,null,"12:55:00"]
[null,null,null,null,null,null,null,null,null,null,null,null,null,null,null,null,null,null,null,null,null,null,null,null,null,null,null,null,null,null,null,null,"13:00:00"]
[null,null,null,null,null,null,null,null,null,null,null,null,null,null,null,null,null,null,null,null,null,null,null,null,null,null,null,null,null,null,null,null,"13:05:00"]
[null,null,null,null,null,null,null,null,null,null,null,null,null,null,null,null,null,null,null,null,null,null,null,null,null,null,null,null,null,null,null,null,"13:10:00"]
[null,null,null,null,null,null,null,null,null,null,null,null,null,null,null,null,null,null,null,null,null,null,null,null,null,null,null,null,null,null,null,null,"13:15:00"]
[null,null,null,null,null,null,null,null,null,null,null,null,null,null,null,null,null,null,null,null,null,null,null,null,null,null,null,null,null,null,null,null,"13:20:00"]
[null,null,null,null,null,null,null,null,null,null,null,null,null,null,null,null,null,null,null,null,null,null,null,null,null,null,null,null,null,null,null,null,"13:25:00"]
[null,null,null,null,null,null,null,null,null,null,null,null,null,null,null,null,null,null,null,null,null,null,null,null,null,null,null,null,null,null,null,null,"13:30:00"]
[null,null,null,null,null,null,null,null,null,null,null,null,null,null,null,null,null,null,null,null,null,null,null,null,null,null,null,null,null,null,null,null,"13:35:00"]
[null,null,null,null,null,null,null,null,null,null,null,null,null,null,null,null,null,null,null,null,null,null,null,null,null,null,null,null,null,null,null,null,"13:40:00"]
[null,null,null,null,null,null,null,null,null,null,null,null,null,null,null,null,null,null,null,null,null,null,null,null,null,null,null,null,null,null,null,null,"13:45:00"]
[null,null,null,null,null,null,null,null,null,null,null,null,null,null,null,null,null,null,null,null,null,null,null,null,null,null,null,null,null,null,null,null,"13:50:00"]
[null,null,null,null,null,null,null,null,null,null,null,null,null,null,null,null,null,null,null,null,null,null,null,null,null,null,null,null,null,null,null,null,"13:55:00"]
[null,null,null,null,null,null,null,null,null,null,null,null,null,null,null,null,null,null,null,null,null,null,null,null,null,null,null,null,null,null,null,null,"14:00:00"]
[null,null,null,null,null,null,null,null,null,null,null,null,null,null,null,null,null,null,null,null,null,null,null,null,null,null,null,null,null,null,null,null,"14:05:00"]
[null,null,null,null,null,null,null,null,null,null,null,null,null,null,null,null,null,null,null,null,null,null,null,null,null,null,null,null,null,null,null,null,"14:10:00"]
[null,null,null,null,null,null,null,null,null,null,null,null,null,null,null,null,null,null,null,null,null,null,null,null,null,null,null,null,null,null,null,null,"14:15:00"]
[null,null,null,null,null,null,null,null,null,null,null,null,null,null,null,null,null,null,null,null,null,null,null,null,null,null,null,null,null,null,null,null,"14:20:00"]
[null,null,null,null,null,null,null,null,null,null,null,null,null,null,null,null,null,null,null,null,null,null,null,null,null,null,null,null,null,null,null,null,"14:25:00"]
[null,null,null,null,null,null,null,null,null,null,null,null,null,null,null,null,null,null,null,null,null,null,null,null,null,null,null,null,null,null,null,null,"14:30:00"]
[null,null,null,null,null,null,null,null,null,null,null,null,null,null,null,null,null,null,null,null,null,null,null,null,null,null,null,null,null,null,null,null,"14:35:00"]
[null,null,null,null,null,null,null,null,null,null,null,null,null,null,null,null,null,null,null,null,null,null,null,null,null,null,null,null,null,null,null,null,"14:40:00"]
[null,null,null,null,null,null,null,null,null,null,null,null,null,null,null,null,null,null,null,null,null,null,null,null,null,null,null,null,null,null,null,null,"14:45:00"]
[null,null,null,null,null,null,null,null,null,null,null,null,null,null,null,null,null,null,null,null,null,null,null,null,null,null,null,null,null,null,null,null,"14:50:00"]
[null,null,null,null,null,null,null,null,null,null,null,null,null,null,null,null,null,null,null,null,null,null,null,null,null,null,null,null,null,null,null,null,"14:55:00"]
[null,null,null,null,null,null,null,null,null,null,null,null,null,null,null,null,null,null,null,null,null,null,null,null,null,null,null,null,null,null,null,null,"15:00:00"]
[null,null,null,null,null,null,null,null,null,null,null,null,null,null,null,null,null,null,null,null,null,null,null,null,null,null,null,null,null,null,null,null,"15:05:00"]
[null,null,null,null,null,null,null,null,null,null,null,null,null,null,null,null,null,null,null,null,null,null,null,null,null,null,null,null,null,null,null,null,"15:10:00"]
[null,null,null,null,null,null,null,null,null,null,null,null,null,null,null,null,null,null,null,null,null,null,null,null,null,null,null,null,null,null,null,null,"15:15:00"]
[null,null,null,null,null,null,null,null,null,null,null,null,null,null,null,null,null,null,null,null,null,null,null,null,null,null,null,null,null,null,null,null,"15:20:00"]
[null,null,null,null,null,null,null,null,null,null,null,null,null,null,null,null,null,null,null,null,null,null,null,null,null,null,null,null,null,null,null,null,"15:25:00"]
[null,null,null,null,null,null,null,null,null,null,null,null,null,null,null,null,null,null,null,null,null,null,null,null,null,null,null,null,null,null,null,null,"15:30:00"]
[null,null,null,null,null,null,null,null,null,null,null,null,null,null,null,null,null,null,null,null,null,null,null,null,null,null,null,null,null,null,null,null,"15:35:00"]
[null,null,null,null,null,null,null,null,null,null,null,null,null,null,null,null,null,null,null,null,null,null,null,null,null,null,null,null,null,null,null,null,"15:40:00"]
[null,null,null,null,null,null,null,null,null,null,null,null,null,null,null,null,null,null,null,null,null,null,null,null,null,null,null,null,null,null,null,null,"15:45:00"]
[null,null,null,null,null,null,null,null,null,null,null,null,null,null,null,null,null,null,null,null,null,null,null,null,null,null,null,null,null,null,null,null,"15:50:00"]
[null,null,null,null,null,null,null,null,null,null,null,null,null,null,null,null,null,null,null,null,null,null,null,null,null,null,null,null,null,null,null,null,"15:55:00"]
[null,null,null,null,null,null,null,null,null,null,null,null,null,null,null,null,null,null,null,null,null,null,null,null,null,null,null,null,null,null,null,null,"16:00:00"]
[null,null,null,null,null,null,null,null,null,null,null,null,null,null,null,null,null,null,null,null,null,null,null,null,null,null,null,null,null,null,null,null,"16:05:00"]
[null,null,null,null,null,null,null,null,null,null,null,null,null,null,null,null,null,null,null,null,null,null,null,null,null,null,null,null,null,null,null,null,"16:10:00"]
[null,null,null,null,null,null,null,null,null,null,null,null,null,null,null,null,null,null,null,null,null,null,null,null,null,null,null,null,null,null,null,null,"16:15:00"]
[null,null,null,null,null,null,null,null,null,null,null,null,null,null,null,null,null,null,null,null,null,null,null,null,null,null,null,null,null,null,null,null,"16:20:00"]
[null,null,null,null,null,null,null,null,null,null,null,null,null,null,null,null,null,null,null,null,null,null,null,null,null,null,null,null,null,null,null,null,"16:25:00"]
[null,null,null,null,null,null,null,null,null,null,null,null,null,null,null,null,null,null,null,null,null,null,null,null,null,null,null,null,null,null,null,null,"16:30:00"]
[null,null,null,null,null,null,null,null,null,null,null,null,null,null,null,null,null,null,null,null,null,null,null,null,null,null,null,null,null,null,null,null,"16:35:00"]
[null,null,null,null,null,null,null,null,null,null,null,null,null,null,null,null,null,null,null,null,null,null,null,null,null,null,null,null,null,null,null,null,"16:40:00"]
[null,null,null,null,null,null,null,null,null,null,null,null,null,null,null,null,null,null,null,null,null,null,null,null,null,null,null,null,null,null,null,null,"16:45:00"]
[null,null,null,null,null,null,null,null,null,null,null,null,null,null,null,null,null,null,null,null,null,null,null,null,null,null,null,null,null,null,null,null,"16:50:00"]
[null,null,null,null,null,null,null,null,null,null,null,null,null,null,null,null,null,null,null,null,null,null,null,null,null,null,null,null,null,null,null,null,"16:55:00"]
[null,null,null,null,null,null,null,null,null,null,null,null,null,null,null,null,null,null,null,null,null,null,null,null,null,null,null,null,null,null,null,null,"17:00:00"]
[null,null,null,null,null,null,null,null,null,null,null,null,null,null,null,null,null,null,null,null,null,null,null,null,null,null,null,null,null,null,null,null,"17:05:00"]
[null,null,null,null,null,null,null,null,null,null,null,null,null,null,null,null,null,null,null,null,null,null,null,null,null,null,null,null,null,null,null,null,"17:10:00"]
[null,null,null,null,null,null,null,null,null,null,null,null,null,null,null,null,null,null,null,null,null,null,null,null,null,null,null,null,null,null,null,null,"17:15:00"]
[null,null,null,null,null,null,null,null,null,null,null,null,null,null,null,null,null,null,null,null,null,null,null,null,null,null,null,null,null,null,null,null,"17:20:00"]
[null,null,null,null,null,null,null,null,null,null,null,null,null,null,null,null,null,null,null,null,null,null,null,null,null,null,null,null,null,null,null,null,"17:25:00"]
[null,null,null,null,null,null,null,null,null,null,null,null,null,null,null,null,null,null,null,null,null,null,null,null,null,null,null,null,null,null,null,null,"17:30:00"]
[null,null,null,null,null,null,null,null,null,null,null,null,null,null,null,null,null,null,null,null,null,null,null,null,null,null,null,null,null,null,null,null,"17:35:00"]
[null,null,null,null,null,null,null,null,null,null,null,null,null,null,null,null,null,null,null,null,null,null,null,null,null,null,null,null,null,null,null,null,"17:40:00"]
[null,null,null,null,null,null,null,null,null,null,null,null,null,null,null,null,null,null,null,null,null,null,null,null,null,null,null,null,null,null,null,null,"17:45:00"]
[null,null,null,null,null,null,null,null,null,null,null,null,null,null,null,null,null,null,null,null,null,null,null,null,null,null,null,null,null,null,null,null,"17:50:00"]
[null,null,null,null,null,null,null,null,null,null,null,null,null,null,null,null,null,null,null,null,null,null,null,null,null,null,null,null,null,null,null,null,"17:55:00"]
[null,null,null,null,null,null,null,null,null,null,null,null,null,null,null,null,null,null,null,null,null,null,null,null,null,null,null,null,null,null,null,null,"18:00:00"]
[null,null,null,null,null,null,null,null,null,null,null,null,null,null,null,null,null,null,null,null,null,null,null,null,null,null,null,null,null,null,null,null,"18:05:00"]
[null,null,null,null,null,null,null,null,null,null,null,null,null,null,null,null,null,null,null,null,null,null,null,null,null,null,null,null,null,null,null,null,"18:10:00"]
[null,null,null,null,null,null,null,null,null,null,null,null,null,null,null,null,null,null,null,null,null,null,null,null,null,null,null,null,null,null,null,null,"18:15:00"]
[null,null,null,null,null,null,null,null,null,null,null,null,null,null,null,null,null,null,null,null,null,null,null,null,null,null,null,null,null,null,null,null,"18:20:00"]
[null,null,null,null,null,null,null,null,null,null,null,null,null,null,null,null,null,null,null,null,null,null,null,null,null,null,null,null,null,null,null,null,"18:25:00"]
[null,null,null,null,null,null,null,null,null,null,null,null,null,null,null,null,null,null,null,null,null,null,null,null,null,null,null,null,null,null,null,null,"18:30:00"]
[null,null,null,null,null,null,null,null,null,null,null,null,null,null,null,null,null,null,null,null,null,null,null,null,null,null,null,null,null,null,null,null,"18:35:00"]
[null,null,null,null,null,null,null,null,null,null,null,null,null,null,null,null,null,null,null,null,null,null,null,null,null,null,null,null,null,null,null,null,"18:40:00"]
[null,null,null,null,null,null,null,null,null,null,null,null,null,null,null,null,null,null,null,null,null,null,null,null,null,null,null,null,null,null,null,null,"18:45:00"]
[null,null,null,null,null,null,null,null,null,null,null,null,null,null,null,null,null,null,null,null,null,null,null,null,null,null,null,null,null,null,null,null,"18:50:00"]
[null,null,null,null,null,null,null,null,null,null,null,null,null,null,null,null,null,null,null,null,null,null,null,null,null,null,null,null,null,null,null,null,"19:00:00"]

{"sheet":"シート2-⑥","index":8,"n_rows":150,"n_cols":41,"rows_kept":150,"cut":false,"hidden":false,"merged":[[30,1,30,28],[31,1,31,28],[28,24,28,28],[24,24,24,28],[22,24,22,28],[23,24,23,28],[22,15,22,17],[24,15,24,17],[27,2,27,14],[28,15,28,17],[28,18,28,20],[28,21,28,23],[28,2,28,14],[27,15,27,17],[27,18,27,20],[27,21,27,23],[18,24,18,28],[19,24,19,28],[27,24,27,28],[20,24,20,28],[21,24,21,28],[25,24,25,28],[26,24,26,28],[15,33,16,33],[15,34,15,35],[15,36,15,37],[17,34,17,35],[15,38,15,39],[17,36,17,37],[17,38,17,39],[9,24,10,28],[12,1,13,2],[12,4,12,20],[17,18,17,20],[17,21,17,23],[15,24,16,28],[17,24,17,28],[12,24,13,28],[13,4,13,20],[12,21,13,23],[15,21,16,23],[15,1,16,14],[17,1,17,14],[2,1,2,28],[5,1,5,2],[5,3,5,28],[6,1,6,2],[6,3,6,28],[18,15,18,17],[18,18,18,20],[15,18,16,20],[25,15,25,17],[25,18,25,20],[15,15,16,17],[17,15,17,17],[19,18,19,20],[20,15,20,17],[20,18,20,20],[24,18,24,20],[23,15,23,17],[23,18,23,20],[21,18,21,20],[21,15,21,17],[18,2,18,14],[19,2,19,14],[25,2,25,14],[9,21,10,23],[18,21,18,23],[22,18,22,20],[25,21,25,23],[10,4,10,8],[10,12,10,15],[9,1,10,2],[9,4,9,8],[9,9,10,10],[9,12,9,15],[9,17,9,20],[10,17,10,20],[19,15,19,17],[19,21,19,23],[26,2,26,14],[26,15,26,17],[26,18,26,20],[26,21,26,23],[21,21,21,23],[20,21,20,23],[24,21,24,23],[23,21,23,23],[22,21,22,23],[20,2,20,14],[21,2,21,14],[22,2,22,14],[23,2,23,14],[24,2,24,14]]}
[null,"研修記録シート2（評価）"]
[]
[null,"この振り返りシートは、科目の受講前後で各自の理解度を把握し、受講中の学習効果の向上と、受講後の学習のポイントを焦点化し、継続的な資質向上に役立てるものです。本科目を学習した時点で感じた事を書き留め、今後の学習方針や課題への取り組みを考える際に見返してみましょう。"]
[]
[]
[null,"研修名：",null,"主任研修",null,null,null,null,null,null,null,null,null,null,null,null,null,null,null,null,null,null,null,null,null,null,null,null,null,null,null,null,null,null,null,null,null,null,null,null,"このボタンをクリックするとTOPページへ移動します。"]
[null,"課目名：",null,"⑥地域援助技術（コミュニティソーシャルワーク）"]
[]
[]
[null,"受講日",null,1,"2025-01-19",null,null,null,null,"時間",null,1,"09:30:00",null,null,null,"～","16:30:00",null,null,null,"氏名",null,null,{"$f":"IF(ISBLANK(シート1!N7),\"\",シート1!N7)","v":""}]
[null,null,null,2,null,null,null,null,null,null,null,2,null,null,null,null,"～"]
[]
[null,"会場",null,1,"オンライン研修（Zoom）",null,null,null,null,null,null,null,null,null,null,null,null,null,null,null,null,"番号",null,null,{"$f":"IF(ISBLANK(シート1!N9),\"\",シート1!N9)","v":9999}]
[null,null,null,2]
[]
[null,"項　　目 ",null,null,null,null,null,null,null,null,null,null,null,null,null,"受講前 ",null,null,"受講\n直後",null,null,"実践\n評価\n(3ヶ月後）",null,null,"備　　考 ",null,null,null,null,null,null,"リスト（課程区分）","リスト（時間）",null,"受講前",null,"受講後 ",null,"実践評価"]
[null,null,null,null,null,null,null,null,null,null,null,null,null,null,null,null,null,null,null,null,null,null,null,null,null,null,null,null,null,null,null,null,"リストから選択",null,"理解度","習得度","理解度","習得度","理解度","習得度"]
[null,"記入日（入力日）",null,null,null,null,null,null,null,null,null,null,null,null,null,null,null,null,null,null,null,null,null,null,null,null,null,null,null,null,null,"リスト（課程区分）","リスト（時間）",null,"受講前",null,"受講後 ",null,"実践評価"]
[null,"① ","地域づくりの意義と手法及び地域課題を把握するための情報の入手・活用の方法について説明できる。",null,null,null,null,null,null,null,null,null,null,null,null,null,null,null,null,null,null,null,null,null,null,null,null,null,null,null,null,"Ⅰ","08:00:00",4,"4．理解している ","-","4．非常に理解が深まった ","4．習得できた ","4．非常に理解が深まった","4．習得度が上がった "]
[null,"② ","地域に関する統計データ等の情報を活用し、根拠に基づいた地域課題について説明できる。",null,null,null,null,null,null,null,null,null,null,null,null,null,null,null,null,null,null,null,null,null,null,null,null,null,null,null,null,"Ⅱ","08:05:00",3,"3．概ね理解している ","-","3．理解が深まった ","3．概ね習得できた ","3．理解が深まった","3．まあまあ習得度が上がった "]
[null,"③ ","地域援助技術（コミュニティソーシャルワーク）を展開していくうえで、基本的な考え方及び方法、留意点について説明できる。",null,null,null,null,null,null,null,null,null,null,null,null,null,null,null,null,null,null,null,null,null,null,null,null,null,null,null,null,null,"08:10:00",2,"2．あまり理解していない ","-","2．あまり理解が進まなかった ","2．あまり習得できていない ","2．あまり理解度は変わらない ","2．習得度は変わらない "]
[null,"④ ","地域課題の把握・解決に向けた取り組み策を考え、そのことについて説明できる。",null,null,null,null,null,null,null,null,null,null,null,null,null,null,null,null,null,null,null,null,null,null,null,null,null,null,null,null,null,"08:15:00",1,"1．全く理解していない ","-","1．理解が進まなかった ","1．習得できていない ","1．理解度は変わらない。 ","1．理解度が深まり、習得度が後退した "]
[null,"⑤ ","事例検討や個別事例に関する地域ケア会議等を通じて明らかになった地域課題の整理を実施できる。",null,null,null,null,null,null,null,null,null,null,null,null,null,null,null,null,null,null,null,null,null,null,null,null,null,null,null,null,null,"08:20:00"]
[null,"⑥ ","地域課題の解決に向けた関係者によるネットワークの機能や構築方法について説明できる。",null,null,null,null,null,null,null,null,null,null,null,null,null,null,null,null,null,null,null,null,null,null,null,null,null,null,null,null,null,"08:25:00"]
[null,"⑦ ","コミュニティソーシャルワークに関する介護支援専門員に対する指導・支援を実施できる。",null,null,null,null,null,null,null,null,null,null,null,null,null,null,null,null,null,null,null,null,null,null,null,null,null,null,null,null,null,"08:30:00"]
[null,null,null,null,null,null,null,null,null,null,null,null,null,null,null,null,null,null,null,null,null,null,null,null,null,null,null,null,null,null,null,null,"08:35:00"]
[null,null,null,null,null,null,null,null,null,null,null,null,null,null,null,null,null,null,null,null,null,null,null,null,null,null,null,null,null,null,null,null,"08:40:00"]
[null,null,null,null,null,null,null,null,null,null,null,null,null,null,null,null,null,null,null,null,null,null,null,null,null,null,null,null,null,null,null,null,"08:45:00"]
[null,null,null,null,null,null,null,null,null,null,null,null,null,null,null,null,null,null,null,null,null,null,null,null,null,null,null,null,null,null,null,null,"08:50:00"]
[null,null,null,null,null,null,null,null,null,null,null,null,null,null,null,null,null,null,null,null,null,null,null,null,null,null,null,null,null,null,null,null,"08:55:00"]
[null,"　※研修は自己評価とし、4段階評価で、数字が大きいほど高評価、数字が小さいほど低評価として記入してください。",null,null,null,null,null,null,null,null,null,null,null,null,null,null,null,null,null,null,null,null,null,null,null,null,null,null,null,null,null,null,"09:00:00"]
[null,"　　【選択肢】　　　4.　できる　　　　　3.　概ねできる　　　　　2.　ほとんどできない　　　　1.　全くできない",null,null,null,null,null,null,null,null,null,null,null,null,null,null,null,null,null,null,null,null,null,null,null,null,null,null,null,null,null,null,"09:05:00"]
[null,null,null,null,null,null,null,null,null,null,null,null,null,null,null,null,null,null,null,null,null,null,null,null,null,null,null,null,null,null,null,null,"09:10:00"]
[null,null,null,null,null,null,null,null,null,null,null,null,null,null,null,null,null,null,null,null,null,null,null,null,null,null,null,null,null,null,null,null,"09:15:00"]
[null,null,null,null,null,null,null,null,null,null,null,null,null,null,null,null,null,null,null,null,null,null,null,null,null,null,null,null,null,null,null,null,"09:20:00"]
[null,null,null,null,null,null,null,null,null,null,null,null,null,null,null,null,null,null,null,null,null,null,null,null,null,null,null,null,null,null,null,null,"09:25:00"]
[null,null,null,null,null,null,null,null,null,null,null,null,null,null,null,null,null,null,null,null,null,null,null,null,null,null,null,null,null,null,null,null,"09:30:00"]
[null,null,null,null,null,null,null,null,null,null,null,null,null,null,null,null,null,null,null,null,null,null,null,null,null,null,null,null,null,null,null,null,"09:35:00"]
[null,null,null,null,null,null,null,null,null,null,null,null,null,null,null,null,null,null,null,null,null,null,null,null,null,null,null,null,null,null,null,null,"09:40:00"]
[null,null,null,null,null,null,null,null,null,null,null,null,null,null,null,null,null,null,null,null,null,null,null,null,null,null,null,null,null,null,null,null,"09:45:00"]
[null,null,null,null,null,null,null,null,null,null,null,null,null,null,null,null,null,null,null,null,null,null,null,null,null,null,null,null,null,null,null,null,"09:50:00"]
[null,null,null,null,null,null,null,null,null,null,null,null,null,null,null,null,null,null,null,null,null,null,null,null,null,null,null,null,null,null,null,null,"09:55:00"]
[null,null,null,null,null,null,null,null,null,null,null,null,null,null,null,null,null,null,null,null,null,null,null,null,null,null,null,null,null,null,null,null,"10:00:00"]
[null,null,null,null,null,null,null,null,null,null,null,null,null,null,null,null,null,null,null,null,null,null,null,null,null,null,null,null,null,null,null,null,"10:05:00"]
[null,null,null,null,null,null,null,null,null,null,null,null,null,null,null,null,null,null,null,null,null,null,null,null,null,null,null,null,null,null,null,null,"10:10:00"]
[null,null,null,null,null,null,null,null,null,null,null,null,null,null,null,null,null,null,null,null,null,null,null,null,null,null,null,null,null,null,null,null,"10:15:00"]
[null,null,null,null,null,null,null,null,null,null,null,null,null,null,null,null,null,null,null,null,null,null,null,null,null,null,null,null,null,null,null,null,"10:20:00"]
[null,null,null,null,null,null,null,null,null,null,null,null,null,null,null,null,null,null,null,null,null,null,null,null,null,null,null,null,null,null,null,null,"10:25:00"]
[null,null,null,null,null,null,null,null,null,null,null,null,null,null,null,null,null,null,null,null,null,null,null,null,null,null,null,null,null,null,null,null,"10:30:00"]
[null,null,null,null,null,null,null,null,null,null,null,null,null,null,null,null,null,null,null,null,null,null,null,null,null,null,null,null,null,null,null,null,"10:35:00"]
[null,null,null,null,null,null,null,null,null,null,null,null,null,null,null,null,null,null,null,null,null,null,null,null,null,null,null,null,null,null,null,null,"10:40:00"]
[null,null,null,null,null,null,null,null,null,null,null,null,null,null,null,null,null,null,null,null,null,null,null,null,null,null,null,null,null,null,null,null,"10:45:00"]
[null,null,null,null,null,null,null,null,null,null,null,null,null,null,null,null,null,null,null,null,null,null,null,null,null,null,null,null,null,null,null,null,"10:50:00"]
[null,null,null,null,null,null,null,null,null,null,null,null,null,null,null,null,null,null,null,null,null,null,null,null,null,null,null,null,null,null,null,null,"10:55:00"]
[null,null,null,null,null,null,null,null,null,null,null,null,null,null,null,null,null,null,null,null,null,null,null,null,null,null,null,null,null,null,null,null,"11:00:00"]
[null,null,null,null,null,null,null,null,null,null,null,null,null,null,null,null,null,null,null,null,null,null,null,null,null,null,null,null,null,null,null,null,"11:05:00"]
[null,null,null,null,null,null,null,null,null,null,null,null,null,null,null,null,null,null,null,null,null,null,null,null,null,null,null,null,null,null,null,null,"11:10:00"]
[null,null,null,null,null,null,null,null,null,null,null,null,null,null,null,null,null,null,null,null,null,null,null,null,null,null,null,null,null,null,null,null,"11:15:00"]
[null,null,null,null,null,null,null,null,null,null,null,null,null,null,null,null,null,null,null,null,null,null,null,null,null,null,null,null,null,null,null,null,"11:20:00"]
[null,null,null,null,null,null,null,null,null,null,null,null,null,null,null,null,null,null,null,null,null,null,null,null,null,null,null,null,null,null,null,null,"11:25:00"]
[null,null,null,null,null,null,null,null,null,null,null,null,null,null,null,null,null,null,null,null,null,null,null,null,null,null,null,null,null,null,null,null,"11:30:00"]
[null,null,null,null,null,null,null,null,null,null,null,null,null,null,null,null,null,null,null,null,null,null,null,null,null,null,null,null,null,null,null,null,"11:35:00"]
[null,null,null,null,null,null,null,null,null,null,null,null,null,null,null,null,null,null,null,null,null,null,null,null,null,null,null,null,null,null,null,null,"11:40:00"]
[null,null,null,null,null,null,null,null,null,null,null,null,null,null,null,null,null,null,null,null,null,null,null,null,null,null,null,null,null,null,null,null,"11:45:00"]
[null,null,null,null,null,null,null,null,null,null,null,null,null,null,null,null,null,null,null,null,null,null,null,null,null,null,null,null,null,null,null,null,"11:50:00"]
[null,null,null,null,null,null,null,null,null,null,null,null,null,null,null,null,null,null,null,null,null,null,null,null,null,null,null,null,null,null,null,null,"11:55:00"]
[null,null,null,null,null,null,null,null,null,null,null,null,null,null,null,null,null,null,null,null,null,null,null,null,null,null,null,null,null,null,null,null,"12:00:00"]
[null,null,null,null,null,null,null,null,null,null,null,null,null,null,null,null,null,null,null,null,null,null,null,null,null,null,null,null,null,null,null,null,"12:05:00"]
[null,null,null,null,null,null,null,null,null,null,null,null,null,null,null,null,null,null,null,null,null,null,null,null,null,null,null,null,null,null,null,null,"12:10:00"]
[null,null,null,null,null,null,null,null,null,null,null,null,null,null,null,null,null,null,null,null,null,null,null,null,null,null,null,null,null,null,null,null,"12:15:00"]
[null,null,null,null,null,null,null,null,null,null,null,null,null,null,null,null,null,null,null,null,null,null,null,null,null,null,null,null,null,null,null,null,"12:20:00"]
[null,null,null,null,null,null,null,null,null,null,null,null,null,null,null,null,null,null,null,null,null,null,null,null,null,null,null,null,null,null,null,null,"12:25:00"]
[null,null,null,null,null,null,null,null,null,null,null,null,null,null,null,null,null,null,null,null,null,null,null,null,null,null,null,null,null,null,null,null,"12:30:00"]
[null,null,null,null,null,null,null,null,null,null,null,null,null,null,null,null,null,null,null,null,null,null,null,null,null,null,null,null,null,null,null,null,"12:35:00"]
[null,null,null,null,null,null,null,null,null,null,null,null,null,null,null,null,null,null,null,null,null,null,null,null,null,null,null,null,null,null,null,null,"12:40:00"]
[null,null,null,null,null,null,null,null,null,null,null,null,null,null,null,null,null,null,null,null,null,null,null,null,null,null,null,null,null,null,null,null,"12:45:00"]
[null,null,null,null,null,null,null,null,null,null,null,null,null,null,null,null,null,null,null,null,null,null,null,null,null,null,null,null,null,null,null,null,"12:50:00"]
[null,null,null,null,null,null,null,null,null,null,null,null,null,null,null,null,null,null,null,null,null,null,null,null,null,null,null,null,null,null,null,null,"12:55:00"]
[null,null,null,null,null,null,null,null,null,null,null,null,null,null,null,null,null,null,null,null,null,null,null,null,null,null,null,null,null,null,null,null,"13:00:00"]
[null,null,null,null,null,null,null,null,null,null,null,null,null,null,null,null,null,null,null,null,null,null,null,null,null,null,null,null,null,null,null,null,"13:05:00"]
[null,null,null,null,null,null,null,null,null,null,null,null,null,null,null,null,null,null,null,null,null,null,null,null,null,null,null,null,null,null,null,null,"13:10:00"]
[null,null,null,null,null,null,null,null,null,null,null,null,null,null,null,null,null,null,null,null,null,null,null,null,null,null,null,null,null,null,null,null,"13:15:00"]
[null,null,null,null,null,null,null,null,null,null,null,null,null,null,null,null,null,null,null,null,null,null,null,null,null,null,null,null,null,null,null,null,"13:20:00"]
[null,null,null,null,null,null,null,null,null,null,null,null,null,null,null,null,null,null,null,null,null,null,null,null,null,null,null,null,null,null,null,null,"13:25:00"]
[null,null,null,null,null,null,null,null,null,null,null,null,null,null,null,null,null,null,null,null,null,null,null,null,null,null,null,null,null,null,null,null,"13:30:00"]
[null,null,null,null,null,null,null,null,null,null,null,null,null,null,null,null,null,null,null,null,null,null,null,null,null,null,null,null,null,null,null,null,"13:35:00"]
[null,null,null,null,null,null,null,null,null,null,null,null,null,null,null,null,null,null,null,null,null,null,null,null,null,null,null,null,null,null,null,null,"13:40:00"]
[null,null,null,null,null,null,null,null,null,null,null,null,null,null,null,null,null,null,null,null,null,null,null,null,null,null,null,null,null,null,null,null,"13:45:00"]
[null,null,null,null,null,null,null,null,null,null,null,null,null,null,null,null,null,null,null,null,null,null,null,null,null,null,null,null,null,null,null,null,"13:50:00"]
[null,null,null,null,null,null,null,null,null,null,null,null,null,null,null,null,null,null,null,null,null,null,null,null,null,null,null,null,null,null,null,null,"13:55:00"]
[null,null,null,null,null,null,null,null,null,null,null,null,null,null,null,null,null,null,null,null,null,null,null,null,null,null,null,null,null,null,null,null,"14:00:00"]
[null,null,null,null,null,null,null,null,null,null,null,null,null,null,null,null,null,null,null,null,null,null,null,null,null,null,null,null,null,null,null,null,"14:05:00"]
[null,null,null,null,null,null,null,null,null,null,null,null,null,null,null,null,null,null,null,null,null,null,null,null,null,null,null,null,null,null,null,null,"14:10:00"]
[null,null,null,null,null,null,null,null,null,null,null,null,null,null,null,null,null,null,null,null,null,null,null,null,null,null,null,null,null,null,null,null,"14:15:00"]
[null,null,null,null,null,null,null,null,null,null,null,null,null,null,null,null,null,null,null,null,null,null,null,null,null,null,null,null,null,null,null,null,"14:20:00"]
[null,null,null,null,null,null,null,null,null,null,null,null,null,null,null,null,null,null,null,null,null,null,null,null,null,null,null,null,null,null,null,null,"14:25:00"]
[null,null,null,null,null,null,null,null,null,null,null,null,null,null,null,null,null,null,null,null,null,null,null,null,null,null,null,null,null,null,null,null,"14:30:00"]
[null,null,null,null,null,null,null,null,null,null,null,null,null,null,null,null,null,null,null,null,null,null,null,null,null,null,null,null,null,null,null,null,"14:35:00"]
[null,null,null,null,null,null,null,null,null,null,null,null,null,null,null,null,null,null,null,null,null,null,null,null,null,null,null,null,null,null,null,null,"14:40:00"]
[null,null,null,null,null,null,null,null,null,null,null,null,null,null,null,null,null,null,null,null,null,null,null,null,null,null,null,null,null,null,null,null,"14:45:00"]
[null,null,null,null,null,null,null,null,null,null,null,null,null,null,null,null,null,null,null,null,null,null,null,null,null,null,null,null,null,null,null,null,"14:50:00"]
[null,null,null,null,null,null,null,null,null,null,null,null,null,null,null,null,null,null,null,null,null,null,null,null,null,null,null,null,null,null,null,null,"14:55:00"]
[null,null,null,null,null,null,null,null,null,null,null,null,null,null,null,null,null,null,null,null,null,null,null,null,null,null,null,null,null,null,null,null,"15:00:00"]
[null,null,null,null,null,null,null,null,null,null,null,null,null,null,null,null,null,null,null,null,null,null,null,null,null,null,null,null,null,null,null,null,"15:05:00"]
[null,null,null,null,null,null,null,null,null,null,null,null,null,null,null,null,null,null,null,null,null,null,null,null,null,null,null,null,null,null,null,null,"15:10:00"]
[null,null,null,null,null,null,null,null,null,null,null,null,null,null,null,null,null,null,null,null,null,null,null,null,null,null,null,null,null,null,null,null,"15:15:00"]
[null,null,null,null,null,null,null,null,null,null,null,null,null,null,null,null,null,null,null,null,null,null,null,null,null,null,null,null,null,null,null,null,"15:20:00"]
[null,null,null,null,null,null,null,null,null,null,null,null,null,null,null,null,null,null,null,null,null,null,null,null,null,null,null,null,null,null,null,null,"15:25:00"]
[null,null,null,null,null,null,null,null,null,null,null,null,null,null,null,null,null,null,null,null,null,null,null,null,null,null,null,null,null,null,null,null,"15:30:00"]
[null,null,null,null,null,null,null,null,null,null,null,null,null,null,null,null,null,null,null,null,null,null,null,null,null,null,null,null,null,null,null,null,"15:35:00"]
[null,null,null,null,null,null,null,null,null,null,null,null,null,null,null,null,null,null,null,null,null,null,null,null,null,null,null,null,null,null,null,null,"15:40:00"]
[null,null,null,null,null,null,null,null,null,null,null,null,null,null,null,null,null,null,null,null,null,null,null,null,null,null,null,null,null,null,null,null,"15:45:00"]
[null,null,null,null,null,null,null,null,null,null,null,null,null,null,null,null,null,null,null,null,null,null,null,null,null,null,null,null,null,null,null,null,"15:50:00"]
[null,null,null,null,null,null,null,null,null,null,null,null,null,null,null,null,null,null,null,null,null,null,null,null,null,null,null,null,null,null,null,null,"15:55:00"]
[null,null,null,null,null,null,null,null,null,null,null,null,null,null,null,null,null,null,null,null,null,null,null,null,null,null,null,null,null,null,null,null,"16:00:00"]
[null,null,null,null,null,null,null,null,null,null,null,null,null,null,null,null,null,null,null,null,null,null,null,null,null,null,null,null,null,null,null,null,"16:05:00"]
[null,null,null,null,null,null,null,null,null,null,null,null,null,null,null,null,null,null,null,null,null,null,null,null,null,null,null,null,null,null,null,null,"16:10:00"]
[null,null,null,null,null,null,null,null,null,null,null,null,null,null,null,null,null,null,null,null,null,null,null,null,null,null,null,null,null,null,null,null,"16:15:00"]
[null,null,null,null,null,null,null,null,null,null,null,null,null,null,null,null,null,null,null,null,null,null,null,null,null,null,null,null,null,null,null,null,"16:20:00"]
[null,null,null,null,null,null,null,null,null,null,null,null,null,null,null,null,null,null,null,null,null,null,null,null,null,null,null,null,null,null,null,null,"16:25:00"]
[null,null,null,null,null,null,null,null,null,null,null,null,null,null,null,null,null,null,null,null,null,null,null,null,null,null,null,null,null,null,null,null,"16:30:00"]
[null,null,null,null,null,null,null,null,null,null,null,null,null,null,null,null,null,null,null,null,null,null,null,null,null,null,null,null,null,null,null,null,"16:35:00"]
[null,null,null,null,null,null,null,null,null,null,null,null,null,null,null,null,null,null,null,null,null,null,null,null,null,null,null,null,null,null,null,null,"16:40:00"]
[null,null,null,null,null,null,null,null,null,null,null,null,null,null,null,null,null,null,null,null,null,null,null,null,null,null,null,null,null,null,null,null,"16:45:00"]
[null,null,null,null,null,null,null,null,null,null,null,null,null,null,null,null,null,null,null,null,null,null,null,null,null,null,null,null,null,null,null,null,"16:50:00"]
[null,null,null,null,null,null,null,null,null,null,null,null,null,null,null,null,null,null,null,null,null,null,null,null,null,null,null,null,null,null,null,null,"16:55:00"]
[null,null,null,null,null,null,null,null,null,null,null,null,null,null,null,null,null,null,null,null,null,null,null,null,null,null,null,null,null,null,null,null,"17:00:00"]
[null,null,null,null,null,null,null,null,null,null,null,null,null,null,null,null,null,null,null,null,null,null,null,null,null,null,null,null,null,null,null,null,"17:05:00"]
[null,null,null,null,null,null,null,null,null,null,null,null,null,null,null,null,null,null,null,null,null,null,null,null,null,null,null,null,null,null,null,null,"17:10:00"]
[null,null,null,null,null,null,null,null,null,null,null,null,null,null,null,null,null,null,null,null,null,null,null,null,null,null,null,null,null,null,null,null,"17:15:00"]
[null,null,null,null,null,null,null,null,null,null,null,null,null,null,null,null,null,null,null,null,null,null,null,null,null,null,null,null,null,null,null,null,"17:20:00"]
[null,null,null,null,null,null,null,null,null,null,null,null,null,null,null,null,null,null,null,null,null,null,null,null,null,null,null,null,null,null,null,null,"17:25:00"]
[null,null,null,null,null,null,null,null,null,null,null,null,null,null,null,null,null,null,null,null,null,null,null,null,null,null,null,null,null,null,null,null,"17:30:00"]
[null,null,null,null,null,null,null,null,null,null,null,null,null,null,null,null,null,null,null,null,null,null,null,null,null,null,null,null,null,null,null,null,"17:35:00"]
[null,null,null,null,null,null,null,null,null,null,null,null,null,null,null,null,null,null,null,null,null,null,null,null,null,null,null,null,null,null,null,null,"17:40:00"]
[null,null,null,null,null,null,null,null,null,null,null,null,null,null,null,null,null,null,null,null,null,null,null,null,null,null,null,null,null,null,null,null,"17:45:00"]
[null,null,null,null,null,null,null,null,null,null,null,null,null,null,null,null,null,null,null,null,null,null,null,null,null,null,null,null,null,null,null,null,"17:50:00"]
[null,null,null,null,null,null,null,null,null,null,null,null,null,null,null,null,null,null,null,null,null,null,null,null,null,null,null,null,null,null,null,null,"17:55:00"]
[null,null,null,null,null,null,null,null,null,null,null,null,null,null,null,null,null,null,null,null,null,null,null,null,null,null,null,null,null,null,null,null,"18:00:00"]
[null,null,null,null,null,null,null,null,null,null,null,null,null,null,null,null,null,null,null,null,null,null,null,null,null,null,null,null,null,null,null,null,"18:05:00"]
[null,null,null,null,null,null,null,null,null,null,null,null,null,null,null,null,null,null,null,null,null,null,null,null,null,null,null,null,null,null,null,null,"18:10:00"]
[null,null,null,null,null,null,null,null,null,null,null,null,null,null,null,null,null,null,null,null,null,null,null,null,null,null,null,null,null,null,null,null,"18:15:00"]
[null,null,null,null,null,null,null,null,null,null,null,null,null,null,null,null,null,null,null,null,null,null,null,null,null,null,null,null,null,null,null,null,"18:20:00"]
[null,null,null,null,null,null,null,null,null,null,null,null,null,null,null,null,null,null,null,null,null,null,null,null,null,null,null,null,null,null,null,null,"18:25:00"]
[null,null,null,null,null,null,null,null,null,null,null,null,null,null,null,null,null,null,null,null,null,null,null,null,null,null,null,null,null,null,null,null,"18:30:00"]
[null,null,null,null,null,null,null,null,null,null,null,null,null,null,null,null,null,null,null,null,null,null,null,null,null,null,null,null,null,null,null,null,"18:35:00"]
[null,null,null,null,null,null,null,null,null,null,null,null,null,null,null,null,null,null,null,null,null,null,null,null,null,null,null,null,null,null,null,null,"18:40:00"]
[null,null,null,null,null,null,null,null,null,null,null,null,null,null,null,null,null,null,null,null,null,null,null,null,null,null,null,null,null,null,null,null,"18:45:00"]
[null,null,null,null,null,null,null,null,null,null,null,null,null,null,null,null,null,null,null,null,null,null,null,null,null,null,null,null,null,null,null,null,"18:50:00"]
[null,null,null,null,null,null,null,null,null,null,null,null,null,null,null,null,null,null,null,null,null,null,null,null,null,null,null,null,null,null,null,null,"19:00:00"]

{"sheet":"シート2-⑦","index":9,"n_rows":150,"n_cols":41,"rows_kept":150,"cut":false,"hidden":false,"merged":[[20,2,20,14],[21,2,21,14],[22,2,22,14],[23,2,23,14],[24,2,24,14],[24,15,24,17],[24,18,24,20],[24,21,24,23],[23,15,23,17],[23,18,23,20],[23,21,23,23],[22,15,22,17],[22,18,22,20],[22,21,22,23],[15,38,15,39],[15,24,16,28],[17,36,17,37],[17,38,17,39],[17,24,17,28],[21,18,21,20],[21,21,21,23],[20,15,20,17],[20,18,20,20],[20,21,20,23],[21,15,21,17],[15,33,16,33],[15,34,15,35],[15,36,15,37],[17,34,17,35],[28,24,28,28],[22,24,22,28],[23,24,23,28],[20,24,20,28],[21,24,21,28],[18,24,18,28],[19,24,19,28],[24,24,24,28],[30,1,30,28],[31,1,31,28],[27,18,27,20],[27,21,27,23],[27,2,27,14],[28,2,28,14],[27,15,27,17],[27,24,27,28],[28,15,28,17],[28,18,28,20],[28,21,28,23],[19,2,19,14],[15,21,16,23],[15,1,16,14],[15,15,16,17],[17,1,17,14],[17,15,17,17],[17,18,17,20],[17,21,17,23],[19,15,19,17],[18,21,18,23],[19,18,19,20],[19,21,19,23],[18,2,18,14],[2,1,2,28],[5,1,5,2],[5,3,5,28],[6,1,6,2],[6,3,6,28],[9,9,10,10],[18,15,18,17],[18,18,18,20],[15,18,16,20],[9,12,9,15],[9,17,9,20],[10,17,10,20],[25,21,25,23],[25,24,25,28],[9,24,10,28],[12,1,13,2],[12,4,12,20],[12,21,13,23],[10,4,10,8],[10,12,10,15],[12,24,13,28],[13,4,13,20],[9,21,10,23],[9,1,10,2],[9,4,9,8],[25,2,25,14],[25,15,25,17],[25,18,25,20],[26,2,26,14],[26,15,26,17],[26,18,26,20],[26,21,26,23],[26,24,26,28]]}
[null,"研修記録シート2（評価）"]
[]
[null,"この振り返りシートは、科目の受講前後で各自の理解度を把握し、受講中の学習効果の向上と、受講後の学習のポイントを焦点化し、継続的な資質向上に役立てるものです。本科目を学習した時点で感じた事を書き留め、今後の学習方針や課題への取り組みを考える際に見返してみましょう。"]
[]
[]
[null,"研修名：",null,"主任研修",null,null,null,null,null,null,null,null,null,null,null,null,null,null,null,null,null,null,null,null,null,null,null,null,null,null,null,null,null,null,null,null,null,null,null,null,"このボタンをクリックするとTOPページへ移動します。"]
[null,"課目名：",null,"⑦地域における生活の継続を支える医療との連携及び多職種協働の実現"]
[]
[]
[null,"受講日",null,1,"2024-11-26",null,null,null,null,"時間",null,1,"09:30:00",null,null,null,"～","16:30:00",null,null,null,"氏名",null,null,{"$f":"IF(ISBLANK(シート1!N7),\"\",シート1!N7)","v":""}]
[null,null,null,2,null,null,null,null,null,null,null,2,null,null,null,null,"～"]
[]
[null,"会場",null,1,"オンライン研修（Zoom）",null,null,null,null,null,null,null,null,null,null,null,null,null,null,null,null,"番号",null,null,{"$f":"IF(ISBLANK(シート1!N9),\"\",シート1!N9)","v":9999}]
[null,null,null,2]
[]
[null,"項　　目 ",null,null,null,null,null,null,null,null,null,null,null,null,null,"受講前 ",null,null,"受講\n直後",null,null,"実践\n評価\n(3ヶ月後）",null,null,"備　　考 ",null,null,null,null,null,null,"リスト（課程区分）","リスト（時間）",null,"受講前",null,"受講後 ",null,"実践評価"]
[null,null,null,null,null,null,null,null,null,null,null,null,null,null,null,null,null,null,null,null,null,null,null,null,null,null,null,null,null,null,null,null,"リストから選択",null,"理解度","習得度","理解度","習得度","理解度","習得度"]
[null,"記入日（入力日）",null,null,null,null,null,null,null,null,null,null,null,null,null,null,null,null,null,null,null,null,null,null,null,null,null,null,null,null,null,"リスト（課程区分）","リスト（時間）",null,"受講前",null,"受講後 ",null,"実践評価"]
[null,"① ","医療職をはじめとした多職種との連携・協働の仕組みづくりの重要性について説明できる。",null,null,null,null,null,null,null,null,null,null,null,null,null,null,null,null,null,null,null,null,null,null,null,null,null,null,null,null,"Ⅰ","08:00:00",4,"4．理解している ","-","4．非常に理解が深まった ","4．習得できた ","4．非常に理解が深まった","4．習得度が上がった "]
[null,"② ","多職種協働において関係する他法他制度（難病施策、高齢者虐待防止関連施策、障害者施策、生活困窮者施策、仕事と介護の両立支援施策、ヤングケアラー支援関連施策、重層的支援体制整備事業関連施策）の概要について説明できる。",null,null,null,null,null,null,null,null,null,null,null,null,null,null,null,null,null,null,null,null,null,null,null,null,null,null,null,null,"Ⅱ","08:05:00",3,"3．概ね理解している ","-","3．理解が深まった ","3．概ね習得できた ","3．理解が深まった","3．まあまあ習得度が上がった "]
[null,"③ ","他法他制度を活用する際の関係機関等との連携・協働にあたっての留意点について説明できる。",null,null,null,null,null,null,null,null,null,null,null,null,null,null,null,null,null,null,null,null,null,null,null,null,null,null,null,null,null,"08:10:00",2,"2．あまり理解していない ","-","2．あまり理解が進まなかった ","2．あまり習得できていない ","2．あまり理解度は変わらない ","2．習得度は変わらない "]
[null,"④ ","医療職との協働の留意点、在宅医療を担う機関の把握と連携の意義や課題について説明できる。",null,null,null,null,null,null,null,null,null,null,null,null,null,null,null,null,null,null,null,null,null,null,null,null,null,null,null,null,null,"08:15:00",1,"1．全く理解していない ","-","1．理解が進まなかった ","1．習得できていない ","1．理解度は変わらない。 ","1．理解度が深まり、習得度が後退した "]
[null,"⑤","地域ケア会議等の場の活用や日常的な実践の中での多職種協働の具体的な進め方について説明できる。",null,null,null,null,null,null,null,null,null,null,null,null,null,null,null,null,null,null,null,null,null,null,null,null,null,null,null,null,null,"08:20:00"]
[null,"⑥","行政との連携・協働の留意点について説明できる。",null,null,null,null,null,null,null,null,null,null,null,null,null,null,null,null,null,null,null,null,null,null,null,null,null,null,null,null,null,"08:25:00"]
[null,"⑦","日常的な実践における医療職をはじめとした多職種協働に関する介護支援専門員への指導・支援を実施できる。",null,null,null,null,null,null,null,null,null,null,null,null,null,null,null,null,null,null,null,null,null,null,null,null,null,null,null,null,null,"08:30:00"]
[null,null,null,null,null,null,null,null,null,null,null,null,null,null,null,null,null,null,null,null,null,null,null,null,null,null,null,null,null,null,null,null,"08:35:00"]
[null,null,null,null,null,null,null,null,null,null,null,null,null,null,null,null,null,null,null,null,null,null,null,null,null,null,null,null,null,null,null,null,"08:40:00"]
[null,null,null,null,null,null,null,null,null,null,null,null,null,null,null,null,null,null,null,null,null,null,null,null,null,null,null,null,null,null,null,null,"08:45:00"]
[null,null,null,null,null,null,null,null,null,null,null,null,null,null,null,null,null,null,null,null,null,null,null,null,null,null,null,null,null,null,null,null,"08:50:00"]
[null,null,null,null,null,null,null,null,null,null,null,null,null,null,null,null,null,null,null,null,null,null,null,null,null,null,null,null,null,null,null,null,"08:55:00"]
[null,"　※研修は自己評価とし、4段階評価で、数字が大きいほど高評価、数字が小さいほど低評価として記入してください。",null,null,null,null,null,null,null,null,null,null,null,null,null,null,null,null,null,null,null,null,null,null,null,null,null,null,null,null,null,null,"09:00:00"]
[null,"　　【選択肢】　　　4.　できる　　　　　3.　概ねできる　　　　　2.　ほとんどできない　　　　1.　全くできない",null,null,null,null,null,null,null,null,null,null,null,null,null,null,null,null,null,null,null,null,null,null,null,null,null,null,null,null,null,null,"09:05:00"]
[null,null,null,null,null,null,null,null,null,null,null,null,null,null,null,null,null,null,null,null,null,null,null,null,null,null,null,null,null,null,null,null,"09:10:00"]
[null,null,null,null,null,null,null,null,null,null,null,null,null,null,null,null,null,null,null,null,null,null,null,null,null,null,null,null,null,null,null,null,"09:15:00"]
[null,null,null,null,null,null,null,null,null,null,null,null,null,null,null,null,null,null,null,null,null,null,null,null,null,null,null,null,null,null,null,null,"09:20:00"]
[null,null,null,null,null,null,null,null,null,null,null,null,null,null,null,null,null,null,null,null,null,null,null,null,null,null,null,null,null,null,null,null,"09:25:00"]
[null,null,null,null,null,null,null,null,null,null,null,null,null,null,null,null,null,null,null,null,null,null,null,null,null,null,null,null,null,null,null,null,"09:30:00"]
[null,null,null,null,null,null,null,null,null,null,null,null,null,null,null,null,null,null,null,null,null,null,null,null,null,null,null,null,null,null,null,null,"09:35:00"]
[null,null,null,null,null,null,null,null,null,null,null,null,null,null,null,null,null,null,null,null,null,null,null,null,null,null,null,null,null,null,null,null,"09:40:00"]
[null,null,null,null,null,null,null,null,null,null,null,null,null,null,null,null,null,null,null,null,null,null,null,null,null,null,null,null,null,null,null,null,"09:45:00"]
[null,null,null,null,null,null,null,null,null,null,null,null,null,null,null,null,null,null,null,null,null,null,null,null,null,null,null,null,null,null,null,null,"09:50:00"]
[null,null,null,null,null,null,null,null,null,null,null,null,null,null,null,null,null,null,null,null,null,null,null,null,null,null,null,null,null,null,null,null,"09:55:00"]
[null,null,null,null,null,null,null,null,null,null,null,null,null,null,null,null,null,null,null,null,null,null,null,null,null,null,null,null,null,null,null,null,"10:00:00"]
[null,null,null,null,null,null,null,null,null,null,null,null,null,null,null,null,null,null,null,null,null,null,null,null,null,null,null,null,null,null,null,null,"10:05:00"]
[null,null,null,null,null,null,null,null,null,null,null,null,null,null,null,null,null,null,null,null,null,null,null,null,null,null,null,null,null,null,null,null,"10:10:00"]
[null,null,null,null,null,null,null,null,null,null,null,null,null,null,null,null,null,null,null,null,null,null,null,null,null,null,null,null,null,null,null,null,"10:15:00"]
[null,null,null,null,null,null,null,null,null,null,null,null,null,null,null,null,null,null,null,null,null,null,null,null,null,null,null,null,null,null,null,null,"10:20:00"]
[null,null,null,null,null,null,null,null,null,null,null,null,null,null,null,null,null,null,null,null,null,null,null,null,null,null,null,null,null,null,null,null,"10:25:00"]
[null,null,null,null,null,null,null,null,null,null,null,null,null,null,null,null,null,null,null,null,null,null,null,null,null,null,null,null,null,null,null,null,"10:30:00"]
[null,null,null,null,null,null,null,null,null,null,null,null,null,null,null,null,null,null,null,null,null,null,null,null,null,null,null,null,null,null,null,null,"10:35:00"]
[null,null,null,null,null,null,null,null,null,null,null,null,null,null,null,null,null,null,null,null,null,null,null,null,null,null,null,null,null,null,null,null,"10:40:00"]
[null,null,null,null,null,null,null,null,null,null,null,null,null,null,null,null,null,null,null,null,null,null,null,null,null,null,null,null,null,null,null,null,"10:45:00"]
[null,null,null,null,null,null,null,null,null,null,null,null,null,null,null,null,null,null,null,null,null,null,null,null,null,null,null,null,null,null,null,null,"10:50:00"]
[null,null,null,null,null,null,null,null,null,null,null,null,null,null,null,null,null,null,null,null,null,null,null,null,null,null,null,null,null,null,null,null,"10:55:00"]
[null,null,null,null,null,null,null,null,null,null,null,null,null,null,null,null,null,null,null,null,null,null,null,null,null,null,null,null,null,null,null,null,"11:00:00"]
[null,null,null,null,null,null,null,null,null,null,null,null,null,null,null,null,null,null,null,null,null,null,null,null,null,null,null,null,null,null,null,null,"11:05:00"]
[null,null,null,null,null,null,null,null,null,null,null,null,null,null,null,null,null,null,null,null,null,null,null,null,null,null,null,null,null,null,null,null,"11:10:00"]
[null,null,null,null,null,null,null,null,null,null,null,null,null,null,null,null,null,null,null,null,null,null,null,null,null,null,null,null,null,null,null,null,"11:15:00"]
[null,null,null,null,null,null,null,null,null,null,null,null,null,null,null,null,null,null,null,null,null,null,null,null,null,null,null,null,null,null,null,null,"11:20:00"]
[null,null,null,null,null,null,null,null,null,null,null,null,null,null,null,null,null,null,null,null,null,null,null,null,null,null,null,null,null,null,null,null,"11:25:00"]
[null,null,null,null,null,null,null,null,null,null,null,null,null,null,null,null,null,null,null,null,null,null,null,null,null,null,null,null,null,null,null,null,"11:30:00"]
[null,null,null,null,null,null,null,null,null,null,null,null,null,null,null,null,null,null,null,null,null,null,null,null,null,null,null,null,null,null,null,null,"11:35:00"]
[null,null,null,null,null,null,null,null,null,null,null,null,null,null,null,null,null,null,null,null,null,null,null,null,null,null,null,null,null,null,null,null,"11:40:00"]
[null,null,null,null,null,null,null,null,null,null,null,null,null,null,null,null,null,null,null,null,null,null,null,null,null,null,null,null,null,null,null,null,"11:45:00"]
[null,null,null,null,null,null,null,null,null,null,null,null,null,null,null,null,null,null,null,null,null,null,null,null,null,null,null,null,null,null,null,null,"11:50:00"]
[null,null,null,null,null,null,null,null,null,null,null,null,null,null,null,null,null,null,null,null,null,null,null,null,null,null,null,null,null,null,null,null,"11:55:00"]
[null,null,null,null,null,null,null,null,null,null,null,null,null,null,null,null,null,null,null,null,null,null,null,null,null,null,null,null,null,null,null,null,"12:00:00"]
[null,null,null,null,null,null,null,null,null,null,null,null,null,null,null,null,null,null,null,null,null,null,null,null,null,null,null,null,null,null,null,null,"12:05:00"]
[null,null,null,null,null,null,null,null,null,null,null,null,null,null,null,null,null,null,null,null,null,null,null,null,null,null,null,null,null,null,null,null,"12:10:00"]
[null,null,null,null,null,null,null,null,null,null,null,null,null,null,null,null,null,null,null,null,null,null,null,null,null,null,null,null,null,null,null,null,"12:15:00"]
[null,null,null,null,null,null,null,null,null,null,null,null,null,null,null,null,null,null,null,null,null,null,null,null,null,null,null,null,null,null,null,null,"12:20:00"]
[null,null,null,null,null,null,null,null,null,null,null,null,null,null,null,null,null,null,null,null,null,null,null,null,null,null,null,null,null,null,null,null,"12:25:00"]
[null,null,null,null,null,null,null,null,null,null,null,null,null,null,null,null,null,null,null,null,null,null,null,null,null,null,null,null,null,null,null,null,"12:30:00"]
[null,null,null,null,null,null,null,null,null,null,null,null,null,null,null,null,null,null,null,null,null,null,null,null,null,null,null,null,null,null,null,null,"12:35:00"]
[null,null,null,null,null,null,null,null,null,null,null,null,null,null,null,null,null,null,null,null,null,null,null,null,null,null,null,null,null,null,null,null,"12:40:00"]
[null,null,null,null,null,null,null,null,null,null,null,null,null,null,null,null,null,null,null,null,null,null,null,null,null,null,null,null,null,null,null,null,"12:45:00"]
[null,null,null,null,null,null,null,null,null,null,null,null,null,null,null,null,null,null,null,null,null,null,null,null,null,null,null,null,null,null,null,null,"12:50:00"]
[null,null,null,null,null,null,null,null,null,null,null,null,null,null,null,null,null,null,null,null,null,null,null,null,null,null,null,null,null,null,null,null,"12:55:00"]
[null,null,null,null,null,null,null,null,null,null,null,null,null,null,null,null,null,null,null,null,null,null,null,null,null,null,null,null,null,null,null,null,"13:00:00"]
[null,null,null,null,null,null,null,null,null,null,null,null,null,null,null,null,null,null,null,null,null,null,null,null,null,null,null,null,null,null,null,null,"13:05:00"]
[null,null,null,null,null,null,null,null,null,null,null,null,null,null,null,null,null,null,null,null,null,null,null,null,null,null,null,null,null,null,null,null,"13:10:00"]
[null,null,null,null,null,null,null,null,null,null,null,null,null,null,null,null,null,null,null,null,null,null,null,null,null,null,null,null,null,null,null,null,"13:15:00"]
[null,null,null,null,null,null,null,null,null,null,null,null,null,null,null,null,null,null,null,null,null,null,null,null,null,null,null,null,null,null,null,null,"13:20:00"]
[null,null,null,null,null,null,null,null,null,null,null,null,null,null,null,null,null,null,null,null,null,null,null,null,null,null,null,null,null,null,null,null,"13:25:00"]
[null,null,null,null,null,null,null,null,null,null,null,null,null,null,null,null,null,null,null,null,null,null,null,null,null,null,null,null,null,null,null,null,"13:30:00"]
[null,null,null,null,null,null,null,null,null,null,null,null,null,null,null,null,null,null,null,null,null,null,null,null,null,null,null,null,null,null,null,null,"13:35:00"]
[null,null,null,null,null,null,null,null,null,null,null,null,null,null,null,null,null,null,null,null,null,null,null,null,null,null,null,null,null,null,null,null,"13:40:00"]
[null,null,null,null,null,null,null,null,null,null,null,null,null,null,null,null,null,null,null,null,null,null,null,null,null,null,null,null,null,null,null,null,"13:45:00"]
[null,null,null,null,null,null,null,null,null,null,null,null,null,null,null,null,null,null,null,null,null,null,null,null,null,null,null,null,null,null,null,null,"13:50:00"]
[null,null,null,null,null,null,null,null,null,null,null,null,null,null,null,null,null,null,null,null,null,null,null,null,null,null,null,null,null,null,null,null,"13:55:00"]
[null,null,null,null,null,null,null,null,null,null,null,null,null,null,null,null,null,null,null,null,null,null,null,null,null,null,null,null,null,null,null,null,"14:00:00"]
[null,null,null,null,null,null,null,null,null,null,null,null,null,null,null,null,null,null,null,null,null,null,null,null,null,null,null,null,null,null,null,null,"14:05:00"]
[null,null,null,null,null,null,null,null,null,null,null,null,null,null,null,null,null,null,null,null,null,null,null,null,null,null,null,null,null,null,null,null,"14:10:00"]
[null,null,null,null,null,null,null,null,null,null,null,null,null,null,null,null,null,null,null,null,null,null,null,null,null,null,null,null,null,null,null,null,"14:15:00"]
[null,null,null,null,null,null,null,null,null,null,null,null,null,null,null,null,null,null,null,null,null,null,null,null,null,null,null,null,null,null,null,null,"14:20:00"]
[null,null,null,null,null,null,null,null,null,null,null,null,null,null,null,null,null,null,null,null,null,null,null,null,null,null,null,null,null,null,null,null,"14:25:00"]
[null,null,null,null,null,null,null,null,null,null,null,null,null,null,null,null,null,null,null,null,null,null,null,null,null,null,null,null,null,null,null,null,"14:30:00"]
[null,null,null,null,null,null,null,null,null,null,null,null,null,null,null,null,null,null,null,null,null,null,null,null,null,null,null,null,null,null,null,null,"14:35:00"]
[null,null,null,null,null,null,null,null,null,null,null,null,null,null,null,null,null,null,null,null,null,null,null,null,null,null,null,null,null,null,null,null,"14:40:00"]
[null,null,null,null,null,null,null,null,null,null,null,null,null,null,null,null,null,null,null,null,null,null,null,null,null,null,null,null,null,null,null,null,"14:45:00"]
[null,null,null,null,null,null,null,null,null,null,null,null,null,null,null,null,null,null,null,null,null,null,null,null,null,null,null,null,null,null,null,null,"14:50:00"]
[null,null,null,null,null,null,null,null,null,null,null,null,null,null,null,null,null,null,null,null,null,null,null,null,null,null,null,null,null,null,null,null,"14:55:00"]
[null,null,null,null,null,null,null,null,null,null,null,null,null,null,null,null,null,null,null,null,null,null,null,null,null,null,null,null,null,null,null,null,"15:00:00"]
[null,null,null,null,null,null,null,null,null,null,null,null,null,null,null,null,null,null,null,null,null,null,null,null,null,null,null,null,null,null,null,null,"15:05:00"]
[null,null,null,null,null,null,null,null,null,null,null,null,null,null,null,null,null,null,null,null,null,null,null,null,null,null,null,null,null,null,null,null,"15:10:00"]
[null,null,null,null,null,null,null,null,null,null,null,null,null,null,null,null,null,null,null,null,null,null,null,null,null,null,null,null,null,null,null,null,"15:15:00"]
[null,null,null,null,null,null,null,null,null,null,null,null,null,null,null,null,null,null,null,null,null,null,null,null,null,null,null,null,null,null,null,null,"15:20:00"]
[null,null,null,null,null,null,null,null,null,null,null,null,null,null,null,null,null,null,null,null,null,null,null,null,null,null,null,null,null,null,null,null,"15:25:00"]
[null,null,null,null,null,null,null,null,null,null,null,null,null,null,null,null,null,null,null,null,null,null,null,null,null,null,null,null,null,null,null,null,"15:30:00"]
[null,null,null,null,null,null,null,null,null,null,null,null,null,null,null,null,null,null,null,null,null,null,null,null,null,null,null,null,null,null,null,null,"15:35:00"]
[null,null,null,null,null,null,null,null,null,null,null,null,null,null,null,null,null,null,null,null,null,null,null,null,null,null,null,null,null,null,null,null,"15:40:00"]
[null,null,null,null,null,null,null,null,null,null,null,null,null,null,null,null,null,null,null,null,null,null,null,null,null,null,null,null,null,null,null,null,"15:45:00"]
[null,null,null,null,null,null,null,null,null,null,null,null,null,null,null,null,null,null,null,null,null,null,null,null,null,null,null,null,null,null,null,null,"15:50:00"]
[null,null,null,null,null,null,null,null,null,null,null,null,null,null,null,null,null,null,null,null,null,null,null,null,null,null,null,null,null,null,null,null,"15:55:00"]
[null,null,null,null,null,null,null,null,null,null,null,null,null,null,null,null,null,null,null,null,null,null,null,null,null,null,null,null,null,null,null,null,"16:00:00"]
[null,null,null,null,null,null,null,null,null,null,null,null,null,null,null,null,null,null,null,null,null,null,null,null,null,null,null,null,null,null,null,null,"16:05:00"]
[null,null,null,null,null,null,null,null,null,null,null,null,null,null,null,null,null,null,null,null,null,null,null,null,null,null,null,null,null,null,null,null,"16:10:00"]
[null,null,null,null,null,null,null,null,null,null,null,null,null,null,null,null,null,null,null,null,null,null,null,null,null,null,null,null,null,null,null,null,"16:15:00"]
[null,null,null,null,null,null,null,null,null,null,null,null,null,null,null,null,null,null,null,null,null,null,null,null,null,null,null,null,null,null,null,null,"16:20:00"]
[null,null,null,null,null,null,null,null,null,null,null,null,null,null,null,null,null,null,null,null,null,null,null,null,null,null,null,null,null,null,null,null,"16:25:00"]
[null,null,null,null,null,null,null,null,null,null,null,null,null,null,null,null,null,null,null,null,null,null,null,null,null,null,null,null,null,null,null,null,"16:30:00"]
[null,null,null,null,null,null,null,null,null,null,null,null,null,null,null,null,null,null,null,null,null,null,null,null,null,null,null,null,null,null,null,null,"16:35:00"]
[null,null,null,null,null,null,null,null,null,null,null,null,null,null,null,null,null,null,null,null,null,null,null,null,null,null,null,null,null,null,null,null,"16:40:00"]
[null,null,null,null,null,null,null,null,null,null,null,null,null,null,null,null,null,null,null,null,null,null,null,null,null,null,null,null,null,null,null,null,"16:45:00"]
[null,null,null,null,null,null,null,null,null,null,null,null,null,null,null,null,null,null,null,null,null,null,null,null,null,null,null,null,null,null,null,null,"16:50:00"]
[null,null,null,null,null,null,null,null,null,null,null,null,null,null,null,null,null,null,null,null,null,null,null,null,null,null,null,null,null,null,null,null,"16:55:00"]
[null,null,null,null,null,null,null,null,null,null,null,null,null,null,null,null,null,null,null,null,null,null,null,null,null,null,null,null,null,null,null,null,"17:00:00"]
[null,null,null,null,null,null,null,null,null,null,null,null,null,null,null,null,null,null,null,null,null,null,null,null,null,null,null,null,null,null,null,null,"17:05:00"]
[null,null,null,null,null,null,null,null,null,null,null,null,null,null,null,null,null,null,null,null,null,null,null,null,null,null,null,null,null,null,null,null,"17:10:00"]
[null,null,null,null,null,null,null,null,null,null,null,null,null,null,null,null,null,null,null,null,null,null,null,null,null,null,null,null,null,null,null,null,"17:15:00"]
[null,null,null,null,null,null,null,null,null,null,null,null,null,null,null,null,null,null,null,null,null,null,null,null,null,null,null,null,null,null,null,null,"17:20:00"]
[null,null,null,null,null,null,null,null,null,null,null,null,null,null,null,null,null,null,null,null,null,null,null,null,null,null,null,null,null,null,null,null,"17:25:00"]
[null,null,null,null,null,null,null,null,null,null,null,null,null,null,null,null,null,null,null,null,null,null,null,null,null,null,null,null,null,null,null,null,"17:30:00"]
[null,null,null,null,null,null,null,null,null,null,null,null,null,null,null,null,null,null,null,null,null,null,null,null,null,null,null,null,null,null,null,null,"17:35:00"]
[null,null,null,null,null,null,null,null,null,null,null,null,null,null,null,null,null,null,null,null,null,null,null,null,null,null,null,null,null,null,null,null,"17:40:00"]
[null,null,null,null,null,null,null,null,null,null,null,null,null,null,null,null,null,null,null,null,null,null,null,null,null,null,null,null,null,null,null,null,"17:45:00"]
[null,null,null,null,null,null,null,null,null,null,null,null,null,null,null,null,null,null,null,null,null,null,null,null,null,null,null,null,null,null,null,null,"17:50:00"]
[null,null,null,null,null,null,null,null,null,null,null,null,null,null,null,null,null,null,null,null,null,null,null,null,null,null,null,null,null,null,null,null,"17:55:00"]
[null,null,null,null,null,null,null,null,null,null,null,null,null,null,null,null,null,null,null,null,null,null,null,null,null,null,null,null,null,null,null,null,"18:00:00"]
[null,null,null,null,null,null,null,null,null,null,null,null,null,null,null,null,null,null,null,null,null,null,null,null,null,null,null,null,null,null,null,null,"18:05:00"]
[null,null,null,null,null,null,null,null,null,null,null,null,null,null,null,null,null,null,null,null,null,null,null,null,null,null,null,null,null,null,null,null,"18:10:00"]
[null,null,null,null,null,null,null,null,null,null,null,null,null,null,null,null,null,null,null,null,null,null,null,null,null,null,null,null,null,null,null,null,"18:15:00"]
[null,null,null,null,null,null,null,null,null,null,null,null,null,null,null,null,null,null,null,null,null,null,null,null,null,null,null,null,null,null,null,null,"18:20:00"]
[null,null,null,null,null,null,null,null,null,null,null,null,null,null,null,null,null,null,null,null,null,null,null,null,null,null,null,null,null,null,null,null,"18:25:00"]
[null,null,null,null,null,null,null,null,null,null,null,null,null,null,null,null,null,null,null,null,null,null,null,null,null,null,null,null,null,null,null,null,"18:30:00"]
[null,null,null,null,null,null,null,null,null,null,null,null,null,null,null,null,null,null,null,null,null,null,null,null,null,null,null,null,null,null,null,null,"18:35:00"]
[null,null,null,null,null,null,null,null,null,null,null,null,null,null,null,null,null,null,null,null,null,null,null,null,null,null,null,null,null,null,null,null,"18:40:00"]
[null,null,null,null,null,null,null,null,null,null,null,null,null,null,null,null,null,null,null,null,null,null,null,null,null,null,null,null,null,null,null,null,"18:45:00"]
[null,null,null,null,null,null,null,null,null,null,null,null,null,null,null,null,null,null,null,null,null,null,null,null,null,null,null,null,null,null,null,null,"18:50:00"]
[null,null,null,null,null,null,null,null,null,null,null,null,null,null,null,null,null,null,null,null,null,null,null,null,null,null,null,null,null,null,null,null,"19:00:00"]

{"sheet":"シート2-⑧","index":10,"n_rows":150,"n_cols":41,"rows_kept":150,"cut":false,"hidden":false,"merged":[[30,1,30,28],[31,1,31,28],[17,36,17,37],[17,38,17,39],[17,34,17,35],[22,18,22,20],[22,21,22,23],[22,15,22,17],[22,24,22,28],[20,15,20,17],[20,24,20,28],[26,15,26,17],[26,18,26,20],[26,21,26,23],[23,15,23,17],[23,24,23,28],[23,18,23,20],[23,21,23,23],[23,2,23,14],[26,2,26,14],[24,2,24,14],[24,15,24,17],[25,2,25,14],[25,15,25,17],[28,24,28,28],[27,24,27,28],[24,18,24,20],[24,21,24,23],[24,24,24,28],[25,18,25,20],[25,21,25,23],[25,24,25,28],[26,24,26,28],[27,2,27,14],[28,2,28,14],[28,15,28,17],[28,18,28,20],[28,21,28,23],[27,15,27,17],[27,18,27,20],[27,21,27,23],[10,17,10,20],[21,24,21,28],[18,24,18,28],[19,24,19,28],[21,15,21,17],[21,18,21,20],[21,21,21,23],[20,21,20,23],[12,21,13,23],[12,4,12,20],[12,24,13,28],[13,4,13,20],[18,21,18,23],[17,18,17,20],[17,21,17,23],[17,24,17,28],[2,1,2,28],[5,1,5,2],[5,3,5,28],[6,1,6,2],[6,3,6,28],[9,21,10,23],[9,24,10,28],[10,4,10,8],[10,12,10,15],[21,2,21,14],[19,2,19,14],[19,15,19,17],[19,18,19,20],[12,1,13,2],[18,18,18,20],[9,1,10,2],[9,4,9,8],[9,9,10,10],[9,12,9,15],[9,17,9,20],[18,2,18,14],[22,2,22,14],[15,38,15,39],[15,33,16,33],[15,24,16,28],[15,1,16,14],[15,15,16,17],[19,21,19,23],[15,34,15,35],[15,18,16,20],[15,36,15,37],[20,2,20,14],[17,1,17,14],[17,15,17,17],[15,21,16,23],[18,15,18,17],[20,18,20,20]]}
[null,"研修記録シート2（評価）"]
[]
[null,"この振り返りシートは、科目の受講前後で各自の理解度を把握し、受講中の学習効果の向上と、受講後の学習のポイントを焦点化し、継続的な資質向上に役立てるものです。本科目を学習した時点で感じた事を書き留め、今後の学習方針や課題への取り組みを考える際に見返してみましょう。"]
[]
[]
[null,"研修名：",null,"主任研修",null,null,null,null,null,null,null,null,null,null,null,null,null,null,null,null,null,null,null,null,null,null,null,null,null,null,null,null,null,null,null,null,null,null,null,null,"このボタンをクリックするとTOPページへ移動します。"]
[null,"課目名：",null,"⑧対人援助者監督指導（スーパービジョン）"]
[]
[]
[null,"受講日",null,1,"2025-02-04",null,null,null,null,"時間",null,1,"09:30:00",null,null,null,"～","16:30:00",null,null,null,"氏名",null,null,{"$f":"IF(ISBLANK(シート1!N7),\"\",シート1!N7)","v":""}]
[null,null,null,2,null,null,null,null,null,null,null,2,null,null,null,null,"～"]
[]
[null,"会場",null,1,"オンライン研修（Zoom）",null,null,null,null,null,null,null,null,null,null,null,null,null,null,null,null,"番号",null,null,{"$f":"IF(ISBLANK(シート1!N9),\"\",シート1!N9)","v":9999}]
[null,null,null,2]
[]
[null,"項　　目 ",null,null,null,null,null,null,null,null,null,null,null,null,null,"受講前 ",null,null,"受講\n直後",null,null,"実践\n評価\n(3ヶ月後）",null,null,"備　　考 ",null,null,null,null,null,null,"リスト（課程区分）","リスト（時間）",null,"受講前",null,"受講後 ",null,"実践評価"]
[null,null,null,null,null,null,null,null,null,null,null,null,null,null,null,null,null,null,null,null,null,null,null,null,null,null,null,null,null,null,null,null,"リストから選択",null,"理解度","習得度","理解度","習得度","理解度","習得度"]
[null,"記入日（入力日）",null,null,null,null,null,null,null,null,null,null,null,null,null,null,null,null,null,null,null,null,null,null,null,null,null,null,null,null,null,"リスト（課程区分）","リスト（時間）",null,"受講前",null,"受講後 ",null,"実践評価"]
[null,"① ","対人援助者監督指導（スーパービジョン）の機能（管理、教育、支援、評価）を理解し、実践のための知識・技術を修得し実施できる。",null,null,null,null,null,null,null,null,null,null,null,null,null,null,null,null,null,null,null,null,null,null,null,null,null,null,null,null,"Ⅰ","08:00:00",4,"4．理解している ","-","4．非常に理解が深まった ","4．習得できた ","4．非常に理解が深まった","4．習得度が上がった "]
[null,"②","介護支援専門員に対して対人援助者監督指導（スーパービジョン）を行う際の効果と留意点について説明できる。",null,null,null,null,null,null,null,null,null,null,null,null,null,null,null,null,null,null,null,null,null,null,null,null,null,null,null,null,"Ⅱ","08:05:00",3,"3．概ね理解している ","-","3．理解が深まった ","3．概ね習得できた ","3．理解が深まった","3．まあまあ習得度が上がった "]
[null,"③","スーパーバイザーとしての主任介護支援専門員の心構えや視点を持った介護支援専門員への関わり方について説明できる。",null,null,null,null,null,null,null,null,null,null,null,null,null,null,null,null,null,null,null,null,null,null,null,null,null,null,null,null,null,"08:10:00",2,"2．あまり理解していない ","-","2．あまり理解が進まなかった ","2．あまり習得できていない ","2．あまり理解度は変わらない ","2．習得度は変わらない "]
[null,"④","個人対人援助者監督指導（個人スーパービジョン）とグループ対人援助者監督指導（グループスーパービジョン）を実施できる。",null,null,null,null,null,null,null,null,null,null,null,null,null,null,null,null,null,null,null,null,null,null,null,null,null,null,null,null,null,"08:15:00",1,"1．全く理解していない ","-","1．理解が進まなかった ","1．習得できていない ","1．理解度は変わらない。 ","1．理解度が深まり、習得度が後退した "]
[null,"⑤","事例に基づいて、対人援助者監督指導の具体的なポイントについて説明できる。",null,null,null,null,null,null,null,null,null,null,null,null,null,null,null,null,null,null,null,null,null,null,null,null,null,null,null,null,null,"08:20:00"]
[null,null,null,null,null,null,null,null,null,null,null,null,null,null,null,null,null,null,null,null,null,null,null,null,null,null,null,null,null,null,null,null,"08:25:00"]
[null,null,null,null,null,null,null,null,null,null,null,null,null,null,null,null,null,null,null,null,null,null,null,null,null,null,null,null,null,null,null,null,"08:30:00"]
[null,null,null,null,null,null,null,null,null,null,null,null,null,null,null,null,null,null,null,null,null,null,null,null,null,null,null,null,null,null,null,null,"08:35:00"]
[null,null,null,null,null,null,null,null,null,null,null,null,null,null,null,null,null,null,null,null,null,null,null,null,null,null,null,null,null,null,null,null,"08:40:00"]
[null,null,null,null,null,null,null,null,null,null,null,null,null,null,null,null,null,null,null,null,null,null,null,null,null,null,null,null,null,null,null,null,"08:45:00"]
[null,null,null,null,null,null,null,null,null,null,null,null,null,null,null,null,null,null,null,null,null,null,null,null,null,null,null,null,null,null,null,null,"08:50:00"]
[null,null,null,null,null,null,null,null,null,null,null,null,null,null,null,null,null,null,null,null,null,null,null,null,null,null,null,null,null,null,null,null,"08:55:00"]
[null,"　※研修は自己評価とし、4段階評価で、数字が大きいほど高評価、数字が小さいほど低評価として記入してください。",null,null,null,null,null,null,null,null,null,null,null,null,null,null,null,null,null,null,null,null,null,null,null,null,null,null,null,null,null,null,"09:00:00"]
[null,"　　【選択肢】　　　4.　できる　　　　　3.　概ねできる　　　　　2.　ほとんどできない　　　　1.　全くできない",null,null,null,null,null,null,null,null,null,null,null,null,null,null,null,null,null,null,null,null,null,null,null,null,null,null,null,null,null,null,"09:05:00"]
[null,null,null,null,null,null,null,null,null,null,null,null,null,null,null,null,null,null,null,null,null,null,null,null,null,null,null,null,null,null,null,null,"09:10:00"]
[null,null,null,null,null,null,null,null,null,null,null,null,null,null,null,null,null,null,null,null,null,null,null,null,null,null,null,null,null,null,null,null,"09:15:00"]
[null,null,null,null,null,null,null,null,null,null,null,null,null,null,null,null,null,null,null,null,null,null,null,null,null,null,null,null,null,null,null,null,"09:20:00"]
[null,null,null,null,null,null,null,null,null,null,null,null,null,null,null,null,null,null,null,null,null,null,null,null,null,null,null,null,null,null,null,null,"09:25:00"]
[null,null,null,null,null,null,null,null,null,null,null,null,null,null,null,null,null,null,null,null,null,null,null,null,null,null,null,null,null,null,null,null,"09:30:00"]
[null,null,null,null,null,null,null,null,null,null,null,null,null,null,null,null,null,null,null,null,null,null,null,null,null,null,null,null,null,null,null,null,"09:35:00"]
[null,null,null,null,null,null,null,null,null,null,null,null,null,null,null,null,null,null,null,null,null,null,null,null,null,null,null,null,null,null,null,null,"09:40:00"]
[null,null,null,null,null,null,null,null,null,null,null,null,null,null,null,null,null,null,null,null,null,null,null,null,null,null,null,null,null,null,null,null,"09:45:00"]
[null,null,null,null,null,null,null,null,null,null,null,null,null,null,null,null,null,null,null,null,null,null,null,null,null,null,null,null,null,null,null,null,"09:50:00"]
[null,null,null,null,null,null,null,null,null,null,null,null,null,null,null,null,null,null,null,null,null,null,null,null,null,null,null,null,null,null,null,null,"09:55:00"]
[null,null,null,null,null,null,null,null,null,null,null,null,null,null,null,null,null,null,null,null,null,null,null,null,null,null,null,null,null,null,null,null,"10:00:00"]
[null,null,null,null,null,null,null,null,null,null,null,null,null,null,null,null,null,null,null,null,null,null,null,null,null,null,null,null,null,null,null,null,"10:05:00"]
[null,null,null,null,null,null,null,null,null,null,null,null,null,null,null,null,null,null,null,null,null,null,null,null,null,null,null,null,null,null,null,null,"10:10:00"]
[null,null,null,null,null,null,null,null,null,null,null,null,null,null,null,null,null,null,null,null,null,null,null,null,null,null,null,null,null,null,null,null,"10:15:00"]
[null,null,null,null,null,null,null,null,null,null,null,null,null,null,null,null,null,null,null,null,null,null,null,null,null,null,null,null,null,null,null,null,"10:20:00"]
[null,null,null,null,null,null,null,null,null,null,null,null,null,null,null,null,null,null,null,null,null,null,null,null,null,null,null,null,null,null,null,null,"10:25:00"]
[null,null,null,null,null,null,null,null,null,null,null,null,null,null,null,null,null,null,null,null,null,null,null,null,null,null,null,null,null,null,null,null,"10:30:00"]
[null,null,null,null,null,null,null,null,null,null,null,null,null,null,null,null,null,null,null,null,null,null,null,null,null,null,null,null,null,null,null,null,"10:35:00"]
[null,null,null,null,null,null,null,null,null,null,null,null,null,null,null,null,null,null,null,null,null,null,null,null,null,null,null,null,null,null,null,null,"10:40:00"]
[null,null,null,null,null,null,null,null,null,null,null,null,null,null,null,null,null,null,null,null,null,null,null,null,null,null,null,null,null,null,null,null,"10:45:00"]
[null,null,null,null,null,null,null,null,null,null,null,null,null,null,null,null,null,null,null,null,null,null,null,null,null,null,null,null,null,null,null,null,"10:50:00"]
[null,null,null,null,null,null,null,null,null,null,null,null,null,null,null,null,null,null,null,null,null,null,null,null,null,null,null,null,null,null,null,null,"10:55:00"]
[null,null,null,null,null,null,null,null,null,null,null,null,null,null,null,null,null,null,null,null,null,null,null,null,null,null,null,null,null,null,null,null,"11:00:00"]
[null,null,null,null,null,null,null,null,null,null,null,null,null,null,null,null,null,null,null,null,null,null,null,null,null,null,null,null,null,null,null,null,"11:05:00"]
[null,null,null,null,null,null,null,null,null,null,null,null,null,null,null,null,null,null,null,null,null,null,null,null,null,null,null,null,null,null,null,null,"11:10:00"]
[null,null,null,null,null,null,null,null,null,null,null,null,null,null,null,null,null,null,null,null,null,null,null,null,null,null,null,null,null,null,null,null,"11:15:00"]
[null,null,null,null,null,null,null,null,null,null,null,null,null,null,null,null,null,null,null,null,null,null,null,null,null,null,null,null,null,null,null,null,"11:20:00"]
[null,null,null,null,null,null,null,null,null,null,null,null,null,null,null,null,null,null,null,null,null,null,null,null,null,null,null,null,null,null,null,null,"11:25:00"]
[null,null,null,null,null,null,null,null,null,null,null,null,null,null,null,null,null,null,null,null,null,null,null,null,null,null,null,null,null,null,null,null,"11:30:00"]
[null,null,null,null,null,null,null,null,null,null,null,null,null,null,null,null,null,null,null,null,null,null,null,null,null,null,null,null,null,null,null,null,"11:35:00"]
[null,null,null,null,null,null,null,null,null,null,null,null,null,null,null,null,null,null,null,null,null,null,null,null,null,null,null,null,null,null,null,null,"11:40:00"]
[null,null,null,null,null,null,null,null,null,null,null,null,null,null,null,null,null,null,null,null,null,null,null,null,null,null,null,null,null,null,null,null,"11:45:00"]
[null,null,null,null,null,null,null,null,null,null,null,null,null,null,null,null,null,null,null,null,null,null,null,null,null,null,null,null,null,null,null,null,"11:50:00"]
[null,null,null,null,null,null,null,null,null,null,null,null,null,null,null,null,null,null,null,null,null,null,null,null,null,null,null,null,null,null,null,null,"11:55:00"]
[null,null,null,null,null,null,null,null,null,null,null,null,null,null,null,null,null,null,null,null,null,null,null,null,null,null,null,null,null,null,null,null,"12:00:00"]
[null,null,null,null,null,null,null,null,null,null,null,null,null,null,null,null,null,null,null,null,null,null,null,null,null,null,null,null,null,null,null,null,"12:05:00"]
[null,null,null,null,null,null,null,null,null,null,null,null,null,null,null,null,null,null,null,null,null,null,null,null,null,null,null,null,null,null,null,null,"12:10:00"]
[null,null,null,null,null,null,null,null,null,null,null,null,null,null,null,null,null,null,null,null,null,null,null,null,null,null,null,null,null,null,null,null,"12:15:00"]
[null,null,null,null,null,null,null,null,null,null,null,null,null,null,null,null,null,null,null,null,null,null,null,null,null,null,null,null,null,null,null,null,"12:20:00"]
[null,null,null,null,null,null,null,null,null,null,null,null,null,null,null,null,null,null,null,null,null,null,null,null,null,null,null,null,null,null,null,null,"12:25:00"]
[null,null,null,null,null,null,null,null,null,null,null,null,null,null,null,null,null,null,null,null,null,null,null,null,null,null,null,null,null,null,null,null,"12:30:00"]
[null,null,null,null,null,null,null,null,null,null,null,null,null,null,null,null,null,null,null,null,null,null,null,null,null,null,null,null,null,null,null,null,"12:35:00"]
[null,null,null,null,null,null,null,null,null,null,null,null,null,null,null,null,null,null,null,null,null,null,null,null,null,null,null,null,null,null,null,null,"12:40:00"]
[null,null,null,null,null,null,null,null,null,null,null,null,null,null,null,null,null,null,null,null,null,null,null,null,null,null,null,null,null,null,null,null,"12:45:00"]
[null,null,null,null,null,null,null,null,null,null,null,null,null,null,null,null,null,null,null,null,null,null,null,null,null,null,null,null,null,null,null,null,"12:50:00"]
[null,null,null,null,null,null,null,null,null,null,null,null,null,null,null,null,null,null,null,null,null,null,null,null,null,null,null,null,null,null,null,null,"12:55:00"]
[null,null,null,null,null,null,null,null,null,null,null,null,null,null,null,null,null,null,null,null,null,null,null,null,null,null,null,null,null,null,null,null,"13:00:00"]
[null,null,null,null,null,null,null,null,null,null,null,null,null,null,null,null,null,null,null,null,null,null,null,null,null,null,null,null,null,null,null,null,"13:05:00"]
[null,null,null,null,null,null,null,null,null,null,null,null,null,null,null,null,null,null,null,null,null,null,null,null,null,null,null,null,null,null,null,null,"13:10:00"]
[null,null,null,null,null,null,null,null,null,null,null,null,null,null,null,null,null,null,null,null,null,null,null,null,null,null,null,null,null,null,null,null,"13:15:00"]
[null,null,null,null,null,null,null,null,null,null,null,null,null,null,null,null,null,null,null,null,null,null,null,null,null,null,null,null,null,null,null,null,"13:20:00"]
[null,null,null,null,null,null,null,null,null,null,null,null,null,null,null,null,null,null,null,null,null,null,null,null,null,null,null,null,null,null,null,null,"13:25:00"]
[null,null,null,null,null,null,null,null,null,null,null,null,null,null,null,null,null,null,null,null,null,null,null,null,null,null,null,null,null,null,null,null,"13:30:00"]
[null,null,null,null,null,null,null,null,null,null,null,null,null,null,null,null,null,null,null,null,null,null,null,null,null,null,null,null,null,null,null,null,"13:35:00"]
[null,null,null,null,null,null,null,null,null,null,null,null,null,null,null,null,null,null,null,null,null,null,null,null,null,null,null,null,null,null,null,null,"13:40:00"]
[null,null,null,null,null,null,null,null,null,null,null,null,null,null,null,null,null,null,null,null,null,null,null,null,null,null,null,null,null,null,null,null,"13:45:00"]
[null,null,null,null,null,null,null,null,null,null,null,null,null,null,null,null,null,null,null,null,null,null,null,null,null,null,null,null,null,null,null,null,"13:50:00"]
[null,null,null,null,null,null,null,null,null,null,null,null,null,null,null,null,null,null,null,null,null,null,null,null,null,null,null,null,null,null,null,null,"13:55:00"]
[null,null,null,null,null,null,null,null,null,null,null,null,null,null,null,null,null,null,null,null,null,null,null,null,null,null,null,null,null,null,null,null,"14:00:00"]
[null,null,null,null,null,null,null,null,null,null,null,null,null,null,null,null,null,null,null,null,null,null,null,null,null,null,null,null,null,null,null,null,"14:05:00"]
[null,null,null,null,null,null,null,null,null,null,null,null,null,null,null,null,null,null,null,null,null,null,null,null,null,null,null,null,null,null,null,null,"14:10:00"]
[null,null,null,null,null,null,null,null,null,null,null,null,null,null,null,null,null,null,null,null,null,null,null,null,null,null,null,null,null,null,null,null,"14:15:00"]
[null,null,null,null,null,null,null,null,null,null,null,null,null,null,null,null,null,null,null,null,null,null,null,null,null,null,null,null,null,null,null,null,"14:20:00"]
[null,null,null,null,null,null,null,null,null,null,null,null,null,null,null,null,null,null,null,null,null,null,null,null,null,null,null,null,null,null,null,null,"14:25:00"]
[null,null,null,null,null,null,null,null,null,null,null,null,null,null,null,null,null,null,null,null,null,null,null,null,null,null,null,null,null,null,null,null,"14:30:00"]
[null,null,null,null,null,null,null,null,null,null,null,null,null,null,null,null,null,null,null,null,null,null,null,null,null,null,null,null,null,null,null,null,"14:35:00"]
[null,null,null,null,null,null,null,null,null,null,null,null,null,null,null,null,null,null,null,null,null,null,null,null,null,null,null,null,null,null,null,null,"14:40:00"]
[null,null,null,null,null,null,null,null,null,null,null,null,null,null,null,null,null,null,null,null,null,null,null,null,null,null,null,null,null,null,null,null,"14:45:00"]
[null,null,null,null,null,null,null,null,null,null,null,null,null,null,null,null,null,null,null,null,null,null,null,null,null,null,null,null,null,null,null,null,"14:50:00"]
[null,null,null,null,null,null,null,null,null,null,null,null,null,null,null,null,null,null,null,null,null,null,null,null,null,null,null,null,null,null,null,null,"14:55:00"]
[null,null,null,null,null,null,null,null,null,null,null,null,null,null,null,null,null,null,null,null,null,null,null,null,null,null,null,null,null,null,null,null,"15:00:00"]
[null,null,null,null,null,null,null,null,null,null,null,null,null,null,null,null,null,null,null,null,null,null,null,null,null,null,null,null,null,null,null,null,"15:05:00"]
[null,null,null,null,null,null,null,null,null,null,null,null,null,null,null,null,null,null,null,null,null,null,null,null,null,null,null,null,null,null,null,null,"15:10:00"]
[null,null,null,null,null,null,null,null,null,null,null,null,null,null,null,null,null,null,null,null,null,null,null,null,null,null,null,null,null,null,null,null,"15:15:00"]
[null,null,null,null,null,null,null,null,null,null,null,null,null,null,null,null,null,null,null,null,null,null,null,null,null,null,null,null,null,null,null,null,"15:20:00"]
[null,null,null,null,null,null,null,null,null,null,null,null,null,null,null,null,null,null,null,null,null,null,null,null,null,null,null,null,null,null,null,null,"15:25:00"]
[null,null,null,null,null,null,null,null,null,null,null,null,null,null,null,null,null,null,null,null,null,null,null,null,null,null,null,null,null,null,null,null,"15:30:00"]
[null,null,null,null,null,null,null,null,null,null,null,null,null,null,null,null,null,null,null,null,null,null,null,null,null,null,null,null,null,null,null,null,"15:35:00"]
[null,null,null,null,null,null,null,null,null,null,null,null,null,null,null,null,null,null,null,null,null,null,null,null,null,null,null,null,null,null,null,null,"15:40:00"]
[null,null,null,null,null,null,null,null,null,null,null,null,null,null,null,null,null,null,null,null,null,null,null,null,null,null,null,null,null,null,null,null,"15:45:00"]
[null,null,null,null,null,null,null,null,null,null,null,null,null,null,null,null,null,null,null,null,null,null,null,null,null,null,null,null,null,null,null,null,"15:50:00"]
[null,null,null,null,null,null,null,null,null,null,null,null,null,null,null,null,null,null,null,null,null,null,null,null,null,null,null,null,null,null,null,null,"15:55:00"]
[null,null,null,null,null,null,null,null,null,null,null,null,null,null,null,null,null,null,null,null,null,null,null,null,null,null,null,null,null,null,null,null,"16:00:00"]
[null,null,null,null,null,null,null,null,null,null,null,null,null,null,null,null,null,null,null,null,null,null,null,null,null,null,null,null,null,null,null,null,"16:05:00"]
[null,null,null,null,null,null,null,null,null,null,null,null,null,null,null,null,null,null,null,null,null,null,null,null,null,null,null,null,null,null,null,null,"16:10:00"]
[null,null,null,null,null,null,null,null,null,null,null,null,null,null,null,null,null,null,null,null,null,null,null,null,null,null,null,null,null,null,null,null,"16:15:00"]
[null,null,null,null,null,null,null,null,null,null,null,null,null,null,null,null,null,null,null,null,null,null,null,null,null,null,null,null,null,null,null,null,"16:20:00"]
[null,null,null,null,null,null,null,null,null,null,null,null,null,null,null,null,null,null,null,null,null,null,null,null,null,null,null,null,null,null,null,null,"16:25:00"]
[null,null,null,null,null,null,null,null,null,null,null,null,null,null,null,null,null,null,null,null,null,null,null,null,null,null,null,null,null,null,null,null,"16:30:00"]
[null,null,null,null,null,null,null,null,null,null,null,null,null,null,null,null,null,null,null,null,null,null,null,null,null,null,null,null,null,null,null,null,"16:35:00"]
[null,null,null,null,null,null,null,null,null,null,null,null,null,null,null,null,null,null,null,null,null,null,null,null,null,null,null,null,null,null,null,null,"16:40:00"]
[null,null,null,null,null,null,null,null,null,null,null,null,null,null,null,null,null,null,null,null,null,null,null,null,null,null,null,null,null,null,null,null,"16:45:00"]
[null,null,null,null,null,null,null,null,null,null,null,null,null,null,null,null,null,null,null,null,null,null,null,null,null,null,null,null,null,null,null,null,"16:50:00"]
[null,null,null,null,null,null,null,null,null,null,null,null,null,null,null,null,null,null,null,null,null,null,null,null,null,null,null,null,null,null,null,null,"16:55:00"]
[null,null,null,null,null,null,null,null,null,null,null,null,null,null,null,null,null,null,null,null,null,null,null,null,null,null,null,null,null,null,null,null,"17:00:00"]
[null,null,null,null,null,null,null,null,null,null,null,null,null,null,null,null,null,null,null,null,null,null,null,null,null,null,null,null,null,null,null,null,"17:05:00"]
[null,null,null,null,null,null,null,null,null,null,null,null,null,null,null,null,null,null,null,null,null,null,null,null,null,null,null,null,null,null,null,null,"17:10:00"]
[null,null,null,null,null,null,null,null,null,null,null,null,null,null,null,null,null,null,null,null,null,null,null,null,null,null,null,null,null,null,null,null,"17:15:00"]
[null,null,null,null,null,null,null,null,null,null,null,null,null,null,null,null,null,null,null,null,null,null,null,null,null,null,null,null,null,null,null,null,"17:20:00"]
[null,null,null,null,null,null,null,null,null,null,null,null,null,null,null,null,null,null,null,null,null,null,null,null,null,null,null,null,null,null,null,null,"17:25:00"]
[null,null,null,null,null,null,null,null,null,null,null,null,null,null,null,null,null,null,null,null,null,null,null,null,null,null,null,null,null,null,null,null,"17:30:00"]
[null,null,null,null,null,null,null,null,null,null,null,null,null,null,null,null,null,null,null,null,null,null,null,null,null,null,null,null,null,null,null,null,"17:35:00"]
[null,null,null,null,null,null,null,null,null,null,null,null,null,null,null,null,null,null,null,null,null,null,null,null,null,null,null,null,null,null,null,null,"17:40:00"]
[null,null,null,null,null,null,null,null,null,null,null,null,null,null,null,null,null,null,null,null,null,null,null,null,null,null,null,null,null,null,null,null,"17:45:00"]
[null,null,null,null,null,null,null,null,null,null,null,null,null,null,null,null,null,null,null,null,null,null,null,null,null,null,null,null,null,null,null,null,"17:50:00"]
[null,null,null,null,null,null,null,null,null,null,null,null,null,null,null,null,null,null,null,null,null,null,null,null,null,null,null,null,null,null,null,null,"17:55:00"]
[null,null,null,null,null,null,null,null,null,null,null,null,null,null,null,null,null,null,null,null,null,null,null,null,null,null,null,null,null,null,null,null,"18:00:00"]
[null,null,null,null,null,null,null,null,null,null,null,null,null,null,null,null,null,null,null,null,null,null,null,null,null,null,null,null,null,null,null,null,"18:05:00"]
[null,null,null,null,null,null,null,null,null,null,null,null,null,null,null,null,null,null,null,null,null,null,null,null,null,null,null,null,null,null,null,null,"18:10:00"]
[null,null,null,null,null,null,null,null,null,null,null,null,null,null,null,null,null,null,null,null,null,null,null,null,null,null,null,null,null,null,null,null,"18:15:00"]
[null,null,null,null,null,null,null,null,null,null,null,null,null,null,null,null,null,null,null,null,null,null,null,null,null,null,null,null,null,null,null,null,"18:20:00"]
[null,null,null,null,null,null,null,null,null,null,null,null,null,null,null,null,null,null,null,null,null,null,null,null,null,null,null,null,null,null,null,null,"18:25:00"]
[null,null,null,null,null,null,null,null,null,null,null,null,null,null,null,null,null,null,null,null,null,null,null,null,null,null,null,null,null,null,null,null,"18:30:00"]
[null,null,null,null,null,null,null,null,null,null,null,null,null,null,null,null,null,null,null,null,null,null,null,null,null,null,null,null,null,null,null,null,"18:35:00"]
[null,null,null,null,null,null,null,null,null,null,null,null,null,null,null,null,null,null,null,null,null,null,null,null,null,null,null,null,null,null,null,null,"18:40:00"]
[null,null,null,null,null,null,null,null,null,null,null,null,null,null,null,null,null,null,null,null,null,null,null,null,null,null,null,null,null,null,null,null,"18:45:00"]
[null,null,null,null,null,null,null,null,null,null,null,null,null,null,null,null,null,null,null,null,null,null,null,null,null,null,null,null,null,null,null,null,"18:50:00"]
[null,null,null,null,null,null,null,null,null,null,null,null,null,null,null,null,null,null,null,null,null,null,null,null,null,null,null,null,null,null,null,null,"19:00:00"]

{"sheet":"シート2-⑨","index":11,"n_rows":150,"n_cols":41,"rows_kept":150,"cut":false,"hidden":false,"merged":[[31,1,31,28],[17,36,17,37],[17,38,17,39],[28,2,28,14],[28,15,28,17],[28,18,28,20],[28,21,28,23],[23,15,23,17],[23,18,23,20],[23,21,23,23],[28,24,28,28],[30,1,30,28],[22,18,22,20],[22,21,22,23],[24,24,24,28],[27,24,27,28],[27,2,27,14],[24,15,24,17],[27,15,27,17],[27,18,27,20],[27,21,27,23],[25,18,25,20],[25,21,25,23],[24,18,24,20],[25,2,25,14],[25,15,25,17],[26,2,26,14],[26,15,26,17],[26,24,26,28],[21,2,21,14],[26,18,26,20],[26,21,26,23],[24,2,24,14],[21,18,21,20],[25,24,25,28],[23,24,23,28],[21,21,21,23],[22,15,22,17],[21,24,21,28],[24,21,24,23],[22,2,22,14],[23,2,23,14],[21,15,21,17],[15,38,15,39],[15,33,16,33],[15,24,16,28],[15,15,16,17],[15,18,16,20],[15,21,16,23],[15,34,15,35],[15,36,15,37],[17,34,17,35],[2,1,2,28],[5,1,5,2],[5,3,5,28],[6,1,6,2],[6,3,6,28],[13,4,13,20],[10,17,10,20],[17,1,17,14],[17,24,17,28],[17,15,17,17],[17,18,17,20],[17,21,17,23],[9,21,10,23],[9,24,10,28],[10,4,10,8],[12,24,13,28],[12,21,13,23],[9,1,10,2],[9,4,9,8],[9,9,10,10],[9,12,9,15],[9,17,9,20],[20,15,20,17],[10,12,10,15],[15,1,16,14],[12,1,13,2],[12,4,12,20],[18,2,18,14],[18,15,18,17],[20,2,20,14],[19,2,19,14],[19,15,19,17],[18,21,18,23],[18,24,18,28],[19,24,19,28],[22,24,22,28],[20,18,20,20],[20,21,20,23],[19,21,19,23],[18,18,18,20],[20,24,20,28],[19,18,19,20]]}
[null,"研修記録シート2（評価）"]
[]
[null,"この振り返りシートは、科目の受講前後で各自の理解度を把握し、受講中の学習効果の向上と、受講後の学習のポイントを焦点化し、継続的な資質向上に役立てるものです。本科目を学習した時点で感じた事を書き留め、今後の学習方針や課題への取り組みを考える際に見返してみましょう。"]
[]
[]
[null,"研修名：",null,"主任研修",null,null,null,null,null,null,null,null,null,null,null,null,null,null,null,null,null,null,null,null,null,null,null,null,null,null,null,null,null,null,null,null,null,null,null,null,"このボタンをクリックするとTOPページへ移動します。"]
[null,"課目名：",null,"⑨個別事例を通じた介護支援専門員に対する指導・支援の展開"]
[]
[]
[null,"受講日",null,1,"2025-03-05",null,null,null,null,"時間",null,1,"09:30:00",null,null,null,"～","16:30:00",null,null,null,"氏名",null,null,{"$f":"IF(ISBLANK(シート1!N7),\"\",シート1!N7)","v":""}]
[null,null,null,2,null,null,null,null,null,null,null,2,null,null,null,null,"～"]
[]
[null,"会場",null,1,"オンライン研修（Zoom）",null,null,null,null,null,null,null,null,null,null,null,null,null,null,null,null,"番号",null,null,{"$f":"IF(ISBLANK(シート1!N9),\"\",シート1!N9)","v":9999}]
[null,null,null,2]
[]
[null,"項　　目 ",null,null,null,null,null,null,null,null,null,null,null,null,null,"受講前 ",null,null,"受講\n直後",null,null,"実践\n評価\n(3ヶ月後）",null,null,"備　　考 ",null,null,null,null,null,null,"リスト（課程区分）","リスト（時間）",null,"受講前",null,"受講後 ",null,"実践評価"]
[null,null,null,null,null,null,null,null,null,null,null,null,null,null,null,null,null,null,null,null,null,null,null,null,null,null,null,null,null,null,null,null,"リストから選択",null,"理解度","習得度","理解度","習得度","理解度","習得度"]
[null,"記入日（入力日）",null,null,null,null,null,null,null,null,null,null,null,null,null,null,null,null,null,null,null,null,null,null,null,null,null,null,null,null,null,"リスト（課程区分）","リスト（時間）",null,"受講前",null,"受講後 ",null,"実践評価"]
[null,"① ","介護支援専門員が自ら問題解決できるような指導・支援を実施できる。",null,null,null,null,null,null,null,null,null,null,null,null,null,null,null,null,null,null,null,null,null,null,null,null,null,null,null,null,"Ⅰ","08:00:00",4,"4．理解している ","-","4．非常に理解が深まった ","4．習得できた ","4．非常に理解が深まった","4．習得度が上がった "]
[null,"② ","事業所内や地域の介護支援専門員への人材育成の実施支援及び指導・支援を実施できる。",null,null,null,null,null,null,null,null,null,null,null,null,null,null,null,null,null,null,null,null,null,null,null,null,null,null,null,null,"Ⅱ","08:05:00",3,"3．概ね理解している ","-","3．理解が深まった ","3．概ね習得できた ","3．理解が深まった","3．まあまあ習得度が上がった "]
[null,"③ ","事例検討・事例研究における指導・支援の実践的な展開方法（会議の設定と準備、介護支援専門員との関係構築、傾聴、承認、指導・支援の具体的な展開及びまとめと振り返り）を実施できる。",null,null,null,null,null,null,null,null,null,null,null,null,null,null,null,null,null,null,null,null,null,null,null,null,null,null,null,null,null,"08:10:00",2,"2．あまり理解していない ","-","2．あまり理解が進まなかった ","2．あまり習得できていない ","2．あまり理解度は変わらない ","2．習得度は変わらない "]
[null,"④ ","個々の事例について、指導・支援における関わり方（コーチング、ティーチング等）の使い分けと留意点について説明できる。",null,null,null,null,null,null,null,null,null,null,null,null,null,null,null,null,null,null,null,null,null,null,null,null,null,null,null,null,null,"08:15:00",1,"1．全く理解していない ","-","1．理解が進まなかった ","1．習得できていない ","1．理解度は変わらない。 ","1．理解度が深まり、習得度が後退した "]
[null,"⑤ ","事業者を越えた地域活動に積極的に参加し、その成果を活用して自らのケアマネジメントを実施できる。",null,null,null,null,null,null,null,null,null,null,null,null,null,null,null,null,null,null,null,null,null,null,null,null,null,null,null,null,null,"08:20:00"]
[null,"⑥","地域包括ケア実現のために、地域全体の課題を把握し、解決に向けた取り組みを実施できる。",null,null,null,null,null,null,null,null,null,null,null,null,null,null,null,null,null,null,null,null,null,null,null,null,null,null,null,null,null,"08:25:00"]
[null,"⑦","ネットワークづくり、社会資源の創出のために主任介護支援専門員としての役割を実施できる。",null,null,null,null,null,null,null,null,null,null,null,null,null,null,null,null,null,null,null,null,null,null,null,null,null,null,null,null,null,"08:30:00"]
[null,null,null,null,null,null,null,null,null,null,null,null,null,null,null,null,null,null,null,null,null,null,null,null,null,null,null,null,null,null,null,null,"08:35:00"]
[null,null,null,null,null,null,null,null,null,null,null,null,null,null,null,null,null,null,null,null,null,null,null,null,null,null,null,null,null,null,null,null,"08:40:00"]
[null,null,null,null,null,null,null,null,null,null,null,null,null,null,null,null,null,null,null,null,null,null,null,null,null,null,null,null,null,null,null,null,"08:45:00"]
[null,null,null,null,null,null,null,null,null,null,null,null,null,null,null,null,null,null,null,null,null,null,null,null,null,null,null,null,null,null,null,null,"08:50:00"]
[null,null,null,null,null,null,null,null,null,null,null,null,null,null,null,null,null,null,null,null,null,null,null,null,null,null,null,null,null,null,null,null,"08:55:00"]
[null,"　※研修は自己評価とし、4段階評価で、数字が大きいほど高評価、数字が小さいほど低評価として記入してください。",null,null,null,null,null,null,null,null,null,null,null,null,null,null,null,null,null,null,null,null,null,null,null,null,null,null,null,null,null,null,"09:00:00"]
[null,"　　【選択肢】　　　4.　できる　　　　　3.　概ねできる　　　　　2.　ほとんどできない　　　　1.　全くできない",null,null,null,null,null,null,null,null,null,null,null,null,null,null,null,null,null,null,null,null,null,null,null,null,null,null,null,null,null,null,"09:05:00"]
[null,null,null,null,null,null,null,null,null,null,null,null,null,null,null,null,null,null,null,null,null,null,null,null,null,null,null,null,null,null,null,null,"09:10:00"]
[null,null,null,null,null,null,null,null,null,null,null,null,null,null,null,null,null,null,null,null,null,null,null,null,null,null,null,null,null,null,null,null,"09:15:00"]
[null,null,null,null,null,null,null,null,null,null,null,null,null,null,null,null,null,null,null,null,null,null,null,null,null,null,null,null,null,null,null,null,"09:20:00"]
[null,null,null,null,null,null,null,null,null,null,null,null,null,null,null,null,null,null,null,null,null,null,null,null,null,null,null,null,null,null,null,null,"09:25:00"]
[null,null,null,null,null,null,null,null,null,null,null,null,null,null,null,null,null,null,null,null,null,null,null,null,null,null,null,null,null,null,null,null,"09:30:00"]
[null,null,null,null,null,null,null,null,null,null,null,null,null,null,null,null,null,null,null,null,null,null,null,null,null,null,null,null,null,null,null,null,"09:35:00"]
[null,null,null,null,null,null,null,null,null,null,null,null,null,null,null,null,null,null,null,null,null,null,null,null,null,null,null,null,null,null,null,null,"09:40:00"]
[null,null,null,null,null,null,null,null,null,null,null,null,null,null,null,null,null,null,null,null,null,null,null,null,null,null,null,null,null,null,null,null,"09:45:00"]
[null,null,null,null,null,null,null,null,null,null,null,null,null,null,null,null,null,null,null,null,null,null,null,null,null,null,null,null,null,null,null,null,"09:50:00"]
[null,null,null,null,null,null,null,null,null,null,null,null,null,null,null,null,null,null,null,null,null,null,null,null,null,null,null,null,null,null,null,null,"09:55:00"]
[null,null,null,null,null,null,null,null,null,null,null,null,null,null,null,null,null,null,null,null,null,null,null,null,null,null,null,null,null,null,null,null,"10:00:00"]
[null,null,null,null,null,null,null,null,null,null,null,null,null,null,null,null,null,null,null,null,null,null,null,null,null,null,null,null,null,null,null,null,"10:05:00"]
[null,null,null,null,null,null,null,null,null,null,null,null,null,null,null,null,null,null,null,null,null,null,null,null,null,null,null,null,null,null,null,null,"10:10:00"]
[null,null,null,null,null,null,null,null,null,null,null,null,null,null,null,null,null,null,null,null,null,null,null,null,null,null,null,null,null,null,null,null,"10:15:00"]
[null,null,null,null,null,null,null,null,null,null,null,null,null,null,null,null,null,null,null,null,null,null,null,null,null,null,null,null,null,null,null,null,"10:20:00"]
[null,null,null,null,null,null,null,null,null,null,null,null,null,null,null,null,null,null,null,null,null,null,null,null,null,null,null,null,null,null,null,null,"10:25:00"]
[null,null,null,null,null,null,null,null,null,null,null,null,null,null,null,null,null,null,null,null,null,null,null,null,null,null,null,null,null,null,null,null,"10:30:00"]
[null,null,null,null,null,null,null,null,null,null,null,null,null,null,null,null,null,null,null,null,null,null,null,null,null,null,null,null,null,null,null,null,"10:35:00"]
[null,null,null,null,null,null,null,null,null,null,null,null,null,null,null,null,null,null,null,null,null,null,null,null,null,null,null,null,null,null,null,null,"10:40:00"]
[null,null,null,null,null,null,null,null,null,null,null,null,null,null,null,null,null,null,null,null,null,null,null,null,null,null,null,null,null,null,null,null,"10:45:00"]
[null,null,null,null,null,null,null,null,null,null,null,null,null,null,null,null,null,null,null,null,null,null,null,null,null,null,null,null,null,null,null,null,"10:50:00"]
[null,null,null,null,null,null,null,null,null,null,null,null,null,null,null,null,null,null,null,null,null,null,null,null,null,null,null,null,null,null,null,null,"10:55:00"]
[null,null,null,null,null,null,null,null,null,null,null,null,null,null,null,null,null,null,null,null,null,null,null,null,null,null,null,null,null,null,null,null,"11:00:00"]
[null,null,null,null,null,null,null,null,null,null,null,null,null,null,null,null,null,null,null,null,null,null,null,null,null,null,null,null,null,null,null,null,"11:05:00"]
[null,null,null,null,null,null,null,null,null,null,null,null,null,null,null,null,null,null,null,null,null,null,null,null,null,null,null,null,null,null,null,null,"11:10:00"]
[null,null,null,null,null,null,null,null,null,null,null,null,null,null,null,null,null,null,null,null,null,null,null,null,null,null,null,null,null,null,null,null,"11:15:00"]
[null,null,null,null,null,null,null,null,null,null,null,null,null,null,null,null,null,null,null,null,null,null,null,null,null,null,null,null,null,null,null,null,"11:20:00"]
[null,null,null,null,null,null,null,null,null,null,null,null,null,null,null,null,null,null,null,null,null,null,null,null,null,null,null,null,null,null,null,null,"11:25:00"]
[null,null,null,null,null,null,null,null,null,null,null,null,null,null,null,null,null,null,null,null,null,null,null,null,null,null,null,null,null,null,null,null,"11:30:00"]
[null,null,null,null,null,null,null,null,null,null,null,null,null,null,null,null,null,null,null,null,null,null,null,null,null,null,null,null,null,null,null,null,"11:35:00"]
[null,null,null,null,null,null,null,null,null,null,null,null,null,null,null,null,null,null,null,null,null,null,null,null,null,null,null,null,null,null,null,null,"11:40:00"]
[null,null,null,null,null,null,null,null,null,null,null,null,null,null,null,null,null,null,null,null,null,null,null,null,null,null,null,null,null,null,null,null,"11:45:00"]
[null,null,null,null,null,null,null,null,null,null,null,null,null,null,null,null,null,null,null,null,null,null,null,null,null,null,null,null,null,null,null,null,"11:50:00"]
[null,null,null,null,null,null,null,null,null,null,null,null,null,null,null,null,null,null,null,null,null,null,null,null,null,null,null,null,null,null,null,null,"11:55:00"]
[null,null,null,null,null,null,null,null,null,null,null,null,null,null,null,null,null,null,null,null,null,null,null,null,null,null,null,null,null,null,null,null,"12:00:00"]
[null,null,null,null,null,null,null,null,null,null,null,null,null,null,null,null,null,null,null,null,null,null,null,null,null,null,null,null,null,null,null,null,"12:05:00"]
[null,null,null,null,null,null,null,null,null,null,null,null,null,null,null,null,null,null,null,null,null,null,null,null,null,null,null,null,null,null,null,null,"12:10:00"]
[null,null,null,null,null,null,null,null,null,null,null,null,null,null,null,null,null,null,null,null,null,null,null,null,null,null,null,null,null,null,null,null,"12:15:00"]
[null,null,null,null,null,null,null,null,null,null,null,null,null,null,null,null,null,null,null,null,null,null,null,null,null,null,null,null,null,null,null,null,"12:20:00"]
[null,null,null,null,null,null,null,null,null,null,null,null,null,null,null,null,null,null,null,null,null,null,null,null,null,null,null,null,null,null,null,null,"12:25:00"]
[null,null,null,null,null,null,null,null,null,null,null,null,null,null,null,null,null,null,null,null,null,null,null,null,null,null,null,null,null,null,null,null,"12:30:00"]
[null,null,null,null,null,null,null,null,null,null,null,null,null,null,null,null,null,null,null,null,null,null,null,null,null,null,null,null,null,null,null,null,"12:35:00"]
[null,null,null,null,null,null,null,null,null,null,null,null,null,null,null,null,null,null,null,null,null,null,null,null,null,null,null,null,null,null,null,null,"12:40:00"]
[null,null,null,null,null,null,null,null,null,null,null,null,null,null,null,null,null,null,null,null,null,null,null,null,null,null,null,null,null,null,null,null,"12:45:00"]
[null,null,null,null,null,null,null,null,null,null,null,null,null,null,null,null,null,null,null,null,null,null,null,null,null,null,null,null,null,null,null,null,"12:50:00"]
[null,null,null,null,null,null,null,null,null,null,null,null,null,null,null,null,null,null,null,null,null,null,null,null,null,null,null,null,null,null,null,null,"12:55:00"]
[null,null,null,null,null,null,null,null,null,null,null,null,null,null,null,null,null,null,null,null,null,null,null,null,null,null,null,null,null,null,null,null,"13:00:00"]
[null,null,null,null,null,null,null,null,null,null,null,null,null,null,null,null,null,null,null,null,null,null,null,null,null,null,null,null,null,null,null,null,"13:05:00"]
[null,null,null,null,null,null,null,null,null,null,null,null,null,null,null,null,null,null,null,null,null,null,null,null,null,null,null,null,null,null,null,null,"13:10:00"]
[null,null,null,null,null,null,null,null,null,null,null,null,null,null,null,null,null,null,null,null,null,null,null,null,null,null,null,null,null,null,null,null,"13:15:00"]
[null,null,null,null,null,null,null,null,null,null,null,null,null,null,null,null,null,null,null,null,null,null,null,null,null,null,null,null,null,null,null,null,"13:20:00"]
[null,null,null,null,null,null,null,null,null,null,null,null,null,null,null,null,null,null,null,null,null,null,null,null,null,null,null,null,null,null,null,null,"13:25:00"]
[null,null,null,null,null,null,null,null,null,null,null,null,null,null,null,null,null,null,null,null,null,null,null,null,null,null,null,null,null,null,null,null,"13:30:00"]
[null,null,null,null,null,null,null,null,null,null,null,null,null,null,null,null,null,null,null,null,null,null,null,null,null,null,null,null,null,null,null,null,"13:35:00"]
[null,null,null,null,null,null,null,null,null,null,null,null,null,null,null,null,null,null,null,null,null,null,null,null,null,null,null,null,null,null,null,null,"13:40:00"]
[null,null,null,null,null,null,null,null,null,null,null,null,null,null,null,null,null,null,null,null,null,null,null,null,null,null,null,null,null,null,null,null,"13:45:00"]
[null,null,null,null,null,null,null,null,null,null,null,null,null,null,null,null,null,null,null,null,null,null,null,null,null,null,null,null,null,null,null,null,"13:50:00"]
[null,null,null,null,null,null,null,null,null,null,null,null,null,null,null,null,null,null,null,null,null,null,null,null,null,null,null,null,null,null,null,null,"13:55:00"]
[null,null,null,null,null,null,null,null,null,null,null,null,null,null,null,null,null,null,null,null,null,null,null,null,null,null,null,null,null,null,null,null,"14:00:00"]
[null,null,null,null,null,null,null,null,null,null,null,null,null,null,null,null,null,null,null,null,null,null,null,null,null,null,null,null,null,null,null,null,"14:05:00"]
[null,null,null,null,null,null,null,null,null,null,null,null,null,null,null,null,null,null,null,null,null,null,null,null,null,null,null,null,null,null,null,null,"14:10:00"]
[null,null,null,null,null,null,null,null,null,null,null,null,null,null,null,null,null,null,null,null,null,null,null,null,null,null,null,null,null,null,null,null,"14:15:00"]
[null,null,null,null,null,null,null,null,null,null,null,null,null,null,null,null,null,null,null,null,null,null,null,null,null,null,null,null,null,null,null,null,"14:20:00"]
[null,null,null,null,null,null,null,null,null,null,null,null,null,null,null,null,null,null,null,null,null,null,null,null,null,null,null,null,null,null,null,null,"14:25:00"]
[null,null,null,null,null,null,null,null,null,null,null,null,null,null,null,null,null,null,null,null,null,null,null,null,null,null,null,null,null,null,null,null,"14:30:00"]
[null,null,null,null,null,null,null,null,null,null,null,null,null,null,null,null,null,null,null,null,null,null,null,null,null,null,null,null,null,null,null,null,"14:35:00"]
[null,null,null,null,null,null,null,null,null,null,null,null,null,null,null,null,null,null,null,null,null,null,null,null,null,null,null,null,null,null,null,null,"14:40:00"]
[null,null,null,null,null,null,null,null,null,null,null,null,null,null,null,null,null,null,null,null,null,null,null,null,null,null,null,null,null,null,null,null,"14:45:00"]
[null,null,null,null,null,null,null,null,null,null,null,null,null,null,null,null,null,null,null,null,null,null,null,null,null,null,null,null,null,null,null,null,"14:50:00"]
[null,null,null,null,null,null,null,null,null,null,null,null,null,null,null,null,null,null,null,null,null,null,null,null,null,null,null,null,null,null,null,null,"14:55:00"]
[null,null,null,null,null,null,null,null,null,null,null,null,null,null,null,null,null,null,null,null,null,null,null,null,null,null,null,null,null,null,null,null,"15:00:00"]
[null,null,null,null,null,null,null,null,null,null,null,null,null,null,null,null,null,null,null,null,null,null,null,null,null,null,null,null,null,null,null,null,"15:05:00"]
[null,null,null,null,null,null,null,null,null,null,null,null,null,null,null,null,null,null,null,null,null,null,null,null,null,null,null,null,null,null,null,null,"15:10:00"]
[null,null,null,null,null,null,null,null,null,null,null,null,null,null,null,null,null,null,null,null,null,null,null,null,null,null,null,null,null,null,null,null,"15:15:00"]
[null,null,null,null,null,null,null,null,null,null,null,null,null,null,null,null,null,null,null,null,null,null,null,null,null,null,null,null,null,null,null,null,"15:20:00"]
[null,null,null,null,null,null,null,null,null,null,null,null,null,null,null,null,null,null,null,null,null,null,null,null,null,null,null,null,null,null,null,null,"15:25:00"]
[null,null,null,null,null,null,null,null,null,null,null,null,null,null,null,null,null,null,null,null,null,null,null,null,null,null,null,null,null,null,null,null,"15:30:00"]
[null,null,null,null,null,null,null,null,null,null,null,null,null,null,null,null,null,null,null,null,null,null,null,null,null,null,null,null,null,null,null,null,"15:35:00"]
[null,null,null,null,null,null,null,null,null,null,null,null,null,null,null,null,null,null,null,null,null,null,null,null,null,null,null,null,null,null,null,null,"15:40:00"]
[null,null,null,null,null,null,null,null,null,null,null,null,null,null,null,null,null,null,null,null,null,null,null,null,null,null,null,null,null,null,null,null,"15:45:00"]
[null,null,null,null,null,null,null,null,null,null,null,null,null,null,null,null,null,null,null,null,null,null,null,null,null,null,null,null,null,null,null,null,"15:50:00"]
[null,null,null,null,null,null,null,null,null,null,null,null,null,null,null,null,null,null,null,null,null,null,null,null,null,null,null,null,null,null,null,null,"15:55:00"]
[null,null,null,null,null,null,null,null,null,null,null,null,null,null,null,null,null,null,null,null,null,null,null,null,null,null,null,null,null,null,null,null,"16:00:00"]
[null,null,null,null,null,null,null,null,null,null,null,null,null,null,null,null,null,null,null,null,null,null,null,null,null,null,null,null,null,null,null,null,"16:05:00"]
[null,null,null,null,null,null,null,null,null,null,null,null,null,null,null,null,null,null,null,null,null,null,null,null,null,null,null,null,null,null,null,null,"16:10:00"]
[null,null,null,null,null,null,null,null,null,null,null,null,null,null,null,null,null,null,null,null,null,null,null,null,null,null,null,null,null,null,null,null,"16:15:00"]
[null,null,null,null,null,null,null,null,null,null,null,null,null,null,null,null,null,null,null,null,null,null,null,null,null,null,null,null,null,null,null,null,"16:20:00"]
[null,null,null,null,null,null,null,null,null,null,null,null,null,null,null,null,null,null,null,null,null,null,null,null,null,null,null,null,null,null,null,null,"16:25:00"]
[null,null,null,null,null,null,null,null,null,null,null,null,null,null,null,null,null,null,null,null,null,null,null,null,null,null,null,null,null,null,null,null,"16:30:00"]
[null,null,null,null,null,null,null,null,null,null,null,null,null,null,null,null,null,null,null,null,null,null,null,null,null,null,null,null,null,null,null,null,"16:35:00"]
[null,null,null,null,null,null,null,null,null,null,null,null,null,null,null,null,null,null,null,null,null,null,null,null,null,null,null,null,null,null,null,null,"16:40:00"]
[null,null,null,null,null,null,null,null,null,null,null,null,null,null,null,null,null,null,null,null,null,null,null,null,null,null,null,null,null,null,null,null,"16:45:00"]
[null,null,null,null,null,null,null,null,null,null,null,null,null,null,null,null,null,null,null,null,null,null,null,null,null,null,null,null,null,null,null,null,"16:50:00"]
[null,null,null,null,null,null,null,null,null,null,null,null,null,null,null,null,null,null,null,null,null,null,null,null,null,null,null,null,null,null,null,null,"16:55:00"]
[null,null,null,null,null,null,null,null,null,null,null,null,null,null,null,null,null,null,null,null,null,null,null,null,null,null,null,null,null,null,null,null,"17:00:00"]
[null,null,null,null,null,null,null,null,null,null,null,null,null,null,null,null,null,null,null,null,null,null,null,null,null,null,null,null,null,null,null,null,"17:05:00"]
[null,null,null,null,null,null,null,null,null,null,null,null,null,null,null,null,null,null,null,null,null,null,null,null,null,null,null,null,null,null,null,null,"17:10:00"]
[null,null,null,null,null,null,null,null,null,null,null,null,null,null,null,null,null,null,null,null,null,null,null,null,null,null,null,null,null,null,null,null,"17:15:00"]
[null,null,null,null,null,null,null,null,null,null,null,null,null,null,null,null,null,null,null,null,null,null,null,null,null,null,null,null,null,null,null,null,"17:20:00"]
[null,null,null,null,null,null,null,null,null,null,null,null,null,null,null,null,null,null,null,null,null,null,null,null,null,null,null,null,null,null,null,null,"17:25:00"]
[null,null,null,null,null,null,null,null,null,null,null,null,null,null,null,null,null,null,null,null,null,null,null,null,null,null,null,null,null,null,null,null,"17:30:00"]
[null,null,null,null,null,null,null,null,null,null,null,null,null,null,null,null,null,null,null,null,null,null,null,null,null,null,null,null,null,null,null,null,"17:35:00"]
[null,null,null,null,null,null,null,null,null,null,null,null,null,null,null,null,null,null,null,null,null,null,null,null,null,null,null,null,null,null,null,null,"17:40:00"]
[null,null,null,null,null,null,null,null,null,null,null,null,null,null,null,null,null,null,null,null,null,null,null,null,null,null,null,null,null,null,null,null,"17:45:00"]
[null,null,null,null,null,null,null,null,null,null,null,null,null,null,null,null,null,null,null,null,null,null,null,null,null,null,null,null,null,null,null,null,"17:50:00"]
[null,null,null,null,null,null,null,null,null,null,null,null,null,null,null,null,null,null,null,null,null,null,null,null,null,null,null,null,null,null,null,null,"17:55:00"]
[null,null,null,null,null,null,null,null,null,null,null,null,null,null,null,null,null,null,null,null,null,null,null,null,null,null,null,null,null,null,null,null,"18:00:00"]
[null,null,null,null,null,null,null,null,null,null,null,null,null,null,null,null,null,null,null,null,null,null,null,null,null,null,null,null,null,null,null,null,"18:05:00"]
[null,null,null,null,null,null,null,null,null,null,null,null,null,null,null,null,null,null,null,null,null,null,null,null,null,null,null,null,null,null,null,null,"18:10:00"]
[null,null,null,null,null,null,null,null,null,null,null,null,null,null,null,null,null,null,null,null,null,null,null,null,null,null,null,null,null,null,null,null,"18:15:00"]
[null,null,null,null,null,null,null,null,null,null,null,null,null,null,null,null,null,null,null,null,null,null,null,null,null,null,null,null,null,null,null,null,"18:20:00"]
[null,null,null,null,null,null,null,null,null,null,null,null,null,null,null,null,null,null,null,null,null,null,null,null,null,null,null,null,null,null,null,null,"18:25:00"]
[null,null,null,null,null,null,null,null,null,null,null,null,null,null,null,null,null,null,null,null,null,null,null,null,null,null,null,null,null,null,null,null,"18:30:00"]
[null,null,null,null,null,null,null,null,null,null,null,null,null,null,null,null,null,null,null,null,null,null,null,null,null,null,null,null,null,null,null,null,"18:35:00"]
[null,null,null,null,null,null,null,null,null,null,null,null,null,null,null,null,null,null,null,null,null,null,null,null,null,null,null,null,null,null,null,null,"18:40:00"]
[null,null,null,null,null,null,null,null,null,null,null,null,null,null,null,null,null,null,null,null,null,null,null,null,null,null,null,null,null,null,null,null,"18:45:00"]
[null,null,null,null,null,null,null,null,null,null,null,null,null,null,null,null,null,null,null,null,null,null,null,null,null,null,null,null,null,null,null,null,"18:50:00"]
[null,null,null,null,null,null,null,null,null,null,null,null,null,null,null,null,null,null,null,null,null,null,null,null,null,null,null,null,null,null,null,null,"19:00:00"]

{"sheet":"シート3-①","index":12,"n_rows":21,"n_cols":32,"rows_kept":21,"cut":false,"hidden":false,"merged":[[19,2,19,8],[19,9,19,28],[20,2,20,8],[20,9,20,28],[15,1,16,8],[15,9,16,28],[17,2,17,8],[17,9,17,28],[18,2,18,8],[18,9,18,28],[12,1,13,2],[12,4,12,20],[12,21,13,23],[12,24,13,28],[13,4,13,20],[9,21,10,23],[9,24,10,28],[10,4,10,8],[10,12,10,15],[10,17,10,20],[9,1,10,2],[9,4,9,8],[9,9,10,10],[9,12,9,15],[9,17,9,20],[2,1,2,28],[5,1,5,2],[5,3,5,28],[6,1,6,2],[6,3,6,28]]}
[null,"研修記録シート3（振り返り）"]
[]
[null,"この振り返りシートは、科目の受講前後で各自の理解度を把握し、受講中の学習効果の向上と、受講後の学習のポイントを焦点化し、継続的な資質向上に役立てるものです。本科目を学習した時点で感じた事を書き留め、今後の学習方針や課題への取り組みを考える際に見返してみましょう。"]
[]
[]
[null,"研修名：",null,"主任研修",null,null,null,null,null,null,null,null,null,null,null,null,null,null,null,null,null,null,null,null,null,null,null,null,null,null,null,"このボタンをクリックするとTOPページへ移動します。"]
[null,"課目名：",null,{"$f":"'シート2-①'!D7:AC7","v":"①主任介護支援専門員の役割と視点"}]
[]
[]
[null,"受講日",null,1,{"$f":"IF(ISBLANK('シート2-①'!E10),\"\",'シート2-①'!E10)","v":"2024-11-09"},null,null,null,null,"時間",null,1,{"$f":"IF(ISBLANK('シート2-①'!M10),\"\",'シート2-①'!M10)","v":"10:00:00"},null,null,null,"～",{"$f":"IF(ISBLANK('シート2-①'!R10),\"\",'シート2-①'!R10)","v":"12:00:00"},null,null,null,"氏名",null,null,{"$f":"IF(ISBLANK(シート1!N7),\"\",シート1!N7)","v":""}]
[null,null,null,2,{"$f":"IF(ISBLANK('シート2-①'!E11),\"\",'シート2-①'!E11)","v":"2024-11-09"},null,null,null,null,null,null,2,{"$f":"IF(ISBLANK('シート2-①'!M11),\"\",'シート2-①'!M11)","v":"13:00:00"},null,null,null,"～",{"$f":"IF(ISBLANK('シート2-①'!R11),\"\",'シート2-①'!R11)","v":"16:00:00"}]
[]
[null,"会場",null,1,{"$f":"IF(ISBLANK('シート2-①'!E13),\"\",'シート2-①'!E13)","v":"オンライン研修（Zoom）"},null,null,null,null,null,null,null,null,null,null,null,null,null,null,null,null,"番号",null,null,{"$f":"IF(ISBLANK(シート1!N9),\"\",シート1!N9)","v":9999}]
[null,null,null,2,{"$f":"IF(ISBLANK('シート2-①'!E14),\"\",'シート2-①'!E14)","v":"オンライン研修（Zoom）"}]
[]
[null,"項　　目 ",null,null,null,null,null,null,null,"内容"]
[]
[null,"①","あなたのケアマネジメント実践を高めるために得たことは何ですか"]
[null,"②","得たことを実践でどのように活かせそうですか"]
[null,"③","本課目に関連して、あなたが更に学んでいく必要があると考えることは何ですか"]
[null,"④","その他、この課目で感じたことは何ですか"]

{"sheet":"シート3-②","index":13,"n_rows":21,"n_cols":32,"rows_kept":21,"cut":false,"hidden":false,"merged":[[19,2,19,8],[19,9,19,28],[20,2,20,8],[20,9,20,28],[15,1,16,8],[15,9,16,28],[17,2,17,8],[17,9,17,28],[18,2,18,8],[18,9,18,28],[12,1,13,2],[12,4,12,20],[12,21,13,23],[12,24,13,28],[13,4,13,20],[9,21,10,23],[9,24,10,28],[10,4,10,8],[10,12,10,15],[10,17,10,20],[9,1,10,2],[9,4,9,8],[9,9,10,10],[9,12,9,15],[9,17,9,20],[2,1,2,28],[5,1,5,2],[5,3,5,28],[6,1,6,2],[6,3,6,28]]}
[null,"研修記録シート3（振り返り）"]
[]
[null,"この振り返りシートは、科目の受講前後で各自の理解度を把握し、受講中の学習効果の向上と、受講後の学習のポイントを焦点化し、継続的な資質向上に役立てるものです。本科目を学習した時点で感じた事を書き留め、今後の学習方針や課題への取り組みを考える際に見返してみましょう。"]
[]
[]
[null,"研修名：",null,"主任研修",null,null,null,null,null,null,null,null,null,null,null,null,null,null,null,null,null,null,null,null,null,null,null,null,null,null,null,"このボタンをクリックするとTOPページへ移動します。"]
[null,"課目名：",null,{"$f":"'シート2-②'!D7:AC7","v":"②ケアマネジメントの実践における倫理的な課題に対する支援"}]
[]
[]
[null,"受講日",null,1,{"$f":"IF(ISBLANK('シート2-②'!E10),\"\",'シート2-②'!E10)","v":"2024-11-20"},null,null,null,null,"時間",null,1,{"$f":"IF(ISBLANK('シート2-②'!M10),\"\",'シート2-②'!M10)","v":"09:30:00"},null,null,null,"～",{"$f":"IF(ISBLANK('シート2-②'!R10),\"\",'シート2-②'!R10)","v":"12:30:00"},null,null,null,"氏名",null,null,{"$f":"IF(ISBLANK(シート1!N7),\"\",シート1!N7)","v":""}]
[null,null,null,2,{"$f":"IF(ISBLANK('シート2-②'!E11),\"\",'シート2-②'!E11)","v":""},null,null,null,null,null,null,2,{"$f":"IF(ISBLANK('シート2-②'!M11),\"\",'シート2-②'!M11)","v":""},null,null,null,"～",{"$f":"IF(ISBLANK('シート2-②'!R11),\"\",'シート2-②'!R11)","v":""}]
[]
[null,"会場",null,1,{"$f":"IF(ISBLANK('シート2-②'!E13),\"\",'シート2-②'!E13)","v":"オンライン研修（Zoom）"},null,null,null,null,null,null,null,null,null,null,null,null,null,null,null,null,"番号",null,null,{"$f":"IF(ISBLANK(シート1!N9),\"\",シート1!N9)","v":9999}]
[null,null,null,2,{"$f":"IF(ISBLANK('シート2-②'!E14),\"\",'シート2-②'!E14)","v":""}]
[]
[null,"項　　目 ",null,null,null,null,null,null,null,"内容"]
[]
[null,"①","あなたのケアマネジメント実践を高めるために得たことは何ですか"]
[null,"②","得たことを実践でどのように活かせそうですか"]
[null,"③","本課目に関連して、あなたが更に学んでいく必要があると考えることは何ですか"]
[null,"④","その他、この課目で感じたことは何ですか"]

{"sheet":"シート3-③","index":14,"n_rows":21,"n_cols":32,"rows_kept":21,"cut":false,"hidden":false,"merged":[[2,1,2,28],[5,1,5,2],[5,3,5,28],[6,1,6,2],[6,3,6,28],[9,1,10,2],[9,4,9,8],[9,9,10,10],[9,12,9,15],[9,17,9,20],[9,21,10,23],[9,24,10,28],[10,4,10,8],[10,12,10,15],[10,17,10,20],[12,1,13,2],[12,4,12,20],[12,21,13,23],[12,24,13,28],[13,4,13,20],[19,2,19,8],[19,9,19,28],[20,2,20,8],[20,9,20,28],[15,1,16,8],[15,9,16,28],[17,2,17,8],[17,9,17,28],[18,2,18,8],[18,9,18,28]]}
[null,"研修記録シート3（振り返り）"]
[]
[null,"この振り返りシートは、科目の受講前後で各自の理解度を把握し、受講中の学習効果の向上と、受講後の学習のポイントを焦点化し、継続的な資質向上に役立てるものです。本科目を学習した時点で感じた事を書き留め、今後の学習方針や課題への取り組みを考える際に見返してみましょう。"]
[]
[]
[null,"研修名：",null,"主任研修",null,null,null,null,null,null,null,null,null,null,null,null,null,null,null,null,null,null,null,null,null,null,null,null,null,null,null,"このボタンをクリックするとTOPページへ移動します。"]
[null,"課目名：",null,{"$f":"'シート2-③'!D7:AC7","v":"③終末期ケア（EOL（エンドオブライフ）ケア）を含めた生活の継続を支える基本的なケアマネジメント及び疾患別ケアマネジメントの理解"}]
[]
[]
[null,"受講日",null,1,{"$f":"IF(ISBLANK('シート2-③'!E10),\"\",'シート2-③'!E10)","v":"2024-12-01"},null,null,null,null,"時間",null,1,{"$f":"IF(ISBLANK('シート2-③'!M10),\"\",'シート2-③'!M10)","v":"09:30:00"},null,null,null,"～",{"$f":"IF(ISBLANK('シート2-③'!R10),\"\",'シート2-③'!R10)","v":"12:30:00"},null,null,null,"氏名",null,null,{"$f":"IF(ISBLANK(シート1!N7),\"\",シート1!N7)","v":""}]
[null,null,null,2,{"$f":"IF(ISBLANK('シート2-③'!E11),\"\",'シート2-③'!E11)","v":""},null,null,null,null,null,null,2,{"$f":"IF(ISBLANK('シート2-③'!M11),\"\",'シート2-③'!M11)","v":""},null,null,null,"～",{"$f":"IF(ISBLANK('シート2-③'!R11),\"\",'シート2-③'!R11)","v":""}]
[]
[null,"会場",null,1,{"$f":"IF(ISBLANK('シート2-③'!E13),\"\",'シート2-③'!E13)","v":"オンライン研修（Zoom）"},null,null,null,null,null,null,null,null,null,null,null,null,null,null,null,null,"番号",null,null,{"$f":"IF(ISBLANK(シート1!N9),\"\",シート1!N9)","v":9999}]
[null,null,null,2,{"$f":"IF(ISBLANK('シート2-③'!E14),\"\",'シート2-③'!E14)","v":""}]
[]
[null,"項　　目 ",null,null,null,null,null,null,null,"内容"]
[]
[null,"①","あなたのケアマネジメント実践を高めるために得たことは何ですか"]
[null,"②","得たことを実践でどのように活かせそうですか"]
[null,"③","本課目に関連して、あなたが更に学んでいく必要があると考えることは何ですか"]
[null,"④","その他、この課目で感じたことは何ですか"]

{"sheet":"シート3-④","index":15,"n_rows":21,"n_cols":32,"rows_kept":21,"cut":false,"hidden":false,"merged":[[2,1,2,28],[5,1,5,2],[5,3,5,28],[6,1,6,2],[6,3,6,28],[9,1,10,2],[9,4,9,8],[9,9,10,10],[9,12,9,15],[9,17,9,20],[9,21,10,23],[9,24,10,28],[10,4,10,8],[10,12,10,15],[10,17,10,20],[12,1,13,2],[12,4,12,20],[12,21,13,23],[12,24,13,28],[13,4,13,20],[19,2,19,8],[19,9,19,28],[20,2,20,8],[20,9,20,28],[15,1,16,8],[15,9,16,28],[17,2,17,8],[17,9,17,28],[18,2,18,8],[18,9,18,28]]}
[null,"研修記録シート3（振り返り）"]
[]
[null,"この振り返りシートは、科目の受講前後で各自の理解度を把握し、受講中の学習効果の向上と、受講後の学習のポイントを焦点化し、継続的な資質向上に役立てるものです。本科目を学習した時点で感じた事を書き留め、今後の学習方針や課題への取り組みを考える際に見返してみましょう。"]
[]
[]
[null,"研修名：",null,"主任研修",null,null,null,null,null,null,null,null,null,null,null,null,null,null,null,null,null,null,null,null,null,null,null,null,null,null,null,"このボタンをクリックするとTOPページへ移動します。"]
[null,"課目名：",null,{"$f":"'シート2-④'!D7:AC7","v":"④人材育成及び業務管理"}]
[]
[]
[null,"受講日",null,1,{"$f":"IF(ISBLANK('シート2-④'!E10),\"\",'シート2-④'!E10)","v":"2024-11-20"},null,null,null,null,"時間",null,1,{"$f":"IF(ISBLANK('シート2-④'!M10),\"\",'シート2-④'!M10)","v":"13:30:00"},null,null,null,"～",{"$f":"IF(ISBLANK('シート2-④'!R10),\"\",'シート2-④'!R10)","v":"16:30:00"},null,null,null,"氏名",null,null,{"$f":"IF(ISBLANK(シート1!N7),\"\",シート1!N7)","v":""}]
[null,null,null,2,{"$f":"IF(ISBLANK('シート2-④'!E11),\"\",'シート2-④'!E11)","v":""},null,null,null,null,null,null,2,{"$f":"IF(ISBLANK('シート2-④'!M11),\"\",'シート2-④'!M11)","v":""},null,null,null,"～",{"$f":"IF(ISBLANK('シート2-④'!R11),\"\",'シート2-④'!R11)","v":""}]
[]
[null,"会場",null,1,{"$f":"IF(ISBLANK('シート2-④'!E13),\"\",'シート2-④'!E13)","v":"オンライン研修（Zoom）"},null,null,null,null,null,null,null,null,null,null,null,null,null,null,null,null,"番号",null,null,{"$f":"IF(ISBLANK(シート1!N9),\"\",シート1!N9)","v":9999}]
[null,null,null,2,{"$f":"IF(ISBLANK('シート2-④'!E14),\"\",'シート2-④'!E14)","v":""}]
[]
[null,"項　　目 ",null,null,null,null,null,null,null,"内容"]
[]
[null,"①","あなたのケアマネジメント実践を高めるために得たことは何ですか"]
[null,"②","得たことを実践でどのように活かせそうですか"]
[null,"③","本課目に関連して、あなたが更に学んでいく必要があると考えることは何ですか"]
[null,"④","その他、この課目で感じたことは何ですか"]

{"sheet":"シート3-⑤","index":16,"n_rows":21,"n_cols":32,"rows_kept":21,"cut":false,"hidden":false,"merged":[[2,1,2,28],[5,1,5,2],[5,3,5,28],[6,1,6,2],[6,3,6,28],[9,1,10,2],[9,4,9,8],[9,9,10,10],[9,12,9,15],[9,17,9,20],[9,21,10,23],[9,24,10,28],[10,4,10,8],[10,12,10,15],[10,17,10,20],[12,1,13,2],[12,4,12,20],[12,21,13,23],[12,24,13,28],[13,4,13,20],[19,2,19,8],[19,9,19,28],[20,2,20,8],[20,9,20,28],[15,1,16,8],[15,9,16,28],[17,2,17,8],[17,9,17,28],[18,2,18,8],[18,9,18,28]]}
[null,"研修記録シート3（振り返り）"]
[]
[null,"この振り返りシートは、科目の受講前後で各自の理解度を把握し、受講中の学習効果の向上と、受講後の学習のポイントを焦点化し、継続的な資質向上に役立てるものです。本科目を学習した時点で感じた事を書き留め、今後の学習方針や課題への取り組みを考える際に見返してみましょう。"]
[]
[]
[null,"研修名：",null,"主任研修",null,null,null,null,null,null,null,null,null,null,null,null,null,null,null,null,null,null,null,null,null,null,null,null,null,null,null,"このボタンをクリックするとTOPページへ移動します。"]
[null,"課目名：",null,{"$f":"'シート2-⑤'!D7:AC7","v":"⑤運営管理におけるリスクマネジメント"}]
[]
[]
[null,"受講日",null,1,{"$f":"IF(ISBLANK('シート2-⑤'!E10),\"\",'シート2-⑤'!E10)","v":"2024-12-01"},null,null,null,null,"時間",null,1,{"$f":"IF(ISBLANK('シート2-⑤'!M10),\"\",'シート2-⑤'!M10)","v":"13:30:00"},null,null,null,"～",{"$f":"IF(ISBLANK('シート2-⑤'!R10),\"\",'シート2-⑤'!R10)","v":"16:30:00"},null,null,null,"氏名",null,null,{"$f":"IF(ISBLANK(シート1!N7),\"\",シート1!N7)","v":""}]
[null,null,null,2,{"$f":"IF(ISBLANK('シート2-⑤'!E11),\"\",'シート2-⑤'!E11)","v":""},null,null,null,null,null,null,2,{"$f":"IF(ISBLANK('シート2-⑤'!M11),\"\",'シート2-⑤'!M11)","v":""},null,null,null,"～",{"$f":"IF(ISBLANK('シート2-⑤'!R11),\"\",'シート2-⑤'!R11)","v":""}]
[]
[null,"会場",null,1,{"$f":"IF(ISBLANK('シート2-⑤'!E13),\"\",'シート2-⑤'!E13)","v":"オンライン研修（Zoom）"},null,null,null,null,null,null,null,null,null,null,null,null,null,null,null,null,"番号",null,null,{"$f":"IF(ISBLANK(シート1!N9),\"\",シート1!N9)","v":9999}]
[null,null,null,2,{"$f":"IF(ISBLANK('シート2-⑤'!E14),\"\",'シート2-⑤'!E14)","v":""}]
[]
[null,"項　　目 ",null,null,null,null,null,null,null,"内容"]
[]
[null,"①","あなたのケアマネジメント実践を高めるために得たことは何ですか"]
[null,"②","得たことを実践でどのように活かせそうですか"]
[null,"③","本課目に関連して、あなたが更に学んでいく必要があると考えることは何ですか"]
[null,"④","その他、この課目で感じたことは何ですか"]

{"sheet":"シート3-⑥","index":17,"n_rows":21,"n_cols":32,"rows_kept":21,"cut":false,"hidden":false,"merged":[[2,1,2,28],[5,1,5,2],[5,3,5,28],[6,1,6,2],[6,3,6,28],[9,1,10,2],[9,4,9,8],[9,9,10,10],[9,12,9,15],[9,17,9,20],[9,21,10,23],[9,24,10,28],[10,4,10,8],[10,12,10,15],[10,17,10,20],[12,1,13,2],[12,4,12,20],[12,21,13,23],[12,24,13,28],[13,4,13,20],[19,2,19,8],[19,9,19,28],[20,2,20,8],[20,9,20,28],[15,1,16,8],[15,9,16,28],[17,2,17,8],[17,9,17,28],[18,2,18,8],[18,9,18,28]]}
[null,"研修記録シート3（振り返り）"]
[]
[null,"この振り返りシートは、科目の受講前後で各自の理解度を把握し、受講中の学習効果の向上と、受講後の学習のポイントを焦点化し、継続的な資質向上に役立てるものです。本科目を学習した時点で感じた事を書き留め、今後の学習方針や課題への取り組みを考える際に見返してみましょう。"]
[]
[]
[null,"研修名：",null,"主任研修",null,null,null,null,null,null,null,null,null,null,null,null,null,null,null,null,null,null,null,null,null,null,null,null,null,null,null,"このボタンをクリックするとTOPページへ移動します。"]
[null,"課目名：",null,{"$f":"'シート2-⑥'!D7:AC7","v":"⑥地域援助技術（コミュニティソーシャルワーク）"}]
[]
[]
[null,"受講日",null,1,{"$f":"IF(ISBLANK('シート2-⑥'!E10),\"\",'シート2-⑥'!E10)","v":"2025-01-19"},null,null,null,null,"時間",null,1,{"$f":"IF(ISBLANK('シート2-⑥'!M10),\"\",'シート2-⑥'!M10)","v":"09:30:00"},null,null,null,"～",{"$f":"IF(ISBLANK('シート2-⑥'!R10),\"\",'シート2-⑥'!R10)","v":"16:30:00"},null,null,null,"氏名",null,null,{"$f":"IF(ISBLANK(シート1!N7),\"\",シート1!N7)","v":""}]
[null,null,null,2,{"$f":"IF(ISBLANK('シート2-⑥'!E11),\"\",'シート2-⑥'!E11)","v":""},null,null,null,null,null,null,2,{"$f":"IF(ISBLANK('シート2-⑥'!M11),\"\",'シート2-⑥'!M11)","v":""},null,null,null,"～",{"$f":"IF(ISBLANK('シート2-⑥'!R11),\"\",'シート2-⑥'!R11)","v":""}]
[]
[null,"会場",null,1,{"$f":"IF(ISBLANK('シート2-⑥'!E13),\"\",'シート2-⑥'!E13)","v":"オンライン研修（Zoom）"},null,null,null,null,null,null,null,null,null,null,null,null,null,null,null,null,"番号",null,null,{"$f":"IF(ISBLANK(シート1!N9),\"\",シート1!N9)","v":9999}]
[null,null,null,2,{"$f":"IF(ISBLANK('シート2-⑥'!E14),\"\",'シート2-⑥'!E14)","v":""}]
[]
[null,"項　　目 ",null,null,null,null,null,null,null,"内容"]
[]
[null,"①","あなたのケアマネジメント実践を高めるために得たことは何ですか"]
[null,"②","得たことを実践でどのように活かせそうですか"]
[null,"③","本課目に関連して、あなたが更に学んでいく必要があると考えることは何ですか"]
[null,"④","その他、この課目で感じたことは何ですか"]

{"sheet":"シート3-⑦","index":18,"n_rows":21,"n_cols":32,"rows_kept":21,"cut":false,"hidden":false,"merged":[[2,1,2,28],[5,1,5,2],[5,3,5,28],[6,1,6,2],[6,3,6,28],[9,1,10,2],[9,4,9,8],[9,9,10,10],[9,12,9,15],[9,17,9,20],[9,21,10,23],[9,24,10,28],[10,4,10,8],[10,12,10,15],[10,17,10,20],[12,1,13,2],[12,4,12,20],[12,21,13,23],[12,24,13,28],[13,4,13,20],[19,2,19,8],[19,9,19,28],[20,2,20,8],[20,9,20,28],[15,1,16,8],[15,9,16,28],[17,2,17,8],[17,9,17,28],[18,2,18,8],[18,9,18,28]]}
[null,"研修記録シート3（振り返り）"]
[]
[null,"この振り返りシートは、科目の受講前後で各自の理解度を把握し、受講中の学習効果の向上と、受講後の学習のポイントを焦点化し、継続的な資質向上に役立てるものです。本科目を学習した時点で感じた事を書き留め、今後の学習方針や課題への取り組みを考える際に見返してみましょう。"]
[]
[]
[null,"研修名：",null,"主任研修",null,null,null,null,null,null,null,null,null,null,null,null,null,null,null,null,null,null,null,null,null,null,null,null,null,null,null,"このボタンをクリックするとTOPページへ移動します。"]
[null,"課目名：",null,{"$f":"'シート2-⑦'!D7:AC7","v":"⑦地域における生活の継続を支える医療との連携及び多職種協働の実現"}]
[]
[]
[null,"受講日",null,1,{"$f":"IF(ISBLANK('シート2-⑦'!E10),\"\",'シート2-⑦'!E10)","v":"2024-11-26"},null,null,null,null,"時間",null,1,{"$f":"IF(ISBLANK('シート2-⑦'!M10),\"\",'シート2-⑦'!M10)","v":"09:30:00"},null,null,null,"～",{"$f":"IF(ISBLANK('シート2-⑦'!R10),\"\",'シート2-⑦'!R10)","v":"16:30:00"},null,null,null,"氏名",null,null,{"$f":"IF(ISBLANK(シート1!N7),\"\",シート1!N7)","v":""}]
[null,null,null,2,{"$f":"IF(ISBLANK('シート2-⑦'!E11),\"\",'シート2-⑦'!E11)","v":""},null,null,null,null,null,null,2,{"$f":"IF(ISBLANK('シート2-⑦'!M11),\"\",'シート2-⑦'!M11)","v":""},null,null,null,"～",{"$f":"IF(ISBLANK('シート2-⑦'!R11),\"\",'シート2-⑦'!R11)","v":""}]
[]
[null,"会場",null,1,{"$f":"IF(ISBLANK('シート2-⑦'!E13),\"\",'シート2-⑦'!E13)","v":"オンライン研修（Zoom）"},null,null,null,null,null,null,null,null,null,null,null,null,null,null,null,null,"番号",null,null,{"$f":"IF(ISBLANK(シート1!N9),\"\",シート1!N9)","v":9999}]
[null,null,null,2,{"$f":"IF(ISBLANK('シート2-⑦'!E14),\"\",'シート2-⑦'!E14)","v":""}]
[]
[null,"項　　目 ",null,null,null,null,null,null,null,"内容"]
[]
[null,"①","あなたのケアマネジメント実践を高めるために得たことは何ですか"]
[null,"②","得たことを実践でどのように活かせそうですか"]
[null,"③","本課目に関連して、あなたが更に学んでいく必要があると考えることは何ですか"]
[null,"④","その他、この課目で感じたことは何ですか"]

{"sheet":"シート3-⑧","index":19,"n_rows":21,"n_cols":32,"rows_kept":21,"cut":false,"hidden":false,"merged":[[2,1,2,28],[5,1,5,2],[5,3,5,28],[6,1,6,2],[6,3,6,28],[9,1,10,2],[9,4,9,8],[9,9,10,10],[9,12,9,15],[9,17,9,20],[9,21,10,23],[9,24,10,28],[10,4,10,8],[10,12,10,15],[10,17,10,20],[12,1,13,2],[12,4,12,20],[12,21,13,23],[12,24,13,28],[13,4,13,20],[19,2,19,8],[19,9,19,28],[20,2,20,8],[20,9,20,28],[15,1,16,8],[15,9,16,28],[17,2,17,8],[17,9,17,28],[18,2,18,8],[18,9,18,28]]}
[null,"研修記録シート3（振り返り）"]
[]
[null,"この振り返りシートは、科目の受講前後で各自の理解度を把握し、受講中の学習効果の向上と、受講後の学習のポイントを焦点化し、継続的な資質向上に役立てるものです。本科目を学習した時点で感じた事を書き留め、今後の学習方針や課題への取り組みを考える際に見返してみましょう。"]
[]
[]
[null,"研修名：",null,"主任研修",null,null,null,null,null,null,null,null,null,null,null,null,null,null,null,null,null,null,null,null,null,null,null,null,null,null,null,"このボタンをクリックするとTOPページへ移動します。"]
[null,"課目名：",null,{"$f":"'シート2-⑧'!D7:AC7","v":"⑧対人援助者監督指導（スーパービジョン）"}]
[]
[]
[null,"受講日",null,1,{"$f":"IF(ISBLANK('シート2-⑧'!E10),\"\",'シート2-⑧'!E10)","v":"2025-02-04"},null,null,null,null,"時間",null,1,{"$f":"IF(ISBLANK('シート2-⑧'!M10),\"\",'シート2-⑧'!M10)","v":"09:30:00"},null,null,null,"～",{"$f":"IF(ISBLANK('シート2-⑧'!R10),\"\",'シート2-⑧'!R10)","v":"16:30:00"},null,null,null,"氏名",null,null,{"$f":"IF(ISBLANK(シート1!N7),\"\",シート1!N7)","v":""}]
[null,null,null,2,{"$f":"IF(ISBLANK('シート2-⑧'!E11),\"\",'シート2-⑧'!E11)","v":""},null,null,null,null,null,null,2,{"$f":"IF(ISBLANK('シート2-⑧'!M11),\"\",'シート2-⑧'!M11)","v":""},null,null,null,"～",{"$f":"IF(ISBLANK('シート2-⑧'!R11),\"\",'シート2-⑧'!R11)","v":""}]
[]
[null,"会場",null,1,{"$f":"IF(ISBLANK('シート2-⑧'!E13),\"\",'シート2-⑧'!E13)","v":"オンライン研修（Zoom）"},null,null,null,null,null,null,null,null,null,null,null,null,null,null,null,null,"番号",null,null,{"$f":"IF(ISBLANK(シート1!N9),\"\",シート1!N9)","v":9999}]
[null,null,null,2,{"$f":"IF(ISBLANK('シート2-⑧'!E14),\"\",'シート2-⑧'!E14)","v":""}]
[]
[null,"項　　目 ",null,null,null,null,null,null,null,"内容"]
[]
[null,"①","あなたのケアマネジメント実践を高めるために得たことは何ですか"]
[null,"②","得たことを実践でどのように活かせそうですか"]
[null,"③","本課目に関連して、あなたが更に学んでいく必要があると考えることは何ですか"]
[null,"④","その他、この課目で感じたことは何ですか"]

{"sheet":"シート3-⑨","index":20,"n_rows":21,"n_cols":32,"rows_kept":21,"cut":false,"hidden":false,"merged":[[2,1,2,28],[5,1,5,2],[5,3,5,28],[6,1,6,2],[6,3,6,28],[9,1,10,2],[9,4,9,8],[9,9,10,10],[9,12,9,15],[9,17,9,20],[9,21,10,23],[9,24,10,28],[10,4,10,8],[10,12,10,15],[10,17,10,20],[12,1,13,2],[12,4,12,20],[12,21,13,23],[12,24,13,28],[13,4,13,20],[19,2,19,8],[19,9,19,28],[20,2,20,8],[20,9,20,28],[15,1,16,8],[15,9,16,28],[17,2,17,8],[17,9,17,28],[18,2,18,8],[18,9,18,28]]}
[null,"研修記録シート3（振り返り）"]
[]
[null,"この振り返りシートは、科目の受講前後で各自の理解度を把握し、受講中の学習効果の向上と、受講後の学習のポイントを焦点化し、継続的な資質向上に役立てるものです。本科目を学習した時点で感じた事を書き留め、今後の学習方針や課題への取り組みを考える際に見返してみましょう。"]
[]
[]
[null,"研修名：",null,"主任研修",null,null,null,null,null,null,null,null,null,null,null,null,null,null,null,null,null,null,null,null,null,null,null,null,null,null,null,"このボタンをクリックするとTOPページへ移動します。"]
[null,"課目名：",null,{"$f":"'シート2-⑨'!D7:AC7","v":"⑨個別事例を通じた介護支援専門員に対する指導・支援の展開"}]
[]
[]
[null,"受講日",null,1,{"$f":"IF(ISBLANK('シート2-⑨'!E10),\"\",'シート2-⑨'!E10)","v":"2025-03-05"},null,null,null,null,"時間",null,1,{"$f":"IF(ISBLANK('シート2-⑨'!M10),\"\",'シート2-⑨'!M10)","v":"09:30:00"},null,null,null,"～",{"$f":"IF(ISBLANK('シート2-⑨'!R10),\"\",'シート2-⑨'!R10)","v":"16:30:00"},null,null,null,"氏名",null,null,{"$f":"IF(ISBLANK(シート1!N7),\"\",シート1!N7)","v":""}]
[null,null,null,2,{"$f":"IF(ISBLANK('シート2-⑨'!E11),\"\",'シート2-⑨'!E11)","v":""},null,null,null,null,null,null,2,{"$f":"IF(ISBLANK('シート2-⑨'!M11),\"\",'シート2-⑨'!M11)","v":""},null,null,null,"～",{"$f":"IF(ISBLANK('シート2-⑨'!R11),\"\",'シート2-⑨'!R11)","v":""}]
[]
[null,"会場",null,1,{"$f":"IF(ISBLANK('シート2-⑨'!E13),\"\",'シート2-⑨'!E13)","v":"オンライン研修（Zoom）"},null,null,null,null,null,null,null,null,null,null,null,null,null,null,null,null,"番号",null,null,{"$f":"IF(ISBLANK(シート1!N9),\"\",シート1!N9)","v":9999}]
[null,null,null,2,{"$f":"IF(ISBLANK('シート2-⑨'!E14),\"\",'シート2-⑨'!E14)","v":""}]
[]
[null,"項　　目 ",null,null,null,null,null,null,null,"内容"]
[]
[null,"①","あなたのケアマネジメント実践を高めるために得たことは何ですか"]
[null,"②","得たことを実践でどのように活かせそうですか"]
[null,"③","本課目に関連して、あなたが更に学んでいく必要があると考えることは何ですか"]
[null,"④","その他、この課目で感じたことは何ですか"]

{"sheet":"集計用シート（主任研修）","index":21,"n_rows":60,"n_cols":58,"rows_kept":60,"cut":false,"hidden":true,"merged":[[7,37,7,47],[7,48,7,57],[49,2,49,13],[49,14,49,17],[1,2,1,8],[1,9,1,15],[1,16,1,22],[7,2,7,13],[7,15,7,25],[7,26,7,36],[21,2,21,13],[35,2,35,13],[21,15,21,25],[35,15,35,25],[35,26,35,35]]}
["集計データ（研修記録シート1）",null,null,null,null,null,"2024-08-23T15:46:08.940"]
[null,null,"基本情報",null,null,null,null,null,null,"受講前",null,null,null,null,null,null,"受講後（3ヶ月後）"]
["集計用","転記日","課程区分","科目区分","日程\n（始点）","日程\n（終点）","会場","氏名","受講番号","受講者\n入力日\n【受講前】","受講者\n記入欄\n【受講前】","管理者\n入力日\n【受講前】","氏名\n（管理者）\n【受講前】","所属\n（管理者）\n【受講前】","役職\n（管理者）\n【受講前】","管理者\n記入欄\n【受講前】","受講者\n入力日\n【3ヶ月後】","受講者\n記入欄\n【3ヶ月後】","管理者\n入力日\n【3ヶ月後】","氏名\n（管理者）\n【3ヶ月後】","所属\n（管理者）\n【3ヶ月後】","役職\n（管理者）\n【3ヶ月後】","管理者\n記入欄\n【3ヶ月後】"]
["シート1",null,{"$f":"IF(ISBLANK(シート1!E5),\"\",シート1!E5)","v":"主任研修"},"-",{"$f":"IF(ISBLANK(シート1!D7),\"\",シート1!D7)","v":"2024-11-09"},{"$f":"IF(ISBLANK(シート1!H7),\"\",シート1!H7)","v":"2025-03-05"},{"$f":"IF(ISBLANK(シート1!D9),\"\",シート1!D9)","v":"オンライン研修（Zoom）"},{"$f":"IF(ISBLANK(シート1!N7),\"\",シート1!N7)","v":""},{"$f":"IF(ISBLANK(シート1!N9),\"\",シート1!N9)","v":9999},{"$f":"IF(ISBLANK(シート1!D14),\"\",シート1!D14)","v":""},{"$f":"IF(ISBLANK(シート1!B16),\"\",シート1!B16)","v":""},{"$f":"IF(ISBLANK(シート1!D27),\"\",シート1!D27)","v":""},{"$f":"IF(ISBLANK(シート1!D25),\"\",シート1!D25)","v":""},{"$f":"IF(ISBLANK(シート1!I25),\"\",シート1!I25)","v":""},{"$f":"IF(ISBLANK(シート1!I27),\"\",シート1!I27)","v":""},{"$f":"IF(ISBLANK(シート1!B29),\"\",シート1!B29)","v":""},{"$f":"IF(ISBLANK(シート1!D39),\"\",シート1!D39)","v":""},{"$f":"IF(ISBLANK(シート1!B41),\"\",シート1!B41)","v":""},{"$f":"IF(ISBLANK(シート1!D52),\"\",シート1!D52)","v":""},{"$f":"IF(ISBLANK(シート1!D50),\"\",シート1!D50)","v":""},{"$f":"IF(ISBLANK(シート1!I50),\"\",シート1!I50)","v":""},{"$f":"IF(ISBLANK(シート1!I52),\"\",シート1!I52)","v":""},{"$f":"IF(ISBLANK(シート1!B54),\"\",シート1!B54)","v":""}]
[]
[]
["集計データ（研修記録シート2）(前)",null,null,null,null,null,"2024-08-23T15:47:55.190"]
[null,null,"基本情報",null,null,null,null,null,null,null,null,null,null,null,null,"受講前",null,null,null,null,null,null,null,null,null,null,"受講後",null,null,null,null,null,null,null,null,null,null,"実践評価（3ヶ月後）",null,null,null,null,null,null,null,null,null,null,"備考"]
["集計用","転記日","課程区分","科目区分","受講日1","時間1\n（始点）","時間2\n（終点）","受講日2","時間2\n（始点）","時間2\n（終点）","会場1","会場2","氏名","受講番号","評価\n項目数","入力日","理解度①","理解度②","理解度③","理解度④","理解度⑤","理解度⑥","理解度⑦","理解度⑧","理解度⑨","理解度⑩","入力日","理解度①","理解度②","理解度③","理解度④","理解度⑤","理解度⑥","理解度⑦","理解度⑧","理解度⑨","理解度⑩","入力日","理解度①","理解度②","理解度③","理解度④","理解度⑤","理解度⑥","理解度⑦","理解度⑧","理解度⑨","理解度⑩","備考①","備考②","備考③","備考④","備考⑤","備考⑥","備考⑦","備考⑧","備考⑨","備考⑩"]
["シート2",null,{"$f":"$C$4","v":"主任研修"},1,{"$f":"IF(ISBLANK('シート2-①'!E$10),\"\",'シート2-①'!E$10)","v":"2024-11-09"},{"$f":"IF(ISBLANK('シート2-①'!M$10),\"\",'シート2-①'!M$10)","v":"10:00:00"},{"$f":"IF(ISBLANK('シート2-①'!R$10),\"\",'シート2-①'!R$10)","v":"12:00:00"},{"$f":"IF(ISBLANK('シート2-①'!E$11),\"\",'シート2-①'!E$11)","v":"2024-11-09"},{"$f":"IF(ISBLANK('シート2-①'!M$11),\"\",'シート2-①'!M$11)","v":"13:00:00"},{"$f":"IF(ISBLANK('シート2-①'!R$11),\"\",'シート2-①'!R$11)","v":"16:00:00"},{"$f":"IF(ISBLANK('シート2-①'!E$13),\"\",'シート2-①'!E$13)","v":"オンライン研修（Zoom）"},{"$f":"IF(ISBLANK('シート2-①'!E$14),\"\",'シート2-①'!E$14)","v":"オンライン研修（Zoom）"},{"$f":"IF(ISBLANK('シート2-①'!Y$10),\"\",'シート2-①'!Y$10)","v":""},{"$f":"IF(ISBLANK('シート2-①'!Y$13),\"\",'シート2-①'!Y$13)","v":9999},null,{"$f":"IF(ISBLANK('シート2-①'!P$18),\"\",'シート2-①'!P$18)","v":""},{"$f":"IF(ISBLANK('シート2-①'!P$19),\"\",'シート2-①'!P$19)","v":""},{"$f":"IF(ISBLANK('シート2-①'!P$20),\"\",'シート2-①'!P$20)","v":""},{"$f":"IF(ISBLANK('シート2-①'!P$21),\"\",'シート2-①'!P$21)","v":""},{"$f":"IF(ISBLANK('シート2-①'!P$22),\"\",'シート2-①'!P$22)","v":""},{"$f":"IF(ISBLANK('シート2-①'!P$23),\"\",'シート2-①'!P$23)","v":""},{"$f":"IF(ISBLANK('シート2-①'!P$24),\"\",'シート2-①'!P$24)","v":""},{"$f":"IF(ISBLANK('シート2-①'!P$25),\"\",'シート2-①'!P$25)","v":""},{"$f":"IF(ISBLANK('シート2-①'!P$26),\"\",'シート2-①'!P$26)","v":""},{"$f":"IF(ISBLANK('シート2-①'!P$27),\"\",'シート2-①'!P$27)","v":""},{"$f":"IF(ISBLANK('シート2-①'!P$28),\"\",'シート2-①'!P$28)","v":""},{"$f":"IF(ISBLANK('シート2-①'!S$18),\"\",'シート2-①'!S$18)","v":""},{"$f":"IF(ISBLANK('シート2-①'!S$19),\"\",'シート2-①'!S$19)","v":""},{"$f":"IF(ISBLANK('シート2-①'!S$20),\"\",'シート2-①'!S$20)","v":""},{"$f":"IF(ISBLANK('シート2-①'!S$21),\"\",'シート2-①'!S$21)","v":""},{"$f":"IF(ISBLANK('シート2-①'!S$22),\"\",'シート2-①'!S$22)","v":""},{"$f":"IF(ISBLANK('シート2-①'!S$23),\"\",'シート2-①'!S$23)","v":""},{"$f":"IF(ISBLANK('シート2-①'!S$24),\"\",'シート2-①'!S$24)","v":""},{"$f":"IF(ISBLANK('シート2-①'!S$25),\"\",'シート2-①'!S$25)","v":""},{"$f":"IF(ISBLANK('シート2-①'!S$26),\"\",'シート2-①'!S$26)","v":""},{"$f":"IF(ISBLANK('シート2-①'!S$27),\"\",'シート2-①'!S$27)","v":""},{"$f":"IF(ISBLANK('シート2-①'!S$28),\"\",'シート2-①'!S$28)","v":""},{"$f":"IF(ISBLANK('シート2-①'!V$18),\"\",'シート2-①'!V$18)","v":""},{"$f":"IF(ISBLANK('シート2-①'!V$19),\"\",'シート2-①'!V$19)","v":""},{"$f":"IF(ISBLANK('シート2-①'!V$20),\"\",'シート2-①'!V$20)","v":""},{"$f":"IF(ISBLANK('シート2-①'!V$21),\"\",'シート2-①'!V$21)","v":""},{"$f":"IF(ISBLANK('シート2-①'!V$22),\"\",'シート2-①'!V$22)","v":""},{"$f":"IF(ISBLANK('シート2-①'!V$23),\"\",'シート2-①'!V$23)","v":""},{"$f":"IF(ISBLANK('シート2-①'!V$24),\"\",'シート2-①'!V$24)","v":""},{"$f":"IF(ISBLANK('シート2-①'!V$25),\"\",'シート2-①'!V$25)","v":""},{"$f":"IF(ISBLANK('シート2-①'!V$26),\"\",'シート2-①'!V$26)","v":""},{"$f":"IF(ISBLANK('シート2-①'!V$27),\"\",'シート2-①'!V$27)","v":""},{"$f":"IF(ISBLANK('シート2-①'!V$28),\"\",'シート2-①'!V$28)","v":""},{"$f":"IF(ISBLANK('シート2-①'!Y$19),\"\",'シート2-①'!Y$19)","v":""},{"$f":"IF(ISBLANK('シート2-①'!Y$20),\"\",'シート2-①'!Y$20)","v":""},{"$f":"IF(ISBLANK('シート2-①'!Y$21),\"\",'シート2-①'!Y$21)","v":""},{"$f":"IF(ISBLANK('シート2-①'!Y$22),\"\",'シート2-①'!Y$22)","v":""},{"$f":"IF(ISBLANK('シート2-①'!Y$23),\"\",'シート2-①'!Y$23)","v":""},{"$f":"IF(ISBLANK('シート2-①'!Y$24),\"\",'シート2-①'!Y$24)","v":""},{"$f":"IF(ISBLANK('シート2-①'!Y$25),\"\",'シート2-①'!Y$25)","v":""},{"$f":"IF(ISBLANK('シート2-①'!Y$26),\"\",'シート2-①'!Y$26)","v":""},{"$f":"IF(ISBLANK('シート2-①'!Y$27),\"\",'シート2-①'!Y$27)","v":""},{"$f":"IF(ISBLANK('シート2-①'!Y$28),\"\",'シート2-①'!Y$28)","v":""}]
["シート2",null,{"$f":"$C$4","v":"主任研修"},2,{"$f":"IF(ISBLANK('シート2-②'!E$10),\"\",'シート2-②'!E$10)","v":"2024-11-20"},{"$f":"IF(ISBLANK('シート2-②'!M$10),\"\",'シート2-②'!M$10)","v":"09:30:00"},{"$f":"IF(ISBLANK('シート2-②'!R$10),\"\",'シート2-②'!R$10)","v":"12:30:00"},{"$f":"IF(ISBLANK('シート2-②'!E$11),\"\",'シート2-②'!E$11)","v":""},{"$f":"IF(ISBLANK('シート2-②'!M$11),\"\",'シート2-②'!M$11)","v":""},{"$f":"IF(ISBLANK('シート2-②'!R$11),\"\",'シート2-②'!R$11)","v":""},{"$f":"IF(ISBLANK('シート2-②'!E$13),\"\",'シート2-②'!E$13)","v":"オンライン研修（Zoom）"},{"$f":"IF(ISBLANK('シート2-②'!E$14),\"\",'シート2-②'!E$14)","v":""},{"$f":"IF(ISBLANK('シート2-②'!Y$10),\"\",'シート2-②'!Y$10)","v":""},{"$f":"IF(ISBLANK('シート2-②'!Y$13),\"\",'シート2-②'!Y$13)","v":9999},null,{"$f":"IF(ISBLANK('シート2-②'!P$18),\"\",'シート2-②'!P$18)","v":""},{"$f":"IF(ISBLANK('シート2-②'!P$19),\"\",'シート2-②'!P$19)","v":""},{"$f":"IF(ISBLANK('シート2-②'!P$20),\"\",'シート2-②'!P$20)","v":""},{"$f":"IF(ISBLANK('シート2-②'!P$21),\"\",'シート2-②'!P$21)","v":""},{"$f":"IF(ISBLANK('シート2-②'!P$22),\"\",'シート2-②'!P$22)","v":""},{"$f":"IF(ISBLANK('シート2-②'!P$23),\"\",'シート2-②'!P$23)","v":""},{"$f":"IF(ISBLANK('シート2-②'!P$24),\"\",'シート2-②'!P$24)","v":""},{"$f":"IF(ISBLANK('シート2-②'!P$25),\"\",'シート2-②'!P$25)","v":""},{"$f":"IF(ISBLANK('シート2-②'!P$26),\"\",'シート2-②'!P$26)","v":""},{"$f":"IF(ISBLANK('シート2-②'!P$27),\"\",'シート2-②'!P$27)","v":""},{"$f":"IF(ISBLANK('シート2-②'!P$28),\"\",'シート2-②'!P$28)","v":""},{"$f":"IF(ISBLANK('シート2-②'!S$18),\"\",'シート2-②'!S$18)","v":""},{"$f":"IF(ISBLANK('シート2-②'!S$19),\"\",'シート2-②'!S$19)","v":""},{"$f":"IF(ISBLANK('シート2-②'!S$20),\"\",'シート2-②'!S$20)","v":""},{"$f":"IF(ISBLANK('シート2-②'!S$21),\"\",'シート2-②'!S$21)","v":""},{"$f":"IF(ISBLANK('シート2-②'!S$22),\"\",'シート2-②'!S$22)","v":""},{"$f":"IF(ISBLANK('シート2-②'!S$23),\"\",'シート2-②'!S$23)","v":""},{"$f":"IF(ISBLANK('シート2-②'!S$24),\"\",'シート2-②'!S$24)","v":""},{"$f":"IF(ISBLANK('シート2-②'!S$25),\"\",'シート2-②'!S$25)","v":""},{"$f":"IF(ISBLANK('シート2-②'!S$26),\"\",'シート2-②'!S$26)","v":""},{"$f":"IF(ISBLANK('シート2-②'!S$27),\"\",'シート2-②'!S$27)","v":""},{"$f":"IF(ISBLANK('シート2-②'!S$28),\"\",'シート2-②'!S$28)","v":""},{"$f":"IF(ISBLANK('シート2-②'!V$18),\"\",'シート2-②'!V$18)","v":""},{"$f":"IF(ISBLANK('シート2-②'!V$19),\"\",'シート2-②'!V$19)","v":""},{"$f":"IF(ISBLANK('シート2-②'!V$20),\"\",'シート2-②'!V$20)","v":""},{"$f":"IF(ISBLANK('シート2-②'!V$21),\"\",'シート2-②'!V$21)","v":""},{"$f":"IF(ISBLANK('シート2-②'!V$22),\"\",'シート2-②'!V$22)","v":""},{"$f":"IF(ISBLANK('シート2-②'!V$23),\"\",'シート2-②'!V$23)","v":""},{"$f":"IF(ISBLANK('シート2-②'!V$24),\"\",'シート2-②'!V$24)","v":""},{"$f":"IF(ISBLANK('シート2-②'!V$25),\"\",'シート2-②'!V$25)","v":""},{"$f":"IF(ISBLANK('シート2-②'!V$26),\"\",'シート2-②'!V$26)","v":""},{"$f":"IF(ISBLANK('シート2-②'!V$27),\"\",'シート2-②'!V$27)","v":""},{"$f":"IF(ISBLANK('シート2-②'!V$28),\"\",'シート2-②'!V$28)","v":""},{"$f":"IF(ISBLANK('シート2-②'!Y$19),\"\",'シート2-②'!Y$19)","v":""},{"$f":"IF(ISBLANK('シート2-②'!Y$20),\"\",'シート2-②'!Y$20)","v":""},{"$f":"IF(ISBLANK('シート2-②'!Y$21),\"\",'シート2-②'!Y$21)","v":""},{"$f":"IF(ISBLANK('シート2-②'!Y$22),\"\",'シート2-②'!Y$22)","v":""},{"$f":"IF(ISBLANK('シート2-②'!Y$23),\"\",'シート2-②'!Y$23)","v":""},{"$f":"IF(ISBLANK('シート2-②'!Y$24),\"\",'シート2-②'!Y$24)","v":""},{"$f":"IF(ISBLANK('シート2-②'!Y$25),\"\",'シート2-②'!Y$25)","v":""},{"$f":"IF(ISBLANK('シート2-②'!Y$26),\"\",'シート2-②'!Y$26)","v":""},{"$f":"IF(ISBLANK('シート2-②'!Y$27),\"\",'シート2-②'!Y$27)","v":""},{"$f":"IF(ISBLANK('シート2-②'!Y$28),\"\",'シート2-②'!Y$28)","v":""}]
["シート2",null,"主任研修",3,{"$f":"IF(ISBLANK('シート2-③'!E$10),\"\",'シート2-③'!E$10)","v":"2024-12-01"},{"$f":"IF(ISBLANK('シート2-③'!M$10),\"\",'シート2-③'!M$10)","v":"09:30:00"},{"$f":"IF(ISBLANK('シート2-③'!R$10),\"\",'シート2-③'!R$10)","v":"12:30:00"},{"$f":"IF(ISBLANK('シート2-③'!E$11),\"\",'シート2-③'!E$11)","v":""},{"$f":"IF(ISBLANK('シート2-③'!M$11),\"\",'シート2-③'!M$11)","v":""},{"$f":"IF(ISBLANK('シート2-③'!R$11),\"\",'シート2-③'!R$11)","v":""},{"$f":"IF(ISBLANK('シート2-③'!E$13),\"\",'シート2-③'!E$13)","v":"オンライン研修（Zoom）"},{"$f":"IF(ISBLANK('シート2-③'!E$14),\"\",'シート2-③'!E$14)","v":""},{"$f":"IF(ISBLANK('シート2-③'!Y$10),\"\",'シート2-③'!Y$10)","v":""},{"$f":"IF(ISBLANK('シート2-③'!Y$13),\"\",'シート2-③'!Y$13)","v":9999},null,{"$f":"IF(ISBLANK('シート2-③'!P$18),\"\",'シート2-③'!P$18)","v":""},{"$f":"IF(ISBLANK('シート2-③'!P$19),\"\",'シート2-③'!P$19)","v":""},{"$f":"IF(ISBLANK('シート2-③'!P$20),\"\",'シート2-③'!P$20)","v":""},{"$f":"IF(ISBLANK('シート2-③'!P$21),\"\",'シート2-③'!P$21)","v":""},{"$f":"IF(ISBLANK('シート2-③'!P$22),\"\",'シート2-③'!P$22)","v":""},{"$f":"IF(ISBLANK('シート2-③'!P$24),\"\",'シート2-③'!P$24)","v":""},{"$f":"IF(ISBLANK('シート2-③'!P$25),\"\",'シート2-③'!P$25)","v":""},{"$f":"IF(ISBLANK('シート2-③'!P$25),\"\",'シート2-③'!P$25)","v":""},{"$f":"IF(ISBLANK('シート2-③'!P$26),\"\",'シート2-③'!P$26)","v":""},{"$f":"IF(ISBLANK('シート2-③'!P$27),\"\",'シート2-③'!P$27)","v":""},{"$f":"IF(ISBLANK('シート2-③'!P$28),\"\",'シート2-③'!P$28)","v":""},{"$f":"IF(ISBLANK('シート2-③'!S$18),\"\",'シート2-③'!S$18)","v":""},{"$f":"IF(ISBLANK('シート2-③'!S$19),\"\",'シート2-③'!S$19)","v":""},{"$f":"IF(ISBLANK('シート2-③'!S$20),\"\",'シート2-③'!S$20)","v":""},{"$f":"IF(ISBLANK('シート2-③'!S$21),\"\",'シート2-③'!S$21)","v":""},{"$f":"IF(ISBLANK('シート2-③'!S$22),\"\",'シート2-③'!S$22)","v":""},{"$f":"IF(ISBLANK('シート2-③'!S$23),\"\",'シート2-③'!S$23)","v":""},{"$f":"IF(ISBLANK('シート2-③'!S$24),\"\",'シート2-③'!S$24)","v":""},{"$f":"IF(ISBLANK('シート2-③'!S$25),\"\",'シート2-③'!S$25)","v":""},{"$f":"IF(ISBLANK('シート2-③'!S$26),\"\",'シート2-③'!S$26)","v":""},{"$f":"IF(ISBLANK('シート2-③'!S$27),\"\",'シート2-③'!S$27)","v":""},{"$f":"IF(ISBLANK('シート2-③'!S$28),\"\",'シート2-③'!S$28)","v":""},{"$f":"IF(ISBLANK('シート2-③'!V$18),\"\",'シート2-③'!V$18)","v":""},{"$f":"IF(ISBLANK('シート2-③'!V$19),\"\",'シート2-③'!V$19)","v":""},{"$f":"IF(ISBLANK('シート2-③'!V$20),\"\",'シート2-③'!V$20)","v":""},{"$f":"IF(ISBLANK('シート2-③'!V$21),\"\",'シート2-③'!V$21)","v":""},{"$f":"IF(ISBLANK('シート2-③'!V$22),\"\",'シート2-③'!V$22)","v":""},{"$f":"IF(ISBLANK('シート2-③'!V$23),\"\",'シート2-③'!V$23)","v":""},{"$f":"IF(ISBLANK('シート2-③'!V$24),\"\",'シート2-③'!V$24)","v":""},{"$f":"IF(ISBLANK('シート2-③'!V$25),\"\",'シート2-③'!V$25)","v":""},{"$f":"IF(ISBLANK('シート2-③'!V$26),\"\",'シート2-③'!V$26)","v":""},{"$f":"IF(ISBLANK('シート2-③'!V$27),\"\",'シート2-③'!V$27)","v":""},{"$f":"IF(ISBLANK('シート2-③'!V$28),\"\",'シート2-③'!V$28)","v":""},{"$f":"IF(ISBLANK('シート2-③'!Y$19),\"\",'シート2-③'!Y$19)","v":""},{"$f":"IF(ISBLANK('シート2-③'!Y$20),\"\",'シート2-③'!Y$20)","v":""},{"$f":"IF(ISBLANK('シート2-③'!Y$21),\"\",'シート2-③'!Y$21)","v":""},{"$f":"IF(ISBLANK('シート2-③'!Y$22),\"\",'シート2-③'!Y$22)","v":""},{"$f":"IF(ISBLANK('シート2-③'!Y$23),\"\",'シート2-③'!Y$23)","v":""},{"$f":"IF(ISBLANK('シート2-③'!Y$24),\"\",'シート2-③'!Y$24)","v":""},{"$f":"IF(ISBLANK('シート2-③'!Y$25),\"\",'シート2-③'!Y$25)","v":""},{"$f":"IF(ISBLANK('シート2-③'!Y$26),\"\",'シート2-③'!Y$26)","v":""},{"$f":"IF(ISBLANK('シート2-③'!Y$27),\"\",'シート2-③'!Y$27)","v":""},{"$f":"IF(ISBLANK('シート2-③'!Y$28),\"\",'シート2-③'!Y$28)","v":""}]
["シート2",null,"主任研修",4,{"$f":"IF(ISBLANK('シート2-④'!E$10),\"\",'シート2-④'!E$10)","v":"2024-11-20"},{"$f":"IF(ISBLANK('シート2-④'!M$10),\"\",'シート2-④'!M$10)","v":"13:30:00"},{"$f":"IF(ISBLANK('シート2-④'!R$10),\"\",'シート2-④'!R$10)","v":"16:30:00"},{"$f":"IF(ISBLANK('シート2-④'!E$11),\"\",'シート2-④'!E$11)","v":""},{"$f":"IF(ISBLANK('シート2-④'!M$11),\"\",'シート2-④'!M$11)","v":""},{"$f":"IF(ISBLANK('シート2-④'!R$11),\"\",'シート2-④'!R$11)","v":""},{"$f":"IF(ISBLANK('シート2-④'!E$13),\"\",'シート2-④'!E$13)","v":"オンライン研修（Zoom）"},{"$f":"IF(ISBLANK('シート2-④'!E$14),\"\",'シート2-④'!E$14)","v":""},{"$f":"IF(ISBLANK('シート2-④'!Y$10),\"\",'シート2-④'!Y$10)","v":""},{"$f":"IF(ISBLANK('シート2-④'!Y$13),\"\",'シート2-④'!Y$13)","v":9999},null,{"$f":"IF(ISBLANK('シート2-④'!P$18),\"\",'シート2-④'!P$18)","v":""},{"$f":"IF(ISBLANK('シート2-④'!P$19),\"\",'シート2-④'!P$19)","v":""},{"$f":"IF(ISBLANK('シート2-④'!P$20),\"\",'シート2-④'!P$20)","v":""},{"$f":"IF(ISBLANK('シート2-④'!P$21),\"\",'シート2-④'!P$21)","v":""},{"$f":"IF(ISBLANK('シート2-④'!P$22),\"\",'シート2-④'!P$22)","v":""},{"$f":"IF(ISBLANK('シート2-④'!P$23),\"\",'シート2-④'!P$23)","v":""},{"$f":"IF(ISBLANK('シート2-④'!P$24),\"\",'シート2-④'!P$24)","v":""},{"$f":"IF(ISBLANK('シート2-④'!P$25),\"\",'シート2-④'!P$25)","v":""},{"$f":"IF(ISBLANK('シート2-④'!P$26),\"\",'シート2-④'!P$26)","v":""},{"$f":"IF(ISBLANK('シート2-④'!P$27),\"\",'シート2-④'!P$27)","v":""},{"$f":"IF(ISBLANK('シート2-④'!P$28),\"\",'シート2-④'!P$28)","v":""},{"$f":"IF(ISBLANK('シート2-④'!S$18),\"\",'シート2-④'!S$18)","v":""},{"$f":"IF(ISBLANK('シート2-④'!S$19),\"\",'シート2-④'!S$19)","v":""},{"$f":"IF(ISBLANK('シート2-④'!S$20),\"\",'シート2-④'!S$20)","v":""},{"$f":"IF(ISBLANK('シート2-④'!S$21),\"\",'シート2-④'!S$21)","v":""},{"$f":"IF(ISBLANK('シート2-④'!S$22),\"\",'シート2-④'!S$22)","v":""},{"$f":"IF(ISBLANK('シート2-④'!S$23),\"\",'シート2-④'!S$23)","v":""},{"$f":"IF(ISBLANK('シート2-④'!S$24),\"\",'シート2-④'!S$24)","v":""},{"$f":"IF(ISBLANK('シート2-④'!S$25),\"\",'シート2-④'!S$25)","v":""},{"$f":"IF(ISBLANK('シート2-④'!S$26),\"\",'シート2-④'!S$26)","v":""},{"$f":"IF(ISBLANK('シート2-④'!S$27),\"\",'シート2-④'!S$27)","v":""},{"$f":"IF(ISBLANK('シート2-④'!S$28),\"\",'シート2-④'!S$28)","v":""},{"$f":"IF(ISBLANK('シート2-④'!V$18),\"\",'シート2-④'!V$18)","v":""},{"$f":"IF(ISBLANK('シート2-④'!V$19),\"\",'シート2-④'!V$19)","v":""},{"$f":"IF(ISBLANK('シート2-④'!V$20),\"\",'シート2-④'!V$20)","v":""},{"$f":"IF(ISBLANK('シート2-④'!V$21),\"\",'シート2-④'!V$21)","v":""},{"$f":"IF(ISBLANK('シート2-④'!V$22),\"\",'シート2-④'!V$22)","v":""},{"$f":"IF(ISBLANK('シート2-④'!V$23),\"\",'シート2-④'!V$23)","v":""},{"$f":"IF(ISBLANK('シート2-④'!V$24),\"\",'シート2-④'!V$24)","v":""},{"$f":"IF(ISBLANK('シート2-④'!V$25),\"\",'シート2-④'!V$25)","v":""},{"$f":"IF(ISBLANK('シート2-④'!V$26),\"\",'シート2-④'!V$26)","v":""},{"$f":"IF(ISBLANK('シート2-④'!V$27),\"\",'シート2-④'!V$27)","v":""},{"$f":"IF(ISBLANK('シート2-④'!V$28),\"\",'シート2-④'!V$28)","v":""},{"$f":"IF(ISBLANK('シート2-④'!Y$19),\"\",'シート2-④'!Y$19)","v":""},{"$f":"IF(ISBLANK('シート2-④'!Y$20),\"\",'シート2-④'!Y$20)","v":""},{"$f":"IF(ISBLANK('シート2-④'!Y$21),\"\",'シート2-④'!Y$21)","v":""},{"$f":"IF(ISBLANK('シート2-④'!Y$22),\"\",'シート2-④'!Y$22)","v":""},{"$f":"IF(ISBLANK('シート2-④'!Y$23),\"\",'シート2-④'!Y$23)","v":""},{"$f":"IF(ISBLANK('シート2-④'!Y$24),\"\",'シート2-④'!Y$24)","v":""},{"$f":"IF(ISBLANK('シート2-④'!Y$25),\"\",'シート2-④'!Y$25)","v":""},{"$f":"IF(ISBLANK('シート2-④'!Y$26),\"\",'シート2-④'!Y$26)","v":""},{"$f":"IF(ISBLANK('シート2-④'!Y$27),\"\",'シート2-④'!Y$27)","v":""},{"$f":"IF(ISBLANK('シート2-④'!Y$28),\"\",'シート2-④'!Y$28)","v":""}]
["シート2",null,"主任研修",5,{"$f":"IF(ISBLANK('シート2-⑤'!E$10),\"\",'シート2-⑤'!E$10)","v":"2024-12-01"},{"$f":"IF(ISBLANK('シート2-⑤'!M$10),\"\",'シート2-⑤'!M$10)","v":"13:30:00"},{"$f":"IF(ISBLANK('シート2-⑤'!R$10),\"\",'シート2-⑤'!R$10)","v":"16:30:00"},{"$f":"IF(ISBLANK('シート2-⑤'!E$11),\"\",'シート2-⑤'!E$11)","v":""},{"$f":"IF(ISBLANK('シート2-⑤'!M$11),\"\",'シート2-⑤'!M$11)","v":""},{"$f":"IF(ISBLANK('シート2-⑤'!R$11),\"\",'シート2-⑤'!R$11)","v":""},{"$f":"IF(ISBLANK('シート2-⑤'!E$13),\"\",'シート2-⑤'!E$13)","v":"オンライン研修（Zoom）"},{"$f":"IF(ISBLANK('シート2-⑤'!E$14),\"\",'シート2-⑤'!E$14)","v":""},{"$f":"IF(ISBLANK('シート2-⑤'!Y$10),\"\",'シート2-⑤'!Y$10)","v":""},{"$f":"IF(ISBLANK('シート2-⑤'!Y$13),\"\",'シート2-⑤'!Y$13)","v":9999},null,{"$f":"IF(ISBLANK('シート2-⑤'!P$18),\"\",'シート2-⑤'!P$18)","v":""},{"$f":"IF(ISBLANK('シート2-⑤'!P$19),\"\",'シート2-⑤'!P$19)","v":""},{"$f":"IF(ISBLANK('シート2-⑤'!P$20),\"\",'シート2-⑤'!P$20)","v":""},{"$f":"IF(ISBLANK('シート2-⑤'!P$21),\"\",'シート2-⑤'!P$21)","v":""},{"$f":"IF(ISBLANK('シート2-⑤'!P$22),\"\",'シート2-⑤'!P$22)","v":""},{"$f":"IF(ISBLANK('シート2-⑤'!P$23),\"\",'シート2-⑤'!P$23)","v":""},{"$f":"IF(ISBLANK('シート2-⑤'!P$24),\"\",'シート2-⑤'!P$24)","v":""},{"$f":"IF(ISBLANK('シート2-⑤'!P$25),\"\",'シート2-⑤'!P$25)","v":""},{"$f":"IF(ISBLANK('シート2-⑤'!P$26),\"\",'シート2-⑤'!P$26)","v":""},{"$f":"IF(ISBLANK('シート2-⑤'!P$27),\"\",'シート2-⑤'!P$27)","v":""},{"$f":"IF(ISBLANK('シート2-⑤'!P$28),\"\",'シート2-⑤'!P$28)","v":""},{"$f":"IF(ISBLANK('シート2-⑤'!S$18),\"\",'シート2-⑤'!S$18)","v":""},{"$f":"IF(ISBLANK('シート2-⑤'!S$19),\"\",'シート2-⑤'!S$19)","v":""},{"$f":"IF(ISBLANK('シート2-⑤'!S$20),\"\",'シート2-⑤'!S$20)","v":""},{"$f":"IF(ISBLANK('シート2-⑤'!S$21),\"\",'シート2-⑤'!S$21)","v":""},{"$f":"IF(ISBLANK('シート2-⑤'!S$22),\"\",'シート2-⑤'!S$22)","v":""},{"$f":"IF(ISBLANK('シート2-⑤'!S$23),\"\",'シート2-⑤'!S$23)","v":""},{"$f":"IF(ISBLANK('シート2-⑤'!S$24),\"\",'シート2-⑤'!S$24)","v":""},{"$f":"IF(ISBLANK('シート2-⑤'!S$25),\"\",'シート2-⑤'!S$25)","v":""},{"$f":"IF(ISBLANK('シート2-⑤'!S$26),\"\",'シート2-⑤'!S$26)","v":""},{"$f":"IF(ISBLANK('シート2-⑤'!S$27),\"\",'シート2-⑤'!S$27)","v":""},{"$f":"IF(ISBLANK('シート2-⑤'!S$28),\"\",'シート2-⑤'!S$28)","v":""},{"$f":"IF(ISBLANK('シート2-⑤'!V$18),\"\",'シート2-⑤'!V$18)","v":""},{"$f":"IF(ISBLANK('シート2-⑤'!V$19),\"\",'シート2-⑤'!V$19)","v":""},{"$f":"IF(ISBLANK('シート2-⑤'!V$20),\"\",'シート2-⑤'!V$20)","v":""},{"$f":"IF(ISBLANK('シート2-⑤'!V$21),\"\",'シート2-⑤'!V$21)","v":""},{"$f":"IF(ISBLANK('シート2-⑤'!V$22),\"\",'シート2-⑤'!V$22)","v":""},{"$f":"IF(ISBLANK('シート2-⑤'!V$23),\"\",'シート2-⑤'!V$23)","v":""},{"$f":"IF(ISBLANK('シート2-⑤'!V$24),\"\",'シート2-⑤'!V$24)","v":""},{"$f":"IF(ISBLANK('シート2-⑤'!V$25),\"\",'シート2-⑤'!V$25)","v":""},{"$f":"IF(ISBLANK('シート2-⑤'!V$26),\"\",'シート2-⑤'!V$26)","v":""},{"$f":"IF(ISBLANK('シート2-⑤'!V$27),\"\",'シート2-⑤'!V$27)","v":""},{"$f":"IF(ISBLANK('シート2-⑤'!V$28),\"\",'シート2-⑤'!V$28)","v":""},{"$f":"IF(ISBLANK('シート2-⑤'!Y$19),\"\",'シート2-⑤'!Y$19)","v":""},{"$f":"IF(ISBLANK('シート2-⑤'!Y$20),\"\",'シート2-⑤'!Y$20)","v":""},{"$f":"IF(ISBLANK('シート2-⑤'!Y$21),\"\",'シート2-⑤'!Y$21)","v":""},{"$f":"IF(ISBLANK('シート2-⑤'!Y$22),\"\",'シート2-⑤'!Y$22)","v":""},{"$f":"IF(ISBLANK('シート2-⑤'!Y$23),\"\",'シート2-⑤'!Y$23)","v":""},{"$f":"IF(ISBLANK('シート2-⑤'!Y$24),\"\",'シート2-⑤'!Y$24)","v":""},{"$f":"IF(ISBLANK('シート2-⑤'!Y$25),\"\",'シート2-⑤'!Y$25)","v":""},{"$f":"IF(ISBLANK('シート2-⑤'!Y$26),\"\",'シート2-⑤'!Y$26)","v":""},{"$f":"IF(ISBLANK('シート2-⑤'!Y$27),\"\",'シート2-⑤'!Y$27)","v":""},{"$f":"IF(ISBLANK('シート2-⑤'!Y$28),\"\",'シート2-⑤'!Y$28)","v":""}]
["シート2",null,"主任研修",6,{"$f":"IF(ISBLANK('シート2-⑥'!E$10),\"\",'シート2-⑥'!E$10)","v":"2025-01-19"},{"$f":"IF(ISBLANK('シート2-⑥'!M$10),\"\",'シート2-⑥'!M$10)","v":"09:30:00"},{"$f":"IF(ISBLANK('シート2-⑥'!R$10),\"\",'シート2-⑥'!R$10)","v":"16:30:00"},{"$f":"IF(ISBLANK('シート2-⑥'!E$11),\"\",'シート2-⑥'!E$11)","v":""},{"$f":"IF(ISBLANK('シート2-⑥'!M$11),\"\",'シート2-⑥'!M$11)","v":""},{"$f":"IF(ISBLANK('シート2-⑥'!R$11),\"\",'シート2-⑥'!R$11)","v":""},{"$f":"IF(ISBLANK('シート2-⑥'!E$13),\"\",'シート2-⑥'!E$13)","v":"オンライン研修（Zoom）"},{"$f":"IF(ISBLANK('シート2-⑥'!E$14),\"\",'シート2-⑥'!E$14)","v":""},{"$f":"IF(ISBLANK('シート2-⑥'!Y$10),\"\",'シート2-⑥'!Y$10)","v":""},{"$f":"IF(ISBLANK('シート2-⑥'!Y$13),\"\",'シート2-⑥'!Y$13)","v":9999},null,{"$f":"IF(ISBLANK('シート2-⑥'!P$18),\"\",'シート2-⑥'!P$18)","v":""},{"$f":"IF(ISBLANK('シート2-⑥'!P$19),\"\",'シート2-⑥'!P$19)","v":""},{"$f":"IF(ISBLANK('シート2-⑥'!P$20),\"\",'シート2-⑥'!P$20)","v":""},{"$f":"IF(ISBLANK('シート2-⑥'!P$21),\"\",'シート2-⑥'!P$21)","v":""},{"$f":"IF(ISBLANK('シート2-⑥'!P$22),\"\",'シート2-⑥'!P$22)","v":""},{"$f":"IF(ISBLANK('シート2-⑥'!P$23),\"\",'シート2-⑥'!P$23)","v":""},{"$f":"IF(ISBLANK('シート2-⑥'!P$24),\"\",'シート2-⑥'!P$24)","v":""},{"$f":"IF(ISBLANK('シート2-⑥'!P$25),\"\",'シート2-⑥'!P$25)","v":""},{"$f":"IF(ISBLANK('シート2-⑥'!P$26),\"\",'シート2-⑥'!P$26)","v":""},{"$f":"IF(ISBLANK('シート2-⑥'!P$27),\"\",'シート2-⑥'!P$27)","v":""},{"$f":"IF(ISBLANK('シート2-⑥'!P$28),\"\",'シート2-⑥'!P$28)","v":""},{"$f":"IF(ISBLANK('シート2-⑥'!S$18),\"\",'シート2-⑥'!S$18)","v":""},{"$f":"IF(ISBLANK('シート2-⑥'!S$19),\"\",'シート2-⑥'!S$19)","v":""},{"$f":"IF(ISBLANK('シート2-⑥'!S$20),\"\",'シート2-⑥'!S$20)","v":""},{"$f":"IF(ISBLANK('シート2-⑥'!S$21),\"\",'シート2-⑥'!S$21)","v":""},{"$f":"IF(ISBLANK('シート2-⑥'!S$22),\"\",'シート2-⑥'!S$22)","v":""},{"$f":"IF(ISBLANK('シート2-⑥'!S$23),\"\",'シート2-⑥'!S$23)","v":""},{"$f":"IF(ISBLANK('シート2-⑥'!S$24),\"\",'シート2-⑥'!S$24)","v":""},{"$f":"IF(ISBLANK('シート2-⑥'!S$25),\"\",'シート2-⑥'!S$25)","v":""},{"$f":"IF(ISBLANK('シート2-⑥'!S$26),\"\",'シート2-⑥'!S$26)","v":""},{"$f":"IF(ISBLANK('シート2-⑥'!S$27),\"\",'シート2-⑥'!S$27)","v":""},{"$f":"IF(ISBLANK('シート2-⑥'!S$28),\"\",'シート2-⑥'!S$28)","v":""},{"$f":"IF(ISBLANK('シート2-⑥'!V$18),\"\",'シート2-⑥'!V$18)","v":""},{"$f":"IF(ISBLANK('シート2-⑥'!V$19),\"\",'シート2-⑥'!V$19)","v":""},{"$f":"IF(ISBLANK('シート2-⑥'!V$20),\"\",'シート2-⑥'!V$20)","v":""},{"$f":"IF(ISBLANK('シート2-⑥'!V$21),\"\",'シート2-⑥'!V$21)","v":""},{"$f":"IF(ISBLANK('シート2-⑥'!V$22),\"\",'シート2-⑥'!V$22)","v":""},{"$f":"IF(ISBLANK('シート2-⑥'!V$23),\"\",'シート2-⑥'!V$23)","v":""},{"$f":"IF(ISBLANK('シート2-⑥'!V$24),\"\",'シート2-⑥'!V$24)","v":""},{"$f":"IF(ISBLANK('シート2-⑥'!V$25),\"\",'シート2-⑥'!V$25)","v":""},{"$f":"IF(ISBLANK('シート2-⑥'!V$26),\"\",'シート2-⑥'!V$26)","v":""},{"$f":"IF(ISBLANK('シート2-⑥'!V$27),\"\",'シート2-⑥'!V$27)","v":""},{"$f":"IF(ISBLANK('シート2-⑥'!V$28),\"\",'シート2-⑥'!V$28)","v":""},{"$f":"IF(ISBLANK('シート2-⑥'!Y$19),\"\",'シート2-⑥'!Y$19)","v":""},{"$f":"IF(ISBLANK('シート2-⑥'!Y$20),\"\",'シート2-⑥'!Y$20)","v":""},{"$f":"IF(ISBLANK('シート2-⑥'!Y$21),\"\",'シート2-⑥'!Y$21)","v":""},{"$f":"IF(ISBLANK('シート2-⑥'!Y$22),\"\",'シート2-⑥'!Y$22)","v":""},{"$f":"IF(ISBLANK('シート2-⑥'!Y$23),\"\",'シート2-⑥'!Y$23)","v":""},{"$f":"IF(ISBLANK('シート2-⑥'!Y$24),\"\",'シート2-⑥'!Y$24)","v":""},{"$f":"IF(ISBLANK('シート2-⑥'!Y$25),\"\",'シート2-⑥'!Y$25)","v":""},{"$f":"IF(ISBLANK('シート2-⑥'!Y$26),\"\",'シート2-⑥'!Y$26)","v":""},{"$f":"IF(ISBLANK('シート2-⑥'!Y$27),\"\",'シート2-⑥'!Y$27)","v":""},{"$f":"IF(ISBLANK('シート2-⑥'!Y$28),\"\",'シート2-⑥'!Y$28)","v":""}]
["シート2",null,"主任研修",7,{"$f":"IF(ISBLANK('シート2-⑦'!$E$10),\"\",'シート2-⑦'!$E$10)","v":"2024-11-26"},{"$f":"IF(ISBLANK('シート2-⑦'!M$10),\"\",'シート2-⑦'!M$10)","v":"09:30:00"},{"$f":"IF(ISBLANK('シート2-⑦'!R$10),\"\",'シート2-⑦'!R$10)","v":"16:30:00"},{"$f":"IF(ISBLANK('シート2-⑦'!E$11),\"\",'シート2-⑦'!E$11)","v":""},{"$f":"IF(ISBLANK('シート2-⑦'!M$11),\"\",'シート2-⑦'!M$11)","v":""},{"$f":"IF(ISBLANK('シート2-⑦'!R$11),\"\",'シート2-⑦'!R$11)","v":""},{"$f":"IF(ISBLANK('シート2-⑦'!E$13),\"\",'シート2-⑦'!E$13)","v":"オンライン研修（Zoom）"},{"$f":"IF(ISBLANK('シート2-⑦'!E$14),\"\",'シート2-⑦'!E$14)","v":""},{"$f":"IF(ISBLANK('シート2-⑦'!Y$10),\"\",'シート2-⑦'!Y$10)","v":""},{"$f":"IF(ISBLANK('シート2-⑦'!Y$13),\"\",'シート2-⑦'!Y$13)","v":9999},null,{"$f":"IF(ISBLANK('シート2-⑦'!P$18),\"\",'シート2-⑦'!P$18)","v":""},{"$f":"IF(ISBLANK('シート2-⑦'!P$19),\"\",'シート2-⑦'!P$19)","v":""},{"$f":"IF(ISBLANK('シート2-⑦'!P$20),\"\",'シート2-⑦'!P$20)","v":""},{"$f":"IF(ISBLANK('シート2-⑦'!P$21),\"\",'シート2-⑦'!P$21)","v":""},{"$f":"IF(ISBLANK('シート2-⑦'!P$22),\"\",'シート2-⑦'!P$22)","v":""},{"$f":"IF(ISBLANK('シート2-⑦'!P$23),\"\",'シート2-⑦'!P$23)","v":""},{"$f":"IF(ISBLANK('シート2-⑦'!P$24),\"\",'シート2-⑦'!P$24)","v":""},{"$f":"IF(ISBLANK('シート2-⑦'!P$25),\"\",'シート2-⑦'!P$25)","v":""},{"$f":"IF(ISBLANK('シート2-⑦'!P$26),\"\",'シート2-⑦'!P$26)","v":""},{"$f":"IF(ISBLANK('シート2-⑦'!P$27),\"\",'シート2-⑦'!P$27)","v":""},{"$f":"IF(ISBLANK('シート2-⑦'!P$28),\"\",'シート2-⑦'!P$28)","v":""},{"$f":"IF(ISBLANK('シート2-⑦'!S$18),\"\",'シート2-⑦'!S$18)","v":""},{"$f":"IF(ISBLANK('シート2-⑦'!S$19),\"\",'シート2-⑦'!S$19)","v":""},{"$f":"IF(ISBLANK('シート2-⑦'!S$20),\"\",'シート2-⑦'!S$20)","v":""},{"$f":"IF(ISBLANK('シート2-⑦'!S$21),\"\",'シート2-⑦'!S$21)","v":""},{"$f":"IF(ISBLANK('シート2-⑦'!S$22),\"\",'シート2-⑦'!S$22)","v":""},{"$f":"IF(ISBLANK('シート2-⑦'!S$23),\"\",'シート2-⑦'!S$23)","v":""},{"$f":"IF(ISBLANK('シート2-⑦'!S$24),\"\",'シート2-⑦'!S$24)","v":""},{"$f":"IF(ISBLANK('シート2-⑦'!S$25),\"\",'シート2-⑦'!S$25)","v":""},{"$f":"IF(ISBLANK('シート2-⑦'!S$26),\"\",'シート2-⑦'!S$26)","v":""},{"$f":"IF(ISBLANK('シート2-⑦'!S$27),\"\",'シート2-⑦'!S$27)","v":""},{"$f":"IF(ISBLANK('シート2-⑦'!S$28),\"\",'シート2-⑦'!S$28)","v":""},{"$f":"IF(ISBLANK('シート2-⑦'!V$18),\"\",'シート2-⑦'!V$18)","v":""},{"$f":"IF(ISBLANK('シート2-⑦'!V$19),\"\",'シート2-⑦'!V$19)","v":""},{"$f":"IF(ISBLANK('シート2-⑦'!V$20),\"\",'シート2-⑦'!V$20)","v":""},{"$f":"IF(ISBLANK('シート2-⑦'!V$21),\"\",'シート2-⑦'!V$21)","v":""},{"$f":"IF(ISBLANK('シート2-⑦'!V$22),\"\",'シート2-⑦'!V$22)","v":""},{"$f":"IF(ISBLANK('シート2-⑦'!V$23),\"\",'シート2-⑦'!V$23)","v":""},{"$f":"IF(ISBLANK('シート2-⑦'!V$24),\"\",'シート2-⑦'!V$24)","v":""},{"$f":"IF(ISBLANK('シート2-⑦'!V$25),\"\",'シート2-⑦'!V$25)","v":""},{"$f":"IF(ISBLANK('シート2-⑦'!V$26),\"\",'シート2-⑦'!V$26)","v":""},{"$f":"IF(ISBLANK('シート2-⑦'!V$27),\"\",'シート2-⑦'!V$27)","v":""},{"$f":"IF(ISBLANK('シート2-⑦'!V$28),\"\",'シート2-⑦'!V$28)","v":""},{"$f":"IF(ISBLANK('シート2-⑦'!Y$19),\"\",'シート2-⑦'!Y$19)","v":""},{"$f":"IF(ISBLANK('シート2-⑦'!Y$20),\"\",'シート2-⑦'!Y$20)","v":""},{"$f":"IF(ISBLANK('シート2-⑦'!Y$21),\"\",'シート2-⑦'!Y$21)","v":""},{"$f":"IF(ISBLANK('シート2-⑦'!Y$22),\"\",'シート2-⑦'!Y$22)","v":""},{"$f":"IF(ISBLANK('シート2-⑦'!Y$23),\"\",'シート2-⑦'!Y$23)","v":""},{"$f":"IF(ISBLANK('シート2-⑦'!Y$24),\"\",'シート2-⑦'!Y$24)","v":""},{"$f":"IF(ISBLANK('シート2-⑦'!Y$25),\"\",'シート2-⑦'!Y$25)","v":""},{"$f":"IF(ISBLANK('シート2-⑦'!Y$26),\"\",'シート2-⑦'!Y$26)","v":""},{"$f":"IF(ISBLANK('シート2-⑦'!Y$27),\"\",'シート2-⑦'!Y$27)","v":""},{"$f":"IF(ISBLANK('シート2-⑦'!Y$28),\"\",'シート2-⑦'!Y$28)","v":""}]
["シート2",null,"主任研修",8,{"$f":"IF(ISBLANK('シート2-⑧'!$E$10),\"\",'シート2-⑧'!$E$10)","v":"2025-02-04"},{"$f":"IF(ISBLANK('シート2-⑧'!M$10),\"\",'シート2-⑧'!M$10)","v":"09:30:00"},{"$f":"IF(ISBLANK('シート2-⑧'!R$10),\"\",'シート2-⑧'!R$10)","v":"16:30:00"},{"$f":"IF(ISBLANK('シート2-⑧'!E$11),\"\",'シート2-⑧'!E$11)","v":""},{"$f":"IF(ISBLANK('シート2-⑧'!M$11),\"\",'シート2-⑧'!M$11)","v":""},{"$f":"IF(ISBLANK('シート2-⑧'!R$11),\"\",'シート2-⑧'!R$11)","v":""},{"$f":"IF(ISBLANK('シート2-⑧'!E$13),\"\",'シート2-⑧'!E$13)","v":"オンライン研修（Zoom）"},{"$f":"IF(ISBLANK('シート2-⑧'!E$14),\"\",'シート2-⑧'!E$14)","v":""},{"$f":"IF(ISBLANK('シート2-⑧'!Y$10),\"\",'シート2-⑧'!Y$10)","v":""},{"$f":"IF(ISBLANK('シート2-⑧'!Y$13),\"\",'シート2-⑧'!Y$13)","v":9999},null,{"$f":"IF(ISBLANK('シート2-⑧'!P$18),\"\",'シート2-⑧'!P$18)","v":""},{"$f":"IF(ISBLANK('シート2-⑧'!P$19),\"\",'シート2-⑧'!P$19)","v":""},{"$f":"IF(ISBLANK('シート2-⑧'!P$20),\"\",'シート2-⑧'!P$20)","v":""},{"$f":"IF(ISBLANK('シート2-⑧'!P$21),\"\",'シート2-⑧'!P$21)","v":""},{"$f":"IF(ISBLANK('シート2-⑧'!P$22),\"\",'シート2-⑧'!P$22)","v":""},{"$f":"IF(ISBLANK('シート2-⑧'!P$23),\"\",'シート2-⑧'!P$23)","v":""},{"$f":"IF(ISBLANK('シート2-⑧'!P$24),\"\",'シート2-⑧'!P$24)","v":""},{"$f":"IF(ISBLANK('シート2-⑧'!P$25),\"\",'シート2-⑧'!P$25)","v":""},{"$f":"IF(ISBLANK('シート2-⑧'!P$26),\"\",'シート2-⑧'!P$26)","v":""},{"$f":"IF(ISBLANK('シート2-⑧'!P$27),\"\",'シート2-⑧'!P$27)","v":""},{"$f":"IF(ISBLANK('シート2-⑧'!P$28),\"\",'シート2-⑧'!P$28)","v":""},{"$f":"IF(ISBLANK('シート2-⑧'!S$18),\"\",'シート2-⑧'!S$18)","v":""},{"$f":"IF(ISBLANK('シート2-⑧'!S$19),\"\",'シート2-⑧'!S$19)","v":""},{"$f":"IF(ISBLANK('シート2-⑧'!S$20),\"\",'シート2-⑧'!S$20)","v":""},{"$f":"IF(ISBLANK('シート2-⑧'!S$21),\"\",'シート2-⑧'!S$21)","v":""},{"$f":"IF(ISBLANK('シート2-⑧'!S$22),\"\",'シート2-⑧'!S$22)","v":""},{"$f":"IF(ISBLANK('シート2-⑧'!S$23),\"\",'シート2-⑧'!S$23)","v":""},{"$f":"IF(ISBLANK('シート2-⑧'!S$24),\"\",'シート2-⑧'!S$24)","v":""},{"$f":"IF(ISBLANK('シート2-⑧'!S$25),\"\",'シート2-⑧'!S$25)","v":""},{"$f":"IF(ISBLANK('シート2-⑧'!S$26),\"\",'シート2-⑧'!S$26)","v":""},{"$f":"IF(ISBLANK('シート2-⑧'!S$27),\"\",'シート2-⑧'!S$27)","v":""},{"$f":"IF(ISBLANK('シート2-⑧'!S$28),\"\",'シート2-⑧'!S$28)","v":""},{"$f":"IF(ISBLANK('シート2-⑧'!V$18),\"\",'シート2-⑧'!V$18)","v":""},{"$f":"IF(ISBLANK('シート2-⑧'!V$19),\"\",'シート2-⑧'!V$19)","v":""},{"$f":"IF(ISBLANK('シート2-⑧'!V$20),\"\",'シート2-⑧'!V$20)","v":""},{"$f":"IF(ISBLANK('シート2-⑧'!V$21),\"\",'シート2-⑧'!V$21)","v":""},{"$f":"IF(ISBLANK('シート2-⑧'!V$22),\"\",'シート2-⑧'!V$22)","v":""},{"$f":"IF(ISBLANK('シート2-⑧'!V$23),\"\",'シート2-⑧'!V$23)","v":""},{"$f":"IF(ISBLANK('シート2-⑧'!V$24),\"\",'シート2-⑧'!V$24)","v":""},{"$f":"IF(ISBLANK('シート2-⑧'!V$25),\"\",'シート2-⑧'!V$25)","v":""},{"$f":"IF(ISBLANK('シート2-⑧'!V$26),\"\",'シート2-⑧'!V$26)","v":""},{"$f":"IF(ISBLANK('シート2-⑧'!V$27),\"\",'シート2-⑧'!V$27)","v":""},{"$f":"IF(ISBLANK('シート2-⑧'!V$28),\"\",'シート2-⑧'!V$28)","v":""},{"$f":"IF(ISBLANK('シート2-⑧'!Y$19),\"\",'シート2-⑧'!Y$19)","v":""},{"$f":"IF(ISBLANK('シート2-⑧'!Y$20),\"\",'シート2-⑧'!Y$20)","v":""},{"$f":"IF(ISBLANK('シート2-⑧'!Y$21),\"\",'シート2-⑧'!Y$21)","v":""},{"$f":"IF(ISBLANK('シート2-⑧'!Y$22),\"\",'シート2-⑧'!Y$22)","v":""},{"$f":"IF(ISBLANK('シート2-⑧'!Y$23),\"\",'シート2-⑧'!Y$23)","v":""},{"$f":"IF(ISBLANK('シート2-⑧'!Y$24),\"\",'シート2-⑧'!Y$24)","v":""},{"$f":"IF(ISBLANK('シート2-⑧'!Y$25),\"\",'シート2-⑧'!Y$25)","v":""},{"$f":"IF(ISBLANK('シート2-⑧'!Y$26),\"\",'シート2-⑧'!Y$26)","v":""},{"$f":"IF(ISBLANK('シート2-⑧'!Y$27),\"\",'シート2-⑧'!Y$27)","v":""},{"$f":"IF(ISBLANK('シート2-⑧'!Y$28),\"\",'シート2-⑧'!Y$28)","v":""}]
["シート2",null,"主任研修",9,{"$f":"IF(ISBLANK('シート2-⑨'!$E$10),\"\",'シート2-⑨'!$E$10)","v":"2025-03-05"},{"$f":"IF(ISBLANK('シート2-⑨'!M$10),\"\",'シート2-⑨'!M$10)","v":"09:30:00"},{"$f":"IF(ISBLANK('シート2-⑨'!R$10),\"\",'シート2-⑨'!R$10)","v":"16:30:00"},{"$f":"IF(ISBLANK('シート2-⑨'!E$11),\"\",'シート2-⑨'!E$11)","v":""},{"$f":"IF(ISBLANK('シート2-⑨'!M$11),\"\",'シート2-⑨'!M$11)","v":""},{"$f":"IF(ISBLANK('シート2-⑨'!R$11),\"\",'シート2-⑨'!R$11)","v":""},{"$f":"IF(ISBLANK('シート2-⑨'!E$13),\"\",'シート2-⑨'!E$13)","v":"オンライン研修（Zoom）"},{"$f":"IF(ISBLANK('シート2-⑨'!E$14),\"\",'シート2-⑨'!E$14)","v":""},{"$f":"IF(ISBLANK('シート2-⑨'!Y$10),\"\",'シート2-⑨'!Y$10)","v":""},{"$f":"IF(ISBLANK('シート2-⑨'!Y$13),\"\",'シート2-⑨'!Y$13)","v":9999},null,{"$f":"IF(ISBLANK('シート2-⑨'!P$18),\"\",'シート2-⑨'!P$18)","v":""},{"$f":"IF(ISBLANK('シート2-⑨'!P$19),\"\",'シート2-⑨'!P$19)","v":""},{"$f":"IF(ISBLANK('シート2-⑨'!P$20),\"\",'シート2-⑨'!P$20)","v":""},{"$f":"IF(ISBLANK('シート2-⑨'!P$21),\"\",'シート2-⑨'!P$21)","v":""},{"$f":"IF(ISBLANK('シート2-⑨'!P$22),\"\",'シート2-⑨'!P$22)","v":""},{"$f":"IF(ISBLANK('シート2-⑨'!P$23),\"\",'シート2-⑨'!P$23)","v":""},{"$f":"IF(ISBLANK('シート2-⑨'!P$24),\"\",'シート2-⑨'!P$24)","v":""},{"$f":"IF(ISBLANK('シート2-⑨'!P$25),\"\",'シート2-⑨'!P$25)","v":""},{"$f":"IF(ISBLANK('シート2-⑨'!P$26),\"\",'シート2-⑨'!P$26)","v":""},{"$f":"IF(ISBLANK('シート2-⑨'!P$27),\"\",'シート2-⑨'!P$27)","v":""},{"$f":"IF(ISBLANK('シート2-⑨'!P$28),\"\",'シート2-⑨'!P$28)","v":""},{"$f":"IF(ISBLANK('シート2-⑨'!S$18),\"\",'シート2-⑨'!S$18)","v":""},{"$f":"IF(ISBLANK('シート2-⑨'!S$19),\"\",'シート2-⑨'!S$19)","v":""},{"$f":"IF(ISBLANK('シート2-⑨'!S$20),\"\",'シート2-⑨'!S$20)","v":""},{"$f":"IF(ISBLANK('シート2-⑨'!S$21),\"\",'シート2-⑨'!S$21)","v":""},{"$f":"IF(ISBLANK('シート2-⑨'!S$22),\"\",'シート2-⑨'!S$22)","v":""},{"$f":"IF(ISBLANK('シート2-⑨'!S$23),\"\",'シート2-⑨'!S$23)","v":""},{"$f":"IF(ISBLANK('シート2-⑨'!S$24),\"\",'シート2-⑨'!S$24)","v":""},{"$f":"IF(ISBLANK('シート2-⑨'!S$25),\"\",'シート2-⑨'!S$25)","v":""},{"$f":"IF(ISBLANK('シート2-⑨'!S$26),\"\",'シート2-⑨'!S$26)","v":""},{"$f":"IF(ISBLANK('シート2-⑨'!S$27),\"\",'シート2-⑨'!S$27)","v":""},{"$f":"IF(ISBLANK('シート2-⑨'!S$28),\"\",'シート2-⑨'!S$28)","v":""},{"$f":"IF(ISBLANK('シート2-⑨'!V$18),\"\",'シート2-⑨'!V$18)","v":""},{"$f":"IF(ISBLANK('シート2-⑨'!V$19),\"\",'シート2-⑨'!V$19)","v":""},{"$f":"IF(ISBLANK('シート2-⑨'!V$20),\"\",'シート2-⑨'!V$20)","v":""},{"$f":"IF(ISBLANK('シート2-⑨'!V$21),\"\",'シート2-⑨'!V$21)","v":""},{"$f":"IF(ISBLANK('シート2-⑨'!V$22),\"\",'シート2-⑨'!V$22)","v":""},{"$f":"IF(ISBLANK('シート2-⑨'!V$23),\"\",'シート2-⑨'!V$23)","v":""},{"$f":"IF(ISBLANK('シート2-⑨'!V$24),\"\",'シート2-⑨'!V$24)","v":""},{"$f":"IF(ISBLANK('シート2-⑨'!V$25),\"\",'シート2-⑨'!V$25)","v":""},{"$f":"IF(ISBLANK('シート2-⑨'!V$26),\"\",'シート2-⑨'!V$26)","v":""},{"$f":"IF(ISBLANK('シート2-⑨'!V$27),\"\",'シート2-⑨'!V$27)","v":""},{"$f":"IF(ISBLANK('シート2-⑨'!V$28),\"\",'シート2-⑨'!V$28)","v":""},{"$f":"IF(ISBLANK('シート2-⑨'!Y$19),\"\",'シート2-⑨'!Y$19)","v":""},{"$f":"IF(ISBLANK('シート2-⑨'!Y$20),\"\",'シート2-⑨'!Y$20)","v":""},{"$f":"IF(ISBLANK('シート2-⑨'!Y$21),\"\",'シート2-⑨'!Y$21)","v":""},{"$f":"IF(ISBLANK('シート2-⑨'!Y$22),\"\",'シート2-⑨'!Y$22)","v":""},{"$f":"IF(ISBLANK('シート2-⑨'!Y$23),\"\",'シート2-⑨'!Y$23)","v":""},{"$f":"IF(ISBLANK('シート2-⑨'!Y$24),\"\",'シート2-⑨'!Y$24)","v":""},{"$f":"IF(ISBLANK('シート2-⑨'!Y$25),\"\",'シート2-⑨'!Y$25)","v":""},{"$f":"IF(ISBLANK('シート2-⑨'!Y$26),\"\",'シート2-⑨'!Y$26)","v":""},{"$f":"IF(ISBLANK('シート2-⑨'!Y$27),\"\",'シート2-⑨'!Y$27)","v":""},{"$f":"IF(ISBLANK('シート2-⑨'!Y$28),\"\",'シート2-⑨'!Y$28)","v":""}]
[]
[]
["集計データ（研修記録シート2）(直後)",null,null,null,null,null,"2024-08-23T15:50:54.480"]
[null,null,"基本情報",null,null,null,null,null,null,null,null,null,null,null,null,"受講後"]
["集計用","転記日","課程区分","科目区分","受講日1","時間1\n（始点）","時間2\n（終点）","受講日2","時間2\n（始点）","時間2\n（終点）","会場1","会場2","氏名","受講番号","評価\n項目数","入力日","理解度①","理解度②","理解度③","理解度④","理解度⑤","理解度⑥","理解度⑦","理解度⑧","理解度⑨","理解度⑩"]
["シート2",null,{"$f":"$C$4","v":"主任研修"},1,{"$f":"IF(ISBLANK('シート2-①'!E$10),\"\",'シート2-①'!E$10)","v":"2024-11-09"},{"$f":"IF(ISBLANK('シート2-①'!M$10),\"\",'シート2-①'!M$10)","v":"10:00:00"},{"$f":"IF(ISBLANK('シート2-①'!R$10),\"\",'シート2-①'!R$10)","v":"12:00:00"},{"$f":"IF(ISBLANK('シート2-①'!E$11),\"\",'シート2-①'!E$11)","v":"2024-11-09"},{"$f":"IF(ISBLANK('シート2-①'!M$11),\"\",'シート2-①'!M$11)","v":"13:00:00"},{"$f":"IF(ISBLANK('シート2-①'!R$11),\"\",'シート2-①'!R$11)","v":"16:00:00"},{"$f":"IF(ISBLANK('シート2-①'!E$13),\"\",'シート2-①'!E$13)","v":"オンライン研修（Zoom）"},{"$f":"IF(ISBLANK('シート2-①'!E$14),\"\",'シート2-①'!E$14)","v":"オンライン研修（Zoom）"},{"$f":"IF(ISBLANK('シート2-①'!Y$10),\"\",'シート2-①'!Y$10)","v":""},{"$f":"IF(ISBLANK('シート2-①'!Y$13),\"\",'シート2-①'!Y$13)","v":9999},null,{"$f":"IF(ISBLANK('シート2-①'!S$18),\"\",'シート2-①'!S$18)","v":""},{"$f":"IF(ISBLANK('シート2-①'!S$19),\"\",'シート2-①'!S$19)","v":""},{"$f":"IF(ISBLANK('シート2-①'!S$20),\"\",'シート2-①'!S$20)","v":""},{"$f":"IF(ISBLANK('シート2-①'!S$21),\"\",'シート2-①'!S$21)","v":""},{"$f":"IF(ISBLANK('シート2-①'!S$22),\"\",'シート2-①'!S$22)","v":""},{"$f":"IF(ISBLANK('シート2-①'!S$23),\"\",'シート2-①'!S$23)","v":""},{"$f":"IF(ISBLANK('シート2-①'!S$24),\"\",'シート2-①'!S$24)","v":""},{"$f":"IF(ISBLANK('シート2-①'!S$25),\"\",'シート2-①'!S$25)","v":""},{"$f":"IF(ISBLANK('シート2-①'!S$26),\"\",'シート2-①'!S$26)","v":""},{"$f":"IF(ISBLANK('シート2-①'!S$27),\"\",'シート2-①'!S$27)","v":""},{"$f":"IF(ISBLANK('シート2-①'!S$28),\"\",'シート2-①'!S$28)","v":""}]
["シート2",null,{"$f":"$C$4","v":"主任研修"},2,{"$f":"IF(ISBLANK('シート2-②'!E$10),\"\",'シート2-②'!E$10)","v":"2024-11-20"},{"$f":"IF(ISBLANK('シート2-②'!M$10),\"\",'シート2-②'!M$10)","v":"09:30:00"},{"$f":"IF(ISBLANK('シート2-②'!R$10),\"\",'シート2-②'!R$10)","v":"12:30:00"},{"$f":"IF(ISBLANK('シート2-②'!E$11),\"\",'シート2-②'!E$11)","v":""},{"$f":"IF(ISBLANK('シート2-②'!M$11),\"\",'シート2-②'!M$11)","v":""},{"$f":"IF(ISBLANK('シート2-②'!R$11),\"\",'シート2-②'!R$11)","v":""},{"$f":"IF(ISBLANK('シート2-②'!E$13),\"\",'シート2-②'!E$13)","v":"オンライン研修（Zoom）"},{"$f":"IF(ISBLANK('シート2-②'!E$14),\"\",'シート2-②'!E$14)","v":""},{"$f":"IF(ISBLANK('シート2-②'!Y$10),\"\",'シート2-②'!Y$10)","v":""},{"$f":"IF(ISBLANK('シート2-②'!Y$13),\"\",'シート2-②'!Y$13)","v":9999},null,{"$f":"IF(ISBLANK('シート2-②'!S$18),\"\",'シート2-②'!S$18)","v":""},{"$f":"IF(ISBLANK('シート2-②'!S$19),\"\",'シート2-②'!S$19)","v":""},{"$f":"IF(ISBLANK('シート2-②'!S$20),\"\",'シート2-②'!S$20)","v":""},{"$f":"IF(ISBLANK('シート2-②'!S$21),\"\",'シート2-②'!S$21)","v":""},{"$f":"IF(ISBLANK('シート2-②'!S$22),\"\",'シート2-②'!S$22)","v":""},{"$f":"IF(ISBLANK('シート2-②'!S$23),\"\",'シート2-②'!S$23)","v":""},{"$f":"IF(ISBLANK('シート2-②'!S$24),\"\",'シート2-②'!S$24)","v":""},{"$f":"IF(ISBLANK('シート2-②'!S$25),\"\",'シート2-②'!S$25)","v":""},{"$f":"IF(ISBLANK('シート2-②'!S$26),\"\",'シート2-②'!S$26)","v":""},{"$f":"IF(ISBLANK('シート2-②'!S$27),\"\",'シート2-②'!S$27)","v":""},{"$f":"IF(ISBLANK('シート2-②'!S$28),\"\",'シート2-②'!S$28)","v":""}]
["シート2",null,"主任研修",3,{"$f":"IF(ISBLANK('シート2-③'!E$10),\"\",'シート2-③'!E$10)","v":"2024-12-01"},{"$f":"IF(ISBLANK('シート2-③'!M$10),\"\",'シート2-③'!M$10)","v":"09:30:00"},{"$f":"IF(ISBLANK('シート2-③'!R$10),\"\",'シート2-③'!R$10)","v":"12:30:00"},{"$f":"IF(ISBLANK('シート2-③'!E$11),\"\",'シート2-③'!E$11)","v":""},{"$f":"IF(ISBLANK('シート2-③'!M$11),\"\",'シート2-③'!M$11)","v":""},{"$f":"IF(ISBLANK('シート2-③'!R$11),\"\",'シート2-③'!R$11)","v":""},{"$f":"IF(ISBLANK('シート2-③'!E$13),\"\",'シート2-③'!E$13)","v":"オンライン研修（Zoom）"},{"$f":"IF(ISBLANK('シート2-③'!E$14),\"\",'シート2-③'!E$14)","v":""},{"$f":"IF(ISBLANK('シート2-③'!Y$10),\"\",'シート2-③'!Y$10)","v":""},{"$f":"IF(ISBLANK('シート2-③'!Y$13),\"\",'シート2-③'!Y$13)","v":9999},null,{"$f":"IF(ISBLANK('シート2-③'!S$18),\"\",'シート2-③'!S$18)","v":""},{"$f":"IF(ISBLANK('シート2-③'!S$19),\"\",'シート2-③'!S$19)","v":""},{"$f":"IF(ISBLANK('シート2-③'!S$20),\"\",'シート2-③'!S$20)","v":""},{"$f":"IF(ISBLANK('シート2-③'!S$21),\"\",'シート2-③'!S$21)","v":""},{"$f":"IF(ISBLANK('シート2-③'!S$22),\"\",'シート2-③'!S$22)","v":""},{"$f":"IF(ISBLANK('シート2-③'!S$24),\"\",'シート2-③'!S$24)","v":""},{"$f":"IF(ISBLANK('シート2-③'!S$24),\"\",'シート2-③'!S$24)","v":""},{"$f":"IF(ISBLANK('シート2-③'!S$25),\"\",'シート2-③'!S$25)","v":""},{"$f":"IF(ISBLANK('シート2-③'!S$26),\"\",'シート2-③'!S$26)","v":""},{"$f":"IF(ISBLANK('シート2-③'!S$27),\"\",'シート2-③'!S$27)","v":""},{"$f":"IF(ISBLANK('シート2-③'!S$28),\"\",'シート2-③'!S$28)","v":""}]
["シート2",null,"主任研修",4,{"$f":"IF(ISBLANK('シート2-④'!E$10),\"\",'シート2-④'!E$10)","v":"2024-11-20"},{"$f":"IF(ISBLANK('シート2-④'!M$10),\"\",'シート2-④'!M$10)","v":"13:30:00"},{"$f":"IF(ISBLANK('シート2-④'!R$10),\"\",'シート2-④'!R$10)","v":"16:30:00"},{"$f":"IF(ISBLANK('シート2-④'!E$11),\"\",'シート2-④'!E$11)","v":""},{"$f":"IF(ISBLANK('シート2-④'!M$11),\"\",'シート2-④'!M$11)","v":""},{"$f":"IF(ISBLANK('シート2-④'!R$11),\"\",'シート2-④'!R$11)","v":""},{"$f":"IF(ISBLANK('シート2-④'!E$13),\"\",'シート2-④'!E$13)","v":"オンライン研修（Zoom）"},{"$f":"IF(ISBLANK('シート2-④'!E$14),\"\",'シート2-④'!E$14)","v":""},{"$f":"IF(ISBLANK('シート2-④'!Y$10),\"\",'シート2-④'!Y$10)","v":""},{"$f":"IF(ISBLANK('シート2-④'!Y$13),\"\",'シート2-④'!Y$13)","v":9999},null,{"$f":"IF(ISBLANK('シート2-④'!S$18),\"\",'シート2-④'!S$18)","v":""},{"$f":"IF(ISBLANK('シート2-④'!S$19),\"\",'シート2-④'!S$19)","v":""},{"$f":"IF(ISBLANK('シート2-④'!S$20),\"\",'シート2-④'!S$20)","v":""},{"$f":"IF(ISBLANK('シート2-④'!S$21),\"\",'シート2-④'!S$21)","v":""},{"$f":"IF(ISBLANK('シート2-④'!S$22),\"\",'シート2-④'!S$22)","v":""},{"$f":"IF(ISBLANK('シート2-④'!S$23),\"\",'シート2-④'!S$23)","v":""},{"$f":"IF(ISBLANK('シート2-④'!S$24),\"\",'シート2-④'!S$24)","v":""},{"$f":"IF(ISBLANK('シート2-④'!S$25),\"\",'シート2-④'!S$25)","v":""},{"$f":"IF(ISBLANK('シート2-④'!S$26),\"\",'シート2-④'!S$26)","v":""},{"$f":"IF(ISBLANK('シート2-④'!S$27),\"\",'シート2-④'!S$27)","v":""},{"$f":"IF(ISBLANK('シート2-④'!S$28),\"\",'シート2-④'!S$28)","v":""}]
["シート2",null,"主任研修",5,{"$f":"IF(ISBLANK('シート2-⑤'!E$10),\"\",'シート2-⑤'!E$10)","v":"2024-12-01"},{"$f":"IF(ISBLANK('シート2-⑤'!M$10),\"\",'シート2-⑤'!M$10)","v":"13:30:00"},{"$f":"IF(ISBLANK('シート2-⑤'!R$10),\"\",'シート2-⑤'!R$10)","v":"16:30:00"},{"$f":"IF(ISBLANK('シート2-⑤'!E$11),\"\",'シート2-⑤'!E$11)","v":""},{"$f":"IF(ISBLANK('シート2-⑤'!M$11),\"\",'シート2-⑤'!M$11)","v":""},{"$f":"IF(ISBLANK('シート2-⑤'!R$11),\"\",'シート2-⑤'!R$11)","v":""},{"$f":"IF(ISBLANK('シート2-⑤'!E$13),\"\",'シート2-⑤'!E$13)","v":"オンライン研修（Zoom）"},{"$f":"IF(ISBLANK('シート2-⑤'!E$14),\"\",'シート2-⑤'!E$14)","v":""},{"$f":"IF(ISBLANK('シート2-⑤'!Y$10),\"\",'シート2-⑤'!Y$10)","v":""},{"$f":"IF(ISBLANK('シート2-⑤'!Y$13),\"\",'シート2-⑤'!Y$13)","v":9999},null,{"$f":"IF(ISBLANK('シート2-⑤'!S$18),\"\",'シート2-⑤'!S$18)","v":""},{"$f":"IF(ISBLANK('シート2-⑤'!S$19),\"\",'シート2-⑤'!S$19)","v":""},{"$f":"IF(ISBLANK('シート2-⑤'!S$20),\"\",'シート2-⑤'!S$20)","v":""},{"$f":"IF(ISBLANK('シート2-⑤'!S$21),\"\",'シート2-⑤'!S$21)","v":""},{"$f":"IF(ISBLANK('シート2-⑤'!S$22),\"\",'シート2-⑤'!S$22)","v":""},{"$f":"IF(ISBLANK('シート2-⑤'!S$23),\"\",'シート2-⑤'!S$23)","v":""},{"$f":"IF(ISBLANK('シート2-⑤'!S$24),\"\",'シート2-⑤'!S$24)","v":""},{"$f":"IF(ISBLANK('シート2-⑤'!S$25),\"\",'シート2-⑤'!S$25)","v":""},{"$f":"IF(ISBLANK('シート2-⑤'!S$26),\"\",'シート2-⑤'!S$26)","v":""},{"$f":"IF(ISBLANK('シート2-⑤'!S$27),\"\",'シート2-⑤'!S$27)","v":""},{"$f":"IF(ISBLANK('シート2-⑤'!S$28),\"\",'シート2-⑤'!S$28)","v":""}]
["シート2",null,"主任研修",6,{"$f":"IF(ISBLANK('シート2-⑥'!E$10),\"\",'シート2-⑥'!E$10)","v":"2025-01-19"},{"$f":"IF(ISBLANK('シート2-⑥'!M$10),\"\",'シート2-⑥'!M$10)","v":"09:30:00"},{"$f":"IF(ISBLANK('シート2-⑥'!R$10),\"\",'シート2-⑥'!R$10)","v":"16:30:00"},{"$f":"IF(ISBLANK('シート2-⑥'!E$11),\"\",'シート2-⑥'!E$11)","v":""},{"$f":"IF(ISBLANK('シート2-⑥'!M$11),\"\",'シート2-⑥'!M$11)","v":""},{"$f":"IF(ISBLANK('シート2-⑥'!R$11),\"\",'シート2-⑥'!R$11)","v":""},{"$f":"IF(ISBLANK('シート2-⑥'!E$13),\"\",'シート2-⑥'!E$13)","v":"オンライン研修（Zoom）"},{"$f":"IF(ISBLANK('シート2-⑥'!E$14),\"\",'シート2-⑥'!E$14)","v":""},{"$f":"IF(ISBLANK('シート2-⑥'!Y$10),\"\",'シート2-⑥'!Y$10)","v":""},{"$f":"IF(ISBLANK('シート2-⑥'!Y$13),\"\",'シート2-⑥'!Y$13)","v":9999},null,{"$f":"IF(ISBLANK('シート2-⑥'!S$18),\"\",'シート2-⑥'!S$18)","v":""},{"$f":"IF(ISBLANK('シート2-⑥'!S$19),\"\",'シート2-⑥'!S$19)","v":""},{"$f":"IF(ISBLANK('シート2-⑥'!S$20),\"\",'シート2-⑥'!S$20)","v":""},{"$f":"IF(ISBLANK('シート2-⑥'!S$21),\"\",'シート2-⑥'!S$21)","v":""},{"$f":"IF(ISBLANK('シート2-⑥'!S$22),\"\",'シート2-⑥'!S$22)","v":""},{"$f":"IF(ISBLANK('シート2-⑥'!S$23),\"\",'シート2-⑥'!S$23)","v":""},{"$f":"IF(ISBLANK('シート2-⑥'!S$24),\"\",'シート2-⑥'!S$24)","v":""},{"$f":"IF(ISBLANK('シート2-⑥'!S$25),\"\",'シート2-⑥'!S$25)","v":""},{"$f":"IF(ISBLANK('シート2-⑥'!S$26),\"\",'シート2-⑥'!S$26)","v":""},{"$f":"IF(ISBLANK('シート2-⑥'!S$27),\"\",'シート2-⑥'!S$27)","v":""},{"$f":"IF(ISBLANK('シート2-⑥'!S$28),\"\",'シート2-⑥'!S$28)","v":""}]
["シート2",null,"主任研修",7,{"$f":"IF(ISBLANK('シート2-⑦'!$E$10),\"\",'シート2-⑦'!$E$10)","v":"2024-11-26"},{"$f":"IF(ISBLANK('シート2-⑦'!M$10),\"\",'シート2-⑦'!M$10)","v":"09:30:00"},{"$f":"IF(ISBLANK('シート2-⑦'!R$10),\"\",'シート2-⑦'!R$10)","v":"16:30:00"},{"$f":"IF(ISBLANK('シート2-⑦'!E$11),\"\",'シート2-⑦'!E$11)","v":""},{"$f":"IF(ISBLANK('シート2-⑦'!M$11),\"\",'シート2-⑦'!M$11)","v":""},{"$f":"IF(ISBLANK('シート2-⑦'!R$11),\"\",'シート2-⑦'!R$11)","v":""},{"$f":"IF(ISBLANK('シート2-⑦'!E$13),\"\",'シート2-⑦'!E$13)","v":"オンライン研修（Zoom）"},{"$f":"IF(ISBLANK('シート2-⑦'!E$14),\"\",'シート2-⑦'!E$14)","v":""},{"$f":"IF(ISBLANK('シート2-⑦'!Y$10),\"\",'シート2-⑦'!Y$10)","v":""},{"$f":"IF(ISBLANK('シート2-⑦'!Y$13),\"\",'シート2-⑦'!Y$13)","v":9999},null,{"$f":"IF(ISBLANK('シート2-⑦'!S$18),\"\",'シート2-⑦'!S$18)","v":""},{"$f":"IF(ISBLANK('シート2-⑦'!S$19),\"\",'シート2-⑦'!S$19)","v":""},{"$f":"IF(ISBLANK('シート2-⑦'!S$20),\"\",'シート2-⑦'!S$20)","v":""},{"$f":"IF(ISBLANK('シート2-⑦'!S$21),\"\",'シート2-⑦'!S$21)","v":""},{"$f":"IF(ISBLANK('シート2-⑦'!S$22),\"\",'シート2-⑦'!S$22)","v":""},{"$f":"IF(ISBLANK('シート2-⑦'!S$23),\"\",'シート2-⑦'!S$23)","v":""},{"$f":"IF(ISBLANK('シート2-⑦'!S$24),\"\",'シート2-⑦'!S$24)","v":""},{"$f":"IF(ISBLANK('シート2-⑦'!S$25),\"\",'シート2-⑦'!S$25)","v":""},{"$f":"IF(ISBLANK('シート2-⑦'!S$26),\"\",'シート2-⑦'!S$26)","v":""},{"$f":"IF(ISBLANK('シート2-⑦'!S$27),\"\",'シート2-⑦'!S$27)","v":""},{"$f":"IF(ISBLANK('シート2-⑦'!S$28),\"\",'シート2-⑦'!S$28)","v":""}]
["シート2",null,"主任研修",8,{"$f":"IF(ISBLANK('シート2-⑧'!$E$10),\"\",'シート2-⑧'!$E$10)","v":"2025-02-04"},{"$f":"IF(ISBLANK('シート2-⑧'!M$10),\"\",'シート2-⑧'!M$10)","v":"09:30:00"},{"$f":"IF(ISBLANK('シート2-⑧'!R$10),\"\",'シート2-⑧'!R$10)","v":"16:30:00"},{"$f":"IF(ISBLANK('シート2-⑧'!E$11),\"\",'シート2-⑧'!E$11)","v":""},{"$f":"IF(ISBLANK('シート2-⑧'!M$11),\"\",'シート2-⑧'!M$11)","v":""},{"$f":"IF(ISBLANK('シート2-⑧'!R$11),\"\",'シート2-⑧'!R$11)","v":""},{"$f":"IF(ISBLANK('シート2-⑧'!E$13),\"\",'シート2-⑧'!E$13)","v":"オンライン研修（Zoom）"},{"$f":"IF(ISBLANK('シート2-⑧'!E$14),\"\",'シート2-⑧'!E$14)","v":""},{"$f":"IF(ISBLANK('シート2-⑧'!Y$10),\"\",'シート2-⑧'!Y$10)","v":""},{"$f":"IF(ISBLANK('シート2-⑧'!Y$13),\"\",'シート2-⑧'!Y$13)","v":9999},null,{"$f":"IF(ISBLANK('シート2-⑧'!S$18),\"\",'シート2-⑧'!S$18)","v":""},{"$f":"IF(ISBLANK('シート2-⑧'!S$19),\"\",'シート2-⑧'!S$19)","v":""},{"$f":"IF(ISBLANK('シート2-⑧'!S$20),\"\",'シート2-⑧'!S$20)","v":""},{"$f":"IF(ISBLANK('シート2-⑧'!S$21),\"\",'シート2-⑧'!S$21)","v":""},{"$f":"IF(ISBLANK('シート2-⑧'!S$22),\"\",'シート2-⑧'!S$22)","v":""},{"$f":"IF(ISBLANK('シート2-⑧'!S$23),\"\",'シート2-⑧'!S$23)","v":""},{"$f":"IF(ISBLANK('シート2-⑧'!S$24),\"\",'シート2-⑧'!S$24)","v":""},{"$f":"IF(ISBLANK('シート2-⑧'!S$25),\"\",'シート2-⑧'!S$25)","v":""},{"$f":"IF(ISBLANK('シート2-⑧'!S$26),\"\",'シート2-⑧'!S$26)","v":""},{"$f":"IF(ISBLANK('シート2-⑧'!S$27),\"\",'シート2-⑧'!S$27)","v":""},{"$f":"IF(ISBLANK('シート2-⑧'!S$28),\"\",'シート2-⑧'!S$28)","v":""}]
["シート2",null,"主任研修",9,{"$f":"IF(ISBLANK('シート2-⑨'!$E$10),\"\",'シート2-⑨'!$E$10)","v":"2025-03-05"},{"$f":"IF(ISBLANK('シート2-⑨'!M$10),\"\",'シート2-⑨'!M$10)","v":"09:30:00"},{"$f":"IF(ISBLANK('シート2-⑨'!R$10),\"\",'シート2-⑨'!R$10)","v":"16:30:00"},{"$f":"IF(ISBLANK('シート2-⑨'!E$11),\"\",'シート2-⑨'!E$11)","v":""},{"$f":"IF(ISBLANK('シート2-⑨'!M$11),\"\",'シート2-⑨'!M$11)","v":""},{"$f":"IF(ISBLANK('シート2-⑨'!R$11),\"\",'シート2-⑨'!R$11)","v":""},{"$f":"IF(ISBLANK('シート2-⑨'!E$13),\"\",'シート2-⑨'!E$13)","v":"オンライン研修（Zoom）"},{"$f":"IF(ISBLANK('シート2-⑨'!E$14),\"\",'シート2-⑨'!E$14)","v":""},{"$f":"IF(ISBLANK('シート2-⑨'!Y$10),\"\",'シート2-⑨'!Y$10)","v":""},{"$f":"IF(ISBLANK('シート2-⑨'!Y$13),\"\",'シート2-⑨'!Y$13)","v":9999},null,{"$f":"IF(ISBLANK('シート2-⑨'!S$18),\"\",'シート2-⑨'!S$18)","v":""},{"$f":"IF(ISBLANK('シート2-⑨'!S$19),\"\",'シート2-⑨'!S$19)","v":""},{"$f":"IF(ISBLANK('シート2-⑨'!S$20),\"\",'シート2-⑨'!S$20)","v":""},{"$f":"IF(ISBLANK('シート2-⑨'!S$21),\"\",'シート2-⑨'!S$21)","v":""},{"$f":"IF(ISBLANK('シート2-⑨'!S$22),\"\",'シート2-⑨'!S$22)","v":""},{"$f":"IF(ISBLANK('シート2-⑨'!S$23),\"\",'シート2-⑨'!S$23)","v":""},{"$f":"IF(ISBLANK('シート2-⑨'!S$24),\"\",'シート2-⑨'!S$24)","v":""},{"$f":"IF(ISBLANK('シート2-⑨'!S$25),\"\",'シート2-⑨'!S$25)","v":""},{"$f":"IF(ISBLANK('シート2-⑨'!S$26),\"\",'シート2-⑨'!S$26)","v":""},{"$f":"IF(ISBLANK('シート2-⑨'!S$27),\"\",'シート2-⑨'!S$27)","v":""},{"$f":"IF(ISBLANK('シート2-⑨'!S$28),\"\",'シート2-⑨'!S$28)","v":""}]
[]
[]
["集計データ（研修記録シート2）(三ヶ月)",null,null,null,null,null,"2024-08-23T15:56:22.660"]
[null,null,"基本情報",null,null,null,null,null,null,null,null,null,null,null,null,"実践評価（3ヶ月後）",null,null,null,null,null,null,null,null,null,null,"備考"]
["集計用","転記日","課程区分","科目区分","受講日1","時間1\n（始点）","2024-08-23T15:48:21.520","受講日2","時間2\n（始点）","時間2\n（終点）","会場1","会場2","氏名","受講番号","評価\n項目数","入力日","理解度①","理解度②","理解度③","理解度④","理解度⑤","理解度⑥","理解度⑦","理解度⑧","理解度⑨","理解度⑩","備考①","備考②","備考③","備考④","備考⑤","備考⑥","備考⑦","備考⑧","備考⑨","備考⑩"]
["シート2",null,{"$f":"$C$4","v":"主任研修"},1,{"$f":"IF(ISBLANK('シート2-①'!E$10),\"\",'シート2-①'!E$10)","v":"2024-11-09"},{"$f":"IF(ISBLANK('シート2-①'!M$10),\"\",'シート2-①'!M$10)","v":"10:00:00"},{"$f":"IF(ISBLANK('シート2-①'!R$10),\"\",'シート2-①'!R$10)","v":"12:00:00"},{"$f":"IF(ISBLANK('シート2-①'!E$11),\"\",'シート2-①'!E$11)","v":"2024-11-09"},{"$f":"IF(ISBLANK('シート2-①'!M$11),\"\",'シート2-①'!M$11)","v":"13:00:00"},{"$f":"IF(ISBLANK('シート2-①'!R$11),\"\",'シート2-①'!R$11)","v":"16:00:00"},{"$f":"IF(ISBLANK('シート2-①'!E$13),\"\",'シート2-①'!E$13)","v":"オンライン研修（Zoom）"},{"$f":"IF(ISBLANK('シート2-①'!E$14),\"\",'シート2-①'!E$14)","v":"オンライン研修（Zoom）"},{"$f":"IF(ISBLANK('シート2-①'!Y$10),\"\",'シート2-①'!Y$10)","v":""},{"$f":"IF(ISBLANK('シート2-①'!Y$13),\"\",'シート2-①'!Y$13)","v":9999},null,{"$f":"IF(ISBLANK('シート2-①'!V$18),\"\",'シート2-①'!V$18)","v":""},{"$f":"IF(ISBLANK('シート2-①'!V$19),\"\",'シート2-①'!V$19)","v":""},{"$f":"IF(ISBLANK('シート2-①'!V$20),\"\",'シート2-①'!V$20)","v":""},{"$f":"IF(ISBLANK('シート2-①'!V$21),\"\",'シート2-①'!V$21)","v":""},{"$f":"IF(ISBLANK('シート2-①'!V$22),\"\",'シート2-①'!V$22)","v":""},{"$f":"IF(ISBLANK('シート2-①'!V$23),\"\",'シート2-①'!V$23)","v":""},{"$f":"IF(ISBLANK('シート2-①'!V$24),\"\",'シート2-①'!V$24)","v":""},{"$f":"IF(ISBLANK('シート2-①'!V$25),\"\",'シート2-①'!V$25)","v":""},{"$f":"IF(ISBLANK('シート2-①'!V$26),\"\",'シート2-①'!V$26)","v":""},{"$f":"IF(ISBLANK('シート2-①'!V$27),\"\",'シート2-①'!V$27)","v":""},{"$f":"IF(ISBLANK('シート2-①'!V$28),\"\",'シート2-①'!V$28)","v":""},{"$f":"IF(ISBLANK('シート2-①'!Y$19),\"\",'シート2-①'!Y$19)","v":""},{"$f":"IF(ISBLANK('シート2-①'!Y$20),\"\",'シート2-①'!Y$20)","v":""},{"$f":"IF(ISBLANK('シート2-①'!Y$21),\"\",'シート2-①'!Y$21)","v":""},{"$f":"IF(ISBLANK('シート2-①'!Y$22),\"\",'シート2-①'!Y$22)","v":""},{"$f":"IF(ISBLANK('シート2-①'!Y$23),\"\",'シート2-①'!Y$23)","v":""},{"$f":"IF(ISBLANK('シート2-①'!Y$24),\"\",'シート2-①'!Y$24)","v":""},{"$f":"IF(ISBLANK('シート2-①'!Y$25),\"\",'シート2-①'!Y$25)","v":""},{"$f":"IF(ISBLANK('シート2-①'!Y$26),\"\",'シート2-①'!Y$26)","v":""},{"$f":"IF(ISBLANK('シート2-①'!Y$27),\"\",'シート2-①'!Y$27)","v":""},{"$f":"IF(ISBLANK('シート2-①'!Y$28),\"\",'シート2-①'!Y$28)","v":""}]
["シート2",null,{"$f":"$C$4","v":"主任研修"},2,{"$f":"IF(ISBLANK('シート2-②'!E$10),\"\",'シート2-②'!E$10)","v":"2024-11-20"},{"$f":"IF(ISBLANK('シート2-②'!M$10),\"\",'シート2-②'!M$10)","v":"09:30:00"},{"$f":"IF(ISBLANK('シート2-②'!R$10),\"\",'シート2-②'!R$10)","v":"12:30:00"},{"$f":"IF(ISBLANK('シート2-②'!E$11),\"\",'シート2-②'!E$11)","v":""},{"$f":"IF(ISBLANK('シート2-②'!M$11),\"\",'シート2-②'!M$11)","v":""},{"$f":"IF(ISBLANK('シート2-②'!R$11),\"\",'シート2-②'!R$11)","v":""},{"$f":"IF(ISBLANK('シート2-②'!E$13),\"\",'シート2-②'!E$13)","v":"オンライン研修（Zoom）"},{"$f":"IF(ISBLANK('シート2-②'!E$14),\"\",'シート2-②'!E$14)","v":""},{"$f":"IF(ISBLANK('シート2-②'!Y$10),\"\",'シート2-②'!Y$10)","v":""},{"$f":"IF(ISBLANK('シート2-②'!Y$13),\"\",'シート2-②'!Y$13)","v":9999},null,{"$f":"IF(ISBLANK('シート2-②'!V$18),\"\",'シート2-②'!V$18)","v":""},{"$f":"IF(ISBLANK('シート2-②'!V$19),\"\",'シート2-②'!V$19)","v":""},{"$f":"IF(ISBLANK('シート2-②'!V$20),\"\",'シート2-②'!V$20)","v":""},{"$f":"IF(ISBLANK('シート2-②'!V$21),\"\",'シート2-②'!V$21)","v":""},{"$f":"IF(ISBLANK('シート2-②'!V$22),\"\",'シート2-②'!V$22)","v":""},{"$f":"IF(ISBLANK('シート2-②'!V$23),\"\",'シート2-②'!V$23)","v":""},{"$f":"IF(ISBLANK('シート2-②'!V$24),\"\",'シート2-②'!V$24)","v":""},{"$f":"IF(ISBLANK('シート2-②'!V$25),\"\",'シート2-②'!V$25)","v":""},{"$f":"IF(ISBLANK('シート2-②'!V$26),\"\",'シート2-②'!V$26)","v":""},{"$f":"IF(ISBLANK('シート2-②'!V$27),\"\",'シート2-②'!V$27)","v":""},{"$f":"IF(ISBLANK('シート2-②'!V$28),\"\",'シート2-②'!V$28)","v":""},{"$f":"IF(ISBLANK('シート2-②'!Y$19),\"\",'シート2-②'!Y$19)","v":""},{"$f":"IF(ISBLANK('シート2-②'!Y$20),\"\",'シート2-②'!Y$20)","v":""},{"$f":"IF(ISBLANK('シート2-②'!Y$21),\"\",'シート2-②'!Y$21)","v":""},{"$f":"IF(ISBLANK('シート2-②'!Y$22),\"\",'シート2-②'!Y$22)","v":""},{"$f":"IF(ISBLANK('シート2-②'!Y$23),\"\",'シート2-②'!Y$23)","v":""},{"$f":"IF(ISBLANK('シート2-②'!Y$24),\"\",'シート2-②'!Y$24)","v":""},{"$f":"IF(ISBLANK('シート2-②'!Y$25),\"\",'シート2-②'!Y$25)","v":""},{"$f":"IF(ISBLANK('シート2-②'!Y$26),\"\",'シート2-②'!Y$26)","v":""},{"$f":"IF(ISBLANK('シート2-②'!Y$27),\"\",'シート2-②'!Y$27)","v":""},{"$f":"IF(ISBLANK('シート2-②'!Y$28),\"\",'シート2-②'!Y$28)","v":""}]
["シート2",null,"主任研修",3,{"$f":"IF(ISBLANK('シート2-③'!E$10),\"\",'シート2-③'!E$10)","v":"2024-12-01"},{"$f":"IF(ISBLANK('シート2-③'!M$10),\"\",'シート2-③'!M$10)","v":"09:30:00"},{"$f":"IF(ISBLANK('シート2-③'!R$10),\"\",'シート2-③'!R$10)","v":"12:30:00"},{"$f":"IF(ISBLANK('シート2-③'!E$11),\"\",'シート2-③'!E$11)","v":""},{"$f":"IF(ISBLANK('シート2-③'!M$11),\"\",'シート2-③'!M$11)","v":""},{"$f":"IF(ISBLANK('シート2-③'!R$11),\"\",'シート2-③'!R$11)","v":""},{"$f":"IF(ISBLANK('シート2-③'!E$13),\"\",'シート2-③'!E$13)","v":"オンライン研修（Zoom）"},{"$f":"IF(ISBLANK('シート2-③'!E$14),\"\",'シート2-③'!E$14)","v":""},{"$f":"IF(ISBLANK('シート2-③'!Y$10),\"\",'シート2-③'!Y$10)","v":""},{"$f":"IF(ISBLANK('シート2-③'!Y$13),\"\",'シート2-③'!Y$13)","v":9999},null,{"$f":"IF(ISBLANK('シート2-③'!V$18),\"\",'シート2-③'!V$18)","v":""},{"$f":"IF(ISBLANK('シート2-③'!V$19),\"\",'シート2-③'!V$19)","v":""},{"$f":"IF(ISBLANK('シート2-③'!V$20),\"\",'シート2-③'!V$20)","v":""},{"$f":"IF(ISBLANK('シート2-③'!V$21),\"\",'シート2-③'!V$21)","v":""},{"$f":"IF(ISBLANK('シート2-③'!V$22),\"\",'シート2-③'!V$22)","v":""},{"$f":"IF(ISBLANK('シート2-③'!V$23),\"\",'シート2-③'!V$23)","v":""},{"$f":"IF(ISBLANK('シート2-③'!V$24),\"\",'シート2-③'!V$24)","v":""},{"$f":"IF(ISBLANK('シート2-③'!V$25),\"\",'シート2-③'!V$25)","v":""},{"$f":"IF(ISBLANK('シート2-③'!V$26),\"\",'シート2-③'!V$26)","v":""},{"$f":"IF(ISBLANK('シート2-③'!V$27),\"\",'シート2-③'!V$27)","v":""},{"$f":"IF(ISBLANK('シート2-③'!V$28),\"\",'シート2-③'!V$28)","v":""},{"$f":"IF(ISBLANK('シート2-③'!Y$19),\"\",'シート2-③'!Y$19)","v":""},{"$f":"IF(ISBLANK('シート2-③'!Y$20),\"\",'シート2-③'!Y$20)","v":""},{"$f":"IF(ISBLANK('シート2-③'!Y$21),\"\",'シート2-③'!Y$21)","v":""},{"$f":"IF(ISBLANK('シート2-③'!Y$22),\"\",'シート2-③'!Y$22)","v":""},{"$f":"IF(ISBLANK('シート2-③'!Y$23),\"\",'シート2-③'!Y$23)","v":""},{"$f":"IF(ISBLANK('シート2-③'!Y$24),\"\",'シート2-③'!Y$24)","v":""},{"$f":"IF(ISBLANK('シート2-③'!Y$25),\"\",'シート2-③'!Y$25)","v":""},{"$f":"IF(ISBLANK('シート2-③'!Y$26),\"\",'シート2-③'!Y$26)","v":""},{"$f":"IF(ISBLANK('シート2-③'!Y$27),\"\",'シート2-③'!Y$27)","v":""},{"$f":"IF(ISBLANK('シート2-③'!Y$28),\"\",'シート2-③'!Y$28)","v":""}]
["シート2",null,"主任研修",4,{"$f":"IF(ISBLANK('シート2-④'!E$10),\"\",'シート2-④'!E$10)","v":"2024-11-20"},{"$f":"IF(ISBLANK('シート2-④'!M$10),\"\",'シート2-④'!M$10)","v":"13:30:00"},{"$f":"IF(ISBLANK('シート2-④'!R$10),\"\",'シート2-④'!R$10)","v":"16:30:00"},{"$f":"IF(ISBLANK('シート2-④'!E$11),\"\",'シート2-④'!E$11)","v":""},{"$f":"IF(ISBLANK('シート2-④'!M$11),\"\",'シート2-④'!M$11)","v":""},{"$f":"IF(ISBLANK('シート2-④'!R$11),\"\",'シート2-④'!R$11)","v":""},{"$f":"IF(ISBLANK('シート2-④'!E$13),\"\",'シート2-④'!E$13)","v":"オンライン研修（Zoom）"},{"$f":"IF(ISBLANK('シート2-④'!E$14),\"\",'シート2-④'!E$14)","v":""},{"$f":"IF(ISBLANK('シート2-④'!Y$10),\"\",'シート2-④'!Y$10)","v":""},{"$f":"IF(ISBLANK('シート2-④'!Y$13),\"\",'シート2-④'!Y$13)","v":9999},null,{"$f":"IF(ISBLANK('シート2-④'!V$18),\"\",'シート2-④'!V$18)","v":""},{"$f":"IF(ISBLANK('シート2-④'!V$19),\"\",'シート2-④'!V$19)","v":""},{"$f":"IF(ISBLANK('シート2-④'!V$20),\"\",'シート2-④'!V$20)","v":""},{"$f":"IF(ISBLANK('シート2-④'!V$21),\"\",'シート2-④'!V$21)","v":""},{"$f":"IF(ISBLANK('シート2-④'!V$22),\"\",'シート2-④'!V$22)","v":""},{"$f":"IF(ISBLANK('シート2-④'!V$23),\"\",'シート2-④'!V$23)","v":""},{"$f":"IF(ISBLANK('シート2-④'!V$24),\"\",'シート2-④'!V$24)","v":""},{"$f":"IF(ISBLANK('シート2-④'!V$25),\"\",'シート2-④'!V$25)","v":""},{"$f":"IF(ISBLANK('シート2-④'!V$26),\"\",'シート2-④'!V$26)","v":""},{"$f":"IF(ISBLANK('シート2-④'!V$27),\"\",'シート2-④'!V$27)","v":""},{"$f":"IF(ISBLANK('シート2-④'!V$28),\"\",'シート2-④'!V$28)","v":""},{"$f":"IF(ISBLANK('シート2-④'!Y$19),\"\",'シート2-④'!Y$19)","v":""},{"$f":"IF(ISBLANK('シート2-④'!Y$20),\"\",'シート2-④'!Y$20)","v":""},{"$f":"IF(ISBLANK('シート2-④'!Y$21),\"\",'シート2-④'!Y$21)","v":""},{"$f":"IF(ISBLANK('シート2-④'!Y$22),\"\",'シート2-④'!Y$22)","v":""},{"$f":"IF(ISBLANK('シート2-④'!Y$23),\"\",'シート2-④'!Y$23)","v":""},{"$f":"IF(ISBLANK('シート2-④'!Y$24),\"\",'シート2-④'!Y$24)","v":""},{"$f":"IF(ISBLANK('シート2-④'!Y$25),\"\",'シート2-④'!Y$25)","v":""},{"$f":"IF(ISBLANK('シート2-④'!Y$26),\"\",'シート2-④'!Y$26)","v":""},{"$f":"IF(ISBLANK('シート2-④'!Y$27),\"\",'シート2-④'!Y$27)","v":""},{"$f":"IF(ISBLANK('シート2-④'!Y$28),\"\",'シート2-④'!Y$28)","v":""}]
["シート2",null,"主任研修",5,{"$f":"IF(ISBLANK('シート2-⑤'!E$10),\"\",'シート2-⑤'!E$10)","v":"2024-12-01"},{"$f":"IF(ISBLANK('シート2-⑤'!M$10),\"\",'シート2-⑤'!M$10)","v":"13:30:00"},{"$f":"IF(ISBLANK('シート2-⑤'!R$10),\"\",'シート2-⑤'!R$10)","v":"16:30:00"},{"$f":"IF(ISBLANK('シート2-⑤'!E$11),\"\",'シート2-⑤'!E$11)","v":""},{"$f":"IF(ISBLANK('シート2-⑤'!M$11),\"\",'シート2-⑤'!M$11)","v":""},{"$f":"IF(ISBLANK('シート2-⑤'!R$11),\"\",'シート2-⑤'!R$11)","v":""},{"$f":"IF(ISBLANK('シート2-⑤'!E$13),\"\",'シート2-⑤'!E$13)","v":"オンライン研修（Zoom）"},{"$f":"IF(ISBLANK('シート2-⑤'!E$14),\"\",'シート2-⑤'!E$14)","v":""},{"$f":"IF(ISBLANK('シート2-⑤'!Y$10),\"\",'シート2-⑤'!Y$10)","v":""},{"$f":"IF(ISBLANK('シート2-⑤'!Y$13),\"\",'シート2-⑤'!Y$13)","v":9999},null,{"$f":"IF(ISBLANK('シート2-⑤'!V$18),\"\",'シート2-⑤'!V$18)","v":""},{"$f":"IF(ISBLANK('シート2-⑤'!V$19),\"\",'シート2-⑤'!V$19)","v":""},{"$f":"IF(ISBLANK('シート2-⑤'!V$20),\"\",'シート2-⑤'!V$20)","v":""},{"$f":"IF(ISBLANK('シート2-⑤'!V$21),\"\",'シート2-⑤'!V$21)","v":""},{"$f":"IF(ISBLANK('シート2-⑤'!V$22),\"\",'シート2-⑤'!V$22)","v":""},{"$f":"IF(ISBLANK('シート2-⑤'!V$23),\"\",'シート2-⑤'!V$23)","v":""},{"$f":"IF(ISBLANK('シート2-⑤'!V$24),\"\",'シート2-⑤'!V$24)","v":""},{"$f":"IF(ISBLANK('シート2-⑤'!V$25),\"\",'シート2-⑤'!V$25)","v":""},{"$f":"IF(ISBLANK('シート2-⑤'!V$26),\"\",'シート2-⑤'!V$26)","v":""},{"$f":"IF(ISBLANK('シート2-⑤'!V$27),\"\",'シート2-⑤'!V$27)","v":""},{"$f":"IF(ISBLANK('シート2-⑤'!V$28),\"\",'シート2-⑤'!V$28)","v":""},{"$f":"IF(ISBLANK('シート2-⑤'!Y$19),\"\",'シート2-⑤'!Y$19)","v":""},{"$f":"IF(ISBLANK('シート2-⑤'!Y$20),\"\",'シート2-⑤'!Y$20)","v":""},{"$f":"IF(ISBLANK('シート2-⑤'!Y$21),\"\",'シート2-⑤'!Y$21)","v":""},{"$f":"IF(ISBLANK('シート2-⑤'!Y$22),\"\",'シート2-⑤'!Y$22)","v":""},{"$f":"IF(ISBLANK('シート2-⑤'!Y$23),\"\",'シート2-⑤'!Y$23)","v":""},{"$f":"IF(ISBLANK('シート2-⑤'!Y$24),\"\",'シート2-⑤'!Y$24)","v":""},{"$f":"IF(ISBLANK('シート2-⑤'!Y$25),\"\",'シート2-⑤'!Y$25)","v":""},{"$f":"IF(ISBLANK('シート2-⑤'!Y$26),\"\",'シート2-⑤'!Y$26)","v":""},{"$f":"IF(ISBLANK('シート2-⑤'!Y$27),\"\",'シート2-⑤'!Y$27)","v":""},{"$f":"IF(ISBLANK('シート2-⑤'!Y$28),\"\",'シート2-⑤'!Y$28)","v":""}]
["シート2",null,"主任研修",6,{"$f":"IF(ISBLANK('シート2-⑥'!E$10),\"\",'シート2-⑥'!E$10)","v":"2025-01-19"},{"$f":"IF(ISBLANK('シート2-⑥'!M$10),\"\",'シート2-⑥'!M$10)","v":"09:30:00"},{"$f":"IF(ISBLANK('シート2-⑥'!R$10),\"\",'シート2-⑥'!R$10)","v":"16:30:00"},{"$f":"IF(ISBLANK('シート2-⑥'!E$11),\"\",'シート2-⑥'!E$11)","v":""},{"$f":"IF(ISBLANK('シート2-⑥'!M$11),\"\",'シート2-⑥'!M$11)","v":""},{"$f":"IF(ISBLANK('シート2-⑥'!R$11),\"\",'シート2-⑥'!R$11)","v":""},{"$f":"IF(ISBLANK('シート2-⑥'!E$13),\"\",'シート2-⑥'!E$13)","v":"オンライン研修（Zoom）"},{"$f":"IF(ISBLANK('シート2-⑥'!E$14),\"\",'シート2-⑥'!E$14)","v":""},{"$f":"IF(ISBLANK('シート2-⑥'!Y$10),\"\",'シート2-⑥'!Y$10)","v":""},{"$f":"IF(ISBLANK('シート2-⑥'!Y$13),\"\",'シート2-⑥'!Y$13)","v":9999},null,{"$f":"IF(ISBLANK('シート2-⑥'!V$18),\"\",'シート2-⑥'!V$18)","v":""},{"$f":"IF(ISBLANK('シート2-⑥'!V$19),\"\",'シート2-⑥'!V$19)","v":""},{"$f":"IF(ISBLANK('シート2-⑥'!V$20),\"\",'シート2-⑥'!V$20)","v":""},{"$f":"IF(ISBLANK('シート2-⑥'!V$21),\"\",'シート2-⑥'!V$21)","v":""},{"$f":"IF(ISBLANK('シート2-⑥'!V$22),\"\",'シート2-⑥'!V$22)","v":""},{"$f":"IF(ISBLANK('シート2-⑥'!V$23),\"\",'シート2-⑥'!V$23)","v":""},{"$f":"IF(ISBLANK('シート2-⑥'!V$24),\"\",'シート2-⑥'!V$24)","v":""},{"$f":"IF(ISBLANK('シート2-⑥'!V$25),\"\",'シート2-⑥'!V$25)","v":""},{"$f":"IF(ISBLANK('シート2-⑥'!V$26),\"\",'シート2-⑥'!V$26)","v":""},{"$f":"IF(ISBLANK('シート2-⑥'!V$27),\"\",'シート2-⑥'!V$27)","v":""},{"$f":"IF(ISBLANK('シート2-⑥'!V$28),\"\",'シート2-⑥'!V$28)","v":""},{"$f":"IF(ISBLANK('シート2-⑥'!Y$19),\"\",'シート2-⑥'!Y$19)","v":""},{"$f":"IF(ISBLANK('シート2-⑥'!Y$20),\"\",'シート2-⑥'!Y$20)","v":""},{"$f":"IF(ISBLANK('シート2-⑥'!Y$21),\"\",'シート2-⑥'!Y$21)","v":""},{"$f":"IF(ISBLANK('シート2-⑥'!Y$22),\"\",'シート2-⑥'!Y$22)","v":""},{"$f":"IF(ISBLANK('シート2-⑥'!Y$23),\"\",'シート2-⑥'!Y$23)","v":""},{"$f":"IF(ISBLANK('シート2-⑥'!Y$24),\"\",'シート2-⑥'!Y$24)","v":""},{"$f":"IF(ISBLANK('シート2-⑥'!Y$25),\"\",'シート2-⑥'!Y$25)","v":""},{"$f":"IF(ISBLANK('シート2-⑥'!Y$26),\"\",'シート2-⑥'!Y$26)","v":""},{"$f":"IF(ISBLANK('シート2-⑥'!Y$27),\"\",'シート2-⑥'!Y$27)","v":""},{"$f":"IF(ISBLANK('シート2-⑥'!Y$28),\"\",'シート2-⑥'!Y$28)","v":""}]
["シート2",null,"主任研修",7,{"$f":"IF(ISBLANK('シート2-⑦'!$E$10),\"\",'シート2-⑦'!$E$10)","v":"2024-11-26"},{"$f":"IF(ISBLANK('シート2-⑦'!M$10),\"\",'シート2-⑦'!M$10)","v":"09:30:00"},{"$f":"IF(ISBLANK('シート2-⑦'!R$10),\"\",'シート2-⑦'!R$10)","v":"16:30:00"},{"$f":"IF(ISBLANK('シート2-⑦'!E$11),\"\",'シート2-⑦'!E$11)","v":""},{"$f":"IF(ISBLANK('シート2-⑦'!M$11),\"\",'シート2-⑦'!M$11)","v":""},{"$f":"IF(ISBLANK('シート2-⑦'!R$11),\"\",'シート2-⑦'!R$11)","v":""},{"$f":"IF(ISBLANK('シート2-⑦'!E$13),\"\",'シート2-⑦'!E$13)","v":"オンライン研修（Zoom）"},{"$f":"IF(ISBLANK('シート2-⑦'!E$14),\"\",'シート2-⑦'!E$14)","v":""},{"$f":"IF(ISBLANK('シート2-⑦'!Y$10),\"\",'シート2-⑦'!Y$10)","v":""},{"$f":"IF(ISBLANK('シート2-⑦'!Y$13),\"\",'シート2-⑦'!Y$13)","v":9999},null,{"$f":"IF(ISBLANK('シート2-⑦'!V$18),\"\",'シート2-⑦'!V$18)","v":""},{"$f":"IF(ISBLANK('シート2-⑦'!V$19),\"\",'シート2-⑦'!V$19)","v":""},{"$f":"IF(ISBLANK('シート2-⑦'!V$20),\"\",'シート2-⑦'!V$20)","v":""},{"$f":"IF(ISBLANK('シート2-⑦'!V$21),\"\",'シート2-⑦'!V$21)","v":""},{"$f":"IF(ISBLANK('シート2-⑦'!V$22),\"\",'シート2-⑦'!V$22)","v":""},{"$f":"IF(ISBLANK('シート2-⑦'!V$23),\"\",'シート2-⑦'!V$23)","v":""},{"$f":"IF(ISBLANK('シート2-⑦'!V$24),\"\",'シート2-⑦'!V$24)","v":""},{"$f":"IF(ISBLANK('シート2-⑦'!V$25),\"\",'シート2-⑦'!V$25)","v":""},{"$f":"IF(ISBLANK('シート2-⑦'!V$26),\"\",'シート2-⑦'!V$26)","v":""},{"$f":"IF(ISBLANK('シート2-⑦'!V$27),\"\",'シート2-⑦'!#REF!)","v":""},{"$f":"IF(ISBLANK('シート2-⑦'!V$28),\"\",'シート2-⑦'!V$28)","v":""},{"$f":"IF(ISBLANK('シート2-⑦'!Y$19),\"\",'シート2-⑦'!Y$19)","v":""},{"$f":"IF(ISBLANK('シート2-⑦'!Y$20),\"\",'シート2-⑦'!Y$20)","v":""},{"$f":"IF(ISBLANK('シート2-⑦'!Y$21),\"\",'シート2-⑦'!Y$21)","v":""},{"$f":"IF(ISBLANK('シート2-⑦'!Y$22),\"\",'シート2-⑦'!Y$22)","v":""},{"$f":"IF(ISBLANK('シート2-⑦'!Y$23),\"\",'シート2-⑦'!Y$23)","v":""},{"$f":"IF(ISBLANK('シート2-⑦'!Y$24),\"\",'シート2-⑦'!Y$24)","v":""},{"$f":"IF(ISBLANK('シート2-⑦'!Y$25),\"\",'シート2-⑦'!Y$25)","v":""},{"$f":"IF(ISBLANK('シート2-⑦'!Y$26),\"\",'シート2-⑦'!Y$26)","v":""},{"$f":"IF(ISBLANK('シート2-⑦'!Y$27),\"\",'シート2-⑦'!Y$27)","v":""},{"$f":"IF(ISBLANK('シート2-⑦'!Y$28),\"\",'シート2-⑦'!Y$28)","v":""}]
["シート2",null,"主任研修",8,{"$f":"IF(ISBLANK('シート2-⑧'!$E$10),\"\",'シート2-⑧'!$E$10)","v":"2025-02-04"},{"$f":"IF(ISBLANK('シート2-⑧'!M$10),\"\",'シート2-⑧'!M$10)","v":"09:30:00"},{"$f":"IF(ISBLANK('シート2-⑧'!R$10),\"\",'シート2-⑧'!R$10)","v":"16:30:00"},{"$f":"IF(ISBLANK('シート2-⑧'!E$11),\"\",'シート2-⑧'!E$11)","v":""},{"$f":"IF(ISBLANK('シート2-⑧'!M$11),\"\",'シート2-⑧'!M$11)","v":""},{"$f":"IF(ISBLANK('シート2-⑧'!R$11),\"\",'シート2-⑧'!R$11)","v":""},{"$f":"IF(ISBLANK('シート2-⑧'!E$13),\"\",'シート2-⑧'!E$13)","v":"オンライン研修（Zoom）"},{"$f":"IF(ISBLANK('シート2-⑧'!E$14),\"\",'シート2-⑧'!E$14)","v":""},{"$f":"IF(ISBLANK('シート2-⑧'!Y$10),\"\",'シート2-⑧'!Y$10)","v":""},{"$f":"IF(ISBLANK('シート2-⑧'!Y$13),\"\",'シート2-⑧'!Y$13)","v":9999},null,{"$f":"IF(ISBLANK('シート2-⑧'!V$18),\"\",'シート2-⑧'!V$18)","v":""},{"$f":"IF(ISBLANK('シート2-⑧'!V$19),\"\",'シート2-⑧'!V$19)","v":""},{"$f":"IF(ISBLANK('シート2-⑧'!V$20),\"\",'シート2-⑧'!V$20)","v":""},{"$f":"IF(ISBLANK('シート2-⑧'!V$21),\"\",'シート2-⑧'!V$21)","v":""},{"$f":"IF(ISBLANK('シート2-⑧'!V$22),\"\",'シート2-⑧'!V$22)","v":""},{"$f":"IF(ISBLANK('シート2-⑧'!V$23),\"\",'シート2-⑧'!V$23)","v":""},{"$f":"IF(ISBLANK('シート2-⑧'!V$24),\"\",'シート2-⑧'!V$24)","v":""},{"$f":"IF(ISBLANK('シート2-⑧'!V$25),\"\",'シート2-⑧'!V$25)","v":""},{"$f":"IF(ISBLANK('シート2-⑧'!V$26),\"\",'シート2-⑧'!V$26)","v":""},{"$f":"IF(ISBLANK('シート2-⑧'!V$27),\"\",'シート2-⑧'!#REF!)","v":""},{"$f":"IF(ISBLANK('シート2-⑧'!V$28),\"\",'シート2-⑧'!V$28)","v":""},{"$f":"IF(ISBLANK('シート2-⑧'!Y$19),\"\",'シート2-⑧'!Y$19)","v":""},{"$f":"IF(ISBLANK('シート2-⑧'!Y$20),\"\",'シート2-⑧'!Y$20)","v":""},{"$f":"IF(ISBLANK('シート2-⑧'!Y$21),\"\",'シート2-⑧'!Y$21)","v":""},{"$f":"IF(ISBLANK('シート2-⑧'!Y$22),\"\",'シート2-⑧'!Y$22)","v":""},{"$f":"IF(ISBLANK('シート2-⑧'!Y$23),\"\",'シート2-⑧'!Y$23)","v":""},{"$f":"IF(ISBLANK('シート2-⑧'!Y$24),\"\",'シート2-⑧'!Y$24)","v":""},{"$f":"IF(ISBLANK('シート2-⑧'!Y$25),\"\",'シート2-⑧'!Y$25)","v":""},{"$f":"IF(ISBLANK('シート2-⑧'!Y$26),\"\",'シート2-⑧'!Y$26)","v":""},{"$f":"IF(ISBLANK('シート2-⑧'!Y$27),\"\",'シート2-⑧'!Y$27)","v":""},{"$f":"IF(ISBLANK('シート2-⑧'!Y$28),\"\",'シート2-⑧'!Y$28)","v":""}]
["シート2",null,"主任研修",9,{"$f":"IF(ISBLANK('シート2-⑨'!$E$10),\"\",'シート2-⑨'!$E$10)","v":"2025-03-05"},{"$f":"IF(ISBLANK('シート2-⑨'!M$10),\"\",'シート2-⑨'!M$10)","v":"09:30:00"},{"$f":"IF(ISBLANK('シート2-⑨'!R$10),\"\",'シート2-⑨'!R$10)","v":"16:30:00"},{"$f":"IF(ISBLANK('シート2-⑨'!E$11),\"\",'シート2-⑨'!E$11)","v":""},{"$f":"IF(ISBLANK('シート2-⑨'!M$11),\"\",'シート2-⑨'!M$11)","v":""},{"$f":"IF(ISBLANK('シート2-⑨'!R$11),\"\",'シート2-⑨'!R$11)","v":""},{"$f":"IF(ISBLANK('シート2-⑨'!E$13),\"\",'シート2-⑨'!E$13)","v":"オンライン研修（Zoom）"},{"$f":"IF(ISBLANK('シート2-⑨'!E$14),\"\",'シート2-⑨'!E$14)","v":""},{"$f":"IF(ISBLANK('シート2-⑨'!Y$10),\"\",'シート2-⑨'!Y$10)","v":""},{"$f":"IF(ISBLANK('シート2-⑨'!Y$13),\"\",'シート2-⑨'!Y$13)","v":9999},null,{"$f":"IF(ISBLANK('シート2-⑨'!V$18),\"\",'シート2-⑨'!V$18)","v":""},{"$f":"IF(ISBLANK('シート2-⑨'!V$19),\"\",'シート2-⑨'!V$19)","v":""},{"$f":"IF(ISBLANK('シート2-⑨'!V$20),\"\",'シート2-⑨'!V$20)","v":""},{"$f":"IF(ISBLANK('シート2-⑨'!V$21),\"\",'シート2-⑨'!V$21)","v":""},{"$f":"IF(ISBLANK('シート2-⑨'!V$22),\"\",'シート2-⑨'!V$22)","v":""},{"$f":"IF(ISBLANK('シート2-⑨'!V$23),\"\",'シート2-⑨'!V$23)","v":""},{"$f":"IF(ISBLANK('シート2-⑨'!V$24),\"\",'シート2-⑨'!V$24)","v":""},{"$f":"IF(ISBLANK('シート2-⑨'!V$25),\"\",'シート2-⑨'!V$25)","v":""},{"$f":"IF(ISBLANK('シート2-⑨'!V$26),\"\",'シート2-⑨'!V$26)","v":""},{"$f":"IF(ISBLANK('シート2-⑨'!V$27),\"\",'シート2-⑨'!#REF!)","v":""},{"$f":"IF(ISBLANK('シート2-⑨'!V$28),\"\",'シート2-⑨'!V$28)","v":""},{"$f":"IF(ISBLANK('シート2-⑨'!Y$19),\"\",'シート2-⑨'!Y$19)","v":""},{"$f":"IF(ISBLANK('シート2-⑨'!Y$20),\"\",'シート2-⑨'!Y$20)","v":""},{"$f":"IF(ISBLANK('シート2-⑨'!Y$21),\"\",'シート2-⑨'!Y$21)","v":""},{"$f":"IF(ISBLANK('シート2-⑨'!Y$22),\"\",'シート2-⑨'!Y$22)","v":""},{"$f":"IF(ISBLANK('シート2-⑨'!Y$23),\"\",'シート2-⑨'!Y$23)","v":""},{"$f":"IF(ISBLANK('シート2-⑨'!Y$24),\"\",'シート2-⑨'!Y$24)","v":""},{"$f":"IF(ISBLANK('シート2-⑨'!Y$25),\"\",'シート2-⑨'!Y$25)","v":""},{"$f":"IF(ISBLANK('シート2-⑨'!Y$26),\"\",'シート2-⑨'!Y$26)","v":""},{"$f":"IF(ISBLANK('シート2-⑨'!Y$27),\"\",'シート2-⑨'!Y$27)","v":""},{"$f":"IF(ISBLANK('シート2-⑨'!Y$28),\"\",'シート2-⑨'!Y$28)","v":""}]
[]
[]
["集計データ（研修記録シート3）"]
[null,null,"基本情報",null,null,null,null,null,null,null,null,null,null,null,"回答内容"]
["集計用","転記日","課程区分","科目区分","受講日1","時間1\n（始点）","時間2\n（終点）","受講日2","時間2\n（始点）","時間2\n（終点）","会場1","会場2","氏名","受講番号","①得た事","②活かせること","③学ぶべきこと","④感じたこと"]
["シート3",null,{"$f":"$C$4","v":"主任研修"},1,{"$f":"IF(ISBLANK('シート3-①'!E$10),\"\",'シート3-①'!E$10)","v":"2024-11-09"},{"$f":"IF(ISBLANK('シート3-①'!M$10),\"\",'シート3-①'!M$10)","v":"10:00:00"},{"$f":"IF(ISBLANK('シート3-①'!R$10),\"\",'シート3-①'!R$10)","v":"12:00:00"},{"$f":"IF(ISBLANK('シート3-①'!E$11),\"\",'シート3-①'!E$11)","v":"2024-11-09"},{"$f":"IF(ISBLANK('シート3-①'!M$11),\"\",'シート3-①'!M$11)","v":"13:00:00"},{"$f":"IF(ISBLANK('シート3-①'!R$11),\"\",'シート3-①'!R$11)","v":"16:00:00"},{"$f":"IF(ISBLANK('シート3-①'!E$13),\"\",'シート3-①'!E$13)","v":"オンライン研修（Zoom）"},{"$f":"IF(ISBLANK('シート3-①'!E$14),\"\",'シート3-①'!E$14)","v":"オンライン研修（Zoom）"},{"$f":"IF(ISBLANK('シート3-①'!Y$10),\"\",'シート3-①'!Y$10)","v":""},{"$f":"IF(ISBLANK('シート3-①'!Y$13),\"\",'シート3-①'!Y$13)","v":9999},{"$f":"IF(ISBLANK('シート3-①'!J$18),\"\",'シート3-①'!J$18)","v":""},{"$f":"IF(ISBLANK('シート3-①'!J$19),\"\",'シート3-①'!J$19)","v":""},{"$f":"IF(ISBLANK('シート3-①'!J$20),\"\",'シート3-①'!J$20)","v":""},{"$f":"IF(ISBLANK('シート3-①'!J$21),\"\",'シート3-①'!J$21)","v":""}]
["シート3",null,"主任研修",2,{"$f":"IF(ISBLANK('シート3-②'!E$10),\"\",'シート3-②'!E$10)","v":"2024-11-20"},{"$f":"IF(ISBLANK('シート3-②'!M$10),\"\",'シート3-②'!M$10)","v":"09:30:00"},{"$f":"IF(ISBLANK('シート3-②'!R$10),\"\",'シート3-②'!R$10)","v":"12:30:00"},{"$f":"IF(ISBLANK('シート3-②'!E$11),\"\",'シート3-②'!E$11)","v":""},{"$f":"IF(ISBLANK('シート3-②'!M$11),\"\",'シート3-②'!M$11)","v":""},{"$f":"IF(ISBLANK('シート3-②'!R$11),\"\",'シート3-②'!R$11)","v":""},{"$f":"IF(ISBLANK('シート3-②'!E$13),\"\",'シート3-②'!E$13)","v":"オンライン研修（Zoom）"},{"$f":"IF(ISBLANK('シート3-②'!E$14),\"\",'シート3-②'!E$14)","v":""},{"$f":"IF(ISBLANK('シート3-②'!Y$10),\"\",'シート3-②'!Y$10)","v":""},{"$f":"IF(ISBLANK('シート3-②'!Y$13),\"\",'シート3-②'!Y$13)","v":9999},{"$f":"IF(ISBLANK('シート3-②'!J$18),\"\",'シート3-②'!J$18)","v":""},{"$f":"IF(ISBLANK('シート3-②'!J$19),\"\",'シート3-②'!J$19)","v":""},{"$f":"IF(ISBLANK('シート3-②'!J$20),\"\",'シート3-②'!J$20)","v":""},{"$f":"IF(ISBLANK('シート3-②'!J$21),\"\",'シート3-②'!J$21)","v":""}]
["シート3",null,"主任研修",3,{"$f":"IF(ISBLANK('シート3-③'!E$10),\"\",'シート3-③'!E$10)","v":"2024-12-01"},{"$f":"IF(ISBLANK('シート3-③'!M$10),\"\",'シート3-③'!M$10)","v":"09:30:00"},{"$f":"IF(ISBLANK('シート3-③'!R$10),\"\",'シート3-③'!R$10)","v":"12:30:00"},{"$f":"IF(ISBLANK('シート3-③'!E$11),\"\",'シート3-③'!E$11)","v":""},{"$f":"IF(ISBLANK('シート3-③'!M$11),\"\",'シート3-③'!M$11)","v":""},{"$f":"IF(ISBLANK('シート3-③'!R$11),\"\",'シート3-③'!R$11)","v":""},{"$f":"IF(ISBLANK('シート3-③'!E$13),\"\",'シート3-③'!E$13)","v":"オンライン研修（Zoom）"},{"$f":"IF(ISBLANK('シート3-③'!E$14),\"\",'シート3-③'!E$14)","v":""},{"$f":"IF(ISBLANK('シート3-③'!Y$10),\"\",'シート3-③'!Y$10)","v":""},{"$f":"IF(ISBLANK('シート3-③'!Y$13),\"\",'シート3-③'!Y$13)","v":9999},{"$f":"IF(ISBLANK('シート3-③'!J$18),\"\",'シート3-③'!J$18)","v":""},{"$f":"IF(ISBLANK('シート3-③'!J$19),\"\",'シート3-③'!J$19)","v":""},{"$f":"IF(ISBLANK('シート3-③'!J$20),\"\",'シート3-③'!J$20)","v":""},{"$f":"IF(ISBLANK('シート3-③'!J$21),\"\",'シート3-③'!J$21)","v":""}]
["シート3",null,"主任研修",4,{"$f":"IF(ISBLANK('シート3-④'!E$10),\"\",'シート3-④'!E$10)","v":"2024-11-20"},{"$f":"IF(ISBLANK('シート3-④'!M$10),\"\",'シート3-④'!M$10)","v":"13:30:00"},{"$f":"IF(ISBLANK('シート3-④'!R$10),\"\",'シート3-④'!R$10)","v":"16:30:00"},{"$f":"IF(ISBLANK('シート3-④'!E$11),\"\",'シート3-④'!E$11)","v":""},{"$f":"IF(ISBLANK('シート3-④'!M$11),\"\",'シート3-④'!M$11)","v":""},{"$f":"IF(ISBLANK('シート3-④'!R$11),\"\",'シート3-④'!R$11)","v":""},{"$f":"IF(ISBLANK('シート3-④'!E$13),\"\",'シート3-④'!E$13)","v":"オンライン研修（Zoom）"},{"$f":"IF(ISBLANK('シート3-④'!E$14),\"\",'シート3-④'!E$14)","v":""},{"$f":"IF(ISBLANK('シート3-④'!Y$10),\"\",'シート3-④'!Y$10)","v":""},{"$f":"IF(ISBLANK('シート3-④'!Y$13),\"\",'シート3-④'!Y$13)","v":9999},{"$f":"IF(ISBLANK('シート3-④'!J$18),\"\",'シート3-④'!J$18)","v":""},{"$f":"IF(ISBLANK('シート3-④'!J$19),\"\",'シート3-④'!J$19)","v":""},{"$f":"IF(ISBLANK('シート3-④'!J$20),\"\",'シート3-④'!J$20)","v":""},{"$f":"IF(ISBLANK('シート3-④'!J$21),\"\",'シート3-④'!J$21)","v":""}]
["シート3",null,"主任研修",5,{"$f":"IF(ISBLANK('シート3-⑤'!E$10),\"\",'シート3-⑤'!E$10)","v":"2024-12-01"},{"$f":"IF(ISBLANK('シート3-⑤'!M$10),\"\",'シート3-⑤'!M$10)","v":"13:30:00"},{"$f":"IF(ISBLANK('シート3-⑤'!R$10),\"\",'シート3-⑤'!R$10)","v":"16:30:00"},{"$f":"IF(ISBLANK('シート3-⑤'!E$11),\"\",'シート3-⑤'!E$11)","v":""},{"$f":"IF(ISBLANK('シート3-⑤'!M$11),\"\",'シート3-⑤'!M$11)","v":""},{"$f":"IF(ISBLANK('シート3-⑤'!R$11),\"\",'シート3-⑤'!R$11)","v":""},{"$f":"IF(ISBLANK('シート3-⑤'!E$13),\"\",'シート3-⑤'!E$13)","v":"オンライン研修（Zoom）"},{"$f":"IF(ISBLANK('シート3-⑤'!E$14),\"\",'シート3-⑤'!E$14)","v":""},{"$f":"IF(ISBLANK('シート3-⑤'!Y$10),\"\",'シート3-⑤'!Y$10)","v":""},{"$f":"IF(ISBLANK('シート3-⑤'!Y$13),\"\",'シート3-⑤'!Y$13)","v":9999},{"$f":"IF(ISBLANK('シート3-⑤'!J$18),\"\",'シート3-⑤'!J$18)","v":""},{"$f":"IF(ISBLANK('シート3-⑤'!J$19),\"\",'シート3-⑤'!J$19)","v":""},{"$f":"IF(ISBLANK('シート3-⑤'!J$20),\"\",'シート3-⑤'!J$20)","v":""},{"$f":"IF(ISBLANK('シート3-⑤'!J$21),\"\",'シート3-⑤'!J$21)","v":""}]
["シート3",null,"主任研修",6,{"$f":"IF(ISBLANK('シート3-⑥'!E$10),\"\",'シート3-⑥'!E$10)","v":"2025-01-19"},{"$f":"IF(ISBLANK('シート3-⑥'!M$10),\"\",'シート3-⑥'!M$10)","v":"09:30:00"},{"$f":"IF(ISBLANK('シート3-⑥'!R$10),\"\",'シート3-⑥'!R$10)","v":"16:30:00"},{"$f":"IF(ISBLANK('シート3-⑥'!E$11),\"\",'シート3-⑥'!E$11)","v":""},{"$f":"IF(ISBLANK('シート3-⑥'!M$11),\"\",'シート3-⑥'!M$11)","v":""},{"$f":"IF(ISBLANK('シート3-⑥'!R$11),\"\",'シート3-⑥'!R$11)","v":""},{"$f":"IF(ISBLANK('シート3-⑥'!E$13),\"\",'シート3-⑥'!E$13)","v":"オンライン研修（Zoom）"},{"$f":"IF(ISBLANK('シート3-⑥'!E$14),\"\",'シート3-⑥'!E$14)","v":""},{"$f":"IF(ISBLANK('シート3-⑥'!Y$10),\"\",'シート3-⑥'!Y$10)","v":""},{"$f":"IF(ISBLANK('シート3-⑥'!Y$13),\"\",'シート3-⑥'!Y$13)","v":9999},{"$f":"IF(ISBLANK('シート3-⑥'!J$18),\"\",'シート3-⑥'!J$18)","v":""},{"$f":"IF(ISBLANK('シート3-⑥'!J$19),\"\",'シート3-⑥'!J$19)","v":""},{"$f":"IF(ISBLANK('シート3-⑥'!J$20),\"\",'シート3-⑥'!J$20)","v":""},{"$f":"IF(ISBLANK('シート3-⑥'!J$21),\"\",'シート3-⑥'!J$21)","v":""}]
["シート3",null,"主任研修",7,{"$f":"IF(ISBLANK('シート3-⑦'!E$10),\"\",'シート3-⑦'!E$10)","v":"2024-11-26"},{"$f":"IF(ISBLANK('シート3-⑦'!M$10),\"\",'シート3-⑦'!M$10)","v":"09:30:00"},{"$f":"IF(ISBLANK('シート3-⑦'!R$10),\"\",'シート3-⑦'!R$10)","v":"16:30:00"},{"$f":"IF(ISBLANK('シート3-⑦'!E$11),\"\",'シート3-⑦'!E$11)","v":""},{"$f":"IF(ISBLANK('シート3-⑦'!M$11),\"\",'シート3-⑦'!M$11)","v":""},{"$f":"IF(ISBLANK('シート3-⑦'!R$11),\"\",'シート3-⑦'!R$11)","v":""},{"$f":"IF(ISBLANK('シート3-⑦'!E$13),\"\",'シート3-⑦'!E$13)","v":"オンライン研修（Zoom）"},{"$f":"IF(ISBLANK('シート3-⑦'!E$14),\"\",'シート3-⑦'!E$14)","v":""},{"$f":"IF(ISBLANK('シート3-⑦'!Y$10),\"\",'シート3-⑦'!Y$10)","v":""},{"$f":"IF(ISBLANK('シート3-⑦'!Y$13),\"\",'シート3-⑦'!Y$13)","v":9999},{"$f":"IF(ISBLANK('シート3-⑦'!J$18),\"\",'シート3-⑦'!J$18)","v":""},{"$f":"IF(ISBLANK('シート3-⑦'!J$19),\"\",'シート3-⑦'!J$19)","v":""},{"$f":"IF(ISBLANK('シート3-⑦'!J$20),\"\",'シート3-⑦'!J$20)","v":""},{"$f":"IF(ISBLANK('シート3-⑦'!J$21),\"\",'シート3-⑦'!J$21)","v":""}]
["シート3",null,"主任研修",8,{"$f":"IF(ISBLANK('シート3-⑧'!E$10),\"\",'シート3-⑧'!E$10)","v":"2025-02-04"},{"$f":"IF(ISBLANK('シート3-⑧'!M$10),\"\",'シート3-⑧'!M$10)","v":"09:30:00"},{"$f":"IF(ISBLANK('シート3-⑧'!R$10),\"\",'シート3-⑧'!R$10)","v":"16:30:00"},{"$f":"IF(ISBLANK('シート3-⑧'!E$11),\"\",'シート3-⑧'!E$11)","v":""},{"$f":"IF(ISBLANK('シート3-⑧'!M$11),\"\",'シート3-⑧'!M$11)","v":""},{"$f":"IF(ISBLANK('シート3-⑧'!R$11),\"\",'シート3-⑧'!R$11)","v":""},{"$f":"IF(ISBLANK('シート3-⑧'!E$13),\"\",'シート3-⑧'!E$13)","v":"オンライン研修（Zoom）"},{"$f":"IF(ISBLANK('シート3-⑧'!E$14),\"\",'シート3-⑧'!E$14)","v":""},{"$f":"IF(ISBLANK('シート3-⑧'!Y$10),\"\",'シート3-⑧'!Y$10)","v":""},{"$f":"IF(ISBLANK('シート3-⑧'!Y$13),\"\",'シート3-⑧'!Y$13)","v":9999},{"$f":"IF(ISBLANK('シート3-⑧'!J$18),\"\",'シート3-⑧'!J$18)","v":""},{"$f":"IF(ISBLANK('シート3-⑧'!J$19),\"\",'シート3-⑧'!J$19)","v":""},{"$f":"IF(ISBLANK('シート3-⑧'!J$20),\"\",'シート3-⑧'!J$20)","v":""},{"$f":"IF(ISBLANK('シート3-⑧'!J$21),\"\",'シート3-⑧'!J$21)","v":""}]
["シート3",null,"主任研修",9,{"$f":"IF(ISBLANK('シート3-⑨'!E$10),\"\",'シート3-⑨'!E$10)","v":"2025-03-05"},{"$f":"IF(ISBLANK('シート3-⑨'!M$10),\"\",'シート3-⑨'!M$10)","v":"09:30:00"},{"$f":"IF(ISBLANK('シート3-⑨'!R$10),\"\",'シート3-⑨'!R$10)","v":"16:30:00"},{"$f":"IF(ISBLANK('シート3-⑨'!E$11),\"\",'シート3-⑨'!E$11)","v":""},{"$f":"IF(ISBLANK('シート3-⑨'!M$11),\"\",'シート3-⑨'!M$11)","v":""},{"$f":"IF(ISBLANK('シート3-⑨'!R$11),\"\",'シート3-⑨'!R$11)","v":""},{"$f":"IF(ISBLANK('シート3-⑨'!E$13),\"\",'シート3-⑨'!E$13)","v":"オンライン研修（Zoom）"},{"$f":"IF(ISBLANK('シート3-⑨'!E$14),\"\",'シート3-⑨'!E$14)","v":""},{"$f":"IF(ISBLANK('シート3-⑨'!Y$10),\"\",'シート3-⑨'!Y$10)","v":""},{"$f":"IF(ISBLANK('シート3-⑨'!Y$13),\"\",'シート3-⑨'!Y$13)","v":9999},{"$f":"IF(ISBLANK('シート3-⑨'!J$18),\"\",'シート3-⑨'!J$18)","v":""},{"$f":"IF(ISBLANK('シート3-⑨'!J$19),\"\",'シート3-⑨'!J$19)","v":""},{"$f":"IF(ISBLANK('シート3-⑨'!J$20),\"\",'シート3-⑨'!J$20)","v":""},{"$f":"IF(ISBLANK('シート3-⑨'!J$21),\"\",'シート3-⑨'!J$21)","v":""}]

{"sheet":"リスト","index":22,"n_rows":136,"n_cols":12,"rows_kept":136,"cut":false,"hidden":true,"merged":[[1,2,2,2],[1,3,1,4],[1,5,1,6],[1,7,1,8]]}
["選択肢"]
["リスト（課程区分）","リスト（時間）",null,"受講前",null,"受講後 ",null,"実践評価",null,"日程１","日程２","会場"]
[null,"リストから選択",null,"理解度","習得度","理解度","習得度","理解度","習得度"]
["Ⅰ","08:00:00"]
["Ⅱ","08:05:00",4,"4．理解している ","-","4．非常に理解が深まった ","4．習得できた ","4．非常に理解が深まった","4．習得度が上がった ","2024-11-09","2025-03-05","オンライン研修（Zoom）"]
[null,"08:10:00",3,"3．概ね理解している ","-","3．理解が深まった ","3．概ね習得できた ","3．理解が深まった","3．まあまあ習得度が上がった "]
[null,"08:15:00",2,"2．あまり理解していない ","-","2．あまり理解が進まなかった ","2．あまり習得できていない ","2．あまり理解度は変わらない ","2．習得度は変わらない "]
[null,"08:20:00",1,"1．全く理解していない ","-","1．理解が進まなかった ","1．習得できていない ","1．理解度は変わらない。 ","1．理解度が深まり、習得度が後退した "]
[null,"08:25:00"]
[null,"08:30:00"]
[null,"08:35:00"]
[null,"08:40:00"]
[null,"08:45:00"]
[null,"08:50:00"]
[null,"08:55:00"]
[null,"09:00:00"]
[null,"09:05:00"]
[null,"09:10:00"]
[null,"09:15:00"]
[null,"09:20:00"]
[null,"09:25:00"]
[null,"09:30:00"]
[null,"09:35:00"]
[null,"09:40:00"]
[null,"09:45:00"]
[null,"09:50:00"]
[null,"09:55:00"]
[null,"10:00:00"]
[null,"10:05:00"]
[null,"10:10:00"]
[null,"10:15:00"]
[null,"10:20:00"]
[null,"10:25:00"]
[null,"10:30:00"]
[null,"10:35:00"]
[null,"10:40:00"]
[null,"10:45:00"]
[null,"10:50:00"]
[null,"10:55:00"]
[null,"11:00:00"]
[null,"11:05:00"]
[null,"11:10:00"]
[null,"11:15:00"]
[null,"11:20:00"]
[null,"11:25:00"]
[null,"11:30:00"]
[null,"11:35:00"]
[null,"11:40:00"]
[null,"11:45:00"]
[null,"11:50:00"]
[null,"11:55:00"]
[null,"12:00:00"]
[null,"12:05:00"]
[null,"12:10:00"]
[null,"12:15:00"]
[null,"12:20:00"]
[null,"12:25:00"]
[null,"12:30:00"]
[null,"12:35:00"]
[null,"12:40:00"]
[null,"12:45:00"]
[null,"12:50:00"]
[null,"12:55:00"]
[null,"13:00:00"]
[null,"13:05:00"]
[null,"13:10:00"]
[null,"13:15:00"]
[null,"13:20:00"]
[null,"13:25:00"]
[null,"13:30:00"]
[null,"13:35:00"]
[null,"13:40:00"]
[null,"13:45:00"]
[null,"13:50:00"]
[null,"13:55:00"]
[null,"14:00:00"]
[null,"14:05:00"]
[null,"14:10:00"]
[null,"14:15:00"]
[null,"14:20:00"]
[null,"14:25:00"]
[null,"14:30:00"]
[null,"14:35:00"]
[null,"14:40:00"]
[null,"14:45:00"]
[null,"14:50:00"]
[null,"14:55:00"]
[null,"15:00:00"]
[null,"15:05:00"]
[null,"15:10:00"]
[null,"15:15:00"]
[null,"15:20:00"]
[null,"15:25:00"]
[null,"15:30:00"]
[null,"15:35:00"]
[null,"15:40:00"]
[null,"15:45:00"]
[null,"15:50:00"]
[null,"15:55:00"]
[null,"16:00:00"]
[null,"16:05:00"]
[null,"16:10:00"]
[null,"16:15:00"]
[null,"16:20:00"]
[null,"16:25:00"]
[null,"16:30:00"]
[null,"16:35:00"]
[null,"16:40:00"]
[null,"16:45:00"]
[null,"16:50:00"]
[null,"16:55:00"]
[null,"17:00:00"]
[null,"17:05:00"]
[null,"17:10:00"]
[null,"17:15:00"]
[null,"17:20:00"]
[null,"17:25:00"]
[null,"17:30:00"]
[null,"17:35:00"]
[null,"17:40:00"]
[null,"17:45:00"]
[null,"17:50:00"]
[null,"17:55:00"]
[null,"18:00:00"]
[null,"18:05:00"]
[null,"18:10:00"]
[null,"18:15:00"]
[null,"18:20:00"]
[null,"18:25:00"]
[null,"18:30:00"]
[null,"18:35:00"]
[null,"18:40:00"]
[null,"18:45:00"]
[null,"18:50:00"]
[null,"18:55:00"]
[null,"19:00:00"]